Workbook

Sheet Resgate
A1: ID | B1: Tipo | C1: Data | D1: Hora do Registro | E1: Identificação do Local | F1: Resgate_X | G1: Resgate_Y | H1: Fitofisionomia/ Ambiente | I1: Condição Meteorológica | J1: NÚMERO DE INDIVÍDUOS | K1: GRUPO | L1: ORDEM | M1: FAMÍLIA | N1: Nome científico | O1: Nome popular | P1: Cond. do Animal | Q1: Base de Fauna | R1: Estágio de desenvolvimento (no resgate) | S1: Sexo | T1: Acidentada em decorrência da obra | U1: Quarentena | V1: Destino | W1: Data de destinação | X1: Soltura_X | Y1: Soltura_Y | Z1: Espécies categorizadas pelo Decreto 63.853/2018 | AA1: Informações adicionais
A2: 1 | B2: RE | C2: 2020-08-13 | D2: 13:10:00 | E2: Canteiro de Apoio | F2: 308210 | G2: 7490892 | H2: Campo Antrópico | I2: Ensolarado | J2: 1 | K2: HERPETOFAUNA | L2: Squamata | M2: Dipsadidae | N2: Oxyrhopus guibei | O2: Falsa-coral | P2: Saudável | Q2: Sim | R2: Adulto | S2: Fêmea | T2: Não | U2: Não | V2: Soltura | W2: 2020-08-13 | X2: 310715 | Y2: 7492902 | Z2: Não | AA2: -
A3: 2 | B3: RE | C3: 2020-08-14 | D3: 15:05:00 | E3: Canteiro de Apoio | F3: 308529 | G3: 7491337 | H3: Campo Antrópico | I3: Ensolarado | J3: 1 | K3: HERPETOFAUNA | L3: Squamata | M3: Colubridae | N3: Philodryas olfersii | O3: Cobra-verde | P3: Saudável | Q3: Sim | R3: Adulto | S3: Macho | T3: Não | U3: Não | V3: Soltura | W3: 2020-08-14 | X3: 310719 | Y3: 7492752 | Z3: Não | AA3: -
A4: 3 | B4: RE | C4: 2020-08-24 | D4: 16:49:00 | E4: Canteiro de Apoio | F4: 307556 | G4: 7490619 | H4: Campo Antrópico | I4: Ensolarado | J4: 1 | K4: HERPETOFAUNA | L4: Squamata | M4: Mabuydae | N4: Copeoglossum nigropunctatum | O4: Calango-cobra | P4: Ferido | Q4: Sim | R4: Adulto | S4: ND | T4: Sim | U4: Sim | V4: Soltura | W4: 2020-08-25 | X4: 310917 | Y4: 7492652 | Z4: Não | AA4: -
A5: - | B5: AF | C5: 2020-08-20 | D5: - | E5: ASV - Área 17 | F5: 307474 | G5: 7490683 | H5: Fragmento Florestal | I5: Ensolarado | J5: 1 | K5: MASTOFAUNA | L5: Primata | M5: Cebidae | N5: Calitrix pericilatta | O5: Sagui Tufo Preto | P5: Saudável | Q5: Não | R5: Adulto | S5: ND | T5: Não | U5: Não | V5: - | W5: - | X5: - | Y5: - | Z5: - | AA5: -
A6: - | B6: AF | C6: 2020-08-24 | D6: - | E6: ASV - Área 07 | F6: 307564 | G6: 7490497 | H6: Fragmento Florestal | I6: Ensolarado | J6: 1 | K6: HERPETOFAUNA | L6: Squamata | M6: Teiidae | N6: Salvator merianae | O6: Teiú | P6: Saudável | Q6: Não | R6: Adulto | S6: ND | T6: Não | U6: Não | V6: - | W6: - | X6: - | Y6: - | Z6: - | AA6: -
A7: - | B7: AF | C7: 2020-08-31 | D7: - | E7: ASV - Área 35 | F7: 308849 | G7: 7490811 | H7: Fragmento Florestal | I7: Ensolarado | J7: 1 | K7: MASTOFAUNA | L7: Cingulata | M7: Dasypodidae | N7: Dasypus novemcinctus | O7: Tatu Galinha | P7: Saudável | Q7: Não | R7: Adulto | S7: ND | T7: Não | U7: Não | V7: - | W7: - | X7: - | Y7: - | Z7: - | AA7: -
A8: 7 | B8: RE | C8: 2020-09-14 | D8: 09:48:00 | E8: ASV - Área 03 | F8: 309841 | G8: 7492242 | H8: Fragmento Florestal | I8: Ensolarado | J8: 1 | K8: HERPETOFAUNA | L8: Squamata | M8: Dipsadidae | N8: Dipsas mikanii | O8: Jararaca-dormideira | P8: Saudável | Q8: Sim | R8: Jovem | S8: Fêmea | T8: Não | U8: Não | V8: Soltura | W8: 2020-09-14 | X8: 310906 | Y8: 7492656 | Z8: Não | AA8: -
A9: 8 | B9: RE | C9: 2020-09-14 | D9: 11:05:00 | E9: ASV - Área 03 | F9: 310192 | G9: 7492168 | H9: Fragmento Florestal | I9: Ensolarado | J9: 1 | K9: MASTOFAUNA | L9: Rodentia | M9: Muridae | N9: Apodemus sylvaticus | O9: Rato-do-campo | P9: Saudável | Q9: Sim | R9: Adulto | S9: Macho | T9: Não | U9: Não | V9: Soltura | W9: 2020-09-14 | X9: 310906 | Y9: 7492654 | Z9: Não | AA9: -
A10: 11 | B10: RE | C10: 2020-09-17 | D10: 08:55:00 | E10: Canteiro de Apoio | F10: 308607 | G10: 7491454 | H10: Campo Antrópico | I10: Ensolarado | J10: 1 | K10: HERPETOFAUNA | L10: Squamata | M10: Dipsadidae | N10: Dipsas mikanii | O10: Jararaca-dormideira | P10: Saudável | Q10: Sim | R10: Adulto | S10: Fêmea | T10: Não | U10: Não | V10: Soltura | W10: 2020-09-17 | X10: 310850 | Y10: 7492616 | Z10: Não | AA10: -
A11: 14 | B11: RE | C11: 2020-09-21 | D11: 06:50:00 | E11: Canteiro de Apoio | F11: 308507 | G11: 7491370 | H11: Campo Antrópico | I11: Ensolarado | J11: 1 | K11: MASTOFAUNA | L11: Didelphimorphia | M11: Didelphidae | N11: Didelphis albiventris | O11: Gambá-de-orelha-branca | P11: Morto | Q11: Sim | R11: Jovem | S11: Macho | T11: Não | U11: Não | V11: UNIFAJ | W11: 2020-12-01 | X11: 292726 | Y11: 7486121 | Z11: Não | AA11: Aguardando encaminhamento para a Universidade
A12: 16 | B12: RE | C12: 2020-09-26 | D12: 11:40:00 | E12: ASV - Área 22 | F12: 307295 | G12: 7490803 | H12: Fragmento Florestal | I12: Ensolarado | J12: 1 | K12: HERPETOFAUNA | L12: Squamata | M12: Viperidae | N12: Crotalus durissus | O12: Cascavel | P12: Saudável | Q12: Sim | R12: Adulto | S12: Macho | T12: Não | U12: Não | V12: Soltura | W12: 2020-09-26 | X12: 310846 | Y12: 7492650 | Z12: Não | AA12: -
A13: 17 | B13: RE | C13: 2020-09-26 | D13: 11:40:00 | E13: ASV - Área 22 | F13: 307295 | G13: 7490803 | H13: Fragmento Florestal | I13: Ensolarado | J13: 1 | K13: HERPETOFAUNA | L13: Squamata | M13: Viperidae | N13: Crotalus durissus | O13: Cascavel | P13: Saudável | Q13: Sim | R13: Adulto | S13: Fêmea | T13: Não | U13: Não | V13: Soltura | W13: 2020-09-26 | X13: 310846 | Y13: 7492650 | Z13: Não | AA13: -
A14: 19 | B14: RE | C14: 2020-09-29 | D14: 14:40:00 | E14: Área 22 | F14: 307537 | G14: 7490816 | H14: Pastagem | I14: Ensolarado | J14: 1 | K14: HERPETOFAUNA | L14: Squamata | M14: Viperidae | N14: Crotalus durissus | O14: Cascavel | P14: Saudável | Q14: Sim | R14: Jovem | S14: Fêmea | T14: Não | U14: Não | V14: Soltura | W14: 2020-09-29 | X14: 310954 | Y14: 7492667 | Z14: Não | AA14: -
A15: 21 | B15: RE | C15: 2020-11-23 | D15: 14:47:00 | E15: Canteiro de Apoio | F15: 308504 | G15: 7491421 | H15: Infraestrutura | I15: Ensolarado | J15: 1 | K15: HERPETOFAUNA | L15: Squamata | M15: Dipsadidae | N15: Dipsas mikanii | O15: Jararaca-dormideira | P15: Saudável | Q15: Sim | R15: Jovem | S15: Fêmea | T15: Não | U15: Não | V15: Soltura | W15: 2020-11-23 | X15: 310958 | Y15: 7492649 | Z15: Não | AA15: -
A16: 24 | B16: RE | C16: 2020-11-28 | D16: 12:50:00 | E16: Canteiro de Apoio | F16: 308500 | G16: 7491338 | H16: Campo Antrópico | I16: Ensolarado | J16: 1 | K16: AVIFAUNA | L16: Passeriformes | M16: Hirundinidae | N16: Pygochelidon cyanoleuca | O16: Andorinha-pequena-de-casa | P16: Ferido | Q16: Sim | R16: Adulto | S16: ND | T16: Não | U16: Não | V16: CRAS - Mata Ciliar | W16: 2020-11-28 | X16: 305466 | Y16: 7484505 | Z16: Não | AA16: Destinado ao CRAS - Mata Ciliar
A17: 25 | B17: RE | C17: 2020-12-01 | D17: 14:40:00 | E17: Canteiro de Apoio | F17: 308506 | G17: 7491385 | H17: Fragmento Florestal | I17: Ensolarado | J17: 1 | K17: AVIFAUNA | L17: Piciformes | M17: Ramphastidae | N17: Ramphastos toco | O17: Tucano-toco | P17: Morto | Q17: Sim | R17: Adulto | S17: ND | T17: Não | U17: Não | V17: Base de Fauna | W17: - | X17: 308508 | Y17: 7491376 | Z17: Não | AA17: Aguardando encaminhamento para a Universidade
A18: 26 | B18: RE | C18: 2020-12-02 | D18: 16:40:00 | E18: Canteiro de Apoio | F18: 308506 | G18: 7491385 | H18: Infraestrutura | I18: Ensolarado | J18: 1 | K18: AVIFAUNA | L18: Columbiformes | M18: Columbidae | N18: Zenaida auriculata | O18: Avoante | P18: Ferido | Q18: Sim | R18: Adulto | S18: ND | T18: Não | U18: Não | V18: CRAS - Mata Ciliar | W18: 2020-12-02 | X18: 305466 | Y18: 7484505 | Z18: Não | AA18: Destinado ao CRAS - Mata Ciliar
A19: 28 | B19: RE | C19: 2020-12-29 | D19: 15:20:00 | E19: Sublote de plantio 1.13 | F19: 308642 | G19: 7491438 | H19: Futura APP | I19: Ensolarado | J19: 1 | K19: HERPETOFAUNA | L19: Squamata | M19: Dipsadidae | N19: Dipsas mikanii | O19: Jararaca-dormideira | P19: Morto | Q19: Sim | R19: Adulto | S19: Fêmea | T19: Sim | U19: Não | V19: Base de Fauna | W19: - | X19: 308508 | Y19: 7491376 | Z19: Não | AA19: Aguardando encaminhamento para a Universidade
A20: 30 | B20: RE | C20: 2021-01-07 | D20: 09:30:00 | E20: Sublote de plantio 1.13 | F20: 308790 | G20: 7491501 | H20: Futura APP | I20: Ensolarado | J20: 1 | K20: HERPETOFAUNA | L20: Squamata | M20: Viperidae | N20: Crotalus durissus | O20: Cascavel | P20: Morto | Q20: Sim | R20: Adulto | S20: Fêmea | T20: Sim | U20: Não | V20: Base de Fauna | W20: - | X20: 308508 | Y20: 7491376 | Z20: Não | AA20: -
A21: 31 | B21: RE | C21: 2021-01-08 | D21: 10:02:00 | E21: Sublote de plantio 1.14 | F21: 308798 | G21: 7491427 | H21: Futura APP | I21: Ensolarado | J21: 1 | K21: HERPETOFAUNA | L21: Squamata | M21: Viperidae | N21: Crotalus durissus | O21: Cascavel | P21: Saudável | Q21: Sim | R21: Adulto | S21: ND | T21: Não | U21: Não | V21: Soltura | W21: 2021-01-08 | X21: 310908 | Y21: 7492663 | Z21: Não | AA21: -
A22: 32 | B22: RE | C22: 2021-01-13 | D22: 14:32:00 | E22: Canteiro de Apoio | F22: 308526 | G22: 7491330 | H22: - | I22: Ensolarado | J22: 1 | K22: MASTOFAUNA | L22: Rodentia | M22: Cavidae | N22: Cavia aparea | O22: Preá | P22: Morto | Q22: Sim | R22: Adulto | S22: Fêmea | T22: Sim | U22: Não | V22: Soltura | W22: 2021-01-13 | X22: 308506 | Y22: 7491375 | Z22: Não | AA22: -
A23: 33 | B23: RE | C23: 2021-01-13 | D23: 14:35:00 | E23: Sublote de plantio 1.14 | F23: 308797 | G23: 7491428 | H23: Futura APP | I23: Ensolarado | J23: 1 | K23: HERPETOFAUNA | L23: Squamata | M23: Viperidae | N23: Crotalus durissus | O23: Cascavel | P23: Saudável | Q23: Sim | R23: Jovem | S23: ND | T23: Não | U23: Não | V23: Soltura | W23: 2021-01-13 | X23: 310946 | Y23: 7492652 | Z23: Não | AA23: -
A24: 34 | B24: RE | C24: 2021-01-14 | D24: 10:42:00 | E24: Canteiro de Apoio | F24: 308507 | G24: 7491421 | H24: - | I24: Ensolarado | J24: 1 | K24: HERPETOFAUNA | L24: Anura | M24: Bufonidae | N24: Rhinella sp. | O24: Sapo Cururu | P24: Saudável | Q24: Sim | R24: Jovem | S24: ND | T24: Não | U24: Não | V24: Soltura | W24: 2021-01-14 | X24: 310950 | Y24: 7492645 | Z24: Não | AA24: -
A25: 36 | B25: RE | C25: 2021-01-18 | D25: 13:13:00 | E25: Sublote de plantio 1.14 | F25: 308717 | G25: 7491406 | H25: Futura APP | I25: Ensolarado | J25: 1 | K25: HERPETOFAUNA | L25: Squamata | M25: Viperidae | N25: Bothrops jararaca | O25: Jararaca-da-mata | P25: Saudável | Q25: Sim | R25: Adulto | S25: ND | T25: Não | U25: Não | V25: Soltura | W25: 2021-01-18 | X25: 310959 | Y25: 7493126 | Z25: Não | AA25: -
A26: 37 | B26: RE | C26: 2021-01-18 | D26: 13:20:00 | E26: Sublote de plantio 1.14 | F26: 308715 | G26: 7491407 | H26: Futura APP | I26: Ensolarado | J26: 1 | K26: HERPETOFAUNA | L26: Squamata | M26: Viperidae | N26: Bothrops jararaca | O26: Jararaca-da-mata | P26: Morto | Q26: Sim | R26: Adulto | S26: ND | T26: Não | U26: Sim | V26: Base de Fauna | W26: 2021-01-18 | X26: 308506 | Y26: 7491375 | Z26: Não | AA26: Aguardando encaminhamento para a UNIFAJ
A27: 38 | B27: RE | C27: 2021-01-19 | D27: 14:40:00 | E27: Sublote de plantio 1.14 | F27: 308714 | G27: 7491406 | H27: Futura APP | I27: Ensolarado | J27: 1 | K27: HERPETOFAUNA | L27: Squamata | M27: Viperidae | N27: Crotalus durissus | O27: Cascavel | P27: Morto | Q27: Sim | R27: Adulto | S27: Fêmea | T27: Sim | U27: Não | V27: Base de Fauna | W27: 2021-01-19 | X27: 308508 | Y27: 7491376 | Z27: Não | AA27: Aguardando encaminhamento para a UNIFAJ
A28: 39 | B28: RE | C28: 2021-01-19 | D28: 14:43:00 | E28: Sublote de plantio 1.15 | F28: 308678 | G28: 7491377 | H28: Futura APP | I28: Ensolarado | J28: 1 | K28: HERPETOFAUNA | L28: Squamata | M28: Viperidae | N28: Crotalus durissus | O28: Cascavel | P28: Saudável | Q28: Sim | R28: Adulto | S28: Macho | T28: Não | U28: Não | V28: Soltura | W28: 2021-01-19 | X28: 310966 | Y28: 7492683 | Z28: Não | AA28: -
A29: 40 | B29: RE | C29: 2021-01-20 | D29: 11:17:00 | E29: Sublote de plantio 1.15 | F29: 308657 | G29: 7491382 | H29: Futura APP | I29: Ensolarado | J29: 1 | K29: HERPETOFAUNA | L29: Squamata | M29: Viperidae | N29: Bothrops jararaca | O29: Jararaca-da-mata | P29: Morto | Q29: Sim | R29: Jovem | S29: ND | T29: Sim | U29: Não | V29: Base de Fauna | W29: 2021-01-20 | X29: 308508 | Y29: 7491376 | Z29: Não | AA29: Aguardando encaminhamento para a UNIFAJ
A30: 41 | B30: RE | C30: 2021-01-20 | D30: 13:10:00 | E30: Sublote de plantio 1.14 | F30: 308602 | G30: 7491415 | H30: Futura APP | I30: Ensolarado | J30: 1 | K30: HERPETOFAUNA | L30: Squamata | M30: Dipsadidae | N30: Dipsas mikanii | O30: Jararaca - dormideira | P30: Saudável | Q30: Sim | R30: Jovem | S30: ND | T30: Não | U30: Não | V30: Soltura | W30: 2021-01-20 | X30: 311039 | Y30: 7493178 | Z30: Não | AA30: -
A31: 42 | B31: RE | C31: 2021-01-27 | D31: 15:10:00 | E31: Sublote de plantio 1.15 | F31: 308843 | G31: 7491353 | H31: Futura APP | I31: Ensolarado | J31: 1 | K31: HERPETOFAUNA | L31: Squamata | M31: Viperidae | N31: Bothrops jararaca | O31: Jararaca-da-mata | P31: Saudável | Q31: Sim | R31: Jovem | S31: ND | T31: Não | U31: Não | V31: Soltura | W31: 2021-01-27 | X31: 310976 | Y31: 7493211 | Z31: Não | AA31: -
A32: 44 | B32: RE | C32: 2021-02-01 | D32: 14:43:00 | E32: Sublote de plantio 1.15 | F32: 308843 | G32: 7491353 | H32: Infraestrutura | I32: Ensolarado | J32: 1 | K32: HERPETOFAUNA | L32: Squamata | M32: Viperidae | N32: Bothrops jararaca | O32: Jararaca-da-mata | P32: Saudável | Q32: Sim | R32: Adulto | S32: ND | T32: Não | U32: Não | V32: Soltura | W32: 2021-02-01 | X32: 310975 | Y32: 7492681 | Z32: Não | AA32: -
A33: 46 | B33: RE | C33: 2021-02-05 | D33: 07:45:00 | E33: Canteiro de Apoio | F33: 308515 | G33: 7491429 | H33: Campo Antrópico | I33: Ensolarado | J33: 1 | K33: AVIFAUNA | L33: Psittaciformes | M33: Psittacidae | N33: Psittacara leucophthalmus | O33: Maritaca-maracanã | P33: Saudável | Q33: Sim | R33: Neonato | S33: ND | T33: Não | U33: Não | V33: CRAS - Mata Ciliar | W33: 2021-02-05 | X33: 305466 | Y33: 7484505 | Z33: Não | AA33: Destinado ao CRAS - Mata Ciliar
A34: 47 | B34: RE | C34: 2021-02-05 | D34: 12:42:00 | E34: Replantio | F34: 309596 | G34: 7491729 | H34: Futura APP | I34: Ensolarado | J34: 1 | K34: HERPETOFAUNA | L34: Squamata | M34: Viperidae | N34: Bothrops alternatus | O34: Urutu | P34: Morto | Q34: Sim | R34: Jovem | S34: Fêmea | T34: Sim | U34: Não | V34: Base de Fauna | W34: - | X34: 308508 | Y34: 7491376 | Z34: Não | AA34: Aguardando encaminhamento para a UNIFAJ
A35: 48 | B35: RE | C35: 2021-02-06 | D35: 09:45:00 | E35: ASV - Área 20 | F35: 307871 | G35: 7490844 | H35: Campo Antrópico | I35: Ensolarado | J35: 1 | K35: HERPETOFAUNA | L35: Squamata | M35: Dipsadidae | N35: Oxyrhopus guibei | O35: Falsa-coral | P35: Morto | Q35: Sim | R35: Adulto | S35: Fêmea | T35: Sim | U35: Não | V35: Base de Fauna | W35: - | X35: 308508 | Y35: 7491376 | Z35: Não | AA35: Aguardando encaminhamento para a UNIFAJ
A36: 50 | B36: RE | C36: 2021-01-17 | D36: 08:46:00 | E36: Canteiro de Apoio | F36: 3077326 | G36: 7491217 | H36: Campo Antrópico | I36: Ensolarado | J36: 1 | K36: HERPETOFAUNA | L36: Squamata | M36: Viperidae | N36: Crotalus durissus | O36: Cascavel | P36: Saudável | Q36: Sim | R36: Adulto | S36: ND | T36: Não | U36: Não | V36: Soltura | W36: 2021-02-05 | X36: 310975 | Y36: 7492681 | Z36: Não | AA36: -
A37: 52 | B37: RE | C37: 2021-02-18 | D37: 10:10:00 | E37: Canteiro de Apoio | F37: 308499 | G37: 7491363 | H37: Infraestrutura | I37: Ensolarado | J37: 1 | K37: AVIFAUNA | L37: Psittaciformes | M37: Psittacidae | N37: Psittacara leucophthalmus | O37: Maritaca-maracanã | P37: Morto | Q37: Sim | R37: Adulto | S37: ND | T37: Sim | U37: Não | V37: Base de Fauna | W37: 2021-02-18 | X37: 308508 | Y37: 7491376 | Z37: Não | AA37: Aguardando encaminhamento para UNIFAJ
A38: 55 | B38: RE | C38: 2021-02-23 | D38: 08:15:00 | E38: Canteiro de Apoio | F38: 308552 | G38: 7491390 | H38: Infraestrutura | I38: Nublado | J38: 1 | K38: HERPETOFAUNA | L38: Squamata | M38: Dipsadidae | N38: Taeniophallus afinnis | O38: Cobra-Cabeça-preta | P38: Morto | Q38: Sim | R38: Neonato | S38: ND | T38: Sim | U38: Não | V38: Base de Fauna | W38: 2021-02-23 | X38: 308508 | Y38: 7491376 | Z38: Não | AA38: Aguardando encaminhamento para UNIFAJ
A39: 56 | B39: RE | C39: 2021-02-23 | D39: 10:45:00 | E39: Canteiro de Apoio | F39: 308534 | G39: 7491418 | H39: Infraestrutura | I39: Ensolarado | J39: 1 | K39: MASTOFAUNA | L39: Didelphimorphia | M39: Didelphidae | N39: Didelphis aurita | O39: Gambá-de-orelha-preta | P39: Morto | Q39: Sim | R39: Jovem | S39: ND | T39: Não | U39: Não | V39: Base de Fauna | W39: 2021-02-23 | X39: 308508 | Y39: 7491376 | Z39: Não | AA39: Aguardando encaminhamento para UNIFAJ
A40: 57 | B40: RE | C40: 2021-02-24 | D40: 08:06:00 | E40: Canteiro de Apoio | F40: 308515 | G40: 7491415 | H40: Infraestrutura | I40: Ensolarado | J40: 1 | K40: HERPETOFAUNA | L40: Squamata | M40: Viperidae | N40: Crotalus durissus | O40: Cascavel | P40: Saudável | Q40: Sim | R40: Jovem | S40: ND | T40: Não | U40: Não | V40: Soltura | W40: 2021-02-24 | X40: 310975 | Y40: 7492681 | Z40: Não | AA40: -
A41: 60 | B41: RE | C41: 2021-03-03 | D41: 14:46:00 | E41: Sublote de plantio 7.3 | F41: 310269 | G41: 7491721 | H41: Futura APP | I41: Ensolarado | J41: 1 | K41: HERPETOFAUNA | L41: Squamata | M41: Viperidae | N41: Bothrops urutu | O41: Urutu-cruzeiro | P41: Saudável | Q41: Sim | R41: Adulto | S41: ND | T41: Não | U41: Não | V41: Soltura | W41: 2021-03-03 | X41: 310975 | Y41: 7492681 | Z41: Não | AA41: -
A42: 61 | B42: RE | C42: 2021-03-12 | D42: 11:42:00 | E42: Sublote de plantio 7.1 | F42: 310342 | G42: 7491251 | H42: Futura APP | I42: Ensolarado | J42: 1 | K42: HERPETOFAUNA | L42: Squamata | M42: Viperidae | N42: Crotalus durissus | O42: Cascavel | P42: Saudável | Q42: Sim | R42: Adulto | S42: ND | T42: Não | U42: Não | V42: Soltura | W42: 2021-03-12 | X42: 310975 | Y42: 7492681 | Z42: Não | AA42: -
A43: 62 | B43: RE | C43: 2021-03-13 | D43: 19:05:00 | E43: Canteiro de Apoio | F43: 308505 | G43: 7491419 | H43: Futura APP | I43: Ensolarado | J43: 1 | K43: HERPETOFAUNA | L43: Squamata | M43: Dipsadidae | N43: Oxyrhopus guibei | O43: Falsa-coral | P43: Saudável | Q43: Sim | R43: Adulto | S43: ND | T43: Não | U43: Não | V43: Soltura | W43: 2021-03-13 | X43: 310271 | Y43: 7492521 | Z43: Não | AA43: -
A44: 63 | B44: RE | C44: 2021-03-17 | D44: 07:40:00 | E44: Canteiro de Apoio | F44: 308523 | G44: 7491440 | H44: Futura APP | I44: Ensolarado | J44: 1 | K44: HERPETOFAUNA | L44: Squamata | M44: Viperidae | N44: Bothrops newiedi | O44: Jararaca-de-rabo-branco | P44: Saudável | Q44: Sim | R44: Jovem | S44: ND | T44: Não | U44: Não | V44: Soltura | W44: 2021-03-18 | X44: 310271 | Y44: 7492521 | Z44: Não | AA44: -
A45: 64 | B45: RE | C45: 2021-03-17 | D45: 09:40:00 | E45: Canteiro de Apoio | F45: 308516 | G45: 7491397 | H45: Futura APP | I45: Ensolarado | J45: 1 | K45: HERPETOFAUNA | L45: Squamata | M45: Viperidae | N45: Tantilla melanocephala | O45: Cobra-de-cabeça-preta | P45: Saudável | Q45: Sim | R45: Adulto | S45: ND | T45: Não | U45: Não | V45: Soltura | W45: 2021-03-18 | X45: 310317 | Y45: 7492509 | Z45: Não | AA45: -
A46: 66 | B46: RE | C46: 2021-03-24 | D46: 09:14:00 | E46: Canteiro de Apoio | F46: 308522 | G46: 7491401 | H46: Futura APP | I46: Ensolarado | J46: 1 | K46: AVIFAUNA | L46: Passeriformes | M46: Thraupidae | N46: Sicalis flaveola | O46: Canario-da-terra | P46: Saudável | Q46: Sim | R46: Filhote | S46: ND | T46: Não | U46: Não | V46: CRAS - Mata Ciliar | W46: 2021-03-24 | X46: 305466 | Y46: 7484505 | Z46: Não | AA46: Destinado ao CRAS - Mata Ciliar
A47: 67 | B47: RE | C47: 2021-03-29 | D47: 14:32:00 | E47: Sublote de plantio 7.6 | F47: 310340 | G47: 7491713 | H47: Futura APP | I47: Ensolarado | J47: 1 | K47: HERPETOFAUNA | L47: Squamata | M47: Viperidae | N47: Bothrops urutu | O47: Urutu-cruzeiro | P47: Morto | Q47: Sim | R47: Adulto | S47: Fêmea | T47: Sim | U47: Não | V47: Base de Fauna | W47: 2021-03-29 | X47: 308508 | Y47: 7491376 | Z47: Não | AA47: Aguardando encaminhamento para UNIFAJ
A48: 68 | B48: RE | C48: 2021-04-01 | D48: 14:40:00 | E48: Canteiro de Apoio | F48: 308326 | G48: 7491137 | H48: Futura APP | I48: Ensolarado | J48: 1 | K48: MASTOFAUNA | L48: Primates | M48: Callitrichidae | N48: Callithrix jacchus | O48: Sagui-tufo-branco | P48: Morto | Q48: Sim | R48: Adulto | S48: ND | T48: Sim | U48: Não | V48: Base de Fauna | W48: 2021-04-01 | X48: 308508 | Y48: 7491376 | Z48: Não | AA48: -
A49: 69 | B49: RE | C49: 2021-04-04 | D49: 09:00:00 | E49: Sublote de plantio 11.1 | F49: 308201 | G49: 7490092 | H49: Futura APP | I49: Ensolarado | J49: 1 | K49: HERPETOFAUNA | L49: Squamata | M49: Boidae | N49: Boa Constrictor | O49: Jiboia-constritora | P49: Saudável | Q49: Sim | R49: Jovem | S49: Fêmea | T49: Não | U49: Não | V49: Soltura | W49: 2021-04-04 | X49: 310317 | Y49: 7492509 | Z49: Não | AA49: -
A50: 70 | B50: RE | C50: 2021-04-21 | D50: 16:45:00 | E50: Canteiro de Apoio | F50: 308549 | G50: 7491480 | H50: Fragmento Florestal | I50: Ensolarado | J50: 1 | K50: HERPETOFAUNA | L50: Squamata | M50: Viperidae | N50: Bothrops newiedi | O50: Jararaca-rabo-branco | P50: Saudável | Q50: Sim | R50: Filhote | S50: ND | T50: Não | U50: Não | V50: Soltura | W50: 2021-04-21 | X50: 310317 | Y50: 7492509 | Z50: Não | AA50: -
A51: 71 | B51: RE | C51: 2021-04-21 | D51: 16:45:00 | E51: Canteiro de Apoio | F51: 308549 | G51: 7491480 | H51: Fragmento Florestal | I51: Ensolarado | J51: 1 | K51: HERPETOFAUNA | L51: Squamata | M51: Viperidae | N51: Bothrops newiedi | O51: Jararaca-rabo-branco | P51: Saudável | Q51: Sim | R51: Filhote | S51: ND | T51: Não | U51: Não | V51: Soltura | W51: 2021-04-21 | X51: 310317 | Y51: 7492509 | Z51: Não | AA51: -
A52: 72 | B52: RE | C52: 2021-04-21 | D52: 16:45:00 | E52: Canteiro de Apoio | F52: 308549 | G52: 7491480 | H52: Fragmento Florestal | I52: Ensolarado | J52: 1 | K52: HERPETOFAUNA | L52: Squamata | M52: Viperidae | N52: Bothrops newiedi | O52: Jararaca-rabo-branco | P52: Saudável | Q52: Sim | R52: Filhote | S52: ND | T52: Não | U52: Não | V52: Soltura | W52: 2021-04-21 | X52: 310317 | Y52: 7492509 | Z52: Não | AA52: -
A53: 73 | B53: RE | C53: 2021-04-21 | D53: 16:45:00 | E53: Canteiro de Apoio | F53: 308549 | G53: 7491480 | H53: Fragmento Florestal | I53: Ensolarado | J53: 1 | K53: HERPETOFAUNA | L53: Squamata | M53: Viperidae | N53: Bothrops newiedi | O53: Jararaca-rabo-branco | P53: Saudável | Q53: Sim | R53: Filhote | S53: ND | T53: Não | U53: Não | V53: Soltura | W53: 2021-04-21 | X53: 310317 | Y53: 7492509 | Z53: Não | AA53: -
A54: 74 | B54: RE | C54: 2021-04-21 | D54: 16:45:00 | E54: Canteiro de Apoio | F54: 308549 | G54: 7491480 | H54: Fragmento Florestal | I54: Ensolarado | J54: 1 | K54: HERPETOFAUNA | L54: Squamata | M54: Viperidae | N54: Bothrops newiedi | O54: Jararaca-rabo-branco | P54: Morto | Q54: Sim | R54: Filhote | S54: ND | T54: Sim | U54: Não | V54: Base de Fauna | W54: 2021-04-21 | X54: 308508 | Y54: 7491376 | Z54: Não | AA54: -
A55: 75 | B55: RE | C55: 2021-05-07 | D55: 08:45:00 | E55: Bota fora | F55: 309007 | G55: 7490630 | H55: Futura APP | I55: Ensolarado | J55: 1 | K55: HERPETOFAUNA | L55: Squamata | M55: Teiidae | N55: Salvator merianae | O55: Teiú | P55: Saudável | Q55: Sim | R55: Adulto | S55: ND | T55: Não | U55: Não | V55: Soltura | W55: 2021-05-07 | X55: 310852 | Y55: 749209 | Z55: Não | AA55: -
A56: 76 | B56: RE | C56: 2021-05-10 | D56: 13:23:00 | E56: Industrial | F56: 307947 | G56: 7491175 | H56: Futura APP | I56: Ensolarado | J56: 1 | K56: HERPETOFAUNA | L56: Squamata | M56: Viperidae | N56: Philodryas olfersii | O56: Cobra-verde | P56: Saudável | Q56: Sim | R56: Adulto | S56: ND | T56: Não | U56: Não | V56: Soltura | W56: 2021-05-10 | X56: 310881 | Y56: 7492618 | Z56: Não | AA56: -
A57: 77 | B57: RE | C57: 2021-05-12 | D57: 14:35:00 | E57: Sublote de plantio 7.6 | F57: 310253 | G57: 7491742 | H57: Futura APP | I57: Ensolarado | J57: 1 | K57: HERPETOFAUNA | L57: Squamata | M57: Viperidae | N57: Bothrops urutu | O57: Urutu | P57: Saudável | Q57: Sim | R57: Adulto | S57: ND | T57: Não | U57: Não | V57: Soltura | W57: 2021-05-12 | X57: 310940 | Y57: 7492641 | Z57: Não | AA57: -
A58: 78 | B58: RE | C58: 2021-05-13 | D58: 10:10:00 | E58: ASV - Area 22 | F58: 307435 | G58: 7490776 | H58: Futura APP | I58: Ensolarado | J58: 1 | K58: HERPETOFAUNA | L58: Squamata | M58: Viperidae | N58: Bothrops newiedi | O58: Jararaca rabo branco | P58: Saudável | Q58: Sim | R58: Filhote | S58: ND | T58: Não | U58: Não | V58: Soltura | W58: 2021-05-13 | X58: 310934 | Y58: 7492640 | Z58: Não | AA58: -
A59: 79 | B59: RE | C59: 2021-05-13 | D59: 10:15:00 | E59: ASV - Area 22 | F59: 307433 | G59: 7490786 | H59: Futura APP | I59: Ensolarado | J59: 1 | K59: HERPETOFAUNA | L59: Squamata | M59: Viperidae | N59: Crotalus durissus | O59: Cascavel | P59: Saudável | Q59: Sim | R59: Adulto | S59: ND | T59: Não | U59: Não | V59: Soltura | W59: 2021-05-13 | X59: 310952 | Y59: 7492641 | Z59: Não | AA59: -
A60: 80 | B60: RE | C60: 2021-05-27 | D60: 07:40:00 | E60: Canteiro de Apoio | F60: 308526 | G60: 7491108 | H60: Futura APP | I60: Ensolarado | J60: 1 | K60: HERPETOFAUNA | L60: Squamata | M60: Viperidae | N60: Bothrops urutu | O60: Urutu | P60: Saudável | Q60: Sim | R60: Adulto | S60: ND | T60: Não | U60: Não | V60: Soltura | W60: 2021-05-27 | X60: 310928 | Y60: 7492634 | Z60: Não | AA60: -
A61: 81 | B61: RE | C61: 2021-05-27 | D61: 08:50:00 | E61: Canteiro de Apoio | F61: 309637 | G61: 7492159 | H61: Futura APP | I61: Ensolarado | J61: 1 | K61: HERPETOFAUNA | L61: Squamata | M61: Viperidae | N61: Crotalus durissus | O61: Casacavel | P61: Saudável | Q61: Sim | R61: Adulto | S61: ND | T61: Não | U61: Não | V61: Soltura | W61: 2021-05-27 | X61: 310874 | Y61: 7492698 | Z61: Não | AA61: -
A62: 82 | B62: RE | C62: 2021-06-01 | D62: 08:25:00 | E62: ADM | F62: 308541 | G62: 7491419 | H62: Infraestrutura | I62: Ensolarado | J62: 1 | K62: AVIFAUNA | L62: Gruiformes | M62: Rallidae | N62: Aramides saracura | O62: Saracura | P62: Saudavel | Q62: Sim | R62: Adulto | S62: ND | T62: Não | U62: Não | V62: Soltura | W62: 2021-06-01 | X62: 308409 | Y62: 7491419 | Z62: Não | AA62: -
A63: 83 | B63: RE | C63: 2021-06-08 | D63: 08:27:00 | E63: Canteiro ADM | F63: 307992 | G63: 7491119 | H63: Infraestrutura | I63: Ensolarado | J63: 1 | K63: HERPETOFAUNA | L63: Squamata | M63: Dipsadidae | N63: Dipsas mikanii | O63: Jararaca - dormideira | P63: Saudavel | Q63: Sim | R63: Jovem | S63: ND | T63: Não | U63: Não | V63: Soltura | W63: 2021-06-08 | X63: 310971 | Y63: 7492650 | Z63: Não | AA63: -
A64: 84 | B64: RE | C64: 2021-06-24 | D64: 07:35:00 | E64: Area de vivencia | F64: 307945 | G64: 7491253 | H64: Infraestrutura | I64: Ensolarado | J64: 1 | K64: MASTOFAUNA | L64: Carnivora | M64: Felidae | N64: Herpailurus yogoauaroundi | O64: Gato - mourisco | P64: Morto | Q64: Sim | R64: Adulto | S64: Fêmea | T64: Não | U64: Não | V64: Base de Fauna | W64: 2021-06-24 | X64: 308494 | Y64: 7491452 | Z64: Não | AA64: -
A65: 85 | B65: RE | C65: 2021-07-01 | D65: 10:45:00 | E65: 13A | F65: 308054 | G65: 7491788 | H65: Fragmento Florestal | I65: Ensolarado | J65: 1 | K65: HERPETOFAUNA | L65: Squamata | M65: Viperidae | N65: Crotalus durissus | O65: Cascavel | P65: Saudavel | Q65: Sim | R65: Adulto | S65: ND | T65: Não | U65: Não | V65: Soltura | W65: 2021-07-01 | X65: 310966 | Y65: 7492658 | Z65: Não
A66: 86 | B66: RE | C66: 2021-07-10 | D66: 13:25:00 | E66: Area de replantio | F66: 308163 | G66: 7489966 | H66: Cultivo Agricola | I66: Ensolarado | J66: 1 | K66: HERPETOFAUNA | L66: Squamata | M66: Viperidae | N66: Bothrops jararaca | O66: jararaca da mata | P66: Ferido | Q66: Sim | R66: Adulto | S66: Fêmea | T66: Sim | U66: Sim | V66: Soltura | W66: 2021-07-15 | X66: 310918 | Y66: 7492635 | Z66: Não
A67: 87 | B67: RE | C67: 2021-07-12 | D67: 16:32:00 | E67: Bota fora | F67: 308762 | G67: 7490883 | H67: Canteiro de obras | I67: Ensolarado | J67: 1 | K67: HERPETOFAUNA | L67: Squamata | M67: Dipsadidae | N67: Oxyrhopus guibei | O67: Falsa-coral | P67: Saudavel | Q67: Sim | R67: Adulto | S67: Fêmea | T67: Sim | U67: Não | V67: Soltura | W67: 2021-07-12 | X67: 310925 | Y67: 7492638 | Z67: Não
A68: 88 | B68: RE | C68: 2021-07-15 | D68: 07:30:00 | E68: ADM | F68: 908511 | G68: 7491414 | H68: Infraestrutura | I68: Ensolarado | J68: 1 | K68: HERPETOFAUNA | L68: Squamata | M68: Dipsadidae | N68: Oxyrhopus guibei | O68: Falsa-coral | P68: Saudavel | Q68: sim | R68: Filhote | S68: nd | T68: Não | U68: Não | V68: Soltura | W68: 2021-07-15 | X68: 310921 | Y68: 7492643 | Z68: Não
A69: 89 | B69: RE | C69: 2021-08-03 | D69: 14:23:00 | E69: Area de replantio | F69: 308562 | G69: 7491419 | H69: Fragmento Florestal | I69: Ensolarado | J69: 1 | K69: HERPETOFAUNA | L69: Squamata | M69: Dipsadidae | N69: Oxyrhopus guibei | O69: Falsa-coral | P69: Morto | Q69: Sim | R69: Adulto | S69: Macho | T69: Sim | U69: Não | V69: Base de Fauna | W69: 2021-08-03 | X69: 308494 | Y69: 7491452 | Z69: Não
A70: 90 | B70: RE | C70: 2021-08-06 | D70: 07:43:00 | E70: Area de replantio | F70: 308507 | G70: 7491268 | H70: Infraestrutura | I70: Ensolarado | J70: 1 | K70: MASTOFAUNA | L70: Didelphimorphia | M70: Didelphidae | N70: Didelphis albiventris | O70: Gamba de orelha branca | P70: Morto | Q70: Sim | R70: Adulto | S70: Fêmea | T70: Não | U70: Não | V70: Base de Fauna | W70: 2021-08-06 | X70: 308494 | Y70: 7491452 | Z70: Não
A71: 91 | B71: RE | C71: 2021-08-19 | D71: 09:23:00 | E71: Canteiro de Apoio | F71: 309849 | G71: 7492466 | H71: Fragmento Florestal | I71: Ensolarado | J71: 1 | K71: HERPETOFAUNA | L71: Squamata | M71: Viperidae | N71: Bothrops jararaca | O71: jararaca da mata | P71: Saudavel | Q71: Sim | R71: Adulto | S71: Fêmea | T71: Não | U71: Não | V71: Soltura | W71: 2021-08-19 | X71: 310909 | Y71: 7492641 | Z71: Não
A72: 92 | B72: RE | C72: 2021-09-15 | D72: 09:26:00 | E72: Cultivo agricola | F72: 311661 | G72: 7493467 | H72: Cultivo Agricola | I72: Ensolarado | J72: 1 | K72: HERPETOFAUNA | L72: Squamata | M72: Viperidae | N72: Bothrops urutu | O72: Urutu | P72: Saudavel | Q72: Sim | R72: Adulto | S72: ND | T72: Não | U72: Não | V72: Soltura | W72: 2021-09-19 | X72: 311003 | Y72: 7493123 | Z72: Não
A73: 93 | B73: RE | C73: 2021-09-17 | D73: 10:22:00 | E73: Canteiro de obras | F73: 308314 | G73: 7491115 | H73: Infraestrutura | I73: Ensolarado | J73: 1 | K73: HERPETOFAUNA | L73: Squamata | M73: Teiidae | N73: Salvator merianae | O73: Teiu | P73: Morto | Q73: Sim | R73: Adulto | S73: ND | T73: Sim | U73: Não | V73: Base de Fauna | W73: 2021-09-17 | X73: 308494 | Y73: 74911452 | Z73: Não
A74: 94 | B74: RE | C74: 2021-09-23 | D74: 08:28:00 | E74: ADM | F74: 308507 | G74: 7491419 | H74: Infraestrutura | I74: Ensolarado | J74: 1 | K74: MASTOFAUNA | L74: Didelphimorphia | M74: Didelphidae | N74: Monodelphis | O74: Cuica marrom | P74: Saudavel | Q74: Sim | R74: Adulto | S74: Fêmea | T74: Não | U74: Não | V74: Soltura | W74: 2021-09-23 | X74: 311044 | Y74: 7493175 | Z74: Não
A75: 95 | B75: RE | C75: 2021-10-15 | D75: 14:37:00 | E75: Industrial | F75: 307948 | G75: 7491173 | H75: Infraestrutura | I75: Ensolarado | J75: 1 | K75: HERPETOFAUNA | L75: Squamata | M75: Viperidae | N75: Crotalus durissus | O75: Cascavel | P75: Saudavel | Q75: Sim | R75: Adulto | S75: ND | T75: Não | U75: Não | V75: Soltura | W75: 2021-10-15 | X75: 311054 | Y75: 7493163 | Z75: Não
A76: 96 | B76: RE | C76: 2021-10-20 | D76: 10:20:00 | E76: 2.2 | F76: 311120 | G76: 7493520 | H76: Cultivo Agricola | I76: Ensolarado | J76: 1 | K76: HERPETOFAUNA | L76: Squamata | M76: Viperidae | N76: Crotalus durissus | O76: Cascavel | P76: Saudavel | Q76: Sim | R76: Adulto | S76: ND | T76: Não | U76: Não | V76: Soltura | W76: 2021-10-20 | X76: 311028 | Y76: 7493163 | Z76: Não
A77: 97 | B77: RE | C77: 2021-10-29 | D77: 09:30:00 | E77: ADM | F77: 308493 | G77: 7491416 | H77: Infraestrutura | I77: Ensolarado | J77: 1 | K77: HERPETOFAUNA | L77: Squamata | M77: Dipsadidae | N77: Dipsas mikanii | O77: Dormideira | P77: Saudavel | Q77: Sim | R77: Adulto | S77: Fêmea | T77: Não | U77: Não | V77: Soltura | W77: 2021-10-26 | X77: 310920 | Y77: 7492635 | Z77: Não
A78: 98 | B78: RE | C78: 2021-10-30 | D78: 08:42:00 | E78: ADM | F78: 307628 | G78: 7490809 | H78: Infraestrutura | I78: Ensolarado | J78: 1 | K78: HERPETOFAUNA | L78: Squamata | M78: Elapidae | N78: Micrurus sp. | O78: Cobra - coral | P78: Saudavel | Q78: Sim | R78: Adulto | S78: ND | T78: Não | U78: Não | V78: Soltura | W78: 2021-10-30 | X78: 311033 | Y78: 7493166 | Z78: Não
A79: 99 | B79: RE | C79: 2021-11-18 | D79: 08:42:00 | E79: Canteiro de obras | F79: 307687 | G79: 7490537 | H79: Canteiro de obras | I79: Ensolarado | J79: 1 | K79: AVIFAUNA | L79: Charadriformes | M79: Charadriidae | N79: Vanellus chilensis | O79: Quero-quero | P79: Saudavel | Q79: Sim | R79: Neonato | S79: ND | T79: Não | U79: Sim | V79: CRAS - Mata Ciliar | W79: 2021-11-25 | X79: 301182 | Y79: 7435554 | Z79: Não
A80: 100 | B80: AT | C80: 2021-11-22 | D80: 13:54:00 | E80: ADM | F80: 308372 | G80: 7491094 | H80: Canteiro de obras | I80: Ensolarado | J80: 1 | K80: HERPETOFAUNA | L80: Squamata | M80: Teiidae | N80: Salvator merianae | O80: Teiu | P80: Morto | Q80: Sim | R80: Adulto | S80: Fêmea | T80: Sim | U80: Não | V80: Base de Fauna | W80: 2021-11-22 | X80: 308494 | Y80: 74911452 | Z80: Não
A81: 101 | B81: RE | C81: 2021-11-25 | D81: 07:33:00 | E81: Canteiro de obras | F81: 308168 | G81: 7490593 | H81: Canteiro de obras | I81: Ensolarado | J81: 1 | K81: AVIFAUNA | L81: Caprimulgiformes | M81: Caprimulgiformes | N81: Caprimulgidae | O81: Bacurau | P81: Ferido | Q81: Sim | R81: Adulto | S81: ND | T81: Sim | U81: Não | V81: CRAS - Mata Ciliar | W81: 2021-11-25 | X81: 301182 | Y81: 7435554 | Z81: Não
A82: 102 | B82: RE | C82: 2021-12-13 | D82: 09:37:00 | E82: Viveiro de plantas | F82: 308552 | G82: 7491390 | H82: Canteiro de obras | I82: Ensolarado | J82: 1 | K82: HERPETOFAUNA | L82: Squamata | M82: Viperidae | N82: Crotalus durissus | O82: Cascavel | P82: Saudavel | Q82: Sim | R82: Adulto | S82: ND | T82: Não | U82: Não | V82: Soltura | W82: 2021-12-13 | X82: 311026 | Y82: 7493163 | Z82: Não
A83: 103 | B83: RE | C83: 2021-12-20 | D83: 15:15:00 | E83: ADM | F83: 308541 | G83: 7491419 | H83: Infraestrutura | I83: Ensolarado | J83: 1 | K83: HERPETOFAUNA | L83: Squamata | M83: Dipsadidae | N83: Oxyrhopus guibei | O83: Falsa-coral | P83: Saudavel | Q83: Sim | R83: Adulto | S83: ND | T83: Não | U83: Não | V83: Soltura | W83: 2021-12-20 | X83: 310925 | Y83: 7492638 | Z83: Não
A84: 104 | B84: RE | C84: 2022-01-19 | D84: 10:30:00 | E84: Base de fauna | F84: 308497 | G84: 7491380 | H84: Infraestrutura | I84: Ensolarado | J84: 1 | K84: AVIFAUNA | L84: Psittaciformes | M84: Psittacidae | N84: Psittacara leucophthalmus | O84: Maritaca-maracanã | P84: saudavel | Q84: Sim | R84: Filhote | S84: ND | T84: Não | U84: Sim | V84: CRAS - Mata Ciliar | W84: 28/01;2022 | X84: 301182 | Y84: 7435554 | Z84: Não
A85: 105 | B85: RE | C85: 2022-01-19 | D85: 10:30:00 | E85: Base de fauna | F85: 308497 | G85: 7491380 | H85: Infraestrutura | I85: Ensolarado | J85: 1 | K85: AVIFAUNA | L85: Psittaciformes | M85: Psittacidae | N85: Psittacara leucophthalmus | O85: Maritaca-maracanã | P85: saudavel | Q85: Sim | R85: Filhote | S85: ND | T85: Não | U85: Sim | V85: CRAS - Mata Ciliar | W85: 28/01;2022 | X85: 301182 | Y85: 7435554 | Z85: Não
A86: 106 | B86: RE | C86: 2022-01-19 | D86: 11:00:00 | E86: Industrial | F86: 308061 | G86: 7491104 | H86: Cultivo Agricola | I86: Ensolarado | J86: 1 | K86: HERPETOFAUNA | L86: Squamata | M86: Viperidae | N86: Crotalus durissus | O86: cascavel | P86: saudavel | Q86: Sim | R86: Adulto | S86: ND | T86: Não | U86: Não | V86: Soltura | W86: 2022-01-19 | X86: 311026 | Y86: 7493163 | Z86: Não
A87: 107 | B87: AT | C87: 2022-01-21 | D87: 08:40:00 | E87: Industrial | F87: 307989 | G87: 7491019 | H87: Cultivo Agricola | I87: Ensolarado | J87: 1 | K87: HERPETOFAUNA | L87: Squamata | M87: Dipsadidae | N87: Philodryas patagoniensis | O87: cobra papa pinto | P87: Morto | Q87: Sim | R87: Adulto | S87: ND | T87: sim | U87: não | V87: Base de Fauna | W87: 2022-01-21 | X87: 308494 | Y87: 74911452 | Z87: Não | AA87: Aguardando encaminhamento para UNIFAJ
A88: 108 | B88: RE | C88: 2022-01-21 | D88: 14:00:00 | E88: Industrial | F88: 307653 | G88: 7491144 | H88: Canteiro de obras | I88: Ensolarado | J88: 1 | K88: HERPETOFAUNA | L88: Squamata | M88: Dipsadidae | N88: Dipsas mikanii | O88: Dormideira | P88: Morto | Q88: Sim | R88: Jovem | S88: ND | T88: sim | U88: não | V88: Base de Fauna | W88: 2022-01-21 | X88: 308494 | Y88: 74911452 | Z88: Não | AA88: Aguardando encaminhamento para UNIFAJ
A89: 109 | B89: AT | C89: 2022-01-27 | D89: 07:00:00 | E89: Estrada entre ind. e adm. | F89: 308502 | G89: 7495356 | H89: via de acesso | I89: Ensolarado | J89: 1 | K89: MASTOFAUNA | L89: Cingulata | M89: Dasypodidae | N89: Dasypus novemcinctus | O89: Tatu Galinha | P89: Morto | Q89: Sim | R89: Adulto | S89: ND | T89: sim | U89: não | V89: Base de Fauna | W89: 2022-01-27 | X89: 308494 | Y89: 74911452 | Z89: Não | AA89: Aguardando encaminhamento para UNIFAJ
A90: 110 | B90: RE | C90: 2022-02-02 | D90: 08:53:00 | E90: bota espera | F90: 308167 | G90: 7490701 | H90: Estrada | I90: chuvoso | J90: 1 | K90: MASTOFAUNA | L90: logomorpha | M90: leporidae | N90: lepus europaeus | O90: lebre | P90: Morto | Q90: Sim | R90: Adulto | S90: Fêmea | T90: Não | U90: não | V90: Base de Fauna | W90: 2022-02-02 | X90: 308494 | Y90: 74911452 | Z90: Não | AA90: Aguardando encaminhamento para UNIFAJ
A91: 111 | B91: RE | C91: 2022-02-04 | D91: 08:10:00 | E91: Usina de concreto | H91: Infraestrutura | I91: Ensolarado | J91: 1 | K91: HERPETOFAUNA | L91: Squamata | M91: Dipsadidae | N91: Dipsas mikanii | O91: Dormideira | P91: Morto | Q91: Sim | R91: Filhote | S91: ND | T91: Não | U91: não | V91: Base de Fauna | W91: 2022-02-04 | X91: 308494 | Y91: 74911452 | Z91: Não | AA91: Aguardando encaminhamento para UNIFAJ
A92: 112 | B92: RE | C92: 2022-02-04 | D92: 11:00:00 | E92: Area de Plantio | F92: 307886.21 | G92: 7490016.22 | H92: Cultivo Agricola | I92: Ensolarado | J92: 1 | K92: AVIFAUNA | L92: anseiriforme | M92: anatidae | N92: Dendrocygha Autumnalis | O92: Marreca cabocla | P92: saudavel | Q92: Sim | R92: Filhote | S92: ND | T92: sim | U92: sim | V92: Base de Fauna | W92: 2022-02-05 | X92: 308494 | Y92: 74911452 | Z92: Não | AA92: aguardando desenvolvimento para posterior soltura
A93: 113 | B93: RE | C93: 2022-02-04 | D93: 11:00:00 | E93: Area de Plantio | F93: 307886.22 | G93: 7490016.23 | H93: Cultivo Agricola | I93: Ensolarado | J93: 1 | K93: AVIFAUNA | L93: anseiriforme | M93: anatidae | N93: Dendrocygha Autumnalis | O93: Marreca cabocla | P93: saudavel | Q93: Sim | R93: Filhote | S93: ND | T93: sim | U93: sim | V93: Base de Fauna | W93: 2022-02-06 | X93: 308494 | Y93: 74911452 | Z93: Não | AA93: aguardando desenvolvimento para posterior soltura
A94: 114 | B94: RE | C94: 2022-02-04 | D94: 11:00:00 | E94: Area de Plantio | F94: 307886.23 | G94: 7490016.24 | H94: Cultivo Agricola | I94: Ensolarado | J94: 1 | K94: AVIFAUNA | L94: anseiriforme | M94: anatidae | N94: Dendrocygha Autumnalis | O94: Marreca cabocla | P94: saudavel | Q94: Sim | R94: Filhote | S94: ND | T94: sim | U94: sim | V94: Base de Fauna | W94: 2022-02-07 | X94: 308494 | Y94: 74911452 | Z94: Não | AA94: aguardando desenvolvimento para posterior soltura
A95: 115 | B95: RE | C95: 2022-02-04 | D95: 11:00:00 | E95: Area de Plantio | F95: 307886.24 | G95: 7490016.25 | H95: Cultivo Agricola | I95: Ensolarado | J95: 1 | K95: AVIFAUNA | L95: anseiriforme | M95: anatidae | N95: Dendrocygha Autumnalis | O95: Marreca cabocla | P95: saudavel | Q95: Sim | R95: Filhote | S95: ND | T95: sim | U95: sim | V95: Base de Fauna | W95: 2022-02-08 | X95: 308494 | Y95: 74911452 | Z95: Não | AA95: aguardando desenvolvimento para posterior soltura
A96: 116 | B96: RE | C96: 2022-02-04 | D96: 11:00:00 | E96: Area de Plantio | F96: 307886.25 | G96: 7490016.26 | H96: Cultivo Agricola | I96: Ensolarado | J96: 1 | K96: AVIFAUNA | L96: anseiriforme | M96: anatidae | N96: Dendrocygha Autumnalis | O96: Marreca cabocla | P96: saudavel | Q96: Sim | R96: Filhote | S96: ND | T96: sim | U96: sim | V96: Base de Fauna | W96: 2022-02-09 | X96: 308494 | Y96: 74911452 | Z96: Não | AA96: aguardando desenvolvimento para posterior soltura
A97: 117 | B97: RE | C97: 2022-02-04 | D97: 11:00:00 | E97: Area de Plantio | F97: 307886.26 | G97: 7490016.27 | H97: Cultivo Agricola | I97: Ensolarado | J97: 1 | K97: AVIFAUNA | L97: anseiriforme | M97: anatidae | N97: Dendrocygha Autumnalis | O97: Marreca cabocla | P97: saudavel | Q97: Sim | R97: Filhote | S97: ND | T97: sim | U97: sim | V97: Base de Fauna | W97: 2022-02-10 | X97: 308494 | Y97: 74911452 | Z97: Não | AA97: aguardando desenvolvimento para posterior soltura
A98: 118 | B98: RE | C98: 2022-02-04 | D98: 11:00:00 | E98: Area de Plantio | F98: 307886.27 | G98: 7490016.28 | H98: Cultivo Agricola | I98: Ensolarado | J98: 1 | K98: AVIFAUNA | L98: anseiriforme | M98: anatidae | N98: Dendrocygha Autumnalis | O98: Marreca cabocla | P98: saudavel | Q98: Sim | R98: Filhote | S98: ND | T98: sim | U98: sim | V98: Base de Fauna | W98: 2022-02-11 | X98: 308494 | Y98: 74911452 | Z98: Não | AA98: aguardando desenvolvimento para posterior soltura
A99: 119 | B99: RE | C99: 2022-02-04 | D99: 11:00:00 | E99: Area de Plantio | F99: 307886.28 | G99: 7490016.29 | H99: Cultivo Agricola | I99: Ensolarado | J99: 1 | K99: AVIFAUNA | L99: anseiriforme | M99: anatidae | N99: Dendrocygha Autumnalis | O99: Marreca cabocla | P99: Morto | Q99: Sim | R99: Filhote | S99: ND | T99: sim | U99: sim | V99: Base de Fauna | W99: 2022-02-12 | X99: 308494 | Y99: 74911452 | Z99: Não | AA99: Aguardando encaminhamento para UNIFAJ
A100: 120 | B100: RE | C100: 2022-02-04 | D100: 11:00:00 | E100: Area de Plantio | F100: 307886.29 | G100: 7490016.30 | H100: Cultivo Agricola | I100: Ensolarado | J100: 1 | K100: AVIFAUNA | L100: anseiriforme | M100: anatidae | N100: Dendrocygha Autumnalis | O100: Marreca cabocla | P100: Morto | Q100: Sim | R100: Filhote | S100: ND | T100: sim | U100: sim | V100: Base de Fauna | W100: 2022-02-13 | X100: 308494 | Y100: 74911452 | Z100: Não | AA100: Aguardando encaminhamento para UNIFAJ
A101: 121 | B101: RE | C101: 2022-02-04 | D101: 11:00:00 | E101: Area de Plantio | F101: 307886.30 | G101: 7490016.31 | H101: Cultivo Agricola | I101: Ensolarado | J101: 1 | K101: AVIFAUNA | L101: anseiriforme | M101: anatidae | N101: Dendrocygha Autumnalis | O101: Marreca cabocla | P101: Morto | Q101: Sim | R101: Filhote | S101: ND | T101: sim | U101: sim | V101: Base de Fauna | W101: 2022-02-14 | X101: 308494 | Y101: 74911452 | Z101: Não | AA101: Aguardando encaminhamento para UNIFAJ
A102: 122 | B102: RE | C102: 2022-02-04 | D102: 11:00:00 | E102: Area de Plantio | F102: 307886.31 | G102: 7490016.32 | H102: Cultivo Agricola | I102: Ensolarado | J102: 1 | K102: AVIFAUNA | L102: anseiriforme | M102: anatidae | N102: Dendrocygha Autumnalis | O102: Marreca cabocla | P102: Morto | Q102: Sim | R102: Filhote | S102: ND | T102: sim | U102: sim | V102: Base de Fauna | W102: 2022-02-15 | X102: 308494 | Y102: 74911452 | Z102: Não | AA102: Aguardando encaminhamento para UNIFAJ
A103: 123 | B103: RE | C103: 2022-02-04 | D103: 11:00:00 | E103: Area de Plantio | F103: 307886.32 | G103: 7490016.33 | H103: Cultivo Agricola | I103: Ensolarado | J103: 1 | K103: AVIFAUNA | L103: anseiriforme | M103: anatidae | N103: Dendrocygha Autumnalis | O103: Marreca cabocla | P103: Morto | Q103: Sim | R103: Filhote | S103: ND | T103: sim | U103: sim | V103: Base de Fauna | W103: 2022-02-16 | X103: 308494 | Y103: 74911452 | Z103: Não | AA103: Aguardando encaminhamento para UNIFAJ
A104: 124 | B104: RE | C104: 2022-02-14 | D104: 10:44:00 | E104: Area de Plantio | F104: 307961 | G104: 7490114 | H104: Cultivo Agricola | I104: Ensolarado | J104: 1 | K104: MASTOFAUNA | L104: Artiodactilus | M104: cervideos | N104: mazana americana | O104: Veado Mateiro | P104: Morto | Q104: não | R104: jovem | S104: macho | T104: não | U104: não | V104: descarte | W104: 2022-02-14 | X104: 307956 | Y104: 7490350 | Z104: não | AA104: carcaça em decomposição realizado descarte
A105: 125 | B105: RE | C105: 2022-02-16 | D105: 11:25:00 | E105: Industrial | F105: 308066 | G105: 7491254 | H105: area de escavação | I105: Ensolarado | J105: 1 | K105: HERPETOFAUNA | L105: Squamata | M105: Viperidae | N105: Crotalus durissus | O105: cascavel | P105: saudavel | Q105: sim | R105: Adulto | S105: ND | T105: não | U105: não | V105: Soltura | W105: 2022-02-16 | X105: 311054 | Y105: 7493163 | Z105: não | AA105: animal avaliado e solto
A106: 126 | B106: RE | C106: 2022-02-17 | D106: 15:00:00 | E106: Base de fauna | F106: 308494 | G106: 7491452 | H106: Entorno da area da barragem | I106: Ensolarado | J106: 1 | K106: AVIFAUNA | L106: Psittaciformes | M106: Psittacidae | N106: Psittacara leucophthalmus | O106: Maritaca-maracanã | P106: saudavel | Q106: sim | R106: filhotes | S106: nd | T106: não | U106: sim | V106: CRAS - Mata Ciliar | W106: 2022-02-18 | X106: 301182 | Y106: 743554 | Z106: não
A107: 127 | B107: RE | C107: 2022-03-01 | D107: 08:58:00 | E107: Area de Plantio | F107: 307591 | G107: 7491027 | H107: Cultivo Agricola | I107: Ensolarado | J107: 1 | K107: HERPETOFAUNA | L107: Squamata | M107: amphisbaenidae | N107: amphisbena alba | O107: cobra cega ou de duas cabeças | P107: saudavel | Q107: sim | R107: adulto | S107: nd | T107: não | U107: não | V107: Soltura | W107: 01/032022 | X107: 311054 | Y107: 7493163 | Z107: não
A108: 128 | B108: RE | C108: 2022-03-02 | D108: 15:09:00 | E108: Area de Plantio | F108: 308727 | G108: 7491441 | H108: Cultivo Agricola | I108: Ensolarado | J108: 1 | K108: HERPETOFAUNA | L108: Squamata | M108: Viperidae | N108: Crotalus durissus | O108: cascavel | P108: saudavel | Q108: sim | R108: adulto | S108: nd | T108: não | U108: não | V108: Soltura | W108: 2022-03-02 | X108: 311054 | Y108: 7493163 | Z108: não
A109: 129 | B109: RE | C109: 2022-02-03 | D109: 15:34:00 | E109: Area de Plantio | F109: 308727 | G109: 7491441 | H109: Cultivo Agricola | I109: Ensolarado | J109: 1 | K109: HERPETOFAUNA | L109: Squamata | M109: Viperidae | N109: Bothrops jararaca | O109: jararaca | P109: saudavel | Q109: sim | R109: adulto | S109: nd | T109: não | U109: não | V109: Soltura | W109: 2022-03-03 | X109: 311054 | Y109: 7493163 | Z109: não
A110: 130 | B110: RE | C110: 2022-03-04 | D110: 14:42:00 | E110: Area de Plantio | F110: 308727 | G110: 7491441 | H110: Cultivo Agricola | I110: Ensolarado | J110: 1 | K110: HERPETOFAUNA | L110: Squamata | M110: Viperidae | N110: Oxyrhopus guibei | O110: coral falsa | P110: saudavel | Q110: sim | R110: adulto | S110: nd | T110: não | U110: não | V110: Soltura | W110: 2022-03-04 | X110: 311054 | Y110: 7493163 | Z110: não
A111: 131 | B111: RE | C111: 2022-03-05 | D111: 16:01:00 | E111: Area de Plantio | F111: 308727 | G111: 7491441 | H111: Cultivo Agricola | I111: Ensolarado | J111: 1 | K111: HERPETOFAUNA | L111: Squamata | M111: Viperidae | N111: Crotalus durissus | O111: cascavel | P111: saudavel | Q111: sim | R111: adulto | S111: nd | T111: não | U111: não | V111: Soltura | W111: 2022-03-05 | X111: 311054 | Y111: 7493163 | Z111: não
A112: 132 | B112: RE | C112: 2022-03-07 | D112: 16:18:00 | E112: Area de Plantio | F112: 308527 | G112: 7491644 | H112: Cultivo Agricola | I112: Ensolarado | J112: 1 | K112: HERPETOFAUNA | L112: Squamata | M112: Viperidae | N112: Bothrops jararaca | O112: jararaca | P112: saudavel | Q112: sim | R112: jovem | S112: nd | T112: não | U112: não | V112: Soltura | W112: 2022-03-07 | X112: 311054 | Y112: 7493163 | Z112: não
A113: 133 | B113: RE | C113: 2022-03-08 | D113: 14:47:00 | E113: centro de pesquisa | F113: 307983 | G113: 7490168 | H113: centro de pesquisa | I113: Ensolarado | J113: 1 | K113: HERPETOFAUNA | L113: Squamata | M113: boidae | N113: Boa Constrictor | O113: Jiboia-constritora | P113: saudavel | Q113: sim | R113: adulto | S113: nd | T113: não | U113: não | V113: Soltura | W113: 2022-03-08 | X113: 309506 | Y113: 7489286 | Z113: não
A114: 134 | B114: RE | C114: 2022-03-11 | D114: 15:34:00 | E114: viveiro de mudas | F114: 308543 | G114: 7491419 | H114: viveiro de mudas | I114: Ensolarado | J114: 1 | K114: HERPETOFAUNA | L114: Squamata | M114: Viperidae | N114: Oxyrhopus trigeminus | O114: Falsa-coral | P114: saudavel | Q114: sim | R114: filhote | S114: nd | T114: não | U114: não | V114: Soltura | W114: 2022-03-11 | X114: 311054 | Y114: 7486121 | Z114: não
A115: 135 | B115: RE | C115: 2022-03-12 | D115: 15:54:00 | E115: Area de Plantio | F115: 308727 | G115: 7491441 | H115: cultivo agricola | I115: Ensolarado | J115: 1 | K115: HERPETOFAUNA | L115: Squamata | M115: Viperidae | N115: crotallus durissus | O115: cascavel | P115: saudavel | Q115: sim | R115: adulto | S115: nd | T115: não | U115: não | V115: Soltura | W115: 2022-03-11 | X115: 311054 | Y115: 7486121 | Z115: não
A116: 136 | B116: RE | C116: 2022-03-23 | D116: 14:22:00 | E116: Area de Plantio | F116: 308129 | G116: 7491586 | H116: cultivo agricola | I116: Ensolarado | J116: 1 | K116: HERPETOFAUNA | L116: Squamata | M116: Viperidae | N116: crotallus durissus | O116: cascavel | P116: saudavel | Q116: sim | R116: adulto | S116: nd | T116: não | U116: não | V116: Soltura | W116: 2022-03-23 | X116: 311054 | Y116: 7486121 | Z116: não
A117: 137 | B117: RE | C117: 2022-03-30 | D117: 08:35:00 | E117: Area de Plantio | F117: 308125 | G117: 7491647 | H117: cultivo agricola | I117: Ensolarado | J117: 1 | K117: HERPETOFAUNA | L117: Squamata | M117: Viperidae | N117: crotallus durissus | O117: cascavel | P117: saudavel | Q117: sim | R117: adulto | S117: nd | T117: não | U117: não | V117: Soltura | W117: 2022-03-30 | X117: 311054 | Y117: 7486121 | Z117: não
A118: 138 | B118: RE | C118: 2022-04-01 | D118: 17:00:00 | E118: Area de Plantio | F118: 308101 | G118: 7491313 | H118: cultivo agricola | I118: Ensolarado | J118: 1 | K118: HERPETOFAUNA | L118: Squamata | M118: Viperidae | N118: crotallus durissus | O118: cascavel | P118: saudavel | Q118: sim | R118: jovem | S118: nd | T118: não | U118: não | V118: soltura | W118: 2022-04-01 | X118: 311054 | Y118: 7486121 | Z118: não
A119: 139 | B119: RE | C119: 2022-04-04 | D119: 08:43:00 | E119: Area de Plantio | F119: 308166 | G119: 7491316 | H119: cultivo agricola | I119: Ensolarado | J119: 1 | K119: HERPETOFAUNA | L119: Squamata | M119: Dipsadidae | N119: leophis typhlus | O119: cobra verde | P119: saudavel | Q119: sim | R119: adulto | S119: nd | T119: não | U119: não | V119: soltura | W119: 2022-04-04 | X119: 311054 | Y119: 7486121 | Z119: não
A120: 140 | B120: RE | C120: 2022-04-07 | D120: 09:58:00 | E120: administrativo | F120: 30518 | G120: 7491407 | H120: canteiro de obras | I120: Ensolarado | J120: 1 | K120: HERPETOFAUNA | L120: Squamata | M120: columbridae | N120: eryhrolampus paecilogyrus | O120: cobra capim | P120: saudavel | Q120: sim | R120: filhote | S120: nd | T120: não | U120: não | V120: soltura | W120: 2022-04-07 | X120: 311054 | Y120: 7493163 | Z120: não
A121: 141 | B121: RE | C121: 2022-04-07 | D121: 10:30:00 | E121: Industrial | F121: 30518 | G121: 7491407 | H121: Cultivo Agricola | I121: Ensolarado | J121: 1 | K121: HERPETOFAUNA | L121: Squamata | M121: Viperidae | N121: crotallus durissus | O121: cascavel | P121: saudavel | Q121: sim | R121: adulto | S121: nd | T121: não | U121: não | V121: soltura | W121: 2022-04-07 | X121: 311054 | Y121: 7493163 | Z121: não
A122: 142 | B122: RE | C122: 2022-04-08 | D122: 15:15:00 | E122: laboratorio | F122: 307965 | G122: 7490129 | H122: Cultivo Agricola | I122: Ensolarado | J122: 1 | K122: AVIFAUNA | L122: psiformes | M122: psidae | N122: colaptes campestres | O122: pica pau | P122: saudavel | Q122: sim | R122: adulto | S122: nd | T122: sim | U122: sim/ observação. | V122: soltura | W122: 2022-04-08 | X122: 308497 | Y122: 7491382 | Z122: não
A123: 143 | B123: RE | C123: 2022-05-06 | D123: 08;50 | E123: Propriedade do entorno | F123: 308471 | G123: 7492451 | H123: area frutifera | I123: Ensolarado | J123: 1 | K123: MASTOFAUNA | L123: Didelphimorphia | M123: Didelphidae | N123: Didelphis aurita | O123: Gamba de orelha preta | P123: Ferido | Q123: sim | R123: adulto | S123: macho | T123: não | U123: não | V123: CRAS - Mata Ciliar | W123: 2022-05-06 | X123: 301182 | Y123: 743554 | Z123: não | AA123: animal com membro ferido
A124: 144 | B124: RE | C124: 2022-05-07 | D124: 08:37:00 | E124: Industrial | F124: 307930 | G124: 7491234 | H124: Infraestrutura | I124: Ensolarado | J124: 1 | K124: MASTOFAUNA | L124: Rodentia | M124: cricitidae | N124: microtus arvalis | O124: Rato-do-campo | P124: saudavel | Q124: sim | R124: adulto | S124: macho | T124: não | U124: não | V124: soltura | W124: 2022-05-07 | X124: 310135 | Y124: 7492422 | Z124: não
A125: 145 | B125: RE | C125: 2022-05-12 | D125: 15:01:00 | E125: Area de plantio | F125: 310643 | G125: 7491798 | H125: cultivo agricola | I125: Ensolarado | J125: 1 | K125: HERPETOFAUNA | L125: Squamata | M125: Viperidae | N125: Bothrops urutu | O125: urutu | P125: saudavel | Q125: sim | R125: jovem | S125: nd | T125: não | U125: não | V125: soltura | W125: 2022-05-12 | X125: 311054 | Y125: 7493163 | Z125: não
A126: 146 | B126: RE | C126: 2022-05-13 | D126: 07:59:00 | E126: Industrial | F126: 307550 | G126: 7490930 | H126: Infraestrutura | I126: Ensolarado | J126: 1 | K126: HERPETOFAUNA | L126: Squamata | M126: Dipsadidae | N126: Dipsas mikanii | O126: dormideira | P126: saudavel | Q126: sim | R126: jovem | S126: nd | T126: não | U126: não | V126: soltura | W126: 2022-05-13 | X126: 311054 | Y126: 7493163 | Z126: não
A127: 147 | B127: RE | C127: 2022-05-13 | D127: 10:55:00 | E127: estacionamento shefa | F127: 307601 | G127: 7489456 | H127: Infraestrutura | I127: Ensolarado | J127: 1 | K127: AVIFAUNA | L127: accipitriformes | M127: acipitrideos | N127: rupornis magnirostris | O127: gaviao carijo | P127: ferido | Q127: sim | R127: jovem | S127: nd | T127: não | U127: sim | V127: CRAS - Mata Ciliar | W127: 2022-05-14 | X127: 301182 | Y127: 7535554 | Z127: não | AA127: animal com asa ferida
A128: 148 | B128: RE | C128: 2022-05-17 | D128: 16:30:00 | E128: administrativo | F128: 308504 | G128: 7491231 | H128: estrada | I128: nublado | J128: 1 | K128: HERPETOFAUNA | L128: Squamata | M128: Viperidae | N128: bothops jararaca | O128: jararaca | P128: saudavel | Q128: sim | R128: adulto | S128: nd | T128: não | U128: sim | V128: soltura | W128: 2022-05-18 | X128: 311054 | Y128: 7493163 | Z128: não | AA128: animal ficou em observação
A129: 149 | B129: RE | C129: 2022-06-08 | D129: 09:54:00 | E129: Margem direita | F129: 307470 | G129: 7490856 | H129: canaleta periferica | I129: Ensolarado | J129: 1 | K129: HERPETOFAUNA | L129: Squamata | M129: Dipsadidae | N129: oxyrhopus guibei | O129: Falsa-coral | P129: saudavel | Q129: sim | R129: jovem | S129: nd | T129: não | U129: não | V129: soltura | W129: 2022-06-08 | X129: 311054 | Y129: 7493163 | Z129: não
A130: 150 | B130: RE | C130: 2022-06-10 | D130: 11:55:00 | E130: margem direira | F130: 308000 | G130: 7491205 | H130: infraestrutura | I130: Ensolarado | J130: 1 | K130: HERPETOFAUNA | L130: Squamata | M130: amphisbaenidae | N130: amphisbena alba | O130: cobra cega ou de duas cabeças | P130: saudavel | Q130: sim | R130: adulto | S130: nd | T130: não | U130: não | V130: soltura | W130: 2022-06-10 | X130: 311054 | Y130: 7493163 | Z130: não
A131: 151 | B131: RE | C131: 2022-06-11 | D131: 085:14 | E131: area de plantio | F131: 309469 | G131: 7490746 | H131: cultivo agricola | I131: Ensolarado | J131: 1 | K131: HERPETOFAUNA | L131: Squamata | M131: Viperidae | N131: crotallus durissus | O131: cascavel | P131: saudavel | Q131: sim | R131: adulto | S131: nd | T131: não | U131: não | V131: soltura | W131: 2022-06-11 | X131: 311054 | Y131: 7493163 | Z131: não
A132: 152 | B132: RE | C132: 2022-06-11 | D132: 09:20:00 | E132: arera de plantio | F132: 309469 | G132: 7490476 | H132: cultivo agricola | I132: Ensolarado | J132: 1 | K132: HERPETOFAUNA | L132: Squamata | M132: Viperidae | N132: crotallus durissus | O132: cascavel | P132: ferido | Q132: sim | R132: jovem | S132: nd | T132: sim | U132: não | V132: base de fauna | W132: 2022-06-11 | X132: 308494 | Y132: 7491452 | Z132: não | AA132: animal no frezer da base de fauna
A133: 153 | B133: RE | C133: 2022-06-21 | D133: 14:39:00 | E133: area de plantio | F133: 307497 | G133: 7489934 | H133: cultivo agricola | I133: Ensolarado | J133: 1 | K133: HERPETOFAUNA | L133: Squamata | M133: Viperidae | N133: bothops jararaca | O133: jararaca da mata | P133: saudavel | Q133: sim | R133: adulto | S133: nd | T133: não | U133: não | V133: soltura | W133: 2022-06-21 | X133: 311054 | Y133: 7493163 | Z133: não
A134: 154 | B134: RE | C134: 2022-06-27 | D134: 13:54:00 | E134: CPABE | F134: 308002 | G134: 7490235 | H134: arae de demolição | I134: Ensolarado | J134: 1 | K134: HERPETOFAUNA | L134: Squamata | M134: Viperidae | N134: crotallus durissus | O134: cascavel | P134: saudavel | Q134: sim | R134: adulto | S134: nd | T134: não | U134: não | V134: soltura | W134: 2022-06-27 | X134: 311054 | Y134: 7493163 | Z134: não
A135: 155 | B135: RE | C135: 2022-07-12 | D135: 10:37:00 | E135: Margem direita | F135: 307506 | G135: 7490743 | H135: area de supressão | I135: Ensolarado | J135: 1 | K135: HERPETOFAUNA | L135: Squamata | M135: Teiidae | N135: Salvator merianae | O135: Teiu | P135: saudavel | Q135: sim | R135: adulto | S135: nd | T135: não | U135: não | V135: soltura | W135: 2022-07-12 | X135: 309506 | Y135: 7489286 | Z135: não
A136: 156 | B136: RE | C136: 2022-07-22 | D136: 14:43:00 | E136: casa de morador do entorno | F136: 308471 | G136: 7492451 | H136: infraestrutura de fora da obra | I136: Ensolarado | J136: 1 | K136: HERPETOFAUNA | L136: testudines | M136: emydidae | N136: trachemys dorbigni | O136: Tigre dgua | P136: saudavel | Q136: sim | R136: adulto | S136: femea | T136: não | U136: não | V136: soltura | W136: 2022-07-22 | X136: 309506 | Y136: 7489286 | Z136: não
A137: 157 | B137: RE | C137: 2022-08-09 | D137: 10:00:00 | E137: area de plantio | F137: 308112 | G137: 7491337 | H137: cultivo agricola | I137: Ensolarado | J137: 1 | K137: HERPETOFAUNA | L137: Squamata | M137: Viperidae | N137: crotallus durissus | O137: cascavel | P137: saudavel | Q137: sim | R137: jovem | S137: nd | T137: não | U137: não | V137: soltura | W137: 2022-08-09 | X137: 309506 | Y137: 7489286 | Z137: não
A138: 158 | B138: RE | C138: 2022-08-19 | D138: 17:00:00 | E138: area de plantio | F138: 308112 | G138: 7491588 | H138: cultivo agricola | I138: Ensolarado | J138: 1 | K138: HERPETOFAUNA | L138: Squamata | M138: Viperidae | N138: crotallus durissus | O138: cascavel | P138: saudavel | Q138: sim | R138: adulto | S138: nd | T138: não | U138: sim | V138: soltura | W138: 2022-08-20 | X138: 309506 | Y138: 7489286 | Z138: não
A139: 159 | B139: RE | C139: 2022-08-26 | D139: 10:00:00 | E139: guarita de saida | F139: 308384 | G139: 7491433 | H139: infraestrutura | I139: Ensolarado | J139: 1 | K139: MASTOFAUNA | L139: rodentia | M139: Cavidae | N139: Cavia aparea | O139: Prea | P139: saudavel | Q139: sim | R139: jovem | S139: femea | T139: não | U139: não | V139: soltura | W139: 2022-08-26 | X139: 309506 | Y139: 7489286 | Z139: não
A140: 160 | B140: AT | C140: 2022-08-26 | D140: 15:39:00 | E140: area de acesso / estrada | F140: 308414 | G140: 7491138 | H140: via de acesso | I140: Ensolarado | J140: 1 | K140: HERPETOFAUNA | L140: Squamata | M140: Viperidae | N140: Salvator merianae | O140: Teiu | P140: morto | Q140: sim | R140: adulto | S140: nd | T140: sim | U140: não | V140: base de fauna | W140: 2022-08-26 | X140: 308494 | Y140: 7491452 | Z140: não | AA140: animal no frezer da base de fauna
A141: 161 | B141: RE | C141: 2022-09-14 | D141: 11:35:00 | E141: area de plantio | F141: 310610 | G141: 7491827 | H141: cultivo agricola | I141: nublado | J141: 1 | K141: HERPETOFAUNA | L141: Squamata | M141: Viperidae | N141: Philodryas nattereri | O141: corre campo | P141: saudavel | Q141: sim | R141: adulto | S141: nd | T141: não | U141: não | V141: soltura | W141: 2022-09-14 | X141: 311054 | Y141: 7493163 | Z141: não
A142: 162 | B142: RE | C142: 2022-09-14 | D142: 11:42:00 | E142: area de plantio | F142: 310610 | G142: 7491827 | H142: cultivo agricola | I142: nublado | J142: 1 | K142: HERPETOFAUNA | L142: Squamata | M142: Viperidae | N142: crotallus durissus | O142: cascavel | P142: saudavel | Q142: sim | R142: jovem | S142: nd | T142: não | U142: não | V142: soltura | W142: 2022-09-14 | X142: 311054 | Y142: 7493163 | Z142: não
A143: 163 | B143: RE | C143: 2022-09-16 | D143: 15:56:00 | E143: area de plantio | F143: 307644 | G143: 7490664 | H143: cultivo agricola | I143: Ensolarado | J143: 1 | K143: HERPETOFAUNA | L143: Squamata | M143: Viperidae | N143: ereytholamprus typhlus brachyrus | O143: cobra de jardim | P143: saudavel | Q143: sim | R143: jovem | S143: nd | T143: não | U143: não | V143: soltura | W143: 2022-09-16 | X143: 311054 | Y143: 7493163 | Z143: não
A144: 164 | B144: RE | C144: 2022-09-23 | D144: 16:30:00 | E144: fiscalizaçã | F144: 308510 | G144: 7491348 | H144: infraestrutura | I144: nublado | J144: 1 | K144: HERPETOFAUNA | L144: Squamata | M144: Viperidae | N144: oxyrhopus guibei | O144: Falsa-coral | P144: saudavel | Q144: sim | R144: jovem | S144: nd | T144: não | U144: não | V144: soltura | W144: 2022-09-23 | X144: 311054 | Y144: 7493163 | Z144: não
A145: 165 | B145: RE | C145: 2022-10-03 | D145: 09:18:00 | E145: Area de Plantio | F145: 309974 | G145: 7492313 | H145: cultivo agricola | I145: Ensolarado | J145: 1 | K145: HERPETOFAUNA | L145: Squamata | M145: Viperidae | N145: crotallus durissus | O145: cascavel | P145: saudavel | Q145: sim | R145: adulto | S145: nd | T145: não | U145: não | V145: soltura | W145: 03/10;2022 | X145: 311054 | Y145: 7493163 | Z145: não
A146: 166 | B146: RE | C146: 2022-10-03 | D146: 15:56:00 | E146: Area de Plantio | F146: 309946 | G146: 7492295 | H146: cultivo agricola | I146: Ensolarado | J146: 1 | K146: HERPETOFAUNA | L146: Squamata | M146: Viperidae | N146: crotallus durissus | O146: cascavel | P146: saudavel | Q146: sim | R146: jovem | S146: nd | T146: não | U146: não | V146: soltura | W146: 2022-10-03 | X146: 311054 | Y146: 7493163 | Z146: não
A147: 167 | B147: RE | C147: 2022-10-11 | D147: 17:18:00 | E147: Area de Plantio | F147: 309946 | G147: 7492295 | H147: cultivo agricola | I147: Ensolarado | J147: 1 | K147: HERPETOFAUNA | L147: Squamata | M147: Viperidae | N147: crotallus durissus | O147: cascavel | P147: saudavel | Q147: sim | R147: adulto | S147: nd | T147: não | U147: não | V147: soltura | W147: 2022-10-11 | X147: 311054 | Y147: 7493163 | Z147: não
A148: 168 | B148: RE | C148: 2022-10-13 | D148: 15:53:00 | E148: Area de Plantio | F148: 309620 | G148: 7492058 | H148: cultivo agricola | I148: Ensolarado | J148: 1 | K148: HERPETOFAUNA | L148: Squamata | M148: Viperidae | N148: crotallus durissus | O148: cascavel | P148: saudavel | Q148: sim | R148: jovem | S148: nd | T148: não | U148: não | V148: soltura | W148: 2022-10-13 | X148: 311054 | Y148: 7493163 | Z148: não
A149: 169 | B149: RE | C149: 2022-10-18 | D149: 10:00:00 | E149: Area de Plantio | F149: 309708 | G149: 7491990 | H149: cultivo agricola | I149: Ensolarado | J149: 1 | K149: HERPETOFAUNA | L149: Squamata | M149: Viperidae | N149: Bothrops urutu | O149: urutu cruzeiro | P149: saudavel | Q149: sim | R149: jovem | S149: nd | T149: não | U149: não | V149: soltura | W149: 2022-10-18 | X149: 311054 | Y149: 7493163 | Z149: não
A150: 170 | B150: RE | C150: 2022-11-02 | D150: 14:03:00 | E150: vertedouro | F150: 307706 | G150: 7491004 | H150: infraestrutura | I150: Ensolarado | J150: 1 | K150: HERPETOFAUNA | L150: Squamata | M150: Dipsadidae | N150: Dipsas mikanii | O150: dormideira | P150: saudavel | Q150: sim | R150: jovem | S150: nd | T150: não | U150: não | V150: soltura | W150: 2022-11-02 | X150: 311054 | Y150: 7493163 | Z150: não
A151: 171 | B151: RE | C151: 2022-11-04 | D151: 15:32:00 | E151: Area de Plantio | F151: 307706 | G151: 7491004 | H151: cultivo agricola | I151: Ensolarado | J151: 1 | K151: HERPETOFAUNA | L151: Squamata | M151: Viperidae | N151: crotallus durissus | O151: cascavel | P151: saudavel | Q151: sim | R151: adulto | S151: nd | T151: não | U151: não | V151: soltura | W151: 2022-11-04 | X151: 311054 | Y151: 7493163 | Z151: não
A152: 172 | B152: RE | C152: 2022-11-15 | D152: 13:00:00 | E152: Administrativo | F152: 308497 | G152: 7491391 | H152: infraestrutura | I152: Ensolarado | J152: 1 | K152: HERPETOFAUNA | L152: Squamata | M152: Teiidae | N152: Salvator merianae | O152: teiu | P152: ferido | Q152: sim | R152: jovem | S152: nd | T152: não | U152: não | V152: CRAS - Mata Ciliar | W152: 2022-11-15 | X152: 301182 | Y152: 7435554 | Z152: não
A153: 173 | B153: AT | C153: 2022-11-24 | D153: 15:08:00 | E153: Via de acesso | F153: 308371 | G153: 7491126 | H153: estrada | I153: Ensolarado | J153: 1 | K153: HERPETOFAUNA | L153: Squamata | M153: Teiidae | N153: Salvator merianae | O153: teiu | P153: morto | Q153: sim | R153: adulto | S153: nd | T153: sim | U153: não | V153: base de fauna | W153: 2022-11-24 | X153: 308494 | Y153: 7491452 | Z153: não | AA153: animal no freezer da base de fauna
A154: 174 | B154: RE | C154: 2022-11-25 | D154: 08:32:00 | E154: Area de Plantio | F154: 308101 | G154: 7491667 | H154: cultivo agricola | I154: Ensolarado | J154: 1 | K154: HERPETOFAUNA | L154: Squamata | M154: Viperidae | N154: crotallus durissus | O154: cascavel | P154: saudavel | Q154: sim | R154: adulto | S154: nd | T154: não | U154: não | V154: soltura | W154: 2022-11-25 | X154: 311054 | Y154: 7493163 | Z154: não
A155: 175 | B155: RE | C155: 2022-12-07 | D155: 10:44:00 | E155: Area de Plantio | F155: 308585 | G155: 7492715 | H155: cultivo agricola | I155: Ensolarado | J155: 1 | K155: HERPETOFAUNA | L155: Squamata | M155: Viperidae | N155: bothops jararaca | O155: jararaca | P155: morto | Q155: sim | R155: jovem | S155: nd | T155: sim | U155: não | V155: base de fauna | W155: 2022-12-07 | X155: 308494 | Y155: 7491452 | Z155: não | AA155: animal no freezer da base de fauna
A156: 176 | B156: RE | C156: 2022-12-21 | D156: 15:15:00 | E156: patio do administrativo | F156: 308500 | G156: 7491373 | H156: infraestrutura | I156: Ensolarado | J156: 1 | K156: HERPETOFAUNA | L156: Squamata | M156: columbridae | N156: philodrias olfersii | O156: cobra verde | P156: saudavel | Q156: sim | R156: adulto | S156: nd | T156: não | U156: não | V156: soltura | W156: 2022-12-21 | X156: 311054 | Y156: 7493163 | Z156: não
A157: 177 | B157: RE | C157: 2023-01-11 | D157: 15:30:00 | E157: fiscalização | F157: 308510 | G157: 7491348 | H157: infraestrutura | I157: Ensolarado | J157: 1 | K157: AVIFAUNA | L157: Psittaciformes | M157: Psittacidae | N157: Psittacara leucophthalmus | O157: Maritaca-maracanã | P157: saudavel | Q157: sim | R157: Filhote | S157: nd | T157: não | U157: não | V157: CRAS - Mata Ciliar | W157: 2023-01-20 | X157: 301182 | Y157: 7435554 | Z157: não
A158: 178 | B158: RE | C158: 2023-01-12 | D158: 16:30:00 | E158: fiscalização | F158: 308510 | G158: 7491348 | H158: infraestrutura | I158: Ensolarado | J158: 1 | K158: AVIFAUNA | L158: Psittaciformes | M158: Psittacidae | N158: Psittacara leucophthalmus | O158: Maritaca-maracanã | P158: saudavel | Q158: sim | R158: Filhote | S158: nd | T158: não | U158: não | V158: CRAS - Mata Ciliar | W158: 2023-01-21 | X158: 301182 | Y158: 7435554 | Z158: não
A159: 179 | B159: RE | C159: 2023-01-13 | D159: 17:30:00 | E159: fiscalização | F159: 308510 | G159: 7491348 | H159: infraestrutura | I159: Ensolarado | J159: 1 | K159: AVIFAUNA | L159: Psittaciformes | M159: Psittacidae | N159: Psittacara leucophthalmus | O159: Maritaca-maracanã | P159: saudavel | Q159: sim | R159: Filhote | S159: nd | T159: não | U159: não | V159: CRAS - Mata Ciliar | W159: 2023-01-22 | X159: 301182 | Y159: 7435554 | Z159: não
A160: 180 | B160: RE | C160: 2023-01-14 | D160: 18:30:00 | E160: fiscalização | F160: 308510 | G160: 7491348 | H160: infraestrutura | I160: Ensolarado | J160: 1 | K160: AVIFAUNA | L160: Psittaciformes | M160: Psittacidae | N160: Psittacara leucophthalmus | O160: Maritaca-maracanã | P160: saudavel | Q160: sim | R160: Filhote | S160: nd | T160: não | U160: não | V160: CRAS - Mata Ciliar | W160: 2023-01-23 | X160: 301182 | Y160: 7435554 | Z160: não
A161: 181 | B161: RE | C161: 2023-01-15 | D161: 19:30:00 | E161: fiscalização | F161: 308510 | G161: 7491348 | H161: infraestrutura | I161: Ensolarado | J161: 1 | K161: AVIFAUNA | L161: Psittaciformes | M161: Psittacidae | N161: Psittacara leucophthalmus | O161: Maritaca-maracanã | P161: saudavel | Q161: sim | R161: Filhote | S161: nd | T161: não | U161: não | V161: CRAS - Mata Ciliar | W161: 2023-01-24 | X161: 301182 | Y161: 7435554 | Z161: não
A162: 182 | B162: AT | C162: 2023-01-31 | D162: 15:00:00 | E162: Via de acesso | F162: 308494 | G162: 7491452 | H162: estrada | I162: Ensolarado | J162: 1 | K162: HERPETOFAUNA | L162: Squamata | M162: Teiidae | N162: Salvator merianae | O162: teiu | P162: morto | Q162: sim | R162: adulto | S162: nd | T162: sim | U162: não | V162: base de fauna | W162: 2023-01-31 | X162: 308494 | Y162: 7491452 | Z162: não | AA162: animal no freezer da base de fauna
A163: 183 | B163: RE | C163: 2023-02-01 | D163: 10:00:00 | E163: administrativo | F163: 308507 | G163: 7491421 | H163: estrada | I163: Ensolarado | J163: 1 | K163: MASTOFAUNA | L163: mammalia | M163: didelphidae | N163: monodelphis dimidiata | O163: cuica marron | P163: saudavel | Q163: sim | R163: adulto | S163: nd | T163: sim | U163: não | V163: soltura | W163: 2023-02-01 | X163: 309486 | Y163: 7488889 | Z163: não
A164: 184 | B164: RE | C164: 2023-02-03 | D164: 16:00:00 | E164: administrativo | F164: 308507 | G164: 7491421 | H164: infraestrutura | I164: Ensolarado | J164: 1 | K164: MASTOFAUNA | L164: mammalia | M164: didelphidae | N164: monodelphis dimidiata | O164: cuica marron | P164: saudavel | Q164: sim | R164: Filhote | S164: nd | T164: não | U164: não | V164: soltura | W164: 2023-02-03 | X164: 309486 | Y164: 7488889 | Z164: não
A165: 185 | B165: RE | C165: 2023-02-03 | D165: 22:00:00 | E165: administrativo | F165: 308520 | G165: 7491389 | H165: patio do administrativo | I165: noite sem chuva | J165: 1 | K165: HERPETOFAUNA | L165: Squamata | M165: Viperidae | N165: crotallus durissus | O165: cascavel | P165: morto | Q165: sim | R165: adulto | S165: nd | T165: sim | U165: não | V165: base de fauna | W165: 2023-02-04 | X165: 308494 | Y165: 7491452 | Z165: não | AA165: animal no freezer da base de fauna
A166: 186 | B166: RE | C166: 2023-02-07 | D166: 13:00:00 | E166: administrativo | F166: 308507 | G166: 7491421 | H166: infraestrutura | I166: Ensolarado | J166: 1 | K166: MASTOFAUNA | L166: mammalia | M166: didelphidae | N166: monodelphis dimidiata | O166: cuica marron | P166: saudavel | Q166: sim | R166: Filhote | S166: nd | T166: não | U166: não | V166: soltura | W166: 2023-02-07 | X166: 309486 | Y166: 7488889 | Z166: não
A167: 187 | B167: RE | C167: 2023-02-08 | D167: 11:00:00 | E167: Area de Plantio | F167: 307824 | G167: 7490102 | H167: area de supressão | I167: Ensolarado | J167: 1 | K167: HERPETOFAUNA | L167: Squamata | M167: Viperidae | N167: crotallus durissus | O167: cascavel | P167: saudavel | Q167: sim | R167: adulto | S167: nd | T167: não | U167: não | V167: soltura | W167: 2023-02-08 | X167: 311054 | Y167: 7493163 | Z167: não
A168: 188 | B168: RE | C168: 2023-02-28 | D168: 14:30:00 | E168: Area de Plantio | F168: 308101 | G168: 7491667 | H168: cultivo agricola | I168: Ensolarado | J168: 1 | K168: HERPETOFAUNA | L168: Squamata | M168: Viperidae | N168: Bothrops alternatus | O168: urutu cruzeiro | P168: saudavel | Q168: sim | R168: adulto | S168: nd | T168: não | U168: não | V168: soltura | W168: 2023-02-28 | X168: 311054 | Y168: 7493163 | Z168: não
A169: 189 | B169: RE | C169: 2023-03-09 | D169: 14:30:00 | E169: EMA | F169: 307787 | G169: 7491291 | H169: infraentrutura | I169: Ensolarado | J169: 1 | K169: HERPETOFAUNA | L169: Squamata | M169: Viperidae | N169: crotallus durissus | O169: cascavel | P169: saudavel | Q169: sim | R169: filhote | S169: nd | T169: não | U169: não | V169: soltura | W169: 2023-03-09 | X169: 311054 | Y169: 7493163 | Z169: não
A170: 190 | B170: RE | C170: 2023-03-14 | D170: 08:20:00 | E170: fiscalização | F170: 308504 | G170: 7491337 | H170: infraentrutura | I170: Ensolarado | J170: 1 | K170: HERPETOFAUNA | L170: Squamata | M170: Viperidae | N170: bothops jararaca | O170: jararaca | P170: saudavel | Q170: sim | R170: filhote | S170: nd | T170: não | U170: não | V170: soltura | W170: 2023-03-14 | X170: 311054 | Y170: 7493163 | Z170: não
A171: 191 | B171: RE | C171: 2023-03-25 | D171: 08:00:00 | E171: patio meio ambiente | F171: 308539 | G171: 7491377 | H171: infraentrutura | I171: Ensolarado | J171: 1 | K171: HERPETOFAUNA | L171: Squamata | M171: Viperidae | N171: bothops jararaca | O171: jararaca | P171: saudavel | Q171: sim | R171: filhote | S171: nd | T171: não | U171: não | V171: soltura | W171: 2023-03-25 | X171: 311054 | Y171: 7493163 | Z171: não
A172: 192 | B172: RE | C172: 2023-03-31 | D172: 07:30:00 | E172: mirante | F172: 307704 | G172: 7491142 | H172: infraentrutura | I172: Ensolarado | J172: 1 | K172: HERPETOFAUNA | L172: Squamata | M172: Viperidae | N172: crotallus durissus | O172: cascavel | P172: saudavel | Q172: sim | R172: filhote | S172: nd | T172: não | U172: não | V172: soltura | W172: 2023-03-31 | X172: 311054 | Y172: 7493163 | Z172: não
A173: 193 | B173: RE | C173: 2023-04-04 | D173: 13:00:00 | E173: Area de platio | H173: cultivo agricola | I173: Ensolarado | J173: 1 | K173: HERPETOFAUNA | L173: Squamata | M173: Elapidae | N173: micrurus frontalis | O173: coral verdadeira | P173: saudavel | Q173: sim | R173: adulta | S173: nd | T173: não | U173: não | V173: soltura | W173: 2023-04-04 | X173: 311054 | Y173: 7493163 | Z173: não
A174: 194 | B174: RE | C174: 2023-04-14 | D174: 08:00:00 | E174: fiscalização | F174: 308510 | G174: 7491348 | H174: infraentrutura | I174: Ensolarado | J174: 1 | K174: AVIFAUNA | L174: Psittaciformes | M174: Psittacidae | N174: Psittacara leucophthalmus | O174: Maritaca-maracanã | P174: saudavel | Q174: sim | R174: filhote | S174: nd | T174: não | U174: não | V174: CRAS - Mata Ciliar | W174: 2023-04-14 | X174: 301182 | Y174: 7435554 | Z174: não
A175: 195 | B175: RE | C175: 2023-04-14 | D175: 08:00:00 | E175: fiscalização | F175: 308510 | G175: 7491348 | H175: infraentrutura | I175: Ensolarado | J175: 1 | K175: AVIFAUNA | L175: Psittaciformes | M175: Psittacidae | N175: Psittacara leucophthalmus | O175: Maritaca-maracanã | P175: saudavel | Q175: sim | R175: filhotes | S175: nd | T175: não | U175: não | V175: CRAS - Mata Ciliar | W175: 2023-04-14 | X175: 301182 | Y175: 7435554 | Z175: não
A176: 196 | B176: RE | C176: 2023-04-19 | D176: 07:40:00 | E176: canaleta | F176: 307552 | G176: 7490976 | H176: infraentrutura | I176: Ensolarado | J176: 1 | K176: HERPETOFAUNA | L176: Squamata | M176: Viperidae | N176: phylodrias olfersii | O176: cobra verde listrada | P176: saudavel | Q176: sim | R176: jovem | S176: nd | T176: não | U176: não | V176: soltura | W176: 2023-04-19 | X176: 311054 | Y176: 7493163 | Z176: não
A177: 197 | B177: RE | C177: 2023-04-19 | D177: 07:40:00 | E177: canaleta | F177: 307552 | G177: 7490976 | H177: infraentrutura | I177: Ensolarado | J177: 1 | K177: HERPETOFAUNA | L177: Squamata | M177: Dipsadidae | N177: Dipsas mikanii | O177: dormideira | P177: saudavel | Q177: sim | R177: jovem | S177: nd | T177: não | U177: não | V177: soltura | W177: 2023-04-19 | X177: 311054 | Y177: 7493163 | Z177: não

Sheet Atropelamento
A1: REGISTROS DOS RESGATES
A3: ID | B3: Ocorrência | C3: ANO | D3: Mês | E3: Data | F3: Hora | G3: Características da Via | H3: Características do Entorno | I3: Rodovia | J3: km | K3: Sentido | L3: UTM-X | M3: UTM-Y | N3: Fuso | O3: Classificação | P3: Grupo | Q3: Nome científico | R3: Popular | S3: Quantidade | T3: Situação do animal | U3: Destinação | V3: UTM - X | W3: UTM - Y | X3: Fuso | Y3: Observações | Z3: Data de Destinação | AA3: Ano da Destinação | AB3: Mês da Destinação | AE3: clima | AF3: Base de Fauna | AG3: Acidentada em decorrência da obra
A4: 4 | B4: AT | C4: =YEAR(E4) -> 2020 | D4: =MONTH(E4) -> 8 | E4: 2020-08-26 | F4: 15:56:00 | G4: Plano | H4: Fragento Florestal | I4: - | J4: - | K4: - | L4: 309035 | M4: 7490950 | N4: 23 | O4: Silvestre | P4: HERPETOFAUNA | Q4: Dipsas mikanii | R4: Jararaquinha-dormideira | S4: 1 | T4: Morto | U4: UNIFAJ | V4: 292726 | W4: 7486121 | X4: 23 | Y4: UNIFAJ - 02/11/2020 | Z4: 2020-12-01 | AA4: 2020 | AB4: 12
A5: 5 | B5: AT | C5: =YEAR(E5) -> 2020 | D5: =MONTH(E5) -> 9 | E5: 2020-09-12 | F5: 07:00:00 | G5: Declive / Curva | H5: Fragento Florestal | I5: SP-107 | J5: 02 | K5: oeste | L5: 308165 | M5: 7487924 | N5: 23 | O5: Silvestre | P5: MASTOFAUNA | Q5: Didelphis albiventris | R5: Gambá-de-orelha-branca | S5: 1 | T5: Morto | U5: UNIFAJ | V5: 292726 | W5: 7486121 | X5: 23 | Y5: UNIFAJ - 02/11/2020 | Z5: 2020-12-01 | AA5: 2020 | AB5: 12
A6: 6 | B6: AT | C6: 2020 | D6: 9 | E6: 2020-09-12 | F6: 08:25:00 | G6: Plano | H6: Outro | I6: - | J6: - | K6: - | L6: 307809 | M6: 7490564 | N6: 23 | O6: Silvestre | P6: HERPETOFAUNA | Q6: Oxyrhopus guibei | R6: Falsa- coral | S6: 1 | T6: Morto | U6: UNIFAJ | V6: 292726 | W6: 7486121 | X6: 23 | Y6: UNIFAJ - 02/11/2020 | Z6: 2020-12-01 | AA6: 2020 | AB6: 12
A7: 9 | B7: AT | C7: 2020 | D7: 9 | E7: 2020-09-14 | F7: 12:14:00 | G7: Plano | H7: Fragento Florestal | I7: - | J7: - | K7: - | L7: 310215 | M7: 7491800 | N7: 23 | O7: Silvestre | P7: HERPETOFAUNA | Q7: Micrurus sp. | R7: Cobra-coral | S7: 1 | T7: Morto | U7: Base de Fauna | V7: 308508 | W7: 7491376 | X7: 23 | Y7: Base de Fauna | Z7: - | AA7: - | AB7: -
A8: 10 | B8: AT | C8: 2020 | D8: 9 | E8: 2020-09-16 | F8: 07:00:00 | G8: Declive / Curva | H8: Fragento Florestal | I8: SP-107 | J8: 02 | K8: leste | L8: 309529 | M8: 7485913 | N8: 23 | O8: Silvestre | P8: MASTOFAUNA | Q8: Didelphis aurita | R8: Gambá-de-orelha-preta | S8: 1 | T8: Morto | U8: UNIFAJ | V8: 292726 | W8: 7486121 | X8: 23 | Y8: UNIFAJ - 02/11/2020 | Z8: 2020-12-01 | AA8: 2020 | AB8: 12
A9: 12 | B9: AT | C9: 2020 | D9: 9 | E9: 2020-09-19 | F9: 07:35:00 | G9: Plano | H9: Fragento Florestal | I9: - | J9: - | K9: - | L9: 308370 | M9: 7491131 | N9: 23 | O9: Silvestre | P9: HERPETOFAUNA | Q9: Oxyrhopus guibei | R9: Falsa-coral | S9: 1 | T9: Morto | U9: UNIFAJ | V9: 292726 | W9: 7486121 | X9: 23 | Y9: UNIFAJ - 02/11/2020 | Z9: 2020-12-01 | AA9: 2020 | AB9: 12
A10: 13 | B10: AT | C10: 2020 | D10: 9 | E10: 2020-09-19 | F10: 08:00:00 | G10: Curva | H10: Fragento Florestal | I10: - | J10: - | K10: - | L10: 308704 | M10: 7493228 | N10: 23 | O10: Silvestre | P10: HERPETOFAUNA | Q10: Erythrolamprus aesculapii | R10: Falsa-coral | S10: 1 | T10: Morto | U10: UNIFAJ | V10: 292726 | W10: 7486121 | X10: 23 | Y10: UNIFAJ - 02/11/2020 | Z10: 2020-12-01 | AA10: 2020 | AB10: 12
A11: 15 | B11: AT | C11: 2020 | D11: 9 | E11: 2020-09-22 | F11: 14:54:00 | G11: Plano | H11: Pastagem | I11: - | J11: - | K11: - | L11: 308076 | M11: 7490915 | N11: 23 | O11: Silvestre | P11: HERPETOFAUNA | Q11: Dipsas mikanii | R11: Jararaquinha-dormideira | S11: 1 | T11: Morto | U11: UNIFAJ | V11: 292726 | W11: 7486121 | X11: 23 | Y11: UNIFAJ - 02/11/2020 | Z11: 2020-12-01 | AA11: 2020 | AB11: 12
A12: 18 | B12: AT | C12: 2020 | D12: 9 | E12: 2020-09-29 | F12: 08:30:00 | G12: Plano | H12: Outro | I12: - | J12: - | K12: - | L12: 308361 | M12: 7491136 | N12: 23 | O12: Silvestre | P12: HERPETOFAUNA | Q12: Oxyrhopus guibei | R12: Falsa-coral | S12: 1 | T12: Morto | U12: UNIFAJ | V12: 292726 | W12: 7486121 | X12: 23 | Y12: UNIFAJ - 02/11/2020 | Z12: 2020-12-01 | AA12: 2020 | AB12: 12
A13: 20 | B13: AT | C13: 2020 | D13: 11 | E13: 2020-11-13 | F13: 09:49:00 | G13: Plano/ Ponte | H13: Campo Antrópico | I13: Estrada de terra | J13: - | K13: Amparo | L13: 308372 | M13: 7491420 | N13: 23 | O13: Silvestre | P13: HERPETOFAUNA | Q13: Salvator merianae | R13: Teiú | S13: 1 | T13: Morto | U13: UNIFAJ | V13: 292726 | W13: 7486121 | X13: 23 | Y13: UNIFAJ - 02/11/2020 | Z13: 2020-12-01 | AA13: 2020 | AB13: 12
A14: 22 | B14: AT | C14: 2020 | D14: 11 | E14: 2020-11-26 | F14: 17:06:00 | G14: Plano | H14: Fragento Florestal | I14: Estrada de terra | J14: - | K14: Santo Antônio de Posse | L14: 308361 | M14: 7491136 | N14: 23 | O14: Silvestre | P14: MASTOFAUNA | Q14: Dasypus novemcinctus | R14: Tatu-galinha | S14: 1 | T14: Morto | U14: UNIFAJ | V14: 292726 | W14: 7486121 | X14: 23 | Y14: UNIFAJ - 02/11/2020 | Z14: 2020-12-01 | AA14: 2020 | AB14: 12
A15: 23 | B15: AT | C15: 2020 | D15: 11 | E15: 2020-11-27 | F15: 09:42:00 | G15: Plano | H15: Cultivo agrícola | I15: Estrada de terra | J15: - | K15: Santo Antônio de Posse | L15: 307269 | M15: 7491909 | N15: 23 | O15: Silvestre | P15: HERPETOFAUNA | Q15: Erythrolamprus aesculapii | R15: Falsa-coral | S15: 1 | T15: Morto | U15: UNIFAJ | V15: 292726 | W15: 7486121 | X15: 23 | Y15: UNIFAJ - 02/11/2020 | Z15: 2020-12-01 | AA15: 2020 | AB15: 12
A16: 27 | B16: AT | C16: 2020 | D16: 12 | E16: 2020-12-10 | F16: 08:13:00 | G16: Pavimentada/ Descida/ mão dupla | H16: Pastagem | I16: SP-107 | J16: - | K16: Amparo | L16: 308970 | M16: 7486862 | N16: 23 | O16: Silvestre | P16: MASTOFAUNA | Q16: Callithrix jacchus | R16: Sagui-de-tufo-branco | S16: 1 | T16: Morto | U16: Base de Fauna | V16: 308508 | W16: 7491376 | X16: 23 | Y16: Base de Fauna | Z16: - | AA16: - | AB16: -
A17: 29 | B17: AT | C17: 2021 | D17: 1 | E17: 2021-01-05 | F17: 13:45:00 | G17: Estrada de terra | H17: Fragento Florestal | I17: - | J17: - | K17: - | L17: 308528 | M17: 7491335 | N17: 23 | O17: Silvestre | P17: HERPETOFAUNA | Q17: Philodryas olfersii | R17: Cobra - Verde | S17: 1 | T17: Ferido | U17: Base de Fauna | V17: 308508 | W17: 7491376 | X17: 23 | Y17: Base de Fauna | Z17: - | AA17: - | AB17: - | AD17: Squamata | AE17: Max 31° min 21
A18: 35 | B18: AT | C18: 2021 | D18: 1 | E18: 2021-01-16 | F18: 07:15:00 | G18: Estrada Pavimentada | H18: Pastagem | I18: SP-107 | J18: - | K18: Amparo | L18: 306753 | M18: 7490910 | N18: 23 | O18: Silvestre | P18: HERPETOFAUNA | Q18: Amphisbaena alba | R18: Cobra - cega | S18: 1 | T18: Ferido | U18: Base de Fauna | V18: 308508 | W18: 7491376 | X18: 23 | Y18: Base de Fauna | Z18: - | AA18: - | AB18: - | AD18: Squamata | AE18: Max 31° min 21
A19: 43 | B19: AT | C19: 2021 | D19: 1 | E19: 2021-01-28 | F19: 10:38:00 | G19: Acesso interno | H19: Canteiro de obras | I19: - | J19: - | K19: Amparo | L19: 308226 | M19: 7491093 | N19: 23 | O19: Silvestre | P19: HERPETOFAUNA | Q19: Amphisbaena alba | R19: Cobra-cega | S19: 1 | T19: Ferido | U19: CRAS - Mata Ciliar | V19: 305466 | W19: 7484505 | X19: 23 | Y19: Encaminhado para o CRAS - Mata Ciliar | Z19: 2021-01-28 | AA19: =IF(Z19="-","-",YEAR(Z19)) -> 2021 | AB19: =IF(Z19="-","-",MONTH(Z19)) -> 1 | AC19: Amphisbaenae | AD19: Squamata | AE19: Max 31° min 22
A20: 45 | B20: AT | C20: 2021 | D20: 2 | E20: 2021-02-03 | F20: 11:48:00 | G20: Acesso ao empreendimento | H20: Fragento Florestal | I20: Estrada de terra | J20: - | K20: - | L20: 308506 | M20: 7491375 | N20: 23 | O20: Silvestre | P20: HERPETOFAUNA | Q20: Amphisbaena alba | R20: Cobra-cega | S20: 1 | T20: Ferido | U20: Base de Fauna | V20: 308508 | W20: 7491376 | X20: 23 | Y20: Aguarda encaminhamento para a UNIFAJ | Z20: -
A21: 49 | B21: AT | C21: 2021 | D21: 2 | E21: 2021-02-08 | F21: 07:40:00 | G21: Acesso ao empreendimento | H21: Canteiro de obras | I21: Estrada de terra | J21: - | K21: - | L21: 308228 | M21: 7491093 | N21: 23 | O21: Silvestre | P21: MASTOFAUNA | Q21: Dasypus novemcinctus | R21: Tatu-galinha | S21: 1 | T21: Morto | U21: Base de Fauna | V21: 308508 | W21: 7491376 | X21: 23 | Y21: Descarte - sem aproveitamento científico | Z21: -
A22: 51 | B22: AT | C22: 2021 | D22: 2 | E22: 2021-02-17 | F22: 16:10:00 | G22: Acesso ao empreendimento | H22: Canteiro de obras | I22: Estrada de terra | J22: - | K22: Amparo | L22: 308233 | M22: 7490171 | N22: 23 | O22: Silvestre | P22: HERPETOFAUNA | Q22: Amphisbaena alba | R22: Cobra-cega | S22: 1 | T22: Ferido | U22: CRAS - Mata Ciliar | V22: 305466 | W22: 7484505 | X22: 23 | Y22: Encaminhado para o CRAS - Mata Ciliar | Z22: 2021-02-17 | AA22: 2021 | AB22: 2 | AC22: Amphisbaenae | AD22: Squamata | AE22: Max 30° min 20
A23: 53 | B23: AT | C23: 2021 | D23: 2 | E23: 2021-02-22 | F23: 06:44:00 | G23: Plano | H23: Antropizado | I23: Estrada de terra | J23: - | K23: Amparo | L23: 309535 | M23: 7485914 | N23: 23 | O23: Silvestre | P23: MASTOFAUNA | Q23: Didelphis albiventris | R23: Gamba-de-orelha-branca | S23: 1 | T23: Morto | U23: Base de Fauna | V23: 308508 | W23: 7491376 | X23: 23 | Y23: Descarte - sem aproveitamento científico | Z23: 2021-02-22 | AA23: 2021 | AB23: 2 | AC23: Didelphidae | AD23: Didelphimorphia | AE23: Max 30° min 20
A24: 54 | B24: AT | C24: 2021 | D24: 2 | E24: 2021-02-22 | F24: 06:59:00 | G24: Aclive | H24: Fragento Florestal | I24: Estrada de terra | J24: - | K24: Amparo | L24: 308519 | M24: 7491399 | N24: 23 | O24: Silvestre | P24: HERPETOFAUNA | Q24: Philodryas olfersii | R24: Cobra-verde | S24: 1 | T24: Morto | U24: Base de Fauna | V24: 308508 | W24: 7491376 | X24: 23 | Y24: Aguarda encaminhamento para a UNIFAJ | Z24: 2021-02-22 | AA24: 2021 | AB24: 2 | AD24: Squamata | AE24: Max 30° min 21
A25: 58 | B25: AT | C25: 2021 | D25: 2 | E25: 2021-02-24 | F25: 09:47:00 | G25: Estrada Pavimentada | H25: Antropizado | I25: Estrada de terra | J25: - | K25: Amparo | L25: 309538 | M25: 7485917 | N25: 23 | O25: Silvestre | P25: HERPETOFAUNA | Q25: Amphisbaena alba | R25: Cobra-cega | S25: 1 | T25: Morto | U25: Base de Fauna | V25: 308508 | W25: 7491376 | X25: 23 | Y25: Descarte - sem aproveitamento científico | Z25: 2021-02-24 | AA25: 2021 | AB25: 2 | AC25: Amphisbaenae | AD25: Squamata | AE25: Max 29° min 22
A26: 59 | B26: AT | C26: 2021 | D26: 2 | E26: 2021-03-02 | F26: 10:07:00 | G26: Municipal | I26: Estrada de terra | J26: - | K26: Santo Antônio de Posse | L26: 308445 | M26: 7492622 | N26: 23 | O26: Silvestre | P26: HERPETOFAUNA | Q26: Crotalus durissus | R26: Cascavel | S26: 1 | T26: Morto | U26: Base de Fauna | V26: 308508 | W26: 7491376 | X26: 23 | Y26: Descarte - sem aproveitamento científico | Z26: -
A27: 65 | B27: AT | C27: 2021 | D27: 2 | E27: 2021-03-18 | F27: 14:23:00 | G27: Municipal | I27: Estrada de terra | J27: - | K27: Santo Antônio de Posse | L27: 308121 | M27: 7491034 | N27: 23 | O27: Silvestre | P27: HERPETOFAUNA | Q27: Tantilla melanocephala | R27: Cobra-da-cabeça-preta | S27: 1 | T27: Morto | U27: Base de Fauna | V27: 308508 | W27: 7491376 | X27: 23 | Y27: Descarte - sem aproveitamento científico | Z27: -

Sheet Avistamentos
B1: MONITORAMENTO/MANEJO DE FAUNA EM RODOVIAS
L2: Coordenadas Geográficas (UTM) Resgate | O2: Identificação taxônomica | S2: Detalhamento da fauna impactada | V2: Coordenadas Geográficas (UTM) destino | AC2: Familia | AD2: ordem
A3: ID | B3: Ocorrência | C3: ANO | D3: Mês | E3: Data | F3: Hora | G3: Características da Via | H3: Características do Entorno | I3: Rodovia | J3: km | K3: Sentido | L3: UTM-X | M3: UTM-Y | N3: Fuso | O3: Classificação | P3: Grupo | Q3: Nome científico | R3: Popular | S3: Quantidade | T3: Situação do animal | U3: Destinação | V3: UTM - X | W3: UTM - Y | X3: Fuso | Y3: Observações | Z3: Data de Destinação | AA3: Ano da Destinação | AB3: Mês da Destinação | AE3: clima
A4: - | B4: AV | C4: 2020 | D4: 8 | E4: 2020-08-24 | F4: 14:12:00 | G4: - | H4: Pastagem | I4: - | J4: - | K4: - | L4: 308243 | M4: 7491146 | N4: 23 | O4: Silvestre | P4: AVIFAUNA | Q4: Megaceryle torquata | R4: Martinho-Pescador-Grande | S4: 1 | T4: Saudável | U4: - | V4: - | W4: - | X4: - | Y4: - | Z4: - | AA4: - | AB4: -
A5: - | B5: AV | C5: 2020 | D5: 8 | E5: 2020-08-24 | F5: 14:14:00 | G5: - | H5: Pastagem | I5: - | J5: - | K5: - | L5: 308370 | M5: 7491419 | N5: 23 | O5: Silvestre | P5: AVIFAUNA | Q5: Nannopterum brasilianus | R5: Biguá | S5: 1 | T5: Saudável | U5: - | V5: - | W5: - | X5: - | Y5: - | Z5: - | AA5: - | AB5: -
A6: - | B6: AV | C6: 2020 | D6: 8 | E6: 2020-08-24 | F6: 14:14:00 | G6: - | H6: Pastagem | I6: - | J6: - | K6: - | L6: 308370 | M6: 7491419 | N6: 23 | O6: Silvestre | P6: MASTOFAUNA | Q6: Hydrochoerus hydrochaeris | R6: Capivara | S6: 1 | T6: Saudável | U6: - | V6: - | W6: - | X6: - | Y6: - | Z6: - | AA6: - | AB6: -
A7: - | B7: AV | C7: 2020 | D7: 8 | E7: 2020-08-24 | F7: 14:15:00 | G7: - | H7: Pastagem | I7: - | J7: - | K7: - | L7: 308370 | M7: 7491419 | N7: 23 | O7: Silvestre | P7: AVIFAUNA | Q7: Sporophila caerulescens | R7: Coleirinho | S7: 1 | T7: Saudável | U7: - | V7: - | W7: - | X7: - | Y7: - | Z7: - | AA7: - | AB7: -
A8: - | B8: AV | C8: 2020 | D8: 8 | E8: 2020-08-24 | F8: 14:19:00 | G8: - | H8: Pastagem | I8: - | J8: - | K8: - | L8: 308588 | M8: 7492537 | N8: 23 | O8: Silvestre | P8: AVIFAUNA | Q8: Brotogeris chiriri | R8: Periquito-de-Encontro-Amarelo | S8: 4 | T8: Saudável | U8: - | V8: - | W8: - | X8: - | Y8: - | Z8: - | AA8: - | AB8: -
A9: - | B9: AV | C9: 2020 | D9: 8 | E9: 2020-08-24 | F9: 14:21:00 | G9: - | H9: Pastagem | I9: - | J9: - | K9: - | L9: 308591 | M9: 7492971 | N9: 23 | O9: Silvestre | P9: AVIFAUNA | Q9: Caracara plancus | R9: Carcará | S9: 1 | T9: Saudável | U9: - | V9: - | W9: - | X9: - | Y9: - | Z9: - | AA9: - | AB9: -
A10: - | B10: AV | C10: 2020 | D10: 8 | E10: 2020-08-24 | F10: 14:28:00 | G10: - | H10: Pastagem | I10: - | J10: - | K10: - | L10: 309845 | M10: 7492685 | N10: 23 | O10: Silvestre | P10: AVIFAUNA | Q10: Mivalgo chimachima | R10: Gavião Carrapateiro | S10: 1 | T10: Saudável | U10: - | V10: - | W10: - | X10: - | Y10: - | Z10: - | AA10: - | AB10: -
A11: - | B11: AV | C11: 2020 | D11: 8 | E11: 2020-08-24 | F11: 14:38:00 | G11: - | H11: Pastagem | I11: - | J11: - | K11: - | L11: 309053 | M11: 7492994 | N11: 23 | O11: Silvestre | P11: AVIFAUNA | Q11: Guira guira | R11: Anu Branco | S11: 3 | T11: Saudável | U11: - | V11: - | W11: - | X11: - | Y11: - | Z11: - | AA11: - | AB11: -
A12: - | B12: AV | C12: 2020 | D12: 8 | E12: 2020-08-24 | F12: 15:03:00 | G12: - | H12: Pastagem | I12: - | J12: - | K12: - | L12: 308138 | M12: 7490444 | N12: 23 | O12: Silvestre | P12: AVIFAUNA | Q12: Mivalgo chimachima | R12: Gavião Carrapateiro | S12: 1 | T12: Saudável | U12: - | V12: - | W12: - | X12: - | Y12: - | Z12: - | AA12: - | AB12: -
A13: - | B13: AV | C13: 2020 | D13: 8 | E13: 2020-08-24 | F13: 15:03:00 | G13: - | H13: Pastagem | I13: - | J13: - | K13: - | L13: 308138 | M13: 7490444 | N13: 23 | O13: Silvestre | P13: AVIFAUNA | Q13: Molothrus bonariensis | R13: Chupim | S13: 5 | T13: Saudável | U13: - | V13: - | W13: - | X13: - | Y13: - | Z13: - | AA13: - | AB13: -
A14: - | B14: AV | C14: 2020 | D14: 8 | E14: 2020-08-24 | F14: 15:03:00 | G14: - | H14: Pastagem | I14: - | J14: - | K14: - | L14: 308128 | M14: 7490444 | N14: 23 | O14: Silvestre | P14: AVIFAUNA | Q14: Crotophaga ani | R14: Anu-Preto | S14: 5 | T14: Saudável | U14: - | V14: - | W14: - | X14: - | Y14: - | Z14: - | AA14: - | AB14: -
A15: - | B15: AV | C15: 2020 | D15: 8 | E15: 2020-08-24 | F15: 15:04:00 | G15: - | H15: Pastagem | I15: - | J15: - | K15: - | L15: 308128 | M15: 7490444 | N15: 23 | O15: Silvestre | P15: AVIFAUNA | Q15: Patagioenas picazuro | R15: Asa-Branca | S15: 1 | T15: Saudável | U15: - | V15: - | W15: - | X15: - | Y15: - | Z15: - | AA15: - | AB15: -
A16: - | B16: AV | C16: 2020 | D16: 8 | E16: 2020-08-24 | F16: 15:04:00 | G16: - | H16: Pastagem | I16: - | J16: - | K16: - | L16: 308128 | M16: 7490444 | N16: 23 | O16: Silvestre | P16: AVIFAUNA | Q16: Pitangus sulphuratus | R16: Bem-te-vi | S16: 2 | T16: Saudável | U16: - | V16: - | W16: - | X16: - | Y16: - | Z16: - | AA16: - | AB16: -
A17: - | B17: AV | C17: 2020 | D17: 8 | E17: 2020-08-24 | F17: 15:08:00 | G17: - | H17: Pastagem | I17: - | J17: - | K17: - | L17: 307671 | M17: 7490484 | N17: 23 | O17: Silvestre | P17: AVIFAUNA | Q17: Caracara plancus | R17: Carcará | S17: 1 | T17: Saudável | U17: - | V17: - | W17: - | X17: - | Y17: - | Z17: - | AA17: - | AB17: -
A18: - | B18: AV | C18: 2020 | D18: 8 | E18: 2020-08-24 | F18: 15:28:00 | G18: - | H18: Pastagem | I18: - | J18: - | K18: - | L18: 307519 | M18: 7489317 | N18: 23 | O18: Silvestre | P18: AVIFAUNA | Q18: Sicalis flaveola | R18: Canário-da-Terra | S18: 2 | T18: Saudável | U18: - | V18: - | W18: - | X18: - | Y18: - | Z18: - | AA18: - | AB18: -
A19: - | B19: AV | C19: 2020 | D19: 9 | E19: 2020-09-11 | F19: 07:41:00 | G19: - | H19: Fragmento de Floresta | I19: - | J19: - | K19: - | L19: 308229 | M19: 7491122 | N19: 23 | O19: Silvestre | P19: AVIFAUNA | Q19: Caracara plancus | R19: Carcará | S19: 1 | T19: Saudável | U19: - | V19: - | W19: - | X19: - | Y19: - | Z19: - | AA19: - | AB19: -
A20: - | B20: AV | C20: 2020 | D20: 9 | E20: 2020-09-11 | F20: 07:44:00 | G20: - | H20: Pastagem | I20: - | J20: - | K20: - | L20: 307732 | M20: 7490649 | N20: 23 | O20: Silvestre | P20: AVIFAUNA | Q20: Venullus chilensis | R20: Quero-quero | S20: 2 | T20: Saudável | U20: - | V20: - | W20: - | X20: - | Y20: - | Z20: - | AA20: - | AB20: -
A21: - | B21: AV | C21: 2020 | D21: 9 | E21: 2020-09-11 | F21: 07:53:00 | G21: - | H21: Pastagem | I21: - | J21: - | K21: - | L21: 308205 | M21: 7490120 | N21: 23 | O21: Silvestre | P21: AVIFAUNA | Q21: Coragyps atratus | R21: Urubo-de-cabeça-preta | S21: 4 | T21: Saudável | U21: - | V21: - | W21: - | X21: - | Y21: - | Z21: - | AA21: - | AB21: -
A22: - | B22: AV | C22: 2020 | D22: 9 | E22: 2020-09-11 | F22: 07:53:00 | G22: - | H22: Pastagem | I22: - | J22: - | K22: - | L22: 308205 | M22: 7490120 | N22: 23 | O22: Silvestre | P22: AVIFAUNA | Q22: Crotophaga ani | R22: Anu-preto | S22: 3 | T22: Saudável | U22: - | V22: - | W22: - | X22: - | Y22: - | Z22: - | AA22: - | AB22: -
A23: - | B23: AV | C23: 2020 | D23: 9 | E23: 2020-09-11 | F23: 07:57:00 | G23: - | H23: Pastagem | I23: - | J23: - | K23: - | L23: 308001 | M23: 7489940 | N23: 23 | O23: Silvestre | P23: AVIFAUNA | Q23: Ramphastos toco | R23: Tucano-toco | S23: 1 | T23: Saudável | U23: - | V23: - | W23: - | X23: - | Y23: - | Z23: - | AA23: - | AB23: -
A24: - | B24: AV | C24: 2020 | D24: 9 | E24: 2020-09-11 | F24: 08:03:00 | G24: - | H24: Pastagem | I24: - | J24: - | K24: - | L24: 307888 | M24: 7490513 | N24: 23 | O24: Silvestre | P24: AVIFAUNA | Q24: Turdus rufiventris | R24: Sabiá-laranjeira | S24: 1 | T24: Saudável | U24: - | V24: - | W24: - | X24: - | Y24: - | Z24: - | AA24: - | AB24: -
A25: - | B25: AV | C25: 2020 | D25: 9 | E25: 2020-09-11 | F25: 08:27:00 | G25: - | H25: Pastagem | I25: - | J25: - | K25: - | L25: 308608 | M25: 7492796 | N25: 23 | O25: Silvestre | P25: AVIFAUNA | Q25: Pitangus sulphuratus | R25: Bem-te-vi | S25: 1 | T25: Saudável | U25: - | V25: - | W25: - | X25: - | Y25: - | Z25: - | AA25: - | AB25: -
A26: - | B26: AV | C26: 2020 | D26: 9 | E26: 2020-09-11 | F26: 08:32:00 | G26: - | H26: Fragmento de Floresta | I26: - | J26: - | K26: - | L26: 309992 | M26: 7492639 | N26: 23 | O26: Silvestre | P26: AVIFAUNA | Q26: Mivalgo chimachima | R26: Gavião-Carrapateiro | S26: 1 | T26: Saudável | U26: - | V26: - | W26: - | X26: - | Y26: - | Z26: - | AA26: - | AB26: -
A27: - | B27: AV | C27: 2020 | D27: 9 | E27: 2020-09-11 | F27: 08:34:00 | G27: - | H27: Pastagem | I27: - | J27: - | K27: - | L27: 311478 | M27: 7492891 | N27: 23 | O27: Silvestre | P27: AVIFAUNA | Q27: Colaptes campestris | R27: Pica-pau-do-campo | S27: 1 | T27: Saudável | U27: - | V27: - | W27: - | X27: - | Y27: - | Z27: - | AA27: - | AB27: -
A28: - | B28: AV | C28: 2020 | D28: 9 | E28: 2020-09-11 | F28: 09:04:00 | G28: - | H28: Fragmento de Floresta | I28: - | J28: - | K28: - | L28: 312841 | M28: 7494866 | N28: 23 | O28: Silvestre | P28: AVIFAUNA | Q28: Sicalis flaveola | R28: Canário-da-Terra | S28: 1 | T28: Saudável | U28: - | V28: - | W28: - | X28: - | Y28: - | Z28: - | AA28: - | AB28: -
A29: - | B29: AV | C29: 2020 | D29: 9 | E29: 2020-09-11 | F29: 10:33:00 | G29: - | H29: Fragmento de Floresta | I29: - | J29: - | K29: - | L29: 309208 | M29: 7490391 | N29: 23 | O29: Silvestre | P29: AVIFAUNA | Q29: Piaya cayana | R29: Alma-de-gato | S29: 1 | T29: Saudável | U29: - | V29: - | W29: - | X29: - | Y29: - | Z29: - | AA29: - | AB29: -
A30: - | B30: AV | C30: 2020 | D30: 9 | E30: 2020-09-11 | F30: 15:40:00 | G30: - | H30: Pastagem | I30: - | J30: - | K30: - | L30: 306843 | M30: 7489792 | N30: 23 | O30: Silvestre | P30: AVIFAUNA | Q30: Phalacrocorax brasilianus | R30: Biguá | S30: 1 | T30: Saudável | U30: - | V30: - | W30: - | X30: - | Y30: - | Z30: - | AA30: - | AB30: -
A31: - | B31: AV | C31: 2020 | D31: 9 | E31: 2020-09-11 | F31: 17:35:00 | G31: - | H31: Fragmento de Floresta | I31: - | J31: - | K31: - | L31: 309245 | M31: 7497649 | N31: 23 | O31: Silvestre | P31: AVIFAUNA | Q31: Aramus guarauna | R31: Garça-preta-do-brejo | S31: 3 | T31: Saudável | U31: - | V31: - | W31: - | X31: - | Y31: - | Z31: - | AA31: - | AB31: -
A32: - | B32: AV | C32: 2020 | D32: 9 | E32: 2020-09-29 | F32: 08:10:00 | G32: - | H32: Plantio agrícola | I32: - | J32: - | K32: - | L32: 307590 | M32: 7492517 | N32: 23 | O32: Silvestre | P32: AVIFAUNA | Q32: Athene cunicularia | R32: Coruja-buraqueira | S32: 1 | T32: Saudável | U32: - | V32: - | W32: - | X32: - | Y32: - | Z32: - | AA32: - | AB32: -
A33: - | B33: AV | C33: 2020 | D33: 9 | E33: 2020-09-29 | F33: 08:10:00 | G33: - | H33: Plantio agrícola | I33: - | J33: - | K33: - | L33: 307590 | M33: 7492517 | N33: 23 | O33: Silvestre | P33: AVIFAUNA | Q33: Pygochelidon cyanoleuca | R33: Andorinha-pequena-de-casa | S33: 1 | T33: Saudável | U33: - | V33: - | W33: - | X33: - | Y33: - | Z33: - | AA33: - | AB33: -
A34: - | B34: AV | C34: 2020 | D34: 9 | E34: 2020-09-29 | F34: 08:16:00 | G34: - | H34: Fragmento de Floresta | I34: SP-107 | J34: 07 | K34: oeste | L34: 306748 | M34: 7490966 | N34: 23 | O34: Silvestre | P34: AVIFAUNA | Q34: Ramphastos toco | R34: Tucano-toco | S34: 1 | T34: Saudável | U34: - | V34: - | W34: - | X34: - | Y34: - | Z34: - | AA34: - | AB34: -
A35: - | B35: AV | C35: 2020 | D35: 9 | E35: 2020-09-29 | F35: 08:16:00 | G35: - | H35: Pastagem | I35: - | J35: - | K35: - | L35: 304794 | M35: 7496814 | N35: 23 | O35: Silvestre | P35: AVIFAUNA | Q35: Pitangus sulphuratus | R35: Bem-te-vi | S35: 1 | T35: Saudável | U35: - | V35: - | W35: - | X35: - | Y35: - | Z35: - | AA35: - | AB35: -
A36: - | B36: AV | C36: 2020 | D36: 9 | E36: 2020-09-29 | F36: 08:19:00 | G36: - | H36: Área urbana | I36: SP-107 | J36: 11 | K36: leste | L36: 305073 | M36: 7492590 | N36: 23 | O36: Silvestre | P36: AVIFAUNA | Q36: Caracara plancus | R36: Falcão-carcará | S36: 1 | T36: Saudável | U36: - | V36: - | W36: - | X36: - | Y36: - | Z36: - | AA36: - | AB36: -
A37: - | B37: AV | C37: 2020 | D37: 9 | E37: 2020-09-29 | F37: 08:25:00 | G37: - | H37: Fragmento de Floresta | I37: - | J37: - | K37: - | L37: 304794 | M37: 7496814 | N37: 23 | O37: Silvestre | P37: AVIFAUNA | Q37: Megaceryle torquata | R37: Martinho-pescador-grande | S37: 1 | T37: Saudável | U37: - | V37: - | W37: - | X37: - | Y37: - | Z37: - | AA37: - | AB37: -
A38: - | B38: AV | C38: 2020 | D38: 9 | E38: 2020-09-29 | F38: 08:27:00 | G38: - | H38: Pastagem | I38: - | J38: - | K38: - | L38: 304377 | M38: 7497698 | N38: 23 | O38: Silvestre | P38: AVIFAUNA | Q38: Crotophaga ani | R38: Anu-preto | S38: 6 | T38: Saudável | U38: - | V38: - | W38: - | X38: - | Y38: - | Z38: - | AA38: - | AB38: -
A39: - | B39: AV | C39: 2020 | D39: 9 | E39: 2020-09-29 | F39: 08:31:00 | G39: - | H39: Pastagem | I39: - | J39: - | K39: - | L39: 304377 | M39: 7497698 | N39: 23 | O39: Silvestre | P39: AVIFAUNA | Q39: Ramphastos toco | R39: Tucano-toco | S39: 1 | T39: Saudável | U39: - | V39: - | W39: - | X39: - | Y39: - | Z39: - | AA39: - | AB39: -
A40: - | B40: AV | C40: 2020 | D40: 9 | E40: 2020-09-29 | F40: 11:38:00 | G40: - | H40: Fragmento de Floresta | I40: - | J40: - | K40: - | L40: 307965 | M40: 7490117 | N40: 23 | O40: Silvestre | P40: AVIFAUNA | Q40: Melanerpes candidus | R40: Pica-pau-branco | S40: 2 | T40: Saudável | U40: - | V40: - | W40: - | X40: - | Y40: - | Z40: - | AA40: - | AB40: -
A41: - | B41: AV | C41: 2020 | D41: 9 | E41: 2020-09-29 | F41: 11:39:00 | G41: - | H41: Fragmento de Floresta | I41: - | J41: - | K41: - | L41: 307972 | M41: 7490157 | N41: 23 | O41: Silvestre | P41: AVIFAUNA | Q41: Campephilus melanoleucos | R41: Pica-pau-de-topete-vermelho | S41: 1 | T41: Saudável | U41: - | V41: - | W41: - | X41: - | Y41: - | Z41: - | AA41: - | AB41: -
A42: - | B42: AV | C42: 2020 | D42: 9 | E42: 2020-09-29 | F42: 11:40:00 | G42: - | H42: Fragmento de Floresta | I42: - | J42: - | K42: - | L42: 307972 | M42: 7490157 | N42: 23 | O42: Silvestre | P42: AVIFAUNA | Q42: Vanellus chilensis | R42: Quero-quero | S42: 1 | T42: Saudável | U42: - | V42: - | W42: - | X42: - | Y42: - | Z42: - | AA42: - | AB42: -
A43: - | B43: AV | C43: 2020 | D43: 9 | E43: 2020-09-29 | F43: 11:54:00 | G43: - | H43: Pastagem | I43: - | J43: - | K43: - | L43: 307906 | M43: 7490579 | N43: 23 | O43: Silvestre | P43: AVIFAUNA | Q43: Patagioenas picazuro | R43: Asa-branca | S43: 1 | T43: Saudável | U43: - | V43: - | W43: - | X43: - | Y43: - | Z43: - | AA43: - | AB43: -
A44: - | B44: AV | C44: 2020 | D44: 9 | E44: 2020-09-29 | F44: 13:31:00 | G44: - | H44: Fragmento de Floresta | I44: - | J44: - | K44: - | L44: 308373 | M44: 7491425 | N44: 23 | O44: Silvestre | P44: AVIFAUNA | Q44: Netta peposaca | R44: Marrecão | S44: 1 | T44: Saudável | U44: - | V44: - | W44: - | X44: - | Y44: - | Z44: - | AA44: - | AB44: -
A45: - | B45: AV | C45: 2020 | D45: 9 | E45: 2020-09-29 | F45: 13:42:00 | G45: - | H45: Fragmento de Floresta | I45: - | J45: - | K45: - | L45: 309697 | M45: 7492705 | N45: 23 | O45: Silvestre | P45: AVIFAUNA | Q45: Geranoaetus albicaudatus | R45: Gavião-de-rabo-branco | S45: 1 | T45: Saudável | U45: - | V45: - | W45: - | X45: - | Y45: - | Z45: - | AA45: - | AB45: -
A46: - | B46: AV | C46: 2020 | D46: 9 | E46: 2020-09-29 | F46: 13:51:00 | G46: - | H46: Pastagem | I46: - | J46: - | K46: - | L46: 310798 | M46: 7492141 | N46: 23 | O46: Silvestre | P46: AVIFAUNA | Q46: Coragyps atratus | R46: Urubo-de-cabeça-preta | S46: 1 | T46: Saudável | U46: - | V46: - | W46: - | X46: - | Y46: - | Z46: - | AA46: - | AB46: -
A47: - | B47: AV | C47: 2020 | D47: 9 | E47: 2020-09-29 | F47: 14:00:00 | G47: - | H47: Fragmento de Floresta | I47: - | J47: - | K47: - | L47: 312504 | M47: 7492716 | N47: 23 | O47: Silvestre | P47: AVIFAUNA | Q47: Columbina talpacoti | R47: Rolinha-caldo-de-feijão | S47: 1 | T47: Saudável | U47: - | V47: - | W47: - | X47: - | Y47: - | Z47: - | AA47: - | AB47: -
A48: - | B48: AV | C48: 2020 | D48: 9 | E48: 2020-09-29 | F48: 14:34:00 | G48: - | H48: Pastagem | I48: - | J48: - | K48: - | L48: 308856 | M48: 7494696 | N48: 23 | O48: Silvestre | P48: AVIFAUNA | Q48: Fluvicola nengeta | R48: Lavadeira-mascarada | S48: 1 | T48: Saudável | U48: - | V48: - | W48: - | X48: - | Y48: - | Z48: - | AA48: - | AB48: -
A49: - | B49: AV | C49: 2020 | D49: 9 | E49: 2020-09-29 | F49: 14:34:00 | G49: - | H49: Pastagem | I49: - | J49: - | K49: - | L49: 308856 | M49: 7494696 | N49: 23 | O49: Silvestre | P49: AVIFAUNA | Q49: Tachyphonus coronatus | R49: Tiê-preto | S49: 1 | T49: Saudável | U49: - | V49: - | W49: - | X49: - | Y49: - | Z49: - | AA49: - | AB49: -
A50: - | B50: AV | C50: 2020 | D50: 9 | E50: 2020-09-29 | F50: 14:40:00 | G50: - | H50: Pastagem | I50: - | J50: - | K50: - | L50: 310691 | M50: 7496584 | N50: 23 | O50: Silvestre | P50: AVIFAUNA | Q50: Turdus rufiventris | R50: Sabiá-laranjeira | S50: 1 | T50: Saudável | U50: - | V50: - | W50: - | X50: - | Y50: - | Z50: - | AA50: - | AB50: -
A51: - | B51: AV | C51: 2020 | D51: 9 | E51: 2020-09-29 | F51: 14:42:00 | G51: - | H51: Pastagem | I51: - | J51: - | K51: - | L51: 311611 | M51: 7497494 | N51: 23 | O51: Silvestre | P51: AVIFAUNA | Q51: Furnarius rufus | R51: João-de-barro | S51: 1 | T51: Saudável | U51: - | V51: - | W51: - | X51: - | Y51: - | Z51: - | AA51: - | AB51: -
A52: - | B52: AV | C52: 2020 | D52: 9 | E52: 2020-09-29 | F52: 14:42:00 | G52: - | H52: Pastagem | I52: - | J52: - | K52: - | L52: 311611 | M52: 7497494 | N52: 23 | O52: Silvestre | P52: AVIFAUNA | Q52: Patagioenas picazuro | R52: Asa-branca | S52: 1 | T52: Saudável | U52: - | V52: - | W52: - | X52: - | Y52: - | Z52: - | AA52: - | AB52: -
A53: - | B53: AV | C53: 2020 | D53: 9 | E53: 2020-09-29 | F53: 14:43:00 | G53: - | H53: Pastagem | I53: - | J53: - | K53: - | L53: 311612 | M53: 7497287 | N53: 23 | O53: Silvestre | P53: AVIFAUNA | Q53: Columbina talpacoti | R53: Rolinha-caldo-de-feijão | S53: 1 | T53: Saudável | U53: - | V53: - | W53: - | X53: - | Y53: - | Z53: - | AA53: - | AB53: -
A54: - | B54: AV | C54: 2020 | D54: 9 | E54: 2020-09-29 | F54: 14:52:00 | G54: - | H54: Pastagem | I54: - | J54: - | K54: - | L54: 311557 | M54: 7497615 | N54: 23 | O54: Silvestre | P54: AVIFAUNA | Q54: Ramphastos toco | R54: Tucano-toco | S54: 1 | T54: Saudável | U54: - | V54: - | W54: - | X54: - | Y54: - | Z54: - | AA54: - | AB54: -
A55: - | B55: AV | C55: 2020 | D55: 9 | E55: 2020-09-29 | F55: 14:53:00 | G55: - | H55: Pastagem | I55: - | J55: - | K55: - | L55: 311612 | M55: 7497287 | N55: 23 | O55: Silvestre | P55: AVIFAUNA | Q55: Mimus saturninus | R55: Sabiá-do-campo | S55: 1 | T55: Saudável | U55: - | V55: - | W55: - | X55: - | Y55: - | Z55: - | AA55: - | AB55: -
A56: - | B56: AV | C56: 2020 | D56: 9 | E56: 2020-09-29 | F56: 14:55:00 | G56: - | H56: Pastagem | I56: - | J56: - | K56: - | L56: 311429 | M56: 7497120 | N56: 23 | O56: Silvestre | P56: AVIFAUNA | Q56: Colaptes campestris | R56: Pica-pau-do-campo | S56: 1 | T56: Saudável | U56: - | V56: - | W56: - | X56: - | Y56: - | Z56: - | AA56: - | AB56: -
A57: - | B57: AV | C57: 2020 | D57: 9 | E57: 2020-09-29 | F57: 15:05:00 | G57: - | H57: Pastagem | I57: - | J57: - | K57: - | L57: 312991 | M57: 7498658 | N57: 23 | O57: Silvestre | P57: AVIFAUNA | Q57: Pardirallus nigricans | R57: saracura-sanã | S57: 1 | T57: Saudável | U57: - | V57: - | W57: - | X57: - | Y57: - | Z57: - | AA57: - | AB57: -
A58: - | B58: AV | C58: 2020 | D58: 9 | E58: 2020-09-29 | F58: 15:05:00 | G58: - | H58: Pastagem | I58: - | J58: - | K58: - | L58: 312991 | M58: 7498658 | N58: 23 | O58: Silvestre | P58: AVIFAUNA | Q58: Ardea alba | R58: Garça-branca-grande | S58: 1 | T58: Saudável | U58: - | V58: - | W58: - | X58: - | Y58: - | Z58: - | AA58: - | AB58: -
A59: - | B59: AV | C59: 2020 | D59: 9 | E59: 2020-09-29 | F59: 15:05:00 | G59: - | H59: Outro | I59: - | J59: - | K59: - | L59: 312991 | M59: 7498658 | N59: 23 | O59: Silvestre | P59: AVIFAUNA | Q59: Mivalgo chimachima | R59: Gavião-carrapateiro | S59: 1 | T59: Saudável | U59: - | V59: - | W59: - | X59: - | Y59: - | Z59: - | AA59: - | AB59: -
A60: - | B60: AV | C60: 2020 | D60: 9 | E60: 2020-09-29 | F60: 15:18:00 | G60: - | H60: Outro | I60: - | J60: - | K60: - | L60: 314870 | M60: 7497985 | N60: 23 | O60: Silvestre | P60: AVIFAUNA | Q60: Cariama cristata | R60: Seriema | S60: 1 | T60: Saudável | U60: - | V60: - | W60: - | X60: - | Y60: - | Z60: - | AA60: - | AB60: -
A61: - | B61: AV | C61: 2020 | D61: 11 | E61: 2020-11-25 | F61: 09:02:00 | G61: - | H61: Fragmento de Floresta | I61: - | J61: - | K61: - | L61: 307433 | M61: 7492092 | N61: 23 | O61: Silvestre | P61: MASTOFAUNA | Q61: Cerdocyon thous | R61: Cachorro-do-mato | S61: 1 | T61: Saudável | U61: - | V61: - | W61: - | X61: - | Y61: - | Z61: - | AA61: - | AB61: -
A62: - | B62: AV | C62: 2020 | D62: 11 | E62: 2020-11-26 | F62: 09:33:00 | G62: - | H62: Fragmento de Floresta | I62: - | J62: - | K62: - | L62: 309424 | M62: 7486285 | N62: 23 | O62: Silvestre | P62: AVIFAUNA | Q62: Phimosus infuscatus | R62: Tapicuru | S62: 1 | T62: Saudável | U62: - | V62: - | W62: - | X62: - | Y62: - | Z62: - | AA62: - | AB62: -
A63: - | B63: AV | C63: 2020 | D63: 11 | E63: 2020-11-26 | F63: 09:49:00 | G63: - | H63: Pastagem | I63: - | J63: - | K63: - | L63: 307881 | M63: 7490474 | N63: 23 | O63: Silvestre | P63: AVIFAUNA | Q63: Vanellus chilensis | R63: Quero-quero | S63: 1 | T63: Saudável | U63: - | V63: - | W63: - | X63: - | Y63: - | Z63: - | AA63: - | AB63: -
A64: - | B64: AV | C64: 2020 | D64: 11 | E64: 2020-11-26 | F64: 09:56:00 | G64: - | H64: Pastagem | I64: - | J64: - | K64: - | L64: 307921 | M64: 7490195 | N64: 23 | O64: Silvestre | P64: AVIFAUNA | Q64: Cyanocorax cristatellus | R64: Gralha-do- cerrado | S64: 1 | T64: Saudável | U64: - | V64: - | W64: - | X64: - | Y64: - | Z64: - | AA64: - | AB64: -
A65: - | B65: AV | C65: 2020 | D65: 11 | E65: 2020-11-26 | F65: 10:13:00 | G65: - | H65: Pastagem | I65: - | J65: - | K65: - | L65: 308132 | M65: 7490452 | N65: 23 | O65: Silvestre | P65: AVIFAUNA | Q65: Hydrochoerus hydrochaeris | R65: Capivara | S65: 1 | T65: Saudável | U65: - | V65: - | W65: - | X65: - | Y65: - | Z65: - | AA65: - | AB65: -
A66: - | B66: AV | C66: 2020 | D66: 11 | E66: 2020-11-26 | F66: 16:13:00 | G66: - | H66: Pastagem | I66: - | J66: - | K66: - | L66: 312246 | M66: 7493905 | N66: 23 | O66: Silvestre | P66: AVIFAUNA | Q66: Caracara plancus | R66: Carcará | S66: 1 | T66: Saudável | U66: - | V66: - | W66: - | X66: - | Y66: - | Z66: - | AA66: - | AB66: -
A67: - | B67: AV | C67: 2020 | D67: 11 | E67: 2020-11-26 | F67: 16:15:00 | G67: - | H67: Pastagem | I67: - | J67: - | K67: - | L67: 312367 | M67: 7494243 | N67: 23 | O67: Silvestre | P67: AVIFAUNA | Q67: Sicalis flaveola | R67: Canário-da-terra | S67: 1 | T67: Saudável | U67: - | V67: - | W67: - | X67: - | Y67: - | Z67: - | AA67: - | AB67: -
A68: - | B68: AV | C68: 2020 | D68: 11 | E68: 2020-11-27 | F68: 09:38:00 | G68: - | H68: Pastagem | I68: - | J68: - | K68: - | L68: 309441 | M68: 7489894 | N68: 23 | O68: Silvestre | P68: AVIFAUNA | Q68: Melanerpes candidus | R68: Pica-pau-branco | S68: 1 | T68: Saudável | U68: - | V68: - | W68: - | X68: - | Y68: - | Z68: - | AA68: - | AB68: -
A69: - | B69: AV | C69: 2020 | D69: 12 | E69: 2020-12-08 | F69: 10:02:00 | G69: - | H69: Outro | I69: - | J69: - | K69: - | L69: 308555 | M69: 7492191 | N69: 23 | O69: Silvestre | P69: AVIFAUNA | Q69: Pseudastur polionotus | R69: gaviao-pombo-grande | S69: 1 | T69: Saudável | U69: - | V69: - | W69: - | X69: - | Y69: - | Z69: - | AA69: - | AB69: -
A70: - | B70: AV | C70: 2020 | D70: 12 | E70: 2020-12-08 | F70: 10:40:00 | G70: - | H70: Outro | I70: - | J70: - | K70: - | L70: 307660 | M70: 7497143 | N70: 23 | O70: Silvestre | P70: AVIFAUNA | Q70: Penelope jacquacu | R70: Jacu-de-spix | S70: 1 | T70: Saudável | U70: - | V70: - | W70: - | X70: - | Y70: - | Z70: - | AA70: - | AB70: -
A71: - | B71: AV | C71: 2020 | D71: 12 | E71: 2020-12-08 | F71: 11:31:00 | G71: - | H71: Outro | I71: - | J71: - | K71: - | L71: 306878 | M71: 7489775 | N71: 23 | O71: Silvestre | P71: AVIFAUNA | Q71: Nannopterum brasilianus | R71: Biguá | S71: 1 | T71: Saudável | U71: - | V71: - | W71: - | X71: - | Y71: - | Z71: - | AA71: - | AB71: -
A72: - | B72: AV | C72: 2020 | D72: 12 | E72: 2020-12-10 | F72: 09:06:00 | G72: - | H72: Fragmento de Floresta | I72: - | J72: - | K72: - | L72: 308393 | M72: 7491535 | N72: 23 | O72: Silvestre | P72: AVIFAUNA | Q72: Tyrannus savana | R72: Tesourinha | S72: 1 | T72: Saudável | U72: - | V72: - | W72: - | X72: - | Y72: - | Z72: - | AA72: - | AB72: -
A73: - | B73: AV | C73: 2020 | D73: 12 | E73: 2020-12-10 | F73: 09:15:00 | G73: - | H73: Plantio agrícola | I73: - | J73: - | K73: - | L73: 308775 | M73: 7491014 | N73: 23 | O73: Silvestre | P73: AVIFAUNA | Q73: Athene cunicularia | R73: Coruja-buraqueira | S73: 1 | T73: Saudável | U73: - | V73: - | W73: - | X73: - | Y73: - | Z73: - | AA73: - | AB73: -
A74: - | B74: AV | C74: 2020 | D74: 12 | E74: 2020-12-10 | F74: 09:18:00 | G74: - | H74: Fragmento de Floresta | I74: - | J74: - | K74: - | L74: 306754 | M74: 7490972 | N74: 23 | O74: Silvestre | P74: AVIFAUNA | Q74: Ardea alba | R74: Garça-branca-grande | S74: 1 | T74: Saudável | U74: - | V74: - | W74: - | X74: - | Y74: - | Z74: - | AA74: - | AB74: -
A75: - | B75: AV | C75: 2020 | D75: 12 | E75: 2020-12-10 | F75: 10:05:00 | G75: - | H75: Pastagem | I75: - | J75: - | K75: - | L75: 304382 | M75: 7497675 | N75: 23 | O75: Silvestre | P75: AVIFAUNA | Q75: Caracara plancus | R75: Carcará | S75: 1 | T75: Saudável | U75: - | V75: - | W75: - | X75: - | Y75: - | Z75: - | AA75: - | AB75: -
A76: - | B76: AV | C76: 2020 | D76: 12 | E76: 2020-12-10 | F76: 10:05:00 | G76: - | H76: Pastagem | I76: - | J76: - | K76: - | L76: 304382 | M76: 7497675 | N76: 23 | O76: Silvestre | P76: AVIFAUNA | Q76: Coragyps atratus | R76: Urubu-de-cabeça-preta | S76: 1 | T76: Saudável | U76: - | V76: - | W76: - | X76: - | Y76: - | Z76: - | AA76: - | AB76: -
A77: - | B77: AV | C77: 2020 | D77: 12 | E77: 2020-12-10 | F77: 10:46:00 | G77: - | H77: Pastagem | I77: - | J77: - | K77: - | L77: 313077 | M77: 7495149 | N77: 23 | O77: Silvestre | P77: AVIFAUNA | Q77: Sicalis flaveola | R77: Canário-da-terra | S77: 1 | T77: Saudável | U77: - | V77: - | W77: - | X77: - | Y77: - | Z77: - | AA77: - | AB77: -
A78: - | B78: AV | C78: 2020 | D78: 12 | E78: 2020-12-10 | F78: 11:04:00 | G78: - | H78: Pastagem | I78: - | J78: - | K78: - | L78: 311015 | M78: 7493770 | N78: 23 | O78: Silvestre | P78: AVIFAUNA | Q78: Nycticorax nycticorax | R78: Socó | S78: 1 | T78: Saudável | U78: - | V78: - | W78: - | X78: - | Y78: - | Z78: - | AA78: - | AB78: -
A79: - | B79: AV | C79: 2020 | D79: 12 | E79: 2020-12-10 | F79: 11:04:00 | G79: - | H79: Pastagem | I79: - | J79: - | K79: - | L79: 311015 | M79: 7493770 | N79: 23 | O79: Silvestre | P79: AVIFAUNA | Q79: Tyrannus melancholicus | R79: Suiriri | S79: 1 | T79: Saudável | U79: - | V79: - | W79: - | X79: - | Y79: - | Z79: - | AA79: - | AB79: -
A80: - | B80: AV | C80: 2020 | D80: 12 | E80: 2020-12-10 | F80: 11:08:00 | G80: - | H80: Pastagem | I80: - | J80: - | K80: - | L80: 309913 | M80: 7493103 | N80: 23 | O80: Silvestre | P80: AVIFAUNA | Q80: Bubulcus ibis | R80: Garça-vaqueira | S80: 1 | T80: Saudável | U80: - | V80: - | W80: - | X80: - | Y80: - | Z80: - | AA80: - | AB80: -
A81: - | B81: AV | C81: 2020 | D81: 12 | E81: 2020-12-10 | F81: 11:14:00 | G81: - | H81: Pastagem | I81: - | J81: - | K81: - | L81: 310885 | M81: 7492575 | N81: 23 | O81: Silvestre | P81: AVIFAUNA | Q81: Caracara plancus | R81: Carcará | S81: 1 | T81: Saudável | U81: - | V81: - | W81: - | X81: - | Y81: - | Z81: - | AA81: - | AB81: -
A82: - | B82: AV | C82: 2020 | D82: 12 | E82: 2020-12-10 | F82: 11:29:00 | G82: - | H82: Pastagem | I82: - | J82: - | K82: - | L82: 309106 | M82: 7495028 | N82: 23 | O82: Silvestre | P82: HERPETOFAUNA | Q82: Salvator meirianae | R82: Teiú | S82: 1 | T82: Saudável | U82: - | V82: - | W82: - | X82: - | Y82: - | Z82: - | AA82: - | AB82: -
A83: - | B83: AV | C83: 2020 | D83: 12 | E83: 2020-12-28 | F83: 09:02:00 | G83: - | H83: Fragmento de Floresta | I83: - | J83: - | K83: - | L83: 309043 | M83: 7490898 | N83: 23 | O83: Silvestre | P83: AVIFAUNA | Q83: Ramphastos toco | R83: Tucano-toco | S83: 1 | T83: Saudável | U83: - | V83: - | W83: - | X83: - | Y83: - | Z83: - | AA83: - | AB83: -
A84: - | B84: AV | C84: 2020 | D84: 12 | E84: 2020-12-28 | F84: 09:43:00 | G84: - | H84: Pastagem | I84: - | J84: - | K84: - | L84: 307793 | M84: 7490834 | N84: 23 | O84: Silvestre | P84: AVIFAUNA | Q84: Colaptes campestris | R84: Pica-pau-do-campo | S84: 1 | T84: Saudável | U84: - | V84: - | W84: - | X84: - | Y84: - | Z84: - | AA84: - | AB84: -
A85: - | B85: AV | C85: 2020 | D85: 12 | E85: 2020-12-28 | F85: 09:48:00 | G85: - | H85: Eucalipto | I85: - | J85: - | K85: - | L85: 308294 | M85: 7491157 | N85: 23 | O85: Silvestre | P85: AVIFAUNA | Q85: Mustelirallus albicollis | R85: Sanã-carijó | S85: 1 | T85: Saudável | U85: - | V85: - | W85: - | X85: - | Y85: - | Z85: - | AA85: - | AB85: -
A86: - | B86: AV | C86: 2020 | D86: 12 | E86: 2020-12-28 | F86: 10:53:00 | G86: - | H86: Pastagem | I86: - | J86: - | K86: - | L86: 310897 | M86: 7492378 | N86: 23 | O86: Silvestre | P86: AVIFAUNA | Q86: Caracara plancus | R86: Carcara | S86: 1 | T86: Saudável | U86: - | V86: - | W86: - | X86: - | Y86: - | Z86: - | AA86: - | AB86: -
A87: - | B87: AV | C87: 2020 | D87: 12 | E87: 2020-12-28 | F87: 11:41:00 | G87: - | H87: Outro | I87: - | J87: - | K87: - | L87: 308892 | M87: 7494747 | N87: 23 | O87: Silvestre | P87: AVIFAUNA | Q87: Turdus rufiventris | R87: Sabiá-laranjeira | S87: 1 | T87: Saudável | U87: - | V87: - | W87: - | X87: - | Y87: - | Z87: - | AA87: - | AB87: -
A88: - | B88: AV | C88: 2020 | D88: 12 | E88: 2020-12-28 | F88: 15:23:00 | G88: - | H88: Pastagem | I88: - | J88: - | K88: - | L88: 308432 | M88: 7487452 | N88: 23 | O88: Silvestre | P88: AVIFAUNA | Q88: Geranoetus albicaudatus | R88: Gaviao de rabo branco | S88: 1 | T88: Saudável | U88: - | V88: - | W88: - | X88: - | Y88: - | Z88: - | AA88: - | AB88: -
A89: - | B89: AV | C89: 2020 | D89: 12 | E89: 2020-12-28 | F89: 15:34:00 | G89: - | H89: Cultivos Agrícolas | I89: - | J89: - | K89: - | L89: 305053 | M89: 7496288 | N89: 23 | O89: Silvestre | P89: AVIFAUNA | Q89: Furnarius rufus | R89: João de barro | S89: 1 | T89: Saudável | U89: - | V89: - | W89: - | X89: - | Y89: - | Z89: - | AA89: - | AB89: -
A90: - | B90: AV | C90: 2020 | D90: 12 | E90: 2020-12-28 | F90: 15:50:00 | G90: - | H90: Ambiente Aquático | I90: - | J90: - | K90: - | L90: 310554 | M90: 7497049 | N90: 23 | O90: Silvestre | P90: AVIFAUNA | Q90: Ardea alba | R90: Garça grande branca | S90: 1 | T90: Saudável | U90: - | V90: - | W90: - | X90: - | Y90: - | Z90: - | AA90: - | AB90: -
A91: - | B91: AV | C91: 2021 | D91: 1 | E91: 2021-01-07 | F91: 09:05:00 | G91: Estrada de terra | H91: Fragmento de Floresta | I91: - | J91: - | K91: - | L91: 307352 | M91: 7490741 | N91: 23 | O91: Silvestre | P91: MASTOFAUNA | Q91: Hydrochoerus hydrochaeris | R91: Capivara | S91: 1 | T91: Saudável | U91: - | V91: - | W91: - | X91: - | Y91: - | Z91: - | AA91: - | AB91: -
A92: - | B92: AV | C92: 2021 | D92: 1 | E92: 2021-01-07 | F92: 09:42:00 | G92: Estrada de terra | H92: Fragmento de Floresta | I92: - | J92: - | K92: - | L92: 308681 | M92: 7491099 | N92: 23 | O92: Silvestre | P92: AVIFAUNA | Q92: Sicalis flaveola | R92: Canário-da-terra | S92: 1 | T92: Saudável | U92: - | V92: - | W92: - | X92: - | Y92: - | Z92: - | AA92: - | AB92: -
A93: - | B93: AV | C93: 2021 | D93: 1 | E93: 2021-01-07 | F93: 09:45:00 | G93: Estrada de terra | H93: Campo Antropico | I93: - | J93: - | K93: - | L93: 308183 | M93: 7490992 | N93: 23 | O93: Silvestre | P93: AVIFAUNA | Q93: Rupornis magnirostris | R93: Gavião-carijó | S93: 1 | T93: Saudável | U93: - | V93: - | W93: - | X93: - | Y93: - | Z93: - | AA93: - | AB93: -
A94: - | B94: AV | C94: 2021 | D94: 1 | E94: 2021-01-07 | F94: 10:09:00 | G94: Estrada de terra | H94: Fragmento de Floresta | I94: - | J94: - | K94: - | L94: 308362 | M94: 7491407 | N94: 23 | O94: Silvestre | P94: AVIFAUNA | Q94: Pygochelidon cyanoleuca | R94: Andorinha-pequena-de-casa | S94: 1 | T94: Saudável | U94: - | V94: - | W94: - | X94: - | Y94: - | Z94: - | AA94: - | AB94: -
A95: - | B95: AV | C95: 2021 | D95: 1 | E95: 2021-01-07 | F95: 10:10:00 | G95: Estrada de terra | H95: Fragmento de Floresta | I95: - | J95: - | K95: - | L95: 308362 | M95: 7491407 | N95: 23 | O95: Silvestre | P95: AVIFAUNA | Q95: Megaceryle torquata | R95: Martinho-pescador-grande | S95: 1 | T95: Saudável | U95: - | V95: - | W95: - | X95: - | Y95: - | Z95: - | AA95: - | AB95: -
A96: - | B96: AV | C96: 2021 | D96: 1 | E96: 2021-01-07 | F96: 10:10:00 | G96: Estrada de terra | H96: Fragmento de Floresta | I96: - | J96: - | K96: - | L96: 308362 | M96: 7491407 | N96: 23 | O96: Silvestre | P96: AVIFAUNA | Q96: Patagioenas picazuro | R96: Asa-branca | S96: 1 | T96: Saudável | U96: - | V96: - | W96: - | X96: - | Y96: - | Z96: - | AA96: - | AB96: -
A97: - | B97: AV | C97: 2021 | D97: 1 | E97: 2021-01-07 | F97: 10:11:00 | G97: Estrada de terra | H97: Fragmento de Floresta | I97: - | J97: - | K97: - | L97: 308362 | M97: 7491417 | N97: 23 | O97: Silvestre | P97: AVIFAUNA | Q97: Chrysomus ruficapillus | R97: Garibaldi | S97: 1 | T97: Saudável | U97: - | V97: - | W97: - | X97: - | Y97: - | Z97: - | AA97: - | AB97: -
A98: - | B98: AV | C98: 2021 | D98: 1 | E98: 2021-01-07 | F98: 14:29:00 | G98: Estrada de terra | H98: Fragmento de Floresta | I98: - | J98: - | K98: - | L98: 309465 | M98: 7492738 | N98: 23 | O98: Silvestre | P98: AVIFAUNA | Q98: Athene cunicularia | R98: Coruja-buraqueira | S98: 1 | T98: Saudável | U98: - | V98: - | W98: - | X98: - | Y98: - | Z98: - | AA98: - | AB98: -
A99: - | B99: AV | C99: 2021 | D99: 1 | E99: 2021-01-07 | F99: 14:33:00 | G99: Estrada de terra | H99: Fragmento de Floresta | I99: - | J99: - | K99: - | L99: 310114 | M99: 7492277 | N99: 23 | O99: Silvestre | P99: AVIFAUNA | Q99: Colaptes campestris | R99: Pica-pau-do-campo | S99: 1 | T99: Saudável | U99: - | V99: - | W99: - | X99: - | Y99: - | Z99: - | AA99: - | AB99: -
A100: - | B100: AV | C100: 2021 | D100: 1 | E100: 2021-01-07 | F100: 14:35:00 | G100: Estrada de terra | H100: Fragmento de Floresta | I100: - | J100: - | K100: - | L100: 310731 | M100: 7492442 | N100: 23 | O100: Silvestre | P100: AVIFAUNA | Q100: Aramides saracura | R100: Saracura-do-brejo | S100: 1 | T100: Saudável | U100: - | V100: - | W100: - | X100: - | Y100: - | Z100: - | AA100: - | AB100: -
A101: - | B101: AV | C101: 2021 | D101: 1 | E101: 2021-01-07 | F101: 15:42:00 | G101: Estrada de terra | H101: Pastagem | I101: - | J101: - | K101: - | L101: 311026 | M101: 7496870 | N101: 23 | O101: Silvestre | P101: AVIFAUNA | Q101: Guira guira | R101: Anu-Branco | S101: 1 | T101: Saudável | U101: - | V101: - | W101: - | X101: - | Y101: - | Z101: - | AA101: - | AB101: -
A102: - | B102: AV | C102: 2021 | D102: 1 | E102: 2021-01-07 | F102: 16:14:00 | G102: Estrada de terra | H102: Pastagem | I102: - | J102: - | K102: - | L102: 307593 | M102: 7492512 | N102: 23 | O102: Silvestre | P102: AVIFAUNA | Q102: Athene cunicularia | R102: Coruja-buraqueira | S102: 1 | T102: Saudável | U102: - | V102: - | W102: - | X102: - | Y102: - | Z102: - | AA102: - | AB102: -
A103: - | B103: AV | C103: 2021 | D103: 1 | E103: 2021-01-07 | F103: 16:27:00 | G103: Estrada de terra | H103: Campo Antropico | I103: - | J103: - | K103: - | L103: 308880 | M103: 7494725 | N103: 23 | O103: Silvestre | P103: AVIFAUNA | Q103: Gallinula chloropus | R103: Frango d'agua | S103: 1 | T103: Saudável | U103: - | V103: - | W103: - | X103: - | Y103: - | Z103: - | AA103: - | AB103: -
A104: - | B104: AV | C104: 2021 | D104: 1 | E104: 2021-01-11 | F104: 08:50:00 | G104: Estrada de terra | H104: Fragmento de Floresta | I104: - | J104: - | K104: - | L104: 308234 | M104: 7491129 | N104: 23 | O104: Silvestre | P104: AVIFAUNA | Q104: Campephilus melanoleucos | R104: Pica-pau-de-cabeça-vermelha | S104: 1 | T104: Saudável | U104: - | V104: - | W104: - | X104: - | Y104: - | Z104: - | AA104: - | AB104: -
A105: - | B105: AV | C105: 2021 | D105: 1 | E105: 2021-01-11 | F105: 09:12:00 | G105: Estrada de terra | H105: Fragmento de Floresta | I105: - | J105: - | K105: - | L105: 308254 | M105: 7491217 | N105: 23 | O105: Silvestre | P105: HERPETOFAUNA | Q105: Salvator meirianae | R105: Teiú | S105: 1 | T105: Saudável | U105: - | V105: - | W105: - | X105: - | Y105: - | Z105: - | AA105: - | AB105: -
A106: - | B106: AV | C106: 2021 | D106: 1 | E106: 2021-01-11 | F106: 09:13:00 | G106: Estrada de terra | H106: Fragmento de Floresta | I106: - | J106: - | K106: - | L106: 308400 | M106: 7491628 | N106: 23 | O106: Silvestre | P106: AVIFAUNA | Q106: Furnarius rufus | R106: João-de-barro | S106: 1 | T106: Saudável | U106: - | V106: - | W106: - | X106: - | Y106: - | Z106: - | AA106: - | AB106: -
A107: - | B107: AV | C107: 2021 | D107: 1 | E107: 2021-01-11 | F107: 09:17:00 | G107: Estrada de terra | H107: Fragmento de Floresta | I107: - | J107: - | K107: - | L107: 308615 | M107: 7492666 | N107: 23 | O107: Silvestre | P107: AVIFAUNA | Q107: Columbia talpacotti | R107: Rolinha-caldo-de-feijão | S107: 1 | T107: Saudável | U107: - | V107: - | W107: - | X107: - | Y107: - | Z107: - | AA107: - | AB107: -
A108: - | B108: AV | C108: 2021 | D108: 1 | E108: 2021-01-11 | F108: 10:15:00 | G108: Estrada de terra | H108: Pastagem | I108: - | J108: - | K108: - | L108: 307892 | M108: 7490855 | N108: 23 | O108: Silvestre | P108: AVIFAUNA | Q108: Falco sparverius | R108: Quiriquiri | S108: 1 | T108: Saudável | U108: - | V108: - | W108: - | X108: - | Y108: - | Z108: - | AA108: - | AB108: -
A109: - | B109: AV | C109: 2021 | D109: 1 | E109: 2021-01-11 | F109: 10:15:00 | G109: Estrada de terra | H109: Pastagem | I109: - | J109: - | K109: - | L109: 307892 | M109: 7490855 | N109: 23 | O109: Silvestre | P109: AVIFAUNA | Q109: Rupornis magnirostris | R109: Gavião-carijó | S109: 1 | T109: Saudável | U109: - | V109: - | W109: - | X109: - | Y109: - | Z109: - | AA109: - | AB109: -
A110: - | B110: AV | C110: 2021 | D110: 1 | E110: 2021-01-11 | F110: 10:42:00 | G110: Estrada de terra | H110: Pastagem | I110: - | J110: - | K110: - | L110: 309197 | M110: 7490359 | N110: 23 | O110: Silvestre | P110: AVIFAUNA | Q110: Athene cunicularia | R110: Coruja-buraqueira | S110: 1 | T110: Saudável | U110: - | V110: - | W110: - | X110: - | Y110: - | Z110: - | AA110: - | AB110: -
A111: - | B111: AV | C111: 2021 | D111: 1 | E111: 2021-01-11 | F111: 10:58:00 | G111: Estrada de terra | H111: Fragmento de Floresta | I111: - | J111: - | K111: - | L111: 309445 | M111: 7489870 | N111: 23 | O111: Silvestre | P111: AVIFAUNA | Q111: Volatinia jacarina | R111: Tizil | S111: 1 | T111: Saudável | U111: - | V111: - | W111: - | X111: - | Y111: - | Z111: - | AA111: - | AB111: -
A112: - | B112: AV | C112: 2021 | D112: 1 | E112: 2021-01-11 | F112: 11:02:00 | G112: Estrada de terra | H112: Pastagem | I112: - | J112: - | K112: - | L112: 309075 | M112: 7490804 | N112: 23 | O112: Silvestre | P112: AVIFAUNA | Q112: Piaya cayana | R112: Alma-de-gato | S112: 1 | T112: Saudável | U112: - | V112: - | W112: - | X112: - | Y112: - | Z112: - | AA112: - | AB112: -
A113: - | B113: AV | C113: 2021 | D113: 1 | E113: 2021-01-11 | F113: 11:15:00 | G113: Estrada de terra | H113: Fragmento de Floresta | I113: - | J113: - | K113: - | L113: 308450 | M113: 7491146 | N113: 23 | O113: Silvestre | P113: AVIFAUNA | Q113: Megaceryle torquata | R113: Martinho-pescador-grande | S113: 1 | T113: Saudável | U113: - | V113: - | W113: - | X113: - | Y113: - | Z113: - | AA113: - | AB113: -
A114: - | B114: AV | C114: 2021 | D114: 1 | E114: 2021-01-11 | F114: 14:08:00 | G114: Estrada de terra | H114: Pastagem | I114: - | J114: - | K114: - | L114: 308110 | M114: 7490903 | N114: 23 | O114: Silvestre | P114: AVIFAUNA | Q114: Galictis sp. | R114: Furão | S114: 1 | T114: Saudável | U114: - | V114: - | W114: - | X114: - | Y114: - | Z114: - | AA114: - | AB114: -
A115: - | B115: AV | C115: 2021 | D115: 1 | E115: 2021-01-11 | F115: 14:36:00 | G115: Estrada de terra | H115: Fragmento de Floresta | I115: - | J115: - | K115: - | L115: 308576 | M115: 7492232 | N115: 23 | O115: Silvestre | P115: AVIFAUNA | Q115: Cyanocorax cristatellus | R115: Gralha-do-campo | S115: 1 | T115: Saudável | U115: - | V115: - | W115: - | X115: - | Y115: - | Z115: - | AA115: - | AB115: -
A116: - | B116: AV | C116: 2021 | D116: 1 | E116: 2021-01-26 | F116: 07:54:00 | G116: Estrada de terra | H116: Fragmento de Floresta | I116: - | J116: - | K116: - | L116: 309012 | M116: 7494940 | N116: 23 | O116: Silvestre | P116: AVIFAUNA | Q116: Caracara Plancus | R116: Carcará | S116: 1 | T116: Saudável | U116: - | V116: - | W116: - | X116: - | Y116: - | Z116: - | AA116: - | AB116: -
A117: - | B117: AV | C117: 2021 | D117: 1 | E117: 2021-01-26 | F117: 07:58:00 | G117: Estrada de terra | H117: Fragmento de Floresta | I117: - | J117: - | K117: - | L117: 311839 | M117: 7496460 | N117: 23 | O117: Silvestre | P117: AVIFAUNA | Q117: Nannopterum brasilianus | R117: Biguá | S117: 1 | T117: Saudável | U117: - | V117: - | W117: - | X117: - | Y117: - | Z117: - | AA117: - | AB117: -
A118: - | B118: AV | C118: 2021 | D118: 1 | E118: 2021-01-26 | F118: 15:19:00 | G118: Estrada de terra | H118: Fragmento de Floresta | I118: - | J118: - | K118: - | L118: 310773 | M118: 7493752 | N118: 23 | O118: Silvestre | P118: AVIFAUNA | Q118: Sicalis Flaveola | R118: Canário-da-Terra | S118: 1 | T118: Saudável | U118: - | V118: - | W118: - | X118: - | Y118: - | Z118: - | AA118: - | AB118: -
A119: - | B119: AV | C119: 2021 | D119: 1 | E119: 2021-01-26 | F119: 16:49:00 | G119: Estrada de terra | H119: Fragmento de Floresta | I119: - | J119: - | K119: - | L119: 308504 | M119: 7492078 | N119: 23 | O119: Silvestre | P119: MASTOFAUNA | Q119: Hydrochoerus Hydrochaeris | R119: Capivara | S119: 1 | T119: Saudável | U119: - | V119: - | W119: - | X119: - | Y119: - | Z119: - | AA119: - | AB119: -

Sheet Hymenoptera
A1: REGISTRO | B1: DETALHAMENTO DA ORIGEM/REGISTRO DE OCORRÊNCIA | G1: IDENTIFICAÇÃO TAXONÔMICA | L1: DETALHAMENTO DA REALOCAÇÃO
A2: ID | B2: Data | C2: Identificação do Local | D2: Coordenada Resgate X | E2: Coordenada Resgate Y | F2: NÚMERO DE INDIVÍDUOS | G2: GRUPO | H2: ORDEM | I2: FAMÍLIA | J2: Nome científico | K2: Nome popular | L2: Data de destinação | M2: Coordenada Soltura X | N2: Coordenada Soltura Y
A3: 1 | B3: 2020-09-05 | C3: Área 23 | D3: 307460 | E3: 7490920 | F3: 1 | G3: Meliponinae | H3: Hymenoptera | I3: Apidae | J3: Tetragonisca angustula | K3: Jataí | L3: 2020-09-19 | M3: 310854 | N3: 7492634 | Q3: Nome científico | R3: Contagem de Nome científico
Q4: Tetragonisca angustula | R4: 1

Sheet Geral
A1: Verificação de erros: | B1: MÊS DE INTERESSE | C1: 5
A2: =IF(B21+B22=B23,"OK","algo errado, vc levará um puxar de orelha da carol") -> algo errado, vc levará um puxar de orelha da carol | B2: ANO DE INTERESSE | C2: 2021
B3: HOJE | C3: =TODAY() -> 2023-08-04
A4: Quadro 4 - Indicadores | B4: ESSE MÊS | C4: =MONTH(C3) -> 8
B5: km rodados no mês | C5: 200
A6: PROGRAMA DE MONITORAMENTO E CONSERVAÇÃO DA FAUNA
A7: Número total de animais resgatados (RE + AT com vida) [Indivíduo/espécie] | B7: =CONCATENATE(SUMIF(H31:H1048576,"RE",P31:P1048576)+SUMIF(H31:H1048576,"AT",P31:P1048576),"/",BW26) -> 81/28 | C7: =CONCATENATE(SUMIFS(P31:P1048576,E31:E1048576,C2,F31:F1048576,C1,H31:H1048576,"RE")+SUMIFS(P31:P1048576,E31:E1048576,C2,F31:F1048576,C1,H31:H1048576,"AT")+SUMIFS(P31:P1048576,E31:E1048576,D2,F31:F1048576,D1,H31:H1048576,"RE")+SUMIFS(P31:P1048576,E31:E1048576,D2,F31:F1048576,D1,H31:H1048576,"AT")+SUMIFS(P31:P1048576,E31:E1048576,E2,F31:F1048576,E1,H31:H1048576,"RE")+SUMIFS(P31:P1048576,E31:E1048576,E2,F31:F1048576,E1,H31:H1048576,"AT")+SUMIFS(P31:P1048576,E31:E1048576,F2,F31:F1048576,F1,H31:H1048576,"RE")+SUMIFS(P31:P1048576,E31:E1048576,F2,F31:F1048576,F1,H31:H1048576,"AT"),"/",BB26) -> 7/5
A8: Subprograma de Resgate da Fauna Silvestre
A9: Indicador | B9: Status Acumulado | C9: Status do período
B10: Indivíduo / Espécie | C10: Indivíduo / Espécie
A11: Afugentamento (número aproximado) | B11: =CONCATENATE(SUMIF(H31:H1048576,"AF",P31:P1048576),"/",BG26) -> 3/3 | C11: =CONCATENATE(SUMIFS(P31:P1048576,E31:E1048576,C2,F31:F1048576,C1,H31:H1048576,"AF")+SUMIFS(P31:P1048576,E31:E1048576,D2,F31:F1048576,D1,H31:H1048576,"AF")+SUMIFS(P31:P1048576,E31:E1048576,E2,F31:F1048576,E1,H31:H1048576,"AF")+SUMIFS(P31:P1048576,E31:E1048576,F2,F31:F1048576,F1,H31:H1048576,"AF"),"/",AL26) -> 0/0
A12: Número de animais resgatados (RE) [Indivíduo/espécie] | B12: =CONCATENATE(SUMIF(H31:H1048576,"RE",P31:P1048576),"/",BS26) -> 57/24 | C12: =CONCATENATE(SUMIFS(P31:P1048576,E31:E1048576,C2,F31:F1048576,C1,H31:H1048576,"RE")+SUMIFS(P31:P1048576,E31:E1048576,D2,F31:F1048576,D1,H31:H1048576,"RE")+SUMIFS(P31:P1048576,E31:E1048576,E2,F31:F1048576,E1,H31:H1048576,"RE")+SUMIFS(P31:P1048576,E31:E1048576,F2,F31:F1048576,F1,H31:H1048576,"RE"),"/",AX26) -> 7/5
A13: Subprograma de Recepção, Atendimento, e Destino dos Animais Silvestres
A14: Destinação - Número de animais realocados (soltura imediata – sem quarentena). Obs. Soma dos animais recebidos na base e animais que não tiveram passagem na base. Porém não entram os de quarentena. | B14: =SUMIF($AB$31:$AB$1048576,"Soltura",P31:P1048576) -> 38 | C14: =SUMIFS(P31:P1048576,E31:E1048576,C2,F31:F1048576,C1,$AB$31:$AB$1048576,"Soltura")+SUMIFS(P31:P1048576,E31:E1048576,D2,F31:F1048576,D1,$AB$31:$AB$1048576,"Soltura")+SUMIFS(P31:P1048576,E31:E1048576,E2,F31:F1048576,E1,$AB$31:$AB$1048576,"Soltura")+SUMIFS(P31:P1048576,E31:E1048576,F2,F31:F1048576,F1,$AB$31:$AB$1048576,"Soltura") -> 7
A15: Destinação - Animais reabilitados e reintroduzidos na natureza (soltura) [Soltura pós-quarentena - SPQ] | B15: =SUMIF(AB31:AB1048576,"SPQ",P31:P1048576) -> 0 | C15: =SUMIFS(P31:P1048576,E31:E1048576,C2,F31:F1048576,C1,AB31:AB1048576,"SPQ")+SUMIFS(P31:P1048576,E31:E1048576,D2,F31:F1048576,D1,AB31:AB1048576,"SPQ")+SUMIFS(P31:P1048576,E31:E1048576,E2,F31:F1048576,E1,AB31:AB1048576,"SPQ")+SUMIFS(P31:P1048576,E31:E1048576,F2,F31:F1048576,F1,AB31:AB1048576,"SPQ") -> 0
A16: Destinação - Óbitos pós-quarentena [OPQ] | B16: =SUMIF(AB31:AB1048576,"OPQ",P31:P1048576) -> 0 | C16: =SUMIFS(P31:P1048576,E31:E1048576,C2,F31:F1048576,C1,AB31:AB1048576,"OPQ")+SUMIFS(P31:P1048576,E31:E1048576,D2,F31:F1048576,D1,AB31:AB1048576,"OPQ")+SUMIFS(P31:P1048576,E31:E1048576,E2,F31:F1048576,E1,AB31:AB1048576,"OPQ")+SUMIFS(P31:P1048576,E31:E1048576,F2,F31:F1048576,F1,AB31:AB1048576,"OPQ") -> 0
A17: Animais armazenados aguardando destinação final (Óbitos)* | B17: =SUMIF($AB$31:$AB$1048576,"Base de Fauna",P31:P1048576)+SUMIF($AB$31:$AB$1048576,"OPQ",P31:P1048576) -> 25 | C17: =SUMIFS(P31:P1048576,E31:E1048576,C2,F31:F1048576,C1,$AB$31:$AB$1048576,"Base de Fauna")+SUMIFS(P31:P1048576,E31:E1048576,D2,F31:F1048576,D1,$AB$31:$AB$1048576,"Base de Fauna")+SUMIFS(P31:P1048576,E31:E1048576,E2,F31:F1048576,E1,$AB$31:$AB$1048576,"Base de Fauna")+SUMIFS(P31:P1048576,E31:E1048576,F2,F31:F1048576,F1,$AB$31:$AB$1048576,"Base de Fauna")+SUMIFS(P31:P1048576,E31:E1048576,C2,F31:F1048576,C1,$AB$31:$AB$1048576,"OPQ")+SUMIFS(P31:P1048576,E31:E1048576,D2,F31:F1048576,D1,$AB$31:$AB$1048576,"OPQ")+SUMIFS(P31:P1048576,E31:E1048576,E2,F31:F1048576,E1,$AB$31:$AB$1048576,"OPQ")+SUMIFS(P31:P1048576,E31:E1048576,F2,F31:F1048576,F1,$AB$31:$AB$1048576,"OPQ") -> 0
A18: Destinação - Encaminhamentos ao CRAS Mata Ciliar Soma dos animais (CRAS) | B18: =COUNTIFS($AB$31:$AB$1048576,"CRAS - Mata Ciliar") -> 6 | C18: =SUMIFS(P31:P1048576,E31:E1048576,C2,F31:F1048576,C1,AB31:AB1048576,"CRAS - Mata Ciliar")+SUMIFS(P31:P1048576,E31:E1048576,D2,F31:F1048576,D1,AB31:AB1048576,"CRAS - Mata Ciliar")+SUMIFS(P31:P1048576,E31:E1048576,E2,F31:F1048576,E1,AB31:AB1048576,"CRAS - Mata Ciliar")+SUMIFS(P31:P1048576,E31:E1048576,F2,F31:F1048576,F1,AB31:AB1048576,"CRAS - Mata Ciliar") -> 0 | CT18: =SUM(CT20:CT28) -> 7
A19: Destinação - Óbitos/UNIFAJ - Jaguariúna | B19: =SUMIF($AB$31:$AB$1048576,"UNIFAJ",P31:P1048576) -> 12 | C19: =SUMIFS(P31:P1048576,AH31:AH1048576,C2,AI31:AI1048576,C1,$AB$31:$AB$1048576,"UNIFAJ")+SUMIFS(P31:P1048576,AH31:AH1048576,D2,AI31:AI1048576,D1,$AB$31:$AB$1048576,"UNIFAJ")+SUMIFS(P31:P1048576,AH31:AH1048576,E2,AI31:AI1048576,E1,$AB$31:$AB$1048576,"UNIFAJ")+SUMIFS(P31:P1048576,AH31:AH1048576,F2,AI31:AI1048576,F1,$AB$31:$AB$1048576,"UNIFAJ") -> 0 | CR19: Tipo | CS19: GRUPO | CT19: Contagem de Nome científico
A20: Destinação - Óbito (descarte) | B20: =SUMIFS(P31:P1048576,$AB$31:$AB$1048576,"D") -> 0 | C20: =SUMIFS(P31:P1048576,E31:E1048576,C2,F31:F1048576,C1,AB31:AB1048576,"D")+SUMIFS(P31:P1048576,E31:E1048576,D2,F31:F1048576,D1,AB31:AB1048576,"D")+SUMIFS(P31:P1048576,E31:E1048576,E2,F31:F1048576,E1,AB31:AB1048576,"D")+SUMIFS(P31:P1048576,E31:E1048576,F2,F31:F1048576,F1,AB31:AB1048576,"D") -> 0 | CR20: AF | CS20: AVIFAUNA | CT20: =IFERROR(VLOOKUP(CS20,$CQ$36:$CR$1048576,2,FALSE),0) -> 0
A21: Atendimento de animais na Base de Fauna para atendimento (animal ferido) | B21: =SUMIF(V31:V1048576,"Ferido",P31:P1048576) -> 8 | C21: =SUMIFS(P31:P1048576,E31:E1048576,C2,F31:F1048576,C1,V31:V1048576,"Ferido")+SUMIFS(P31:P1048576,E31:E1048576,D2,F31:F1048576,D1,V31:V1048576,"Ferido")+SUMIFS(P31:P1048576,E31:E1048576,E2,F31:F1048576,E1,V31:V1048576,"Ferido")+SUMIFS(P31:P1048576,E31:E1048576,F2,F31:F1048576,F1,V31:V1048576,"Ferido") -> 0 | CR21: AF | CS21: HERPETOFAUNA | CT21: =IFERROR(VLOOKUP(CS21,$CQ$36:$CR$1048576,2,FALSE),0) -> 0
A22: Animais sem passsagem na base de fauna | B22: =SUMIF(W31:W1048576,"Não",P31:P1048576)-SUMIF(H31:H1048576,"AV",P31:P1048576) -> 3 | C22: =SUMIFS(P31:P1048576,E31:E1048576,C2,F31:F1048576,C1,W31:W1048576,"Não")+SUMIFS(P31:P1048576,E31:E1048576,D2,F31:F1048576,D1,W31:W1048576,"Não")+SUMIFS(P31:P1048576,E31:E1048576,E2,F31:F1048576,E1,W31:W1048576,"Não")+SUMIFS(P31:P1048576,E31:E1048576,F2,F31:F1048576,F1,W31:W1048576,"Não") -> 0 | CR22: AF | CS22: MASTOFAUNA | CT22: =IFERROR(VLOOKUP(CS22,$CQ$36:$CR$1048576,2,FALSE),0) -> 0
A23: Recepção e atendimento de animais na Base de Fauna para atendimento (Todos) | B23: =SUMIF(W31:W1048576,"Sim",P31:P1048576) -> 81 | C23: =SUMIFS(P31:P1048576,E31:E1048576,C2,F31:F1048576,C1,W31:W1048576,"Sim")+SUMIFS(P31:P1048576,E31:E1048576,D2,F31:F1048576,D1,W31:W1048576,"Sim")+SUMIFS(P31:P1048576,E31:E1048576,E2,F31:F1048576,E1,W31:W1048576,"Sim")+SUMIFS(P31:P1048576,E31:E1048576,F2,F31:F1048576,F1,W31:W1048576,"Sim") -> 7 | CR23: AT | CS23: AVIFAUNA | CT23: =IFERROR(VLOOKUP(CS23,$CU$36:$CV$1048576,2,FALSE),0) -> 0
A24: Subprograma de Monitoramento dos Eventos de Atropelamento de Fauna | CR24: AT | CS24: HERPETOFAUNA | CT24: =IFERROR(VLOOKUP(CS24,$CU$36:$CV$1048576,2,FALSE),0) -> 0
A25: Número de indivíduos / Número de espécies - AVISTAMENTOS | B25: =CONCATENATE(SUMIF(H31:H1048576,"AV",P31:P1048576),"/",BO26) -> 0/0 | C25: =CONCATENATE(SUMIFS(P31:P1048576,E31:E1048576,C2,F31:F1048576,C1,H31:H1048576,"AV")+SUMIFS(P31:P1048576,E31:E1048576,D2,F31:F1048576,D1,H31:H1048576,"AV")+SUMIFS(P31:P1048576,E31:E1048576,E2,F31:F1048576,E1,H31:H1048576,"AV")+SUMIFS(P31:P1048576,E31:E1048576,F2,F31:F1048576,F1,H31:H1048576,"AV"),"/",AT26) -> 0/0 | AL25: =AM31 -> AF | AP25: =AQ31 -> AT | AT25: =AU31 -> (Vários itens) | AX25: =AY31 -> RE | BB25: RE + AT | BG25: =BH31 -> AF | BK25: =BL31 -> AT | BO25: =BP31 -> (Vários itens) | BS25: =BT31 -> RE | BW25: RE + AT | CR25: AT | CS25: MASTOFAUNA | CT25: =IFERROR(VLOOKUP(CS25,$CU$36:$CV$1048576,2,FALSE),0) -> 0
A26: Número de indivíduos resgatados / Número de espécies identificados | B26: =CONCATENATE(SUMIF(H31:H1048576,"AT",P31:P1048576),"/",BK26) -> 24/13 | C26: =CONCATENATE(SUMIFS(P31:P1048576,E31:E1048576,C2,F31:F1048576,C1,H31:H1048576,"AT")+SUMIFS(P31:P1048576,E31:E1048576,D2,F31:F1048576,D1,H31:H1048576,"AT")+SUMIFS(P31:P1048576,E31:E1048576,E2,F31:F1048576,E1,H31:H1048576,"AT")+SUMIFS(P31:P1048576,E31:E1048576,F2,F31:F1048576,F1,H31:H1048576,"AT"),"/",AP26) -> 0/0 | W26: Fórmula | AK26: RIQUEZA DE ESPÉCIES | AL26: =COUNTA(AL34:AL1048576) -> 0 | AP26: =COUNTA(AP34:AP1048576) -> 0 | AT26: =COUNTA(AT34:AT1048576) -> 0 | AX26: =COUNTA(AX34:AX1048576) -> 5 | BB26: =COUNTA(BB34:BB1048576) -> 5 | BF26: RIQUEZA DE ESPÉCIES | BG26: =COUNTA(BG34:BG1048576) -> 3 | BK26: =COUNTA(BK34:BK1048576) -> 13 | BO26: =COUNTA(BO34:BO1048576) -> 0 | BS26: =COUNTA(BS34:BS1048576) -> 24 | BW26: =COUNTA(BW34:BW1048576) -> 28 | CR26: RE | CS26: AVIFAUNA | CT26: =IFERROR(VLOOKUP(CS26,$DC$36:$DD$1048576,2,FALSE),0) -> 0
A27: Número de registros por km percorrido | B27: =VLOOKUP(A27,'at-km'!N2:Z7,12,FALSE) -> 0 | C27: =VLOOKUP("Número acumulado de registros por km percorrido",'at-km'!N2:Z7,12,FALSE) -> 0.003571428571 | W27: =IF(H27="AV","Não",IF(H27="AT",IF(V27="Ferido","Sim",IF(V27="Morto","Sim")))) -> FALSE | AK27: FILTRAR PARA O PERÍODO DE INTERESSE (MESES E ANOS) | BF27: ACUMULADO - NÃO MEXER | CR27: RE | CS27: HERPETOFAUNA | CT27: =IFERROR(VLOOKUP(CS27,$DC$36:$DD$1048576,2,FALSE),0) -> 7
CR28: RE | CS28: MASTOFAUNA | CT28: =IFERROR(VLOOKUP(CS28,$DC$36:$DD$1048576,2,FALSE),0) -> 0
E29: DATA | G29: REGISTRO | I29: DETALHAMENTO DA ORIGEM/REGISTRO DE OCORRÊNCIA | Q29: IDENTIFICAÇÃO TAXONÔMICA | V29: DETALHAMENTO DO ATENDIMENTO/DESTINO | AF29: INFORMAÇÕES | AL29: ANO | AM29: 2021 | AP29: ANO | AQ29: 2021 | AT29: ANO | AU29: 2021 | AX29: ANO | AY29: 2021 | BB29: ANO | BC29: 2021 | CA29: TABELA PARA UTILIZAR | CP29: GRAFICO
A30: PROGRAMA DE MONITORAMENTO E CONSERVAÇÃO DA FAUNA | E30: ANO | F30: Mês | G30: ID | H30: Tipo | I30: Data | J30: Hora do Registro | K30: Identificação do Local | L30: Coordenada Resgate X | M30: Coordenada Resgate Y | N30: Fitofisionomia/ Ambiente | O30: Condição Meteorológica | P30: NÚMERO DE INDIVÍDUOS | Q30: GRUPO | R30: ORDEM | S30: FAMÍLIA | T30: Nome científico | U30: Nome popular | V30: Cond. do Animal | W30: Base de Fauna | X30: Estágio de desenvolvimento (no resgate) | Y30: Sexo | Z30: Acidentada em decorrência da obra | AA30: Quarentena | AB30: Destino | AC30: Data de destinação | AD30: Coordenada Soltura X | AE30: Coordenada Soltura Y | AF30: Espécies categorizadas pelo Decreto 63.853/2018 | AG30: Informações adicionais | AH30: ANO destinação | AI30: Mês destinação | AJ30: 17:00:00 | AL30: Mês | AM30: 5 | AP30: Mês | AQ30: 5 | AT30: Mês | AU30: 5 | AX30: Mês | AY30: 5 | BB30: Mês | BC30: 5
A31: Indicador | B31: Status do período | C31: Status Acumulado | E31: =IF(I31="","-",YEAR(I31)) -> 2020 | F31: =IF(I31="","-",MONTH(I31)) -> 8 | G31: 1 | H31: RE | I31: 2020-08-13 | J31: 13:10:00 | K31: Canteiro de Apoio | L31: 308210 | M31: 7490892 | N31: Campo Antrópico | O31: Ensolarado | P31: 1 | Q31: HERPETOFAUNA | R31: Squamata | S31: Dipsadidae | T31: Oxyrhopus guibei | U31: Falsa-coral | V31: Saudável | W31: Sim | X31: Adulto | Y31: Fêmea | Z31: Não | AA31: Não | AB31: Soltura | AC31: 2020-08-13 | AD31: 310715 | AE31: 7492902 | AF31: Não | AG31: - | AH31: =IF(AC31="-","-",YEAR(AC31)) -> 2020 | AI31: =IF(AC31="-","-",MONTH(AC31)) -> 8 | AL31: Tipo | AM31: AF | AP31: Tipo | AQ31: AT | AT31: Tipo | AU31: (Vários itens) | AX31: Tipo | AY31: RE | BB31: Tipo | BC31: (Vários itens) | BG31: Tipo | BH31: AF | BK31: Tipo | BL31: AT | BO31: Tipo | BP31: (Vários itens) | BS31: Tipo | BT31: RE | BW31: Tipo | BX31: (Vários itens) | CB31: Tipo | CC31: (Vários itens) | CI31: Tipo | CJ31: (Vários itens) | CQ31: ANO | CR31: 2021 | CU31: ANO | CV31: 2021 | CY31: ANO | CZ31: 2021 | DC31: ANO | DD31: 2021 | DG31: ANO | DH31: 2021 | DN31: Tipo | DO31: (Vários itens) | DP31: GRAFICO 2 - COPIAR E COLAR
A32: Subprograma de Resgate da Fauna Silvestre | E32: 2020 | F32: 8 | G32: 2 | H32: RE | I32: 2020-08-14 | J32: 15:05:00 | K32: Canteiro de Apoio | L32: 308529 | M32: 7491337 | N32: Campo Antrópico | O32: Ensolarado | P32: 1 | Q32: HERPETOFAUNA | R32: Squamata | S32: Colubridae | T32: Philodryas olfersii | U32: Cobra-verde | V32: Saudável | W32: Sim | X32: Adulto | Y32: Macho | Z32: Não | AA32: Não | AB32: Soltura | AC32: 2020-08-14 | AD32: 310719 | AE32: 7492752 | AF32: Não | AG32: - | AH32: =IF(AC32="-","-",YEAR(AC32)) -> 2020 | AI32: 8 | CQ32: Mês | CR32: 5 | CU32: Mês | CV32: 5 | CY32: Mês | CZ32: 5 | DC32: Mês | DD32: 5 | DG32: Mês | DH32: 5
A33: =A11 -> Afugentamento (número aproximado) | B33: =C11 -> 0/0 | C33: =B11 -> 3/3 | E33: 2020 | F33: 8 | G33: 3 | H33: RE | I33: 2020-08-24 | J33: 16:49:00 | K33: Canteiro de Apoio | L33: 307556 | M33: 7490619 | N33: Campo Antrópico | O33: Ensolarado | P33: 1 | Q33: HERPETOFAUNA | R33: Squamata | S33: Mabuydae | T33: Copeoglossum nigropunctatum | U33: Calango-cobra | V33: Ferido | W33: Sim | X33: Adulto | Y33: ND | Z33: Sim | AA33: Sim | AB33: Soltura | AC33: 2020-08-25 | AD33: 310917 | AE33: 7492652 | AF33: Não | AG33: - | AH33: 2020 | AI33: 8 | AL33: Nome científico | AP33: Nome científico | AT33: Nome científico | AX33: Nome científico | BB33: Nome científico | BG33: Nome científico | BK33: Nome científico | BO33: Nome científico | BS33: Nome científico | BW33: Nome científico | CB33: GRUPO | CC33: ORDEM | CD33: FAMÍLIA | CE33: Nome científico | CF33: Nome popular | CI33: ORDEM | CQ33: Tipo | CR33: AF | CU33: Tipo | CV33: AT | CY33: Tipo | CZ33: (Vários itens) | DC33: Tipo | DD33: RE | DG33: Tipo | DH33: (Vários itens) | DN33: Nome científico | DO33: Contagem de Nome científico | DP33: =DN33 -> Nome científico | DQ33: =DO33 -> Contagem de Nome científico
A34: =A12 -> Número de animais resgatados (RE) [Indivíduo/espécie] | B34: =C12 -> 7/5 | C34: =B12 -> 57/24 | E34: 2020 | F34: 8 | G34: - | H34: AF | I34: 2020-08-20 | J34: - | K34: ASV - Área 17 | L34: 307474 | M34: 7490683 | N34: Fragmento Florestal | O34: Ensolarado | P34: 1 | Q34: MASTOFAUNA | R34: Primata | S34: Cebidae | T34: Calitrix pericilatta | U34: Sagui Tufo Preto | V34: Saudável | W34: Não | X34: Adulto | Y34: ND | Z34: Não | AA34: Não | AB34: - | AC34: - | AD34: - | AE34: - | AF34: - | AG34: - | AH34: - | AI34: - | AX34: Crotalus durissus | BB34: Crotalus durissus | BG34: Calitrix pericilatta | BK34: Amphisbaena alba | BS34: Apodemus sylvaticus | BW34: Amphisbaena alba | CB34: AVIFAUNA | CC34: Columbiformes | CD34: Columbidae | CE34: Zenaida auriculata | CF34: Avoante | CI34: Anura | DN34: Amphisbaena alba | DO34: 5 | DP34: =DN34 -> Amphisbaena alba | DQ34: =DO34 -> 5
A35: Subprograma de Recepção, Atendimento e Destino dos Animais Silvestres | E35: 2020 | F35: 8 | G35: - | H35: AF | I35: 2020-08-24 | J35: - | K35: ASV - Área 07 | L35: 307564 | M35: 7490497 | N35: Fragmento Florestal | O35: Ensolarado | P35: 1 | Q35: HERPETOFAUNA | R35: Squamata | S35: Teiidae | T35: Salvator merianae | U35: Teiú | V35: Saudável | W35: Não | X35: Adulto | Y35: ND | Z35: Não | AA35: Não | AB35: - | AC35: - | AD35: - | AE35: - | AF35: - | AG35: - | AH35: - | AI35: - | AX35: Philodryas olfersii | BB35: Philodryas olfersii | BG35: Dasypus novemcinctus | BK35: Callithrix jacchus | BS35: Boa Constrictor | BW35: Apodemus sylvaticus | CB35: AVIFAUNA | CC35: Passeriformes | CD35: Hirundinidae | CE35: Pygochelidon cyanoleuca | CF35: Andorinha-pequena-de-casa | CI35: Cingulata | CQ35: GRUPO | CR35: Contagem de Nome científico | CU35: GRUPO | CV35: Contagem de Nome científico | DC35: GRUPO | DD35: Contagem de Nome científico | DG35: GRUPO | DH35: Contagem de Nome científico | DN35: Apodemus sylvaticus | DO35: 1 | DP35: Apodemus sylvaticus | DQ35: 1
A36: Destinação – Realocados (soltura). Soma de animais recebidos na base e animais sem passagem na base (inclui os de quarentena). | B36: =SUM(C14:C15) -> 7 | C36: =SUM(B14:B15) -> 38 | E36: 2020 | F36: 8 | G36: - | H36: AF | I36: 2020-08-31 | J36: - | K36: ASV - Área 35 | L36: 308849 | M36: 7490811 | N36: Fragmento Florestal | O36: Ensolarado | P36: 1 | Q36: MASTOFAUNA | R36: Cingulata | S36: Dasypodidae | T36: Dasypus novemcinctus | U36: Tatu Galinha | V36: Saudável | W36: Não | X36: Adulto | Y36: ND | Z36: Não | AA36: Não | AB36: - | AC36: - | AD36: - | AE36: - | AF36: - | AG36: - | AH36: - | AI36: - | AX36: Salvator merianae | BB36: Salvator merianae | BG36: Salvator merianae | BK36: Crotalus durissus | BS36: Bothrops alternatus | BW36: Bothrops jararaca | CB36: AVIFAUNA | CC36: Passeriformes | CD36: Thraupidae | CE36: Sicalis flaveola | CF36: Canario-da-terra | CI36: Columbiformes | DC36: HERPETOFAUNA | DD36: 7 | DG36: HERPETOFAUNA | DH36: 7 | DN36: Boa Constrictor | DO36: 1 | DP36: Boa Constrictor | DQ36: 1
A37: Destinação – Encaminhamentos ao CRAS Mata Ciliar | B37: =C18 -> 0 | C37: =B18 -> 6 | E37: 2020 | F37: 9 | G37: 7 | H37: RE | I37: 2020-09-14 | J37: 09:48:00 | K37: ASV - Área 03 | L37: 309841 | M37: 7492242 | N37: Fragmento Florestal | O37: Ensolarado | P37: 1 | Q37: HERPETOFAUNA | R37: Squamata | S37: Dipsadidae | T37: Dipsas mikanii | U37: Jararaca-dormideira | V37: Saudável | W37: Sim | X37: Jovem | Y37: Fêmea | Z37: Não | AA37: Não | AB37: Soltura | AC37: 2020-09-14 | AD37: 310906 | AE37: 7492656 | AF37: Não | AG37: - | AH37: =IF(AC37="-","-",YEAR(AC37)) -> 2020 | AI37: 9 | AX37: Bothrops urutu | BB37: Bothrops urutu | BK37: Dasypus novemcinctus | BS37: Bothrops jararaca | BW37: Callithrix jacchus | CB37: AVIFAUNA | CC37: Piciformes | CD37: Ramphastidae | CE37: Ramphastos toco | CF37: Tucano-toco | CI37: Didelphimorphia | DN37: Bothrops alternatus | DO37: 1 | DP37: Bothrops alternatus | DQ37: 1
A38: Destinação – Em Quarentena (aguardando ou aguardaram destinação) | B38: =SUM(C15:C16) -> 0 | C38: =SUM(B15:B16) -> 0 | E38: 2020 | F38: 9 | G38: 8 | H38: RE | I38: 2020-09-14 | J38: 11:05:00 | K38: ASV - Área 03 | L38: 310192 | M38: 7492168 | N38: Fragmento Florestal | O38: Ensolarado | P38: 1 | Q38: MASTOFAUNA | R38: Rodentia | S38: Muridae | T38: Apodemus sylvaticus | U38: Rato-do-campo | V38: Saudável | W38: Sim | X38: Adulto | Y38: Macho | Z38: Não | AA38: Não | AB38: Soltura | AC38: 2020-09-14 | AD38: 310906 | AE38: 7492654 | AF38: Não | AG38: - | AH38: 2020 | AI38: 9 | AX38: Bothrops newiedi | BB38: Bothrops newiedi | BK38: Didelphis albiventris | BS38: Bothrops newiedi | BW38: Cavia aparea | CB38: AVIFAUNA | CC38: Psittaciformes | CD38: Psittacidae | CE38: Psittacara leucophthalmus | CF38: Maritaca-maracanã | CI38: Passeriformes | DN38: Bothrops jararaca | DO38: 5 | DP38: Bothrops jararaca | DQ38: 5
A39: Destinação – Óbitos/Universidade | B39: =C19 -> 0 | C39: =B19 -> 12 | E39: 2020 | F39: 9 | G39: 11 | H39: RE | I39: 2020-09-17 | J39: 08:55:00 | K39: Canteiro de Apoio | L39: 308607 | M39: 7491454 | N39: Campo Antrópico | O39: Ensolarado | P39: 1 | Q39: HERPETOFAUNA | R39: Squamata | S39: Dipsadidae | T39: Dipsas mikanii | U39: Jararaca-dormideira | V39: Saudável | W39: Sim | X39: Adulto | Y39: Fêmea | Z39: Não | AA39: Não | AB39: Soltura | AC39: 2020-09-17 | AD39: 310850 | AE39: 7492616 | AF39: Não | AG39: - | AH39: 2020 | AI39: 9 | BK39: Didelphis aurita | BS39: Bothrops urutu | BW39: Copeoglossum nigropunctatum | CB39: HERPETOFAUNA | CC39: Anura | CD39: Bufonidae | CE39: Rhinella sp. | CF39: Sapo Cururu | CI39: Piciformes | DN39: Bothrops newiedi | DO39: 7 | DP39: Bothrops newiedi | DQ39: 7
A40: Recepção e atendimento de animais na Base de Fauna para atendimento | B40: =C23 -> 7 | C40: =B23 -> 81 | E40: 2020 | F40: 9 | G40: 14 | H40: RE | I40: 2020-09-21 | J40: 06:50:00 | K40: Canteiro de Apoio | L40: 308507 | M40: 7491370 | N40: Campo Antrópico | O40: Ensolarado | P40: 1 | Q40: MASTOFAUNA | R40: Didelphimorphia | S40: Didelphidae | T40: Didelphis albiventris | U40: Gambá-de-orelha-branca | V40: Morto | W40: Sim | X40: Jovem | Y40: Macho | Z40: Não | AA40: Não | AB40: UNIFAJ | AC40: 2020-12-01 | AD40: 292726 | AE40: 7486121 | AF40: Não | AG40: Aguardando encaminhamento para a Universidade | AH40: 2020 | AI40: 12 | BK40: Dipsas mikanii | BS40: Callithrix jacchus | BW40: Crotalus durissus | CB40: HERPETOFAUNA | CC40: Squamata | CD40: Colubridae | CE40: Philodryas olfersii | CF40: Cobra-verde | CI40: Primata | DN40: Bothrops urutu | DO40: 4 | DP40: Bothrops urutu | DQ40: 4
A41: Subprograma de Monitoramento dos Eventos de Atropelamento de Fauna | E41: 2020 | F41: 9 | G41: 16 | H41: RE | I41: 2020-09-26 | J41: 11:40:00 | K41: ASV - Área 22 | L41: 307295 | M41: 7490803 | N41: Fragmento Florestal | O41: Ensolarado | P41: 1 | Q41: HERPETOFAUNA | R41: Squamata | S41: Viperidae | T41: Crotalus durissus | U41: Cascavel | V41: Saudável | W41: Sim | X41: Adulto | Y41: Macho | Z41: Não | AA41: Não | AB41: Soltura | AC41: 2020-09-26 | AD41: 310846 | AE41: 7492650 | AF41: Não | AG41: - | AH41: 2020 | AI41: 9 | BK41: Erythrolamprus aesculapii | BS41: Cavia aparea | BW41: Dasypus novemcinctus | CB41: HERPETOFAUNA | CC41: Squamata | CD41: Dipsadidae | CE41: Dipsas mikanii | CF41: Jararaca - dormideira | CI41: Rodentia | DN41: Calitrix pericilatta | DO41: 1 | DP41: Calitrix pericilatta | DQ41: 1
A42: =A26 -> Número de indivíduos resgatados / Número de espécies identificados | B42: =C26 -> 0/0 | C42: =B26 -> 24/13 | E42: 2020 | F42: 9 | G42: 17 | H42: RE | I42: 2020-09-26 | J42: 11:40:00 | K42: ASV - Área 22 | L42: 307295 | M42: 7490803 | N42: Fragmento Florestal | O42: Ensolarado | P42: 1 | Q42: HERPETOFAUNA | R42: Squamata | S42: Viperidae | T42: Crotalus durissus | U42: Cascavel | V42: Saudável | W42: Sim | X42: Adulto | Y42: Fêmea | Z42: Não | AA42: Não | AB42: Soltura | AC42: 2020-09-26 | AD42: 310846 | AE42: 7492650 | AF42: Não | AG42: - | AH42: 2020 | AI42: 9 | BK42: Micrurus sp. | BS42: Copeoglossum nigropunctatum | BW42: Didelphis albiventris | CB42: HERPETOFAUNA | CC42: Squamata | CD42: Dipsadidae | CE42: Dipsas mikanii | CF42: Jararaca-dormideira | CI42: Squamata | DN42: Callithrix jacchus | DO42: 2 | DP42: Callithrix jacchus | DQ42: 2
A43: Número de registros por km percorrido | B43: =C27 -> 0.003571428571 | C43: =B27 -> 0 | E43: 2020 | F43: 9 | G43: 19 | H43: RE | I43: 2020-09-29 | J43: 14:40:00 | K43: Área 22 | L43: 307537 | M43: 7490816 | N43: Pastagem | O43: Ensolarado | P43: 1 | Q43: HERPETOFAUNA | R43: Squamata | S43: Viperidae | T43: Crotalus durissus | U43: Cascavel | V43: Saudável | W43: Sim | X43: Jovem | Y43: Fêmea | Z43: Não | AA43: Não | AB43: Soltura | AC43: 2020-09-29 | AD43: 310954 | AE43: 7492667 | AF43: Não | AG43: - | AH43: 2020 | AI43: 9 | BK43: Oxyrhopus guibei | BS43: Crotalus durissus | BW43: Didelphis aurita | CB43: HERPETOFAUNA | CC43: Squamata | CD43: Dipsadidae | CE43: Oxyrhopus guibei | CF43: Falsa-coral | CI43: (vazio) | DN43: Cavia aparea | DO43: 1 | DP43: Cavia aparea | DQ43: 1
A44: =A17 -> Animais armazenados aguardando destinação final (Óbitos)* | B44: =C17 -> 0 | C44: =B17 -> 25 | E44: 2020 | F44: 11 | G44: 21 | H44: RE | I44: 2020-11-23 | J44: 14:47:00 | K44: Canteiro de Apoio | L44: 308504 | M44: 7491421 | N44: Infraestrutura | O44: Ensolarado | P44: 1 | Q44: HERPETOFAUNA | R44: Squamata | S44: Dipsadidae | T44: Dipsas mikanii | U44: Jararaca-dormideira | V44: Saudável | W44: Sim | X44: Jovem | Y44: Fêmea | Z44: Não | AA44: Não | AB44: Soltura | AC44: 2020-11-23 | AD44: 310958 | AE44: 7492649 | AF44: Não | AG44: - | AH44: 2020 | AI44: 11 | BK44: Philodryas olfersii | BS44: Didelphis albiventris | BW44: Dipsas mikanii | CB44: HERPETOFAUNA | CC44: Squamata | CD44: Dipsadidae | CE44: Taeniophallus afinnis | CF44: Cobra-Cabeça-preta | CI44: Primates | DN44: Copeoglossum nigropunctatum | DO44: 1 | DP44: Copeoglossum nigropunctatum | DQ44: 1
E45: 2020 | F45: 11 | G45: 24 | H45: RE | I45: 2020-11-28 | J45: 12:50:00 | K45: Canteiro de Apoio | L45: 308500 | M45: 7491338 | N45: Campo Antrópico | O45: Ensolarado | P45: 1 | Q45: AVIFAUNA | R45: Passeriformes | S45: Hirundinidae | T45: Pygochelidon cyanoleuca | U45: Andorinha-pequena-de-casa | V45: Ferido | W45: Sim | X45: Adulto | Y45: ND | Z45: Não | AA45: Não | AB45: CRAS - Mata Ciliar | AC45: 2020-11-28 | AD45: 305466 | AE45: 7484505 | AF45: Não | AG45: Destinado ao CRAS - Mata Ciliar | AH45: 2020 | AI45: 11 | BK45: Salvator merianae | BS45: Didelphis aurita | BW45: Erythrolamprus aesculapii | CB45: HERPETOFAUNA | CC45: Squamata | CD45: Mabuydae | CE45: Copeoglossum nigropunctatum | CF45: Calango-cobra | CI45: Psittaciformes | DN45: Crotalus durissus | DO45: 14 | DP45: Crotalus durissus | DQ45: 14
E46: 2020 | F46: 12 | G46: 25 | H46: RE | I46: 2020-12-01 | J46: 14:40:00 | K46: Canteiro de Apoio | L46: 308506 | M46: 7491385 | N46: Fragmento Florestal | O46: Ensolarado | P46: 1 | Q46: AVIFAUNA | R46: Piciformes | S46: Ramphastidae | T46: Ramphastos toco | U46: Tucano-toco | V46: Morto | W46: Sim | X46: Adulto | Y46: ND | Z46: Não | AA46: Não | AB46: Base de Fauna | AC46: - | AD46: 308508 | AE46: 7491376 | AF46: Não | AG46: Aguardando encaminhamento para a Universidade | AH46: - | AI46: - | BK46: Tantilla melanocephala | BS46: Dipsas mikanii | BW46: Micrurus sp. | CB46: HERPETOFAUNA | CC46: Squamata | CD46: Teiidae | CE46: Salvator merianae | CF46: Teiú | DN46: Dasypus novemcinctus | DO46: 3 | DP46: Dasypus novemcinctus | DQ46: 3
E47: 2020 | F47: 12 | G47: 26 | H47: RE | I47: 2020-12-02 | J47: 16:40:00 | K47: Canteiro de Apoio | L47: 308506 | M47: 7491385 | N47: Infraestrutura | O47: Ensolarado | P47: 1 | Q47: AVIFAUNA | R47: Columbiformes | S47: Columbidae | T47: Zenaida auriculata | U47: Avoante | V47: Ferido | W47: Sim | X47: Adulto | Y47: ND | Z47: Não | AA47: Não | AB47: CRAS - Mata Ciliar | AC47: 2020-12-02 | AD47: 305466 | AE47: 7484505 | AF47: Não | AG47: Destinado ao CRAS - Mata Ciliar | AH47: 2020 | AI47: 12 | BS47: Oxyrhopus guibei | BW47: Oxyrhopus guibei | CB47: HERPETOFAUNA | CC47: Squamata | CD47: Viperidae | CE47: Bothrops jararaca | CF47: Jararaca-da-mata | DN47: Didelphis albiventris | DO47: 3 | DP47: Didelphis albiventris | DQ47: 3
E48: 2020 | F48: 12 | G48: 28 | H48: RE | I48: 2020-12-29 | J48: 15:20:00 | K48: Sublote de plantio 1.13 | L48: 308642 | M48: 7491438 | N48: Futura APP | O48: Ensolarado | P48: 1 | Q48: HERPETOFAUNA | R48: Squamata | S48: Dipsadidae | T48: Dipsas mikanii | U48: Jararaca-dormideira | V48: Morto | W48: Sim | X48: Adulto | Y48: Fêmea | Z48: Sim | AA48: Não | AB48: Base de Fauna | AC48: - | AD48: 308508 | AE48: 7491376 | AF48: Não | AG48: Aguardando encaminhamento para a Universidade | AH48: - | AI48: - | BS48: Philodryas olfersii | BW48: Philodryas olfersii | CB48: HERPETOFAUNA | CC48: Squamata | CD48: Viperidae | CE48: Crotalus durissus | CF48: Cascavel | DN48: Didelphis aurita | DO48: 2 | DP48: Didelphis aurita | DQ48: 2
E49: 2021 | F49: 1 | G49: 30 | H49: RE | I49: 2021-01-07 | J49: 09:30:00 | K49: Sublote de plantio 1.13 | L49: 308790 | M49: 7491501 | N49: Futura APP | O49: Ensolarado | P49: 1 | Q49: HERPETOFAUNA | R49: Squamata | S49: Viperidae | T49: Crotalus durissus | U49: Cascavel | V49: Morto | W49: Sim | X49: Adulto | Y49: Fêmea | Z49: Sim | AA49: Não | AB49: Base de Fauna | AC49: - | AD49: 308508 | AE49: 7491376 | AF49: Não | AG49: - | AH49: - | AI49: - | BS49: Psittacara leucophthalmus | BW49: Pygochelidon cyanoleuca | CB49: HERPETOFAUNA | CC49: Squamata | CD49: Viperidae | CE49: Crotalus durissus | CF49: Casacavel | DN49: Dipsas mikanii | DO49: 7 | DP49: Dipsas mikanii | DQ49: 7
E50: 2021 | F50: 1 | G50: 31 | H50: RE | I50: 2021-01-08 | J50: 10:02:00 | K50: Sublote de plantio 1.14 | L50: 308798 | M50: 7491427 | N50: Futura APP | O50: Ensolarado | P50: 1 | Q50: HERPETOFAUNA | R50: Squamata | S50: Viperidae | T50: Crotalus durissus | U50: Cascavel | V50: Saudável | W50: Sim | X50: Adulto | Y50: ND | Z50: Não | AA50: Não | AB50: Soltura | AC50: 2021-01-08 | AD50: 310908 | AE50: 7492663 | AF50: Não | AG50: - | AH50: 2021 | AI50: 1 | BS50: Pygochelidon cyanoleuca | BW50: Ramphastos toco | CB50: HERPETOFAUNA | CC50: Squamata | CD50: Viperidae | CE50: Philodryas olfersii | CF50: Cobra-verde | DN50: Erythrolamprus aesculapii | DO50: 2 | DP50: Erythrolamprus aesculapii | DQ50: 2
E51: 2021 | F51: 1 | G51: 32 | H51: RE | I51: 2021-01-13 | J51: 14:32:00 | K51: Canteiro de Apoio | L51: 308526 | M51: 7491330 | N51: - | O51: Ensolarado | P51: 1 | Q51: MASTOFAUNA | R51: Rodentia | S51: Cavidae | T51: Cavia aparea | U51: Preá | V51: Morto | W51: Sim | X51: Adulto | Y51: Fêmea | Z51: Sim | AA51: Não | AB51: Soltura | AC51: 2021-01-13 | AD51: 308506 | AE51: 7491375 | AF51: Não | AG51: - | AH51: 2021 | AI51: 1 | BS51: Ramphastos toco | BW51: Rhinella sp. | CB51: HERPETOFAUNA | CC51: Squamata | CD51: Viperidae | CE51: Bothrops alternatus | CF51: Urutu | DN51: Micrurus sp. | DO51: 1 | DP51: Micrurus sp. | DQ51: 1
E52: 2021 | F52: 1 | G52: 33 | H52: RE | I52: 2021-01-13 | J52: 14:35:00 | K52: Sublote de plantio 1.14 | L52: 308797 | M52: 7491428 | N52: Futura APP | O52: Ensolarado | P52: 1 | Q52: HERPETOFAUNA | R52: Squamata | S52: Viperidae | T52: Crotalus durissus | U52: Cascavel | V52: Saudável | W52: Sim | X52: Jovem | Y52: ND | Z52: Não | AA52: Não | AB52: Soltura | AC52: 2021-01-13 | AD52: 310946 | AE52: 7492652 | AF52: Não | AG52: - | AH52: 2021 | AI52: 1 | BS52: Rhinella sp. | BW52: Salvator merianae | CB52: HERPETOFAUNA | CC52: Squamata | CD52: Viperidae | CE52: Bothrops urutu | CF52: Urutu | DN52: Oxyrhopus guibei | DO52: 6 | DP52: Oxyrhopus guibei | DQ52: 6
E53: 2021 | F53: 1 | G53: 34 | H53: RE | I53: 2021-01-14 | J53: 10:42:00 | K53: Canteiro de Apoio | L53: 308507 | M53: 7491421 | N53: - | O53: Ensolarado | P53: 1 | Q53: HERPETOFAUNA | R53: Anura | S53: Bufonidae | T53: Rhinella sp. | U53: Sapo Cururu | V53: Saudável | W53: Sim | X53: Jovem | Y53: ND | Z53: Não | AA53: Não | AB53: Soltura | AC53: 2021-01-14 | AD53: 310950 | AE53: 7492645 | AF53: Não | AG53: - | AH53: 2021 | AI53: 1 | BS53: Salvator merianae | BW53: Sicalis flaveola | CB53: HERPETOFAUNA | CC53: Squamata | CD53: Viperidae | CE53: Bothrops urutu | CF53: Urutu-cruzeiro | DN53: Philodryas olfersii | DO53: 4 | DP53: Philodryas olfersii | DQ53: 4
E54: 2021 | F54: 1 | G54: 36 | H54: RE | I54: 2021-01-18 | J54: 13:13:00 | K54: Sublote de plantio 1.14 | L54: 308717 | M54: 7491406 | N54: Futura APP | O54: Ensolarado | P54: 1 | Q54: HERPETOFAUNA | R54: Squamata | S54: Viperidae | T54: Bothrops jararaca | U54: Jararaca-da-mata | V54: Saudável | W54: Sim | X54: Adulto | Y54: ND | Z54: Não | AA54: Não | AB54: Soltura | AC54: 2021-01-18 | AD54: 310959 | AE54: 7493126 | AF54: Não | AG54: - | AH54: 2021 | AI54: 1 | BS54: Sicalis flaveola | BW54: Zenaida auriculata | CB54: HERPETOFAUNA | CC54: Squamata | CD54: Viperidae | CE54: Bothrops newiedi | CF54: Jararaca rabo branco | DN54: Psittacara leucophthalmus | DO54: 2 | DP54: Psittacara leucophthalmus | DQ54: 2
E55: 2021 | F55: 1 | G55: 37 | H55: RE | I55: 2021-01-18 | J55: 13:20:00 | K55: Sublote de plantio 1.14 | L55: 308715 | M55: 7491407 | N55: Futura APP | O55: Ensolarado | P55: 1 | Q55: HERPETOFAUNA | R55: Squamata | S55: Viperidae | T55: Bothrops jararaca | U55: Jararaca-da-mata | V55: Morto | W55: Sim | X55: Adulto | Y55: ND | Z55: Não | AA55: Sim | AB55: Base de Fauna | AC55: 2021-01-18 | AD55: 308506 | AE55: 7491375 | AF55: Não | AG55: Aguardando encaminhamento para a UNIFAJ | AH55: 2021 | AI55: 1 | BS55: Taeniophallus afinnis | BW55: Psittacara leucophthalmus | CB55: HERPETOFAUNA | CC55: Squamata | CD55: Viperidae | CE55: Bothrops newiedi | CF55: Jararaca-de-rabo-branco | DN55: Pygochelidon cyanoleuca | DO55: 1 | DP55: Pygochelidon cyanoleuca | DQ55: 1
E56: 2021 | F56: 1 | G56: 38 | H56: RE | I56: 2021-01-19 | J56: 14:40:00 | K56: Sublote de plantio 1.14 | L56: 308714 | M56: 7491406 | N56: Futura APP | O56: Ensolarado | P56: 1 | Q56: HERPETOFAUNA | R56: Squamata | S56: Viperidae | T56: Crotalus durissus | U56: Cascavel | V56: Morto | W56: Sim | X56: Adulto | Y56: Fêmea | Z56: Sim | AA56: Não | AB56: Base de Fauna | AC56: 2021-01-19 | AD56: 308508 | AE56: 7491376 | AF56: Não | AG56: Aguardando encaminhamento para a UNIFAJ | AH56: 2021 | AI56: 1 | BS56: Tantilla melanocephala | BW56: Bothrops alternatus | CB56: HERPETOFAUNA | CC56: Squamata | CD56: Viperidae | CE56: Bothrops newiedi | CF56: Jararaca-rabo-branco | DN56: Ramphastos toco | DO56: 1 | DP56: Ramphastos toco | DQ56: 1
A57: Legenda: | E57: 2021 | F57: 1 | G57: 39 | H57: RE | I57: 2021-01-19 | J57: 14:43:00 | K57: Sublote de plantio 1.15 | L57: 308678 | M57: 7491377 | N57: Futura APP | O57: Ensolarado | P57: 1 | Q57: HERPETOFAUNA | R57: Squamata | S57: Viperidae | T57: Crotalus durissus | U57: Cascavel | V57: Saudável | W57: Sim | X57: Adulto | Y57: Macho | Z57: Não | AA57: Não | AB57: Soltura | AC57: 2021-01-19 | AD57: 310966 | AE57: 7492683 | AF57: Não | AG57: - | AH57: 2021 | AI57: 1 | BS57: Zenaida auriculata | BW57: Taeniophallus afinnis | CB57: HERPETOFAUNA | CC57: Squamata | CD57: Viperidae | CE57: Tantilla melanocephala | CF57: Cobra-de-cabeça-preta | DN57: Rhinella sp. | DO57: 1 | DP57: Rhinella sp. | DQ57: 1
A58: Tipo de registro: AF = Afugentamento (incluindo espontâneo), RE = Resgate; | E58: 2021 | F58: 1 | G58: 40 | H58: RE | I58: 2021-01-20 | J58: 11:17:00 | K58: Sublote de plantio 1.15 | L58: 308657 | M58: 7491382 | N58: Futura APP | O58: Ensolarado | P58: 1 | Q58: HERPETOFAUNA | R58: Squamata | S58: Viperidae | T58: Bothrops jararaca | U58: Jararaca-da-mata | V58: Morto | W58: Sim | X58: Jovem | Y58: ND | Z58: Sim | AA58: Não | AB58: Base de Fauna | AC58: 2021-01-20 | AD58: 308508 | AE58: 7491376 | AF58: Não | AG58: Aguardando encaminhamento para a UNIFAJ | AH58: 2021 | AI58: 1 | BW58: Bothrops urutu | CB58: HERPETOFAUNA | CC58: Squamata | CD58: Boidae | CE58: Boa Constrictor | CF58: Jiboia-constritora | DN58: Salvator merianae | DO58: 3 | DP58: Salvator merianae | DQ58: 3
A59: Fitofisionomia/ambiente: AA = Antropizado, PA = PA, TR = trilha, CA = Canteiro de Obras; CUP = Cupinzeiro, FES = Floresta Estacional Semidecidual, AQ = Ambiente aquático; | E59: 2021 | F59: 1 | G59: 41 | H59: RE | I59: 2021-01-20 | J59: 13:10:00 | K59: Sublote de plantio 1.14 | L59: 308602 | M59: 7491415 | N59: Futura APP | O59: Ensolarado | P59: 1 | Q59: HERPETOFAUNA | R59: Squamata | S59: Dipsadidae | T59: Dipsas mikanii | U59: Jararaca - dormideira | V59: Saudável | W59: Sim | X59: Jovem | Y59: ND | Z59: Não | AA59: Não | AB59: Soltura | AC59: 2021-01-20 | AD59: 311039 | AE59: 7493178 | AF59: Não | AG59: - | AH59: 2021 | AI59: 1 | BW59: Bothrops newiedi | CB59: HERPETOFAUNA | CC59: (vazio) | CD59: (vazio) | CE59: Amphisbaena alba | CF59: Cobra - cega | DN59: Sicalis flaveola | DO59: 1 | DP59: Sicalis flaveola | DQ59: 1
A60: Condições meteorológicas: AB = Aberto, CH = Chuvoso, NU = Nublado; | E60: 2021 | F60: 1 | G60: 42 | H60: RE | I60: 2021-01-27 | J60: 15:10:00 | K60: Sublote de plantio 1.15 | L60: 308843 | M60: 7491353 | N60: Futura APP | O60: Ensolarado | P60: 1 | Q60: HERPETOFAUNA | R60: Squamata | S60: Viperidae | T60: Bothrops jararaca | U60: Jararaca-da-mata | V60: Saudável | W60: Sim | X60: Jovem | Y60: ND | Z60: Não | AA60: Não | AB60: Soltura | AC60: 2021-01-27 | AD60: 310976 | AE60: 7493211 | AF60: Não | AG60: - | AH60: 2021 | AI60: 1 | BW60: Tantilla melanocephala | CB60: HERPETOFAUNA | CC60: (vazio) | CD60: (vazio) | CE60: Amphisbaena alba | CF60: Cobra-cega | DN60: Taeniophallus afinnis | DO60: 1 | DP60: Taeniophallus afinnis | DQ60: 1
A61: Condições do Animal: D = Debilitado, F = Ferido, M = M, S = Saudável; | E61: 2021 | F61: 2 | G61: 44 | H61: RE | I61: 2021-02-01 | J61: 14:43:00 | K61: Sublote de plantio 1.15 | L61: 308843 | M61: 7491353 | N61: Infraestrutura | O61: Ensolarado | P61: 1 | Q61: HERPETOFAUNA | R61: Squamata | S61: Viperidae | T61: Bothrops jararaca | U61: Jararaca-da-mata | V61: Saudável | W61: Sim | X61: Adulto | Y61: ND | Z61: Não | AA61: Não | AB61: Soltura | AC61: 2021-02-01 | AD61: 310975 | AE61: 7492681 | AF61: Não | AG61: - | AH61: 2021 | AI61: 2 | BW61: Boa Constrictor | CB61: HERPETOFAUNA | CC61: (vazio) | CD61: (vazio) | CE61: Crotalus durissus | CF61: Cascavel | DN61: Tantilla melanocephala | DO61: 2 | DP61: Tantilla melanocephala | DQ61: 2
A62: Estágio de desenvolvimento: A = Adulto, J = Jovem, F = Filhote, L= Larva (girino), O = Ovo; | E62: 2021 | F62: 2 | G62: 46 | H62: RE | I62: 2021-02-05 | J62: 07:45:00 | K62: Canteiro de Apoio | L62: 308515 | M62: 7491429 | N62: Campo Antrópico | O62: Ensolarado | P62: 1 | Q62: AVIFAUNA | R62: Psittaciformes | S62: Psittacidae | T62: Psittacara leucophthalmus | U62: Maritaca-maracanã | V62: Saudável | W62: Sim | X62: Neonato | Y62: ND | Z62: Não | AA62: Não | AB62: CRAS - Mata Ciliar | AC62: 2021-02-05 | AD62: 305466 | AE62: 7484505 | AF62: Não | AG62: Destinado ao CRAS - Mata Ciliar | AH62: 2021 | AI62: 2 | CB62: HERPETOFAUNA | CC62: (vazio) | CD62: (vazio) | CE62: Dipsas mikanii | CF62: Jararaquinha-dormideira | DN62: Zenaida auriculata | DO62: 1 | DP62: =DN62 -> Zenaida auriculata | DQ62: =DO62 -> 1
A63: Sexo: FE = Fêmea, MA = Macho, ND = Não determinado; | E63: 2021 | F63: 2 | G63: 47 | H63: RE | I63: 2021-02-05 | J63: 12:42:00 | K63: Replantio | L63: 309596 | M63: 7491729 | N63: Futura APP | O63: Ensolarado | P63: 1 | Q63: HERPETOFAUNA | R63: Squamata | S63: Viperidae | T63: Bothrops alternatus | U63: Urutu | V63: Morto | W63: Sim | X63: Jovem | Y63: Fêmea | Z63: Sim | AA63: Não | AB63: Base de Fauna | AC63: - | AD63: 308508 | AE63: 7491376 | AF63: Não | AG63: Aguardando encaminhamento para a UNIFAJ | AH63: - | AI63: - | CB63: HERPETOFAUNA | CC63: (vazio) | CD63: (vazio) | CE63: Erythrolamprus aesculapii | CF63: Falsa-coral | DP63: =DN63 -> 0 | DQ63: =DO63 -> 0
A64: Destino: S = Soltura, CRAS, U=Universidade, D = Descarte, SPQ=Soltura Pós Quarentena. | E64: 2021 | F64: 2 | G64: 48 | H64: RE | I64: 2021-02-06 | J64: 09:45:00 | K64: ASV - Área 20 | L64: 307871 | M64: 7490844 | N64: Campo Antrópico | O64: Ensolarado | P64: 1 | Q64: HERPETOFAUNA | R64: Squamata | S64: Dipsadidae | T64: Oxyrhopus guibei | U64: Falsa-coral | V64: Morto | W64: Sim | X64: Adulto | Y64: Fêmea | Z64: Sim | AA64: Não | AB64: Base de Fauna | AC64: - | AD64: 308508 | AE64: 7491376 | AF64: Não | AG64: Aguardando encaminhamento para a UNIFAJ | AH64: - | AI64: - | CB64: HERPETOFAUNA | CC64: (vazio) | CD64: (vazio) | CE64: Micrurus sp. | CF64: Cobra-coral
E65: 2021 | F65: 1 | G65: 50 | H65: RE | I65: 2021-01-17 | J65: 08:46:00 | K65: Canteiro de Apoio | L65: 3077326 | M65: 7491217 | N65: Campo Antrópico | O65: Ensolarado | P65: 1 | Q65: HERPETOFAUNA | R65: Squamata | S65: Viperidae | T65: Crotalus durissus | U65: Cascavel | V65: Saudável | W65: Sim | X65: Adulto | Y65: ND | Z65: Não | AA65: Não | AB65: Soltura | AC65: 2021-02-05 | AD65: 310975 | AE65: 7492681 | AF65: Não | AG65: - | AH65: 2021 | AI65: 2 | CB65: HERPETOFAUNA | CC65: (vazio) | CD65: (vazio) | CE65: Oxyrhopus guibei | CF65: Falsa- coral
E66: 2021 | F66: 2 | G66: 52 | H66: RE | I66: 2021-02-18 | J66: 10:10:00 | K66: Canteiro de Apoio | L66: 308499 | M66: 7491363 | N66: Infraestrutura | O66: Ensolarado | P66: 1 | Q66: AVIFAUNA | R66: Psittaciformes | S66: Psittacidae | T66: Psittacara leucophthalmus | U66: Maritaca-maracanã | V66: Morto | W66: Sim | X66: Adulto | Y66: ND | Z66: Sim | AA66: Não | AB66: Base de Fauna | AC66: 2021-02-18 | AD66: 308508 | AE66: 7491376 | AF66: Não | AG66: Aguardando encaminhamento para UNIFAJ | AH66: 2021 | AI66: 2 | CB66: HERPETOFAUNA | CC66: (vazio) | CD66: (vazio) | CE66: Oxyrhopus guibei | CF66: Falsa-coral
E67: 2021 | F67: 2 | G67: 55 | H67: RE | I67: 2021-02-23 | J67: 08:15:00 | K67: Canteiro de Apoio | L67: 308552 | M67: 7491390 | N67: Infraestrutura | O67: Nublado | P67: 1 | Q67: HERPETOFAUNA | R67: Squamata | S67: Dipsadidae | T67: Taeniophallus afinnis | U67: Cobra-Cabeça-preta | V67: Morto | W67: Sim | X67: Neonato | Y67: ND | Z67: Sim | AA67: Não | AB67: Base de Fauna | AC67: 2021-02-23 | AD67: 308508 | AE67: 7491376 | AF67: Não | AG67: Aguardando encaminhamento para UNIFAJ | AH67: 2021 | AI67: 2 | CB67: HERPETOFAUNA | CC67: (vazio) | CD67: (vazio) | CE67: Philodryas olfersii | CF67: Cobra - Verde
E68: 2021 | F68: 2 | G68: 56 | H68: RE | I68: 2021-02-23 | J68: 10:45:00 | K68: Canteiro de Apoio | L68: 308534 | M68: 7491418 | N68: Infraestrutura | O68: Ensolarado | P68: 1 | Q68: MASTOFAUNA | R68: Didelphimorphia | S68: Didelphidae | T68: Didelphis aurita | U68: Gambá-de-orelha-preta | V68: Morto | W68: Sim | X68: Jovem | Y68: ND | Z68: Não | AA68: Não | AB68: Base de Fauna | AC68: 2021-02-23 | AD68: 308508 | AE68: 7491376 | AF68: Não | AG68: Aguardando encaminhamento para UNIFAJ | AH68: 2021 | AI68: 2 | CB68: HERPETOFAUNA | CC68: (vazio) | CD68: (vazio) | CE68: Philodryas olfersii | CF68: Cobra-verde
E69: 2021 | F69: 2 | G69: 57 | H69: RE | I69: 2021-02-24 | J69: 08:06:00 | K69: Canteiro de Apoio | L69: 308515 | M69: 7491415 | N69: Infraestrutura | O69: Ensolarado | P69: 1 | Q69: HERPETOFAUNA | R69: Squamata | S69: Viperidae | T69: Crotalus durissus | U69: Cascavel | V69: Saudável | W69: Sim | X69: Jovem | Y69: ND | Z69: Não | AA69: Não | AB69: Soltura | AC69: 2021-02-24 | AD69: 310975 | AE69: 7492681 | AF69: Não | AG69: - | AH69: 2021 | AI69: 2 | CB69: HERPETOFAUNA | CC69: (vazio) | CD69: (vazio) | CE69: Salvator merianae | CF69: Teiú
E70: 2021 | F70: 3 | G70: 60 | H70: RE | I70: 2021-03-03 | J70: 14:46:00 | K70: Sublote de plantio 7.3 | L70: 310269 | M70: 7491721 | N70: Futura APP | O70: Ensolarado | P70: 1 | Q70: HERPETOFAUNA | R70: Squamata | S70: Viperidae | T70: Bothrops urutu | U70: Urutu-cruzeiro | V70: Saudável | W70: Sim | X70: Adulto | Y70: ND | Z70: Não | AA70: Não | AB70: Soltura | AC70: 2021-03-03 | AD70: 310975 | AE70: 7492681 | AF70: Não | AG70: - | AH70: 2021 | AI70: 3 | CB70: HERPETOFAUNA | CC70: (vazio) | CD70: (vazio) | CE70: Tantilla melanocephala | CF70: Cobra-da-cabeça-preta
E71: 2021 | F71: 3 | G71: 61 | H71: RE | I71: 2021-03-12 | J71: 11:42:00 | K71: Sublote de plantio 7.1 | L71: 310342 | M71: 7491251 | N71: Futura APP | O71: Ensolarado | P71: 1 | Q71: HERPETOFAUNA | R71: Squamata | S71: Viperidae | T71: Crotalus durissus | U71: Cascavel | V71: Saudável | W71: Sim | X71: Adulto | Y71: ND | Z71: Não | AA71: Não | AB71: Soltura | AC71: 2021-03-12 | AD71: 310975 | AE71: 7492681 | AF71: Não | AG71: - | AH71: 2021 | AI71: 3 | CB71: MASTOFAUNA | CC71: Cingulata | CD71: Dasypodidae | CE71: Dasypus novemcinctus | CF71: Tatu Galinha
E72: 2021 | F72: 3 | G72: 62 | H72: RE | I72: 2021-03-13 | J72: 19:05:00 | K72: Canteiro de Apoio | L72: 308505 | M72: 7491419 | N72: Futura APP | O72: Ensolarado | P72: 1 | Q72: HERPETOFAUNA | R72: Squamata | S72: Dipsadidae | T72: Oxyrhopus guibei | U72: Falsa-coral | V72: Saudável | W72: Sim | X72: Adulto | Y72: ND | Z72: Não | AA72: Não | AB72: Soltura | AC72: 2021-03-13 | AD72: 310271 | AE72: 7492521 | AF72: Não | AG72: - | AH72: 2021 | AI72: 3 | CB72: MASTOFAUNA | CC72: Didelphimorphia | CD72: Didelphidae | CE72: Didelphis albiventris | CF72: Gambá-de-orelha-branca
E73: 2021 | F73: 3 | G73: 63 | H73: RE | I73: 2021-03-17 | J73: 07:40:00 | K73: Canteiro de Apoio | L73: 308523 | M73: 7491440 | N73: Futura APP | O73: Ensolarado | P73: 1 | Q73: HERPETOFAUNA | R73: Squamata | S73: Viperidae | T73: Bothrops newiedi | U73: Jararaca-de-rabo-branco | V73: Saudável | W73: Sim | X73: Jovem | Y73: ND | Z73: Não | AA73: Não | AB73: Soltura | AC73: 2021-03-18 | AD73: 310271 | AE73: 7492521 | AF73: Não | AG73: - | AH73: 2021 | AI73: 3 | CB73: MASTOFAUNA | CC73: Didelphimorphia | CD73: Didelphidae | CE73: Didelphis aurita | CF73: Gambá-de-orelha-preta
E74: 2021 | F74: 3 | G74: 64 | H74: RE | I74: 2021-03-17 | J74: 09:40:00 | K74: Canteiro de Apoio | L74: 308516 | M74: 7491397 | N74: Futura APP | O74: Ensolarado | P74: 1 | Q74: HERPETOFAUNA | R74: Squamata | S74: Viperidae | T74: Tantilla melanocephala | U74: Cobra-de-cabeça-preta | V74: Saudável | W74: Sim | X74: Adulto | Y74: ND | Z74: Não | AA74: Não | AB74: Soltura | AC74: 2021-03-18 | AD74: 310317 | AE74: 7492509 | AF74: Não | AG74: - | AH74: 2021 | AI74: 3 | CB74: MASTOFAUNA | CC74: Primata | CD74: Cebidae | CE74: Calitrix pericilatta | CF74: Sagui Tufo Preto
E75: 2021 | F75: 3 | G75: 66 | H75: RE | I75: 2021-03-24 | J75: 09:14:00 | K75: Canteiro de Apoio | L75: 308522 | M75: 7491401 | N75: Futura APP | O75: Ensolarado | P75: 1 | Q75: AVIFAUNA | R75: Passeriformes | S75: Thraupidae | T75: Sicalis flaveola | U75: Canario-da-terra | V75: Saudável | W75: Sim | X75: Filhote | Y75: ND | Z75: Não | AA75: Não | AB75: CRAS - Mata Ciliar | AC75: 2021-03-24 | AD75: 305466 | AE75: 7484505 | AF75: Não | AG75: Destinado ao CRAS - Mata Ciliar | AH75: 2021 | AI75: 3 | CB75: MASTOFAUNA | CC75: Rodentia | CD75: Cavidae | CE75: Cavia aparea | CF75: Preá
E76: 2021 | F76: 3 | G76: 67 | H76: RE | I76: 2021-03-29 | J76: 14:32:00 | K76: Sublote de plantio 7.6 | L76: 310340 | M76: 7491713 | N76: Futura APP | O76: Ensolarado | P76: 1 | Q76: HERPETOFAUNA | R76: Squamata | S76: Viperidae | T76: Bothrops urutu | U76: Urutu-cruzeiro | V76: Morto | W76: Sim | X76: Adulto | Y76: Fêmea | Z76: Sim | AA76: Não | AB76: Base de Fauna | AC76: 2021-03-29 | AD76: 308508 | AE76: 7491376 | AF76: Não | AG76: Aguardando encaminhamento para UNIFAJ | AH76: 2021 | AI76: 3 | CB76: MASTOFAUNA | CC76: Rodentia | CD76: Muridae | CE76: Apodemus sylvaticus | CF76: Rato-do-campo
E77: 2021 | F77: 4 | G77: 68 | H77: RE | I77: 2021-04-01 | J77: 14:40:00 | K77: Canteiro de Apoio | L77: 308326 | M77: 7491137 | N77: Futura APP | O77: Ensolarado | P77: 1 | Q77: MASTOFAUNA | R77: Primates | S77: Callitrichidae | T77: Callithrix jacchus | U77: Sagui-tufo-branco | V77: Morto | W77: Sim | X77: Adulto | Y77: ND | Z77: Sim | AA77: Não | AB77: Base de Fauna | AC77: 2021-04-01 | AD77: 308508 | AE77: 7491376 | AF77: Não | AG77: - | AH77: 2021 | AI77: 4 | CB77: MASTOFAUNA | CC77: (vazio) | CD77: (vazio) | CE77: Callithrix jacchus | CF77: Sagui-de-tufo-branco
E78: 2021 | F78: 4 | G78: 69 | H78: RE | I78: 2021-04-04 | J78: 09:00:00 | K78: Sublote de plantio 11.1 | L78: 308201 | M78: 7490092 | N78: Futura APP | O78: Ensolarado | P78: 1 | Q78: HERPETOFAUNA | R78: Squamata | S78: Boidae | T78: Boa Constrictor | U78: Jiboia-constritora | V78: Saudável | W78: Sim | X78: Jovem | Y78: Fêmea | Z78: Não | AA78: Não | AB78: Soltura | AC78: 2021-04-04 | AD78: 310317 | AE78: 7492509 | AF78: Não | AG78: - | AH78: 2021 | AI78: 4 | CB78: MASTOFAUNA | CC78: (vazio) | CD78: (vazio) | CE78: Dasypus novemcinctus | CF78: Tatu-galinha
E79: 2021 | F79: 4 | G79: 70 | H79: RE | I79: 2021-04-21 | J79: 16:45:00 | K79: Canteiro de Apoio | L79: 308549 | M79: 7491480 | N79: Fragmento Florestal | O79: Ensolarado | P79: 1 | Q79: HERPETOFAUNA | R79: Squamata | S79: Viperidae | T79: Bothrops newiedi | U79: Jararaca-rabo-branco | V79: Saudável | W79: Sim | X79: Filhote | Y79: ND | Z79: Não | AA79: Não | AB79: Soltura | AC79: 2021-04-21 | AD79: 310317 | AE79: 7492509 | AF79: Não | AG79: - | AH79: 2021 | AI79: 4 | CB79: MASTOFAUNA | CC79: (vazio) | CD79: (vazio) | CE79: Didelphis albiventris | CF79: Gambá-de-orelha-branca
E80: 2021 | F80: 4 | G80: 71 | H80: RE | I80: 2021-04-21 | J80: 16:45:00 | K80: Canteiro de Apoio | L80: 308549 | M80: 7491480 | N80: Fragmento Florestal | O80: Ensolarado | P80: 1 | Q80: HERPETOFAUNA | R80: Squamata | S80: Viperidae | T80: Bothrops newiedi | U80: Jararaca-rabo-branco | V80: Saudável | W80: Sim | X80: Filhote | Y80: ND | Z80: Não | AA80: Não | AB80: Soltura | AC80: 2021-04-21 | AD80: 310317 | AE80: 7492509 | AF80: Não | AG80: - | AH80: 2021 | AI80: 4 | CB80: MASTOFAUNA | CC80: (vazio) | CD80: (vazio) | CE80: Didelphis albiventris | CF80: Gamba-de-orelha-branca
E81: 2021 | F81: 4 | G81: 72 | H81: RE | I81: 2021-04-21 | J81: 16:45:00 | K81: Canteiro de Apoio | L81: 308549 | M81: 7491480 | N81: Fragmento Florestal | O81: Ensolarado | P81: 1 | Q81: HERPETOFAUNA | R81: Squamata | S81: Viperidae | T81: Bothrops newiedi | U81: Jararaca-rabo-branco | V81: Saudável | W81: Sim | X81: Filhote | Y81: ND | Z81: Não | AA81: Não | AB81: Soltura | AC81: 2021-04-21 | AD81: 310317 | AE81: 7492509 | AF81: Não | AG81: - | AH81: 2021 | AI81: 4 | CB81: MASTOFAUNA | CC81: Primates | CD81: Callitrichidae | CE81: Callithrix jacchus | CF81: Sagui-tufo-branco
E82: 2021 | F82: 4 | G82: 73 | H82: RE | I82: 2021-04-21 | J82: 16:45:00 | K82: Canteiro de Apoio | L82: 308549 | M82: 7491480 | N82: Fragmento Florestal | O82: Ensolarado | P82: 1 | Q82: HERPETOFAUNA | R82: Squamata | S82: Viperidae | T82: Bothrops newiedi | U82: Jararaca-rabo-branco | V82: Saudável | W82: Sim | X82: Filhote | Y82: ND | Z82: Não | AA82: Não | AB82: Soltura | AC82: 2021-04-21 | AD82: 310317 | AE82: 7492509 | AF82: Não | AG82: - | AH82: 2021 | AI82: 4 | CB82: MASTOFAUNA | CC82: (vazio) | CD82: (vazio) | CE82: Didelphis aurita | CF82: Gambá-de-orelha-preta
E83: 2021 | F83: 4 | G83: 74 | H83: RE | I83: 2021-04-21 | J83: 16:45:00 | K83: Canteiro de Apoio | L83: 308549 | M83: 7491480 | N83: Fragmento Florestal | O83: Ensolarado | P83: 1 | Q83: HERPETOFAUNA | R83: Squamata | S83: Viperidae | T83: Bothrops newiedi | U83: Jararaca-rabo-branco | V83: Morto | W83: Sim | X83: Filhote | Y83: ND | Z83: Sim | AA83: Não | AB83: Base de Fauna | AC83: 2021-04-21 | AD83: 308508 | AE83: 7491376 | AF83: Não | AG83: - | AH83: 2021 | AI83: 4
E84: 2021 | F84: 5 | G84: 75 | H84: RE | I84: 2021-05-07 | J84: 08:45:00 | K84: Bota fora | L84: 309007 | M84: 740630 | N84: Futura APP | O84: Ensolarado | P84: 1 | Q84: HERPETOFAUNA | R84: Squamata | S84: Teiidae | T84: Salvator merianae | U84: Teiú | V84: Saudável | W84: Sim | X84: Adulto | Y84: ND | Z84: Não | AA84: Não | AB84: Soltura | AC84: 2021-05-07 | AD84: 310852 | AE84: 749209 | AF84: Não | AG84: - | AH84: 2021 | AI84: 5
E85: 2021 | F85: 5 | G85: 76 | H85: RE | I85: 2021-05-10 | J85: 13:23:00 | K85: Industrial | L85: 307947 | M85: 7491175 | N85: Futura APP | O85: Ensolarado | P85: 1 | Q85: HERPETOFAUNA | R85: Squamata | S85: Viperidae | T85: Philodryas olfersii | U85: Cobra-verde | V85: Saudável | W85: Sim | X85: Adulto | Y85: ND | Z85: Não | AA85: Não | AB85: Soltura | AC85: 2021-05-10 | AD85: 310881 | AE85: 7492618 | AF85: Não | AG85: - | AH85: 2021 | AI85: 5
E86: 2021 | F86: 5 | G86: 77 | H86: RE | I86: 2021-05-12 | J86: 14:35:00 | K86: Sublote de plantio 7.6 | L86: 310253 | M86: 7491742 | N86: Futura APP | O86: Ensolarado | P86: 1 | Q86: HERPETOFAUNA | R86: Squamata | S86: Viperidae | T86: Bothrops urutu | U86: Urutu | V86: Saudável | W86: Sim | X86: Adulto | Y86: ND | Z86: Não | AA86: Não | AB86: Soltura | AC86: 2021-05-12 | AD86: 310940 | AE86: 7492641 | AF86: Não | AG86: - | AH86: 2021 | AI86: 5
E87: 2021 | F87: 5 | G87: 78 | H87: RE | I87: 2021-05-13 | J87: 10:10:00 | K87: ASV - Area 22 | L87: 307435 | M87: 7490776 | N87: Futura APP | O87: Ensolarado | P87: 1 | Q87: HERPETOFAUNA | R87: Squamata | S87: Viperidae | T87: Bothrops newiedi | U87: Jararaca rabo branco | V87: Saudável | W87: Sim | X87: Filhote | Y87: ND | Z87: Não | AA87: Não | AB87: Soltura | AC87: 2021-05-13 | AD87: 310934 | AE87: 7492640 | AF87: Não | AG87: - | AH87: 2021 | AI87: 5
E88: 2021 | F88: 5 | G88: 79 | H88: RE | I88: 2021-05-13 | J88: 10:15:00 | K88: ASV - Area 22 | L88: 307433 | M88: 7490786 | N88: Futura APP | O88: Ensolarado | P88: 1 | Q88: HERPETOFAUNA | R88: Squamata | S88: Viperidae | T88: Crotalus durissus | U88: Cascavel | V88: Saudável | W88: Sim | X88: Adulto | Y88: ND | Z88: Não | AA88: Não | AB88: Soltura | AC88: 2021-05-13 | AD88: 310952 | AE88: 7492641 | AF88: Não | AG88: - | AH88: 2021 | AI88: 5
E89: 2021 | F89: 5 | G89: 80 | H89: RE | I89: 2021-05-27 | J89: 07:40:00 | K89: Canteiro de Apoio | L89: 308526 | M89: 7491108 | N89: Futura APP | O89: Ensolarado | P89: 1 | Q89: HERPETOFAUNA | R89: Squamata | S89: Viperidae | T89: Bothrops urutu | U89: Urutu | V89: Saudável | W89: Sim | X89: Adulto | Y89: ND | Z89: Não | AA89: Não | AB89: Soltura | AC89: 2021-05-27 | AD89: 310928 | AE89: 7492634 | AF89: Não | AG89: - | AH89: 2021 | AI89: 5
E90: 2021 | F90: 5 | G90: 81 | H90: Re | I90: 2021-05-27 | J90: 08:50:00 | K90: Canteiro de Apoio | L90: 309637 | M90: 7492159 | N90: Futura APP | O90: Ensolarado | P90: 1 | Q90: HERPETOFAUNA | R90: Squamata | S90: Viperidae | T90: Crotalus durissus | U90: Casacavel | V90: Saudável | W90: Sim | X90: Adulto | Y90: ND | Z90: Não | AA90: Não | AB90: Soltura | AC90: 2021-05-27 | AF90: Não | AG90: - | AH90: 2021 | AI90: 5
E91: 2020 | F91: 8 | G91: 4 | H91: AT | I91: 2020-08-26 | J91: 15:56:00 | L91: 309035 | M91: 7490950 | N91: Fragento Florestal | P91: 1 | Q91: HERPETOFAUNA | T91: Dipsas mikanii | U91: Jararaquinha-dormideira | V91: Morto | W91: =IF(H91="AV","Não",IF(H91="AT",IF(V91="Ferido","Sim",IF(V91="Morto","Sim")))) -> Sim | AB91: UNIFAJ | AC91: 2020-12-01 | AD91: 292726 | AE91: 7486121 | AG91: UNIFAJ - 02/11/2020 | AH91: 2020 | AI91: 12
E92: 2020 | F92: 9 | G92: 5 | H92: AT | I92: 2020-09-12 | J92: 07:00:00 | L92: 308165 | M92: 7487924 | N92: Fragento Florestal | P92: 1 | Q92: MASTOFAUNA | T92: Didelphis albiventris | U92: Gambá-de-orelha-branca | V92: Morto | W92: =IF(H92="AV","Não",IF(H92="AT",IF(V92="Ferido","Sim",IF(V92="Morto","Sim")))) -> Sim | AB92: UNIFAJ | AC92: 2020-12-01 | AD92: 292726 | AE92: 7486121 | AG92: UNIFAJ - 02/11/2020 | AH92: 2020 | AI92: 12
E93: 2020 | F93: 9 | G93: 6 | H93: AT | I93: 2020-09-12 | J93: 08:25:00 | L93: 307809 | M93: 7490564 | N93: Outro | P93: 1 | Q93: HERPETOFAUNA | T93: Oxyrhopus guibei | U93: Falsa- coral | V93: Morto | W93: Sim | AB93: UNIFAJ | AC93: 2020-12-01 | AD93: 292726 | AE93: 7486121 | AG93: UNIFAJ - 02/11/2020 | AH93: 2020 | AI93: 12
E94: 2020 | F94: 9 | G94: 9 | H94: AT | I94: 2020-09-14 | J94: 12:14:00 | L94: 310215 | M94: 7491800 | N94: Fragento Florestal | P94: 1 | Q94: HERPETOFAUNA | T94: Micrurus sp. | U94: Cobra-coral | V94: Morto | W94: Sim | AB94: Base de Fauna | AC94: - | AD94: 308508 | AE94: 7491376 | AG94: Base de Fauna | AH94: - | AI94: -
E95: =IF(I95="","-",YEAR(I95)) -> 2020 | F95: =IF(I95="","-",MONTH(I95)) -> 9 | G95: 10 | H95: AT | I95: 2020-09-16 | J95: 07:00:00 | L95: 309529 | M95: 7485913 | N95: Fragento Florestal | P95: 1 | Q95: MASTOFAUNA | T95: Didelphis aurita | U95: Gambá-de-orelha-preta | V95: Morto | W95: Sim | AB95: UNIFAJ | AC95: 2020-12-01 | AD95: 292726 | AE95: 7486121 | AG95: UNIFAJ - 02/11/2020 | AH95: 2020 | AI95: =IF(AC95="-","-",MONTH(AC95)) -> 12
E96: 2020 | F96: 9 | G96: 12 | H96: AT | I96: 2020-09-19 | J96: 07:35:00 | L96: 308370 | M96: 7491131 | N96: Fragento Florestal | P96: 1 | Q96: HERPETOFAUNA | T96: Oxyrhopus guibei | U96: Falsa-coral | V96: Morto | W96: Sim | AB96: UNIFAJ | AC96: 2020-12-01 | AD96: 292726 | AE96: 7486121 | AG96: UNIFAJ - 02/11/2020 | AH96: =IF(AC96="-","-",YEAR(AC96)) -> 2020 | AI96: 12
E97: 2020 | F97: 9 | G97: 13 | H97: AT | I97: 2020-09-19 | J97: 08:00:00 | L97: 308704 | M97: 7493228 | N97: Fragento Florestal | P97: 1 | Q97: HERPETOFAUNA | T97: Erythrolamprus aesculapii | U97: Falsa-coral | V97: Morto | W97: Sim | AB97: UNIFAJ | AC97: 2020-12-01 | AD97: 292726 | AE97: 7486121 | AG97: UNIFAJ - 02/11/2020 | AH97: 2020 | AI97: 12
E98: 2020 | F98: 9 | G98: 15 | H98: AT | I98: 2020-09-22 | J98: 14:54:00 | L98: 308076 | M98: 7490915 | N98: Pastagem | P98: 1 | Q98: HERPETOFAUNA | T98: Dipsas mikanii | U98: Jararaquinha-dormideira | V98: Morto | W98: Sim | AB98: UNIFAJ | AC98: 2020-12-01 | AD98: 292726 | AE98: 7486121 | AG98: UNIFAJ - 02/11/2020 | AH98: 2020 | AI98: 12
E99: 2020 | F99: 9 | G99: 18 | H99: AT | I99: 2020-09-29 | J99: 08:30:00 | L99: 308361 | M99: 7491136 | N99: Outro | P99: 1 | Q99: HERPETOFAUNA | T99: Oxyrhopus guibei | U99: Falsa-coral | V99: Morto | W99: Sim | AB99: UNIFAJ | AC99: 2020-12-01 | AD99: 292726 | AE99: 7486121 | AG99: UNIFAJ - 02/11/2020 | AH99: 2020 | AI99: 12
E100: 2020 | F100: 11 | G100: 20 | H100: AT | I100: 2020-11-13 | J100: 09:49:00 | L100: 308372 | M100: 7491420 | N100: Campo Antrópico | P100: 1 | Q100: HERPETOFAUNA | T100: Salvator merianae | U100: Teiú | V100: Morto | W100: Sim | AB100: UNIFAJ | AC100: 2020-12-01 | AD100: 292726 | AE100: 7486121 | AG100: UNIFAJ - 02/11/2020 | AH100: 2020 | AI100: 12
E101: 2020 | F101: 11 | G101: 22 | H101: AT | I101: 2020-11-26 | J101: 17:06:00 | L101: 308361 | M101: 7491136 | N101: Fragento Florestal | P101: 1 | Q101: MASTOFAUNA | T101: Dasypus novemcinctus | U101: Tatu-galinha | V101: Morto | W101: Sim | AB101: UNIFAJ | AC101: 2020-12-01 | AD101: 292726 | AE101: 7486121 | AG101: UNIFAJ - 02/11/2020 | AH101: 2020 | AI101: 12
E102: 2020 | F102: 11 | G102: 23 | H102: AT | I102: 2020-11-27 | J102: 09:42:00 | L102: 307269 | M102: 7491909 | N102: Cultivo agrícola | P102: 1 | Q102: HERPETOFAUNA | T102: Erythrolamprus aesculapii | U102: Falsa-coral | V102: Morto | W102: Sim | AB102: UNIFAJ | AC102: 2020-12-01 | AD102: 292726 | AE102: 7486121 | AG102: UNIFAJ - 02/11/2020 | AH102: 2020 | AI102: 12
E103: 2020 | F103: 12 | G103: 27 | H103: AT | I103: 2020-12-10 | J103: 08:13:00 | L103: 308970 | M103: 7486862 | N103: Pastagem | P103: 1 | Q103: MASTOFAUNA | T103: Callithrix jacchus | U103: Sagui-de-tufo-branco | V103: Morto | W103: Sim | AB103: Base de Fauna | AC103: - | AD103: 308508 | AE103: 7491376 | AG103: Base de Fauna | AH103: - | AI103: -
E104: 2021 | F104: 1 | G104: 29 | H104: AT | I104: 2021-01-05 | J104: 13:45:00 | L104: 308528 | M104: 7491335 | N104: Fragento Florestal | P104: 1 | Q104: HERPETOFAUNA | T104: Philodryas olfersii | U104: Cobra - Verde | V104: Ferido | W104: Sim | AB104: Base de Fauna | AC104: - | AD104: 308508 | AE104: 7491376 | AG104: Base de Fauna | AH104: - | AI104: -
E105: 2021 | F105: 1 | G105: 35 | H105: AT | I105: 2021-01-16 | J105: 07:15:00 | L105: 306753 | M105: 7490910 | N105: Pastagem | P105: 1 | Q105: HERPETOFAUNA | T105: Amphisbaena alba | U105: Cobra - cega | V105: Ferido | W105: Sim | AB105: Base de Fauna | AC105: - | AD105: 308508 | AE105: 7491376 | AG105: Base de Fauna | AH105: - | AI105: -
E106: 2021 | F106: 1 | G106: 43 | H106: AT | I106: 2021-01-28 | J106: 10:38:00 | L106: 308226 | M106: 7491093 | N106: Canteiro de obras | P106: 1 | Q106: HERPETOFAUNA | T106: Amphisbaena alba | U106: Cobra-cega | V106: Ferido | W106: Sim | AB106: CRAS - Mata Ciliar | AC106: 2021-01-28 | AD106: 305466 | AE106: 7484505 | AG106: Encaminhado para o CRAS - Mata Ciliar | AH106: 2021 | AI106: 1
E107: 2021 | F107: 2 | G107: 45 | H107: AT | I107: 2021-02-03 | J107: 11:48:00 | L107: 308506 | M107: 7491375 | N107: Fragento Florestal | P107: 1 | Q107: HERPETOFAUNA | T107: Amphisbaena alba | U107: Cobra-cega | V107: Ferido | W107: Sim | AB107: Base de Fauna | AC107: - | AD107: 308508 | AE107: 7491376 | AG107: Aguarda encaminhamento para a UNIFAJ | AH107: - | AI107: -
E108: 2021 | F108: 2 | G108: 49 | H108: AT | I108: 2021-02-08 | J108: 07:40:00 | L108: 308228 | M108: 7491093 | N108: Canteiro de obras | P108: 1 | Q108: MASTOFAUNA | T108: Dasypus novemcinctus | U108: Tatu-galinha | V108: Morto | W108: Sim | AB108: Base de Fauna | AC108: - | AD108: 308508 | AE108: 7491376 | AG108: Descarte - sem aproveitamento científico | AH108: - | AI108: -
E109: 2021 | F109: 2 | G109: 51 | H109: AT | I109: 2021-02-17 | J109: 16:10:00 | L109: 308233 | M109: 7490171 | N109: Canteiro de obras | P109: 1 | Q109: HERPETOFAUNA | T109: Amphisbaena alba | U109: Cobra-cega | V109: Ferido | W109: Sim | AB109: CRAS - Mata Ciliar | AC109: 2021-02-17 | AD109: 305466 | AE109: 7484505 | AG109: Encaminhado para o CRAS - Mata Ciliar | AH109: 2021 | AI109: 2
E110: 2021 | F110: 2 | G110: 53 | H110: AT | I110: 2021-02-22 | J110: 06:44:00 | L110: 309535 | M110: 7485914 | N110: Antropizado | P110: 1 | Q110: MASTOFAUNA | T110: Didelphis albiventris | U110: Gamba-de-orelha-branca | V110: Morto | W110: Sim | AB110: Base de Fauna | AC110: 2021-02-22 | AD110: 308508 | AE110: 7491376 | AG110: Descarte - sem aproveitamento científico | AH110: 2021 | AI110: 2
E111: 2021 | F111: 2 | G111: 54 | H111: AT | I111: 2021-02-22 | J111: 06:59:00 | L111: 308519 | M111: 7491399 | N111: Fragento Florestal | P111: 1 | Q111: HERPETOFAUNA | T111: Philodryas olfersii | U111: Cobra-verde | V111: Morto | W111: Sim | AB111: Base de Fauna | AC111: 2021-02-22 | AD111: 308508 | AE111: 7491376 | AG111: Aguarda encaminhamento para a UNIFAJ | AH111: 2021 | AI111: 2
E112: 2021 | F112: 2 | G112: 58 | H112: AT | I112: 2021-02-24 | J112: 09:47:00 | L112: 309538 | M112: 7485917 | N112: Antropizado | P112: 1 | Q112: HERPETOFAUNA | T112: Amphisbaena alba | U112: Cobra-cega | V112: Morto | W112: Sim | AB112: Base de Fauna | AC112: 2021-02-24 | AD112: 308508 | AE112: 7491376 | AG112: Descarte - sem aproveitamento científico | AH112: 2021 | AI112: 2
E113: 2021 | F113: 3 | G113: 59 | H113: AT | I113: 2021-03-02 | J113: 10:07:00 | L113: 308445 | M113: 7492622 | P113: 1 | Q113: HERPETOFAUNA | T113: Crotalus durissus | U113: Cascavel | V113: Morto | W113: Sim | AB113: Base de Fauna | AC113: - | AD113: 308508 | AE113: 7491376 | AG113: Descarte - sem aproveitamento científico | AH113: - | AI113: -
E114: 2021 | F114: 3 | G114: 65 | H114: AT | I114: 2021-03-18 | J114: 14:23:00 | L114: 308121 | M114: 7491034 | P114: 1 | Q114: HERPETOFAUNA | T114: Tantilla melanocephala | U114: Cobra-da-cabeça-preta | V114: Morto | W114: Sim | AB114: Base de Fauna | AC114: - | AD114: 308508 | AE114: 7491376 | AG114: Descarte - sem aproveitamento científico | AH114: - | AI114: -
E115: - | F115: - | W115: FALSE | AH115: 1900 | AI115: 1
E116: - | F116: - | W116: FALSE | AH116: 1900 | AI116: 1
E117: - | F117: - | W117: FALSE | AH117: 1900 | AI117: 1
E118: - | F118: - | W118: FALSE | AH118: 1900 | AI118: 1
E119: - | F119: - | W119: FALSE | AH119: 1900 | AI119: 1
E120: - | F120: - | W120: FALSE | AH120: 1900 | AI120: 1
E121: - | F121: - | W121: FALSE | AH121: 1900 | AI121: 1
E122: - | F122: - | W122: FALSE | AH122: 1900 | AI122: 1
E123: - | F123: - | W123: FALSE | AH123: 1900 | AI123: 1
E124: - | F124: - | W124: FALSE | AH124: 1900 | AI124: 1
E125: - | F125: - | W125: FALSE | AH125: 1900 | AI125: 1
E126: - | F126: - | W126: FALSE | AH126: 1900 | AI126: 1
E127: - | F127: - | W127: FALSE | AH127: 1900 | AI127: 1
E128: - | F128: - | W128: FALSE | AH128: 1900 | AI128: 1
E129: - | F129: - | W129: FALSE | AH129: 1900 | AI129: 1
E130: - | F130: - | W130: FALSE | AH130: 1900 | AI130: 1
E131: - | F131: - | W131: FALSE | AH131: 1900 | AI131: 1
E132: - | F132: - | W132: FALSE | AH132: 1900 | AI132: 1
E133: - | F133: - | W133: FALSE | AH133: 1900 | AI133: 1
E134: - | F134: - | W134: FALSE | AH134: 1900 | AI134: 1
E135: - | F135: - | W135: FALSE | AH135: 1900 | AI135: 1
E136: - | F136: - | W136: FALSE | AH136: 1900 | AI136: 1
E137: - | F137: - | W137: FALSE | AH137: 1900 | AI137: 1
E138: - | F138: - | W138: FALSE | AH138: 1900 | AI138: 1
E139: - | F139: - | W139: FALSE | AH139: 1900 | AI139: 1
E140: - | F140: - | W140: FALSE | AH140: 1900 | AI140: 1
E141: - | F141: - | W141: FALSE | AH141: 1900 | AI141: 1
E142: - | F142: - | W142: FALSE | AH142: 1900 | AI142: 1
E143: - | F143: - | W143: FALSE | AH143: 1900 | AI143: 1
E144: - | F144: - | W144: FALSE | AH144: 1900 | AI144: 1
E145: - | F145: - | W145: FALSE | AH145: 1900 | AI145: 1
E146: - | F146: - | W146: FALSE | AH146: 1900 | AI146: 1
E147: - | F147: - | W147: FALSE | AH147: 1900 | AI147: 1
E148: - | F148: - | W148: FALSE | AH148: 1900 | AI148: 1
E149: - | F149: - | W149: FALSE | AH149: 1900 | AI149: 1
E150: - | F150: - | W150: FALSE | AH150: 1900 | AI150: 1
E151: - | F151: - | W151: FALSE | AH151: 1900 | AI151: 1
E152: - | F152: - | W152: FALSE | AH152: 1900 | AI152: 1
E153: - | F153: - | W153: FALSE | AH153: 1900 | AI153: 1
E154: - | F154: - | W154: FALSE | AH154: 1900 | AI154: 1
E155: - | F155: - | W155: FALSE | AH155: 1900 | AI155: 1
E156: - | F156: - | W156: =IF(H156="AV","Não",IF(H156="AT",IF(V156="Ferido","Sim",IF(V156="Morto","Sim")))) -> FALSE | AH156: 1900 | AI156: 1
E157: - | F157: - | W157: FALSE | AH157: 1900 | AI157: 1
E158: - | F158: - | W158: FALSE | AH158: 1900 | AI158: 1
E159: =IF(I159="","-",YEAR(I159)) -> - | F159: =IF(I159="","-",MONTH(I159)) -> - | W159: FALSE | AH159: 1900 | AI159: =IF(AC159="-","-",MONTH(AC159)) -> 1
E160: - | F160: - | W160: FALSE | AH160: =IF(AC160="-","-",YEAR(AC160)) -> 1900 | AI160: 1
E161: - | F161: - | W161: FALSE | AH161: 1900 | AI161: 1
E162: - | F162: - | W162: FALSE | AH162: 1900 | AI162: 1
E163: - | F163: - | W163: FALSE | AH163: 1900 | AI163: 1
E164: - | F164: - | W164: FALSE | AH164: 1900 | AI164: 1
E165: - | F165: - | W165: FALSE | AH165: 1900 | AI165: 1
E166: - | F166: - | W166: FALSE | AH166: 1900 | AI166: 1
E167: - | F167: - | W167: FALSE | AH167: 1900 | AI167: 1
E168: - | F168: - | W168: FALSE | AH168: 1900 | AI168: 1
E169: - | F169: - | W169: FALSE | AH169: 1900 | AI169: 1
E170: - | F170: - | W170: FALSE | AH170: 1900 | AI170: 1
E171: - | F171: - | W171: FALSE | AH171: 1900 | AI171: 1
E172: - | F172: - | W172: FALSE | AH172: 1900 | AI172: 1
E173: - | F173: - | W173: FALSE | AH173: 1900 | AI173: 1
E174: - | F174: - | W174: FALSE | AH174: 1900 | AI174: 1
E175: - | F175: - | W175: FALSE | AH175: 1900 | AI175: 1
E176: - | F176: - | W176: FALSE | AH176: 1900 | AI176: 1
E177: - | F177: - | W177: FALSE | AH177: 1900 | AI177: 1
E178: - | F178: - | W178: FALSE | AH178: 1900 | AI178: 1
E179: - | F179: - | W179: FALSE | AH179: 1900 | AI179: 1
E180: - | F180: - | W180: FALSE | AH180: 1900 | AI180: 1
E181: - | F181: - | W181: FALSE | AH181: 1900 | AI181: 1
E182: - | F182: - | W182: FALSE | AH182: 1900 | AI182: 1
E183: - | F183: - | W183: =IF(H183="AV","Não",IF(H183="AT",IF(V183="Ferido","Sim",IF(V183="Morto","Sim")))) -> FALSE | AH183: 1900 | AI183: 1
E184: - | F184: - | W184: FALSE | AH184: 1900 | AI184: 1
E185: - | F185: - | W185: FALSE | AH185: 1900 | AI185: 1
E186: - | F186: - | W186: FALSE | AH186: 1900 | AI186: 1
E187: - | F187: - | W187: FALSE | AH187: 1900 | AI187: 1
E188: - | F188: - | W188: FALSE | AH188: 1900 | AI188: 1
E189: - | F189: - | W189: FALSE | AH189: 1900 | AI189: 1
E190: - | F190: - | W190: FALSE | AH190: 1900 | AI190: 1
E191: - | F191: - | W191: FALSE | AH191: 1900 | AI191: 1
E192: - | F192: - | W192: FALSE | AH192: 1900 | AI192: 1
E193: - | F193: - | W193: FALSE | AH193: 1900 | AI193: 1
E194: - | F194: - | W194: =IF(H194="AV","Não",IF(H194="AT",IF(V194="Ferido","Sim",IF(V194="Morto","Sim")))) -> FALSE | AH194: 1900 | AI194: 1
E195: - | F195: - | W195: FALSE | AH195: 1900 | AI195: 1
E196: - | F196: - | W196: FALSE | AH196: 1900 | AI196: 1
E197: - | F197: - | W197: FALSE | AH197: 1900 | AI197: 1
E198: - | F198: - | W198: FALSE | AH198: 1900 | AI198: 1
E199: - | F199: - | W199: FALSE | AH199: 1900 | AI199: 1
E200: - | F200: - | W200: FALSE | AH200: 1900 | AI200: 1
... 10 more rows

Sheet Quadros_resgates
A2: ID | B2: DATA | C2: NOME CIENTÍFICO | D2: LOCAL DO RESGATE | F2: ID | G2: DATA | H2: NOME CIENTÍFICO | I2: CONDIÇÃO DO ANIMAL | J2: DESTINAÇÃO | K2: OBSERVAÇÃO | M2: ID | N2: DATA | O2: NOME CIENTÍFICO | P2: CARACT. DA VIA | Q2: CONDIÇÃO DO ANIMAL | R2: DESTINAÇÃO | S2: OBSERVAÇÃO
A3: 75 | B3: 2021-05-07 | C3: Salvator merianae | D3: Bota fora | F3: 75 | G3: 2021-05-07 | H3: Salvator merianae | I3: Saudável | J3: Soltura | K3: - | M3: 59 | N3: 2021-03-02 | O3: Crotalus durissus | P3: Estrada de terra | Q3: Morto | R3: Base de Fauna | S3: Descarte - sem aproveitamento científico
A4: 76 | B4: 2021-05-10 | C4: Philodryas olfersii | D4: Industrial | F4: 76 | G4: 2021-05-10 | H4: Philodryas olfersii | I4: Saudável | J4: Soltura | K4: - | M4: 65 | N4: 2021-03-18 | O4: Tantilla melanocephala | P4: Estrada de terra | Q4: Morto | R4: Base de Fauna | S4: Descarte - sem aproveitamento científico
A5: 77 | B5: 2021-05-12 | C5: Bothrops urutu | D5: Sublote de plantio 7.6 | F5: 77 | G5: 2021-05-12 | H5: Bothrops urutu | I5: Saudável | J5: Soltura | K5: -
A6: 78 | B6: 2021-05-13 | C6: Bothrops newiedi | D6: ASV - Area 22 | F6: 78 | G6: 2021-05-13 | H6: Bothrops newiedi | I6: Saudável | J6: Soltura | K6: -
A7: 79 | B7: 2021-05-13 | C7: Crotalus durissus | D7: ASV - Area 22 | F7: 79 | G7: 2021-05-13 | H7: Crotalus durissus | I7: Saudável | J7: Soltura | K7: -
A8: 80 | B8: 2021-05-27 | C8: Bothrops urutu | D8: Canteiro de Apoio | F8: 80 | G8: 2021-05-27 | H8: Bothrops urutu | I8: Saudável | J8: Soltura | K8: -
A9: 81 | B9: 2021-05-27 | C9: Crotalus durissus | D9: Canteiro de Apoio | F9: 81 | G9: 2021-05-27 | H9: Crotalus durissus | I9: Saudável | J9: Soltura | K9: -
A10: 82 | B10: 2021-06-01 | C10: Aramides saracura | D10: ADM | F10: 82 | G10: 2021-06-01 | H10: Aramides saracura | I10: Saudável | J10: Soltura | K10: -
A11: 83 | B11: 2021-06-08 | C11: Dipsas mikanii | D11: ADM | F11: 83 | G11: 2021-06-08 | H11: Dipsas Mikanni | I11: Saudável | J11: Soltura | K11: -
A12: 84 | B12: 24/06/2021 | C12: Herpailurus yagouaroundi | D12: Area de vivencia | F12: 84 | G12: 2021-06-24 | H12: Herpailurus yagouaroundi | I12: Morto | J12: Base de Fauna | K12: -
A13: 85 | B13: 2021-07-01 | C13: Crotalus durissus | D13: 13A
A14: 86 | B14: 2021-07-10 | C14: Bothops jararaca | D14: Area de replantio
A15: 87 | B15: 2021-07-12 | C15: Oxyrhopus guibei | D15: Bota fora
A16: 88 | B16: 2021-07-18 | C16: Oxyrhopus guibei | D16: ADM

Sheet Hist. Result (2)
C1: 4 | D1: 4 | E1: 5 | F1: 5 | G1: 1º Quadrimestre | I1: 7 | J1: 7 | K1: 8 | L1: 8 | M1: 9 | N1: 9 | O1: 2º Quadrimestre | Q1: 10 | R1: 10 | S1: 11 | T1: 11 | U1: 12 | V1: 12
B2: PROGRAMA DE MONITORAMENTO E CONSERVAÇÃO DA FAUNA | Q2: 3º Quadrimestre
B3: Indicador | C3: 2020-08-01 | E3: 2020-09-01 | G3: 1º Quadrimestre | I3: 2020-11-01 | K3: 2020-12-01 | M3: 2021-01-01 | O3: 2º Quadrimestre | Q3: 2021-02-01 | S3: 2021-03-01 | U3: 2021-04-01 | W3: 2021-05-01 | Y3: 3º Quadrimestre
C4: Período | D4: Acumulado | E4: Período | F4: Acumulado | G4: Período | H4: Acumulado | I4: Período | J4: Acumulado | K4: Período | L4: Acumulado | M4: Período | N4: Acumulado | O4: Período | P4: Acumulado | Q4: Período | R4: Acumulado | S4: Período | T4: Acumulado | U4: Período | V4: Acumulado | W4: Período | X4: Acumulado | Y4: Período | Z4: Acumulado
B5: Subprograma de Resgate da Fauna Silvestre
B6: Afugentamento (número aproximado) | C6: 3/3 | D6: 3/3 | E6: 0/0 | F6: 3/3 | G6: 3/3 | H6: =F6 -> 3/3 | I6: 0/0 | J6: 3/3 | K6: 0/0 | L6: 3/3 | M6: 0/0 | N6: 3/3 | O6: 0/0 | P6: =N6 -> 3/3 | Q6: 0/0 | R6: 3/3 | S6: 0/0 | T6: 3/3 | U6: 0/0 | V6: 3/3 | W6: 0/0 | X6: 3/3
B7: Número de animais resgatados (RE) [Indivíduo/espécie] | C7: 3/3 | D7: 3/3 | E7: 7/4 | F7: 10/7 | G7: 10/7 | H7: 10/7 | I7: 2/2 | J7: 12/8 | K7: 3/3 | L7: 15/10 | M7: 12/5 | N7: 27/13 | O7: 17/8 | P7: 27/13 | Q7: 9/4 | R7: 36/14 | S7: 7/3 | T7: 43/15 | U7: 7/3 | V7: 50/24 | W7: 7/5 | X7: 57/24
B8: Subprograma de Recepção, Atendimento e Destino dos Animais Silvestres
B9: Destinação – Realocados (soltura). Soma de animais recebidos na base e animais sem passagem na base (inclui os de quarentena). | C9: 3 | D9: 3 | E9: 6 | F9: 9 | G9: 9 | H9: 9 | I9: 1 | J9: 10 | K9: 0 | L9: 10 | M9: 8 | N9: 18 | O9: 9 | P9: 18 | Q9: 3 | R9: 21 | S9: 5 | T9: 26 | U9: 5 | V9: 31 | W9: 7 | X9: 38
B10: Destinação – Encaminhamentos ao CRAS Mata Ciliar | C10: 0 | D10: 0 | E10: 0 | F10: 0 | G10: 0 | H10: 0 | I10: 1 | J10: 1 | K10: 1 | L10: 2 | M10: 1 | N10: 3 | O10: 3 | P10: 3 | Q10: 2 | R10: 5 | S10: 1 | T10: 6 | U10: 1 | V10: 6 | W10: 0 | X10: 6
B11: Destinação – Em Quarentena (aguardando ou aguardaram destinação) | C11: 0 | D11: 0 | E11: 0 | F11: 0 | G11: 0 | H11: 0 | I11: 0 | J11: 0 | K11: 0 | L11: 0 | M11: 0 | N11: 0 | O11: 0 | P11: 0 | Q11: 0 | R11: 0 | S11: 0 | T11: 0 | U11: 0 | V11: 0 | W11: 0 | X11: 0
B12: Destinação – Óbitos/Universidade | C12: 0 | D12: 0 | E12: 0 | F12: 0 | G12: 0 | H12: 0 | I12: 0 | J12: 0 | K12: 12 | L12: 12 | M12: 0 | N12: 12 | O12: 12 | P12: 12 | Q12: 0 | R12: 12 | S12: 0 | T12: 12 | U12: 0 | V12: 12 | W12: 0 | X12: 12
B13: Recepção e atendimento de animais na Base de Fauna para atendimento | C13: 4 | D13: 4 | E13: 15 | F13: 19 | G13: 19 | H13: 19 | I13: 5 | J13: 24 | K13: 4 | L13: 28 | M13: 15 | N13: 43 | O13: 24 | P13: 43 | Q13: 15 | R13: 58 | S13: 9 | T13: 67 | U13: 9 | V13: 74 | W13: 7 | X13: 81
B14: Subprograma de Monitoramento dos Eventos de Atropelamento de Fauna
B15: Número de indivíduos resgatados / Número de espécies identificados | C15: 1/1 | D15: 1/1 | E15: 8/6 | F15: 9/6 | G15: 9/6 | H15: 9/6 | I15: 3/3 | J15: 12/8 | K15: 1/1 | L15: 13/9 | M15: 3/2 | N15: 16/11 | O15: 7/6 | P15: 16/11 | Q15: 6/4 | R15: 22/11 | S15: 2/1 | T15: 24/12 | U15: 2/0 | V15: 24/13 | W15: 0/0 | X15: 24/13
A16: 0.11 | B16: Número de registros por km percorrido | C16: =VLOOKUP($B$16,'at-km'!$N$2:$W$7,C1,FALSE) -> 0.01 | D16: =VLOOKUP("Número acumulado de registros por km percorrido",'at-km'!$N$2:$W$7,D1,FALSE) -> 0.01 | E16: =VLOOKUP($B$16,'at-km'!$N$2:$W$7,E1,FALSE) -> 0.005 | F16: =VLOOKUP("Número acumulado de registros por km percorrido",'at-km'!$N$2:$W$7,F1,FALSE) -> 0.006666666667 | G16: =VLOOKUP(G1,'at-km'!$A$3:$K$6,9,FALSE) -> 0.006666666667 | H16: 0.006666666667 | I16: =VLOOKUP($B$16,'at-km'!$N$2:$W$7,I1,FALSE) -> 0.03 | J16: =VLOOKUP("Número acumulado de registros por km percorrido",'at-km'!$N$2:$W$7,J1,FALSE) -> 0.0125 | K16: =VLOOKUP($B$16,'at-km'!$N$2:$W$7,K1,FALSE) -> 0 | L16: =VLOOKUP("Número acumulado de registros por km percorrido",'at-km'!$N$2:$W$7,L1,FALSE) -> 0.008333333333 | M16: =VLOOKUP($B$16,'at-km'!$N$2:$W$7,M1,FALSE) -> 0 | N16: =VLOOKUP("Número acumulado de registros por km percorrido",'at-km'!$N$2:$W$7,N1,FALSE) -> 0.00625 | O16: =VLOOKUP(O1,'at-km'!$A$3:$K$6,9,FALSE) -> 0.006 | P16: 0.00625 | Q16: =VLOOKUP($B$16,'at-km'!$N$2:$W$7,Q1,FALSE) -> 0 | R16: =VLOOKUP("Número acumulado de registros por km percorrido",'at-km'!$N$2:$W$7,R1,FALSE) -> 0.005 | S16: =VLOOKUP($B$16,'at-km'!$N$2:$Z$7,S1,FALSE) -> 0 | T16: =VLOOKUP("Número acumulado de registros por km percorrido",'at-km'!$N$2:$Z$7,T1,FALSE) -> 0.004166666667 | U16: =VLOOKUP($B$16,'at-km'!$N$2:$Z$7,U1,FALSE) -> 0 | V16: =VLOOKUP("Número acumulado de registros por km percorrido",'at-km'!$N$2:$Z$7,V1,FALSE) -> 0.003571428571 | W16: 0.003571428571 | X16: 0
B17: Observações
B18: Animais armazenados no freezer da base de fauna (aguardando destinação final - Óbitos) | C18: 1 | D18: 1 | E18: 9 | F18: 10 | G18: 10 | H18: 10 | I18: 3 | J18: 13 | K18: 3 | L18: 4 | M18: 6 | N18: 10 | O18: 10 | P18: 10 | Q18: 10 | R18: 20 | S18: 3 | T18: 23 | U18: 3 | V18: 25 | W18: 0 | X18: 25
B19: Comentários | C19: 1 animal da quarentena foi reabilitado e solto (Copeoglossum nigropunctatum - ID 3, Calango-cobra) | K19: Nenhum animal destinado à UNIFAJ pertencia ao período de dezembro. Manteve-se 1 animal para atividades de educação ambiental. | M19: 1 animal passou por quarentena, porém não sobreviveu (Bothrops jararaca - ID 37, jacaraca-da-mata)
B20: frezer | D20: =D13-SUM(D9:D12) -> 1 | F20: =F13-SUM(F9:F12) -> 10 | H20: =H13-SUM(H9:H12) -> 10 | J20: =J13-SUM(J9:J12) -> 13 | L20: =L13-SUM(L9:L12) -> 4 | N20: =N13-SUM(N9:N12) -> 10 | P20: =P13-SUM(P9:P12) -> 10 | R20: =R13-SUM(R9:R12) -> 20 | T20: =T13-SUM(T9:T12) -> 23 | V20: =V13-SUM(V9:V12) -> 25 | X20: =X13-SUM(X9:X12) -> 25 | Z20: =Z13-SUM(Z9:Z12) -> 0
D21: =D20=D18 -> TRUE | F21: =F20=F18 -> TRUE | H21: =H20=H18 -> TRUE | J21: =J20=J18 -> TRUE | L21: =L20=L18 -> TRUE | N21: =N20=N18 -> TRUE | P21: =P20=P18 -> TRUE | R21: =R20=R18 -> TRUE | T21: =T20=T18 -> TRUE | V21: =V20=V18 -> TRUE | X21: =X20=X18 -> TRUE | Z21: =Z20=Z18 -> TRUE

Sheet at-km
A1: Nº de Atropelamentos | G1: dias | O1: 1º Quadrimestre | S1: 2º Quadrimestre | W1: 3º Quadrimestre
A2: Mês | B2: 1º mês | C2: 2º mês | D2: 3º mês | E2: 4º mês | F2: TOTAL | G2: Nº de Campanhas | H2: Kilometragem monitorada | I2: Média Nº Atrop. / km | J2: Nº de Profissionais | K2: Esforço amostral | N2: Mês | O2: 2020-06-01 | P2: 2020-07-01 | Q2: 2020-08-01 | R2: 2020-09-01 | S2: 2020-10-01 | T2: 2020-11-01 | U2: 2020-12-01 | V2: 2021-01-01 | W2: 2021-02-01 | X2: 2021-03-01 | Y2: 2021-04-01 | Z2: 2021-05-01
A3: 1º Quadrimestre | B3: 0 | C3: 0 | D3: 1 | E3: 1 | F3: =SUM(B3:E3) -> 2 | G3: 3 | H3: =G3*100 -> 300 | I3: =F3/H3 -> 0.006666666667 | J3: =G3*2 -> 6 | K3: =J3*G3*4/2 -> 36 | N3: Nº de Atropelamentos (campanha de monitoramento) | O3: 0 | P3: 0 | Q3: 1 | R3: 1 | S3: 0 | T3: 3 | U3: 0 | V3: 0 | W3: 0 | X3: 0 | Y3: 0 | Z3: 0
A4: 2º Quadrimestre | B4: 0 | C4: 3 | D4: 0 | E4: 0 | F4: =SUM(B4:E4) -> 3 | G4: 5 | H4: =G4*100 -> 500 | I4: =F4/H4 -> 0.006 | J4: =G4*2 -> 10 | K4: =J4*G4*4/2 -> 100 | N4: Nº de Campanhas | O4: 0 | P4: 0 | Q4: 1 | R4: 2 | S4: 0 | T4: 1 | U4: 2 | V4: 2 | W4: 2 | X4: 2 | Y4: 2 | Z4: 2
A5: 3º Quadrimestre | B5: 0 | C5: 0 | D5: 0 | E5: 0 | F5: =SUM(B5:E5) -> 0 | G5: 4 | H5: =G5*100 -> 400 | I5: =F5/H5 -> 0 | J5: =G5*2 -> 8 | K5: =J5*G5*4/2 -> 64 | N5: Kilometragem Monitorada | O5: =O4*100 -> 0 | P5: =P4*100 -> 0 | Q5: 100 | R5: 200 | S5: 0 | T5: 100 | U5: 200 | V5: 200 | W5: 200 | X5: =X4*100 -> 200 | Y5: =Y4*100 -> 200 | Z5: =Z4*100 -> 200
A6: Total | B6: =SUM(B3:B4) -> 0 | C6: 3 | D6: 1 | E6: 1 | F6: =SUM(B6:E6) -> 5 | G6: 8 | H6: 800 | I6: =F6/H6 -> 0.00625 | J6: =SUM(J3:J4) -> 16 | K6: =SUM(K3:K4) -> 136 | N6: Número de registros por km percorrido | O6: =IFERROR(ROUND(O3/O5,4),"-") -> - | P6: =IFERROR(ROUND(P3/P5,4),"-") -> - | Q6: 0.01 | R6: 0.005 | S6: - | T6: 0.03 | U6: 0 | V6: 0 | W6: 0 | X6: =IFERROR(ROUND(X3/X5,4),"-") -> 0 | Y6: =IFERROR(ROUND(Y3/Y5,4),"-") -> 0 | Z6: =IFERROR(ROUND(Z3/Z5,4),"-") -> 0
N7: Número acumulado de registros por km percorrido | O7: =IFERROR(SUM($O$3:O3)/SUM($O$5:O5),0) -> 0 | P7: =IFERROR(SUM($O$3:P3)/SUM($O$5:P5),0) -> 0 | Q7: =IFERROR(SUM($O$3:Q3)/SUM($O$5:Q5),0) -> 0.01 | R7: =IFERROR(SUM($O$3:R3)/SUM($O$5:R5),0) -> 0.006666666667 | S7: =IFERROR(SUM($O$3:S3)/SUM($O$5:S5),0) -> 0.006666666667 | T7: =IFERROR(SUM($O$3:T3)/SUM($O$5:T5),0) -> 0.0125 | U7: =IFERROR(SUM($O$3:U3)/SUM($O$5:U5),0) -> 0.008333333333 | V7: =IFERROR(SUM($O$3:V3)/SUM($O$5:V5),0) -> 0.00625 | W7: =IFERROR(SUM($O$3:W3)/SUM($O$5:W5),0) -> 0.005 | X7: =IFERROR(SUM($O$3:X3)/SUM($O$5:X5),0) -> 0.004166666667 | Y7: =IFERROR(SUM($O$3:Y3)/SUM($O$5:Y5),0) -> 0.003571428571 | Z7: =IFERROR(SUM($O$3:Z3)/SUM($O$5:Z5),0) -> 0.003125

Sheet Graf_1
A1: =Geral!CR19 -> Tipo | B1: =Geral!CS19 -> GRUPO | C1: =Geral!CT19 -> Contagem de Nome científico
A2: =Geral!CR20 -> AF | B2: =Geral!CS20 -> AVIFAUNA | C2: =Geral!CT20 -> 0
A3: =Geral!CR21 -> AF | B3: =Geral!CS21 -> HERPETOFAUNA | C3: =Geral!CT21 -> 0
A4: =Geral!CR22 -> AF | B4: =Geral!CS22 -> MASTOFAUNA | C4: =Geral!CT22 -> 0
A5: =Geral!CR23 -> AT | B5: =Geral!CS23 -> AVIFAUNA | C5: =Geral!CT23 -> 0
A6: =Geral!CR24 -> AT | B6: =Geral!CS24 -> HERPETOFAUNA | C6: 0
A7: =Geral!CR25 -> AT | B7: =Geral!CS25 -> MASTOFAUNA | C7: =Geral!CT25 -> 0
A8: =Geral!CR26 -> RE | B8: =Geral!CS26 -> AVIFAUNA | C8: 2
A9: =Geral!CR27 -> RE | B9: =Geral!CS27 -> HERPETOFAUNA | C9: 3
A10: =Geral!CR28 -> RE | B10: =Geral!CS28 -> MASTOFAUNA

Sheet GRAF-2(3)
A1: Nome científico | B1: Contagem de Nome científico
A2: Crotalus durissus | B2: 42
A3: Bothrops newiedi | B3: 7
A4: Dipsas mikanii | B4: 12
A5: Oxyrhopus guibei | B5: 12
A6: Amphisbaena alba | B6: 7
A7: Bothrops jararaca | B7: 13
A8: Bothrops alternatus | B8: 6
A9: Philodryas olfersii | B9: 6
A10: Dasypus novemcinctus | B10: 4
A11: Didelphis albiventris | B11: 3
A12: Salvator merianae | B12: 8
A13: Callithrix jacchus | B13: 2
A14: rythrolampus typhlus ssp brachhyrus | B14: 1
A15: Didelphis aurita | B15: 3
A16: Erythrolamprus aesculapii | B16: 2
A17: Psittacara leucophthalmus | B17: 11
A18: Tantilla melanocephala | B18: 2
A19: Apodemus sylvaticus | B19: 1
A20: Boa Constrictor | B20: 2
A21: Rupornis magnirostris | B21: 1
A22: Bothrops alternatus | B22: 2
A23: Microtus arvalis | B23: 2
A24: Calitrix pericilatta | B24: 1
A25: Cavia aparea | B25: 2
A26: Copeoglossum nigropunctatum | B26: 1
A27: Micrurus sp. | B27: 1
A28: Pygochelidon cyanoleuca | B28: 1
A29: Ramphastos toco | B29: 1
A30: Rhinella sp. | B30: 1
A31: mozama americana | B31: 1
A32: lepus europeus | B32: 1
A33: Philodryas nattereri | B33: 1
A34: dendocygha autumnalis | B34: 12
A35: philodryas patagoniensis | B35: 1
A36: Trachemys dorbigni | B36: 1
A37: Sicalis flaveola | B37: 1
A38: Taeniophallus afinnis | B38: 1
A39: Oxyrhopus trigeminus | B39: 1
A40: leophis typhlus | B40: 1
A41: Zenaida auriculata | B41: 1
A42: monodelphis dimidiata | B42: 3
A43: eryhrolampus paecilogyrus | B43: 1
A44: colaptes campestris | B44: 1

Sheet Geral_antigão
A1: Verificação de erros: | B1: MÊS DE INTERESSE | F1: 1 | CP1: AVIFAUNA | CQ1: HERPETOFAUNA | CS1: MASTOFAUNA | GD1: ATROPELAMENTO AO LONGO DO TEMPO
A2: =IF(B21+B22=B23,"OK","algo errado, vc levará um puxar de orelha da carol") -> algo errado, vc levará um puxar de orelha da carol | B2: ANO DE INTERESSE | F2: 2021 | CO2: regionalmente extinta | GD2: DATA | GE2: S - Riqueza | GF2: n - nº de Indivíduos
B3: HOJE | C3: =TODAY() -> 2023-08-04 | CO3: criticamente em perigo | GD3: 2020-08-01 | GE3: =GE24 -> 1 | GF3: =GF24 -> 1
A4: Quadro 4 - Indicadores | B4: ESSE MÊS | C4: =MONTH(C3) -> 8 | CO4: em perigo | GD4: 2020-09-01 | GE4: =GO24 -> 6 | GF4: =GP24 -> 8
B5: km rodados no mês | F5: 100 | CO5: vulnerável | GD5: 2020-11-01 | GE5: =GY24 -> 3 | GF5: =GZ24 -> 3
A6: PROGRAMA DE MONITORAMENTO E CONSERVAÇÃO DA FAUNA | CO6: quase ameaçada | GD6: 2020-12-01 | GE6: =HI24 -> 1 | GF6: =HJ24 -> 1
A7: Número total de animais resgatados (RE + AT com vida) [Indivíduo/espécie] | B7: =CONCATENATE(SUMIF(H31:H1048576,"RE",P31:P1048576)+SUMIF(H31:H1048576,"AT",P31:P1048576),"/",EA27) -> 43/20 | C7: =CONCATENATE(SUMIFS(P31:P1048576,E31:E1048576,C2,F31:F1048576,C1,H31:H1048576,"RE")+SUMIFS(P31:P1048576,E31:E1048576,C2,F31:F1048576,C1,H31:H1048576,"AT")+SUMIFS(P31:P1048576,E31:E1048576,D2,F31:F1048576,D1,H31:H1048576,"RE")+SUMIFS(P31:P1048576,E31:E1048576,D2,F31:F1048576,D1,H31:H1048576,"AT")+SUMIFS(P31:P1048576,E31:E1048576,E2,F31:F1048576,E1,H31:H1048576,"RE")+SUMIFS(P31:P1048576,E31:E1048576,E2,F31:F1048576,E1,H31:H1048576,"AT")+SUMIFS(P31:P1048576,E31:E1048576,F2,F31:F1048576,F1,H31:H1048576,"RE")+SUMIFS(P31:P1048576,E31:E1048576,F2,F31:F1048576,F1,H31:H1048576,"AT"),"/",BB20) -> 15/14 | E7: =VLOOKUP("VERDADEIRO",DX31:EH1048576,1,FALSE) ->  | CO7: dados insuficientes | GD7: 2021-01-01 | GE7: =HS24 -> 2 | GF7: =HT24 -> 3
A8: Subprograma de Resgate da Fauna Silvestre | E8: =VLOOKUP("VERDADEIRO",DX31:EH1048576,5,FALSE) ->  | CO8: Não listado
A9: Indicador | B9: Status Acumulado | C9: Status do período | E9: =VLOOKUP("VERDADEIRO",DX31:EH1048576,8,FALSE) -> 
B10: Indivíduo / Espécie | C10: Indivíduo / Espécie | E10: =VLOOKUP("VERDADEIRO",DX31:EH1048576,11,FALSE) -> 
A11: Afugentamento (número aproximado) | B11: =CONCATENATE(SUMIF(H31:H1048576,"AF",P31:P1048576),"/",AL19) -> 3/3 | C11: =CONCATENATE(SUMIFS(P31:P1048576,E31:E1048576,C2,F31:F1048576,C1,H31:H1048576,"AF")+SUMIFS(P31:P1048576,E31:E1048576,D2,F31:F1048576,D1,H31:H1048576,"AF")+SUMIFS(P31:P1048576,E31:E1048576,E2,F31:F1048576,E1,H31:H1048576,"AF")+SUMIFS(P31:P1048576,E31:E1048576,F2,F31:F1048576,F1,H31:H1048576,"AF"),"/",BB19) -> 0/0
A12: Número de animais resgatados (RE) [Indivíduo/espécie] | B12: =CONCATENATE(SUMIF(H31:H1048576,"RE",P31:P1048576),"/",DW27) -> 27/13 | C12: =CONCATENATE(SUMIFS(P31:P1048576,E31:E1048576,C2,F31:F1048576,C1,H31:H1048576,"RE")+SUMIFS(P31:P1048576,E31:E1048576,D2,F31:F1048576,D1,H31:H1048576,"RE")+SUMIFS(P31:P1048576,E31:E1048576,E2,F31:F1048576,E1,H31:H1048576,"RE")+SUMIFS(P31:P1048576,E31:E1048576,F2,F31:F1048576,F1,H31:H1048576,"RE"),"/",AU20) -> 12/5
A13: Subprograma de Recepção, Atendimento, e Destino dos Animais Silvestres | G13: SOMASES(P29:P1048576;E29:E1048576;C2;F29:F1048576;C1;$AB$29:$AB$1048576;"OPQ")+SOMASES(P29:P1048576;E29:E1048576;C2;F29:F1048576;D1;$AB$29:$AB$1048576;"OPQ")+SOMASES(P29:P1048576;E29:E1048576;C2;F29:F1048576;E1;$AB$29:$AB$1048576;"OPQ")+SOMASES(P29:P1048576;E29:E1048576;C2;F29:F1048576;F1;$AB$29:$AB$1048576;"OPQ")
A14: Destinação - Número de animais realocados (soltura imediata – sem quarentena). Obs. Soma dos animais recebidos na base e animais que não tiveram passagem na base. Porém não entram os de quarentena. | B14: =SUMIF($AB$31:$AB$1048576,"Soltura",P31:P1048576) -> 17 | C14: =SUMIFS(P31:P1048576,E31:E1048576,C2,F31:F1048576,C1,$AB$31:$AB$1048576,"Soltura")+SUMIFS(P31:P1048576,E31:E1048576,D2,F31:F1048576,D1,$AB$31:$AB$1048576,"Soltura")+SUMIFS(P31:P1048576,E31:E1048576,E2,F31:F1048576,E1,$AB$31:$AB$1048576,"Soltura")+SUMIFS(P31:P1048576,E31:E1048576,F2,F31:F1048576,F1,$AB$31:$AB$1048576,"Soltura") -> 8
A15: Destinação - Animais reabilitados e reintroduzidos na natureza (soltura) [Soltura pós-quarentena - SPQ] | B15: =SUMIF(AB31:AB1048576,"SPQ",P31:P1048576) -> 1 | C15: =SUMIFS(P31:P1048576,E31:E1048576,C2,F31:F1048576,C1,AB31:AB1048576,"SPQ")+SUMIFS(P31:P1048576,E31:E1048576,D2,F31:F1048576,D1,AB31:AB1048576,"SPQ")+SUMIFS(P31:P1048576,E31:E1048576,E2,F31:F1048576,E1,AB31:AB1048576,"SPQ")+SUMIFS(P31:P1048576,E31:E1048576,F2,F31:F1048576,F1,AB31:AB1048576,"SPQ") -> 0 | AU15: =COUNTIFS(AT31:AT1048576,AV17,AU31:AU1048576,AT20) -> 0
A16: Destinação - Óbitos pós-quarentena [OPQ] | B16: =SUMIF(AB31:AB1048576,"OPQ",P31:P1048576) -> 1 | C16: =SUMIFS(P31:P1048576,E31:E1048576,C2,F31:F1048576,C1,AB31:AB1048576,"OPQ")+SUMIFS(P31:P1048576,E31:E1048576,D2,F31:F1048576,D1,AB31:AB1048576,"OPQ")+SUMIFS(P31:P1048576,E31:E1048576,E2,F31:F1048576,E1,AB31:AB1048576,"OPQ")+SUMIFS(P31:P1048576,E31:E1048576,F2,F31:F1048576,F1,AB31:AB1048576,"OPQ") -> 1 | AU16: =COUNTIFS(AT31:AT1048576,AW17,AT31:AT1048576,AX17,AT31:AT1048576,AY17) -> 0
A17: Animais armazenados aguardando destinação final (Óbitos)* | B17: =SUMIF($AB$31:$AB$1048576,"Base de Fauna",P31:P1048576)+SUMIF($AB$31:$AB$1048576,"OPQ",P31:P1048576) -> 10 | C17: =SUMIFS(P31:P1048576,E31:E1048576,C2,F31:F1048576,C1,$AB$31:$AB$1048576,"Base de Fauna")+SUMIFS(P31:P1048576,E31:E1048576,D2,F31:F1048576,D1,$AB$31:$AB$1048576,"Base de Fauna")+SUMIFS(P31:P1048576,E31:E1048576,E2,F31:F1048576,E1,$AB$31:$AB$1048576,"Base de Fauna")+SUMIFS(P31:P1048576,E31:E1048576,F2,F31:F1048576,F1,$AB$31:$AB$1048576,"Base de Fauna")+SUMIFS(P31:P1048576,E31:E1048576,C2,F31:F1048576,C1,$AB$31:$AB$1048576,"OPQ")+SUMIFS(P31:P1048576,E31:E1048576,D2,F31:F1048576,D1,$AB$31:$AB$1048576,"OPQ")+SUMIFS(P31:P1048576,E31:E1048576,E2,F31:F1048576,E1,$AB$31:$AB$1048576,"OPQ")+SUMIFS(P31:P1048576,E31:E1048576,F2,F31:F1048576,F1,$AB$31:$AB$1048576,"OPQ") -> 6 | AT17: =B1 -> MÊS DE INTERESSE | AV17: =C1 -> 0 | AW17: =D1 -> 0 | AX17: =E1 -> 0 | AY17: =F1 -> 1
A18: Destinação - Encaminhamentos ao CRAS Mata Ciliar Soma dos animais (CRAS) | B18: =COUNTIFS($AB$31:$AB$1048576,"CRAS") -> 0 | C18: =SUMIFS(P31:P1048576,E31:E1048576,C2,F31:F1048576,C1,AB31:AB1048576,"CRAS")+SUMIFS(P31:P1048576,E31:E1048576,D2,F31:F1048576,D1,AB31:AB1048576,"CRAS")+SUMIFS(P31:P1048576,E31:E1048576,E2,F31:F1048576,E1,AB31:AB1048576,"CRAS")+SUMIFS(P31:P1048576,E31:E1048576,F2,F31:F1048576,F1,AB31:AB1048576,"CRAS") -> 0 | AK18: Programa | AL18: S - Riqueza | AM18: Destinação | AN18: S - Riqueza | AT18: Programa | AU18: S - Riqueza | AV18: Destinação | AW18: S - Riqueza | BA18: Programa | BB18: S - Riqueza
A19: Destinação - Óbitos/UNIFAJ - Jaguariúna | B19: =SUMIF($AB$31:$AB$1048576,"U",P31:P1048576) -> 0 | C19: =SUMIFS(P31:P1048576,AH31:AH1048576,C2,AI31:AI1048576,C1,$AB$31:$AB$1048576,"U")+SUMIFS(P31:P1048576,AH31:AH1048576,D2,AI31:AI1048576,D1,$AB$31:$AB$1048576,"U")+SUMIFS(P31:P1048576,AH31:AH1048576,E2,AI31:AI1048576,E1,$AB$31:$AB$1048576,"U")+SUMIFS(P31:P1048576,AH31:AH1048576,F2,AI31:AI1048576,F1,$AB$31:$AB$1048576,"U") -> 0 | AK19: AF | AL19: =COUNTIF($AM$31:$AM$1048576,AK19) -> 3 | AM19: S | AN19: =COUNTIF($AN$31:$AN$1048576,AM19) -> 0 | AT19: AF | AU19: =COUNTIFS($AT$31:$AT$1048576,$AV$17,$AU$31:$AU$1048576,AT19)+COUNTIFS($AT$31:$AT$1048576,$AW$17,$AU$31:$AU$1048576,AT19)+COUNTIFS($AT$31:$AT$1048576,$AX$17,$AU$31:$AU$1048576,AT19)+COUNTIFS($AT$31:$AT$1048576,$AY$17,$AU$31:$AU$1048576,AT19) -> 0 | AV19: S | BA19: AF | BB19: =COUNTA(BC31:BC1048576) -> 0
A20: Destinação - Óbito (descarte) | B20: =SUMIFS(P31:P1048576,$AB$31:$AB$1048576,"D") -> 0 | C20: =SUMIFS(P31:P1048576,E31:E1048576,C2,F31:F1048576,C1,AB31:AB1048576,"D")+SUMIFS(P31:P1048576,E31:E1048576,D2,F31:F1048576,D1,AB31:AB1048576,"D")+SUMIFS(P31:P1048576,E31:E1048576,E2,F31:F1048576,E1,AB31:AB1048576,"D")+SUMIFS(P31:P1048576,E31:E1048576,F2,F31:F1048576,F1,AB31:AB1048576,"D") -> 0 | AK20: RE | AL20: =COUNTIF($AM$31:$AM$1048576,AK20) -> 17 | AM20: CRAS | AN20: =COUNTIF($AN$31:$AN$1048576,AM20) -> 0 | AT20: RE | AU20: =COUNTIFS($AT$31:$AT$1048576,$AV$17,$AU$31:$AU$1048576,AT20)+COUNTIFS($AT$31:$AT$1048576,$AW$17,$AU$31:$AU$1048576,AT20)+COUNTIFS($AT$31:$AT$1048576,$AX$17,$AU$31:$AU$1048576,AT20)+COUNTIFS($AT$31:$AT$1048576,$AY$17,$AU$31:$AU$1048576,AT20) -> 5 | AV20: CRAS | BA20: RE e AT | BB20: =COUNTA(AZ31:AZ1048576) -> 14 | GE20: =GE27 -> ANO | GF20: =GF27 -> 2020 | GO20: =GO27 -> ANO | GP20: =GP27 -> 2020 | GY20: =GY27 -> ANO | GZ20: =GZ27 -> 2020 | HI20: =HI27 -> ANO | HJ20: =HJ27 -> 2020 | HS20: =HS27 -> ANO | HT20: =HT27 -> 2021 | IC20: =IC27 -> ANO | ID20: =ID27 -> 2021
A21: Recepção e atendimento de animais na Base de Fauna para atendimento (animal ferido) | B21: =SUMIF(V31:V1048576,"F",P31:P1048576) -> 0 | C21: =SUMIFS(P31:P1048576,E31:E1048576,C2,F31:F1048576,C1,V31:V1048576,"F")+SUMIFS(P31:P1048576,E31:E1048576,D2,F31:F1048576,D1,V31:V1048576,"F")+SUMIFS(P31:P1048576,E31:E1048576,E2,F31:F1048576,E1,V31:V1048576,"F")+SUMIFS(P31:P1048576,E31:E1048576,F2,F31:F1048576,F1,V31:V1048576,"F") -> 0 | AK21: AT | AL21: =COUNTIF($AM$31:$AM$1048576,AK21) -> 12 | AM21: U | AN21: =COUNTIF($AN$31:$AN$1048576,AM21) -> 0 | AT21: AT | AU21: =COUNTIFS($AT$31:$AT$1048576,$AV$17,$AU$31:$AU$1048576,AT21)+COUNTIFS($AT$31:$AT$1048576,$AW$17,$AU$31:$AU$1048576,AT21)+COUNTIFS($AT$31:$AT$1048576,$AX$17,$AU$31:$AU$1048576,AT21)+COUNTIFS($AT$31:$AT$1048576,$AY$17,$AU$31:$AU$1048576,AT21) -> 2 | AV21: U | BA21: AV | BB21: =COUNTA(BF31:BF1048576) -> 0 | GE21: =GE28 -> Mês | GF21: =GF28 -> 8 | GO21: =GO28 -> Mês | GP21: =GP28 -> 9 | GY21: =GY28 -> Mês | GZ21: =GZ28 -> 11 | HI21: =HI28 -> Mês | HJ21: =HJ28 -> 12 | HS21: =HS28 -> Mês | HT21: =HT28 -> 1 | IC21: =IC28 -> Mês | ID21: =ID28 -> (vazio)
A22: Animais sem passsagem na base de fauna | B22: =SUMIF(W31:W1048576,"Não",P31:P1048576)-SUMIF(H31:H1048576,"AV",P31:P1048576) -> 3 | C22: =SUMIFS(P31:P1048576,E31:E1048576,C2,F31:F1048576,C1,W31:W1048576,"Não")+SUMIFS(P31:P1048576,E31:E1048576,D2,F31:F1048576,D1,W31:W1048576,"Não")+SUMIFS(P31:P1048576,E31:E1048576,E2,F31:F1048576,E1,W31:W1048576,"Não")+SUMIFS(P31:P1048576,E31:E1048576,F2,F31:F1048576,F1,W31:W1048576,"Não") -> 0
A23: Recepção e atendimento de animais na Base de Fauna para atendimento (Todos) | B23: =SUMIF(W31:W1048576,"Sim",P31:P1048576) -> 27 | C23: =SUMIFS(P31:P1048576,E31:E1048576,C2,F31:F1048576,C1,W31:W1048576,"Sim")+SUMIFS(P31:P1048576,E31:E1048576,D2,F31:F1048576,D1,W31:W1048576,"Sim")+SUMIFS(P31:P1048576,E31:E1048576,E2,F31:F1048576,E1,W31:W1048576,"Sim")+SUMIFS(P31:P1048576,E31:E1048576,F2,F31:F1048576,F1,W31:W1048576,"Sim") -> 12
A24: Subprograma de Monitoramento dos Eventos de Atropelamento de Fauna | AK24: AV | AL24: =COUNTIF($AM$31:$AM$1048576,AK24) -> 0 | AM24: D | AN24: =COUNTIF($AN$31:$AN$1048576,AM24) -> 0 | AT24: AV | AU24: =COUNTIFS($AT$31:$AT$1048576,$AV$17,$AU$31:$AU$1048576,AT24)+COUNTIFS($AT$31:$AT$1048576,$AW$17,$AU$31:$AU$1048576,AT24)+COUNTIFS($AT$31:$AT$1048576,$AX$17,$AU$31:$AU$1048576,AT24)+COUNTIFS($AT$31:$AT$1048576,$AY$17,$AU$31:$AU$1048576,AT24) -> 0 | AV24: D | GE24: =GE30 -> 1 | GF24: =GF30 -> 1 | GO24: =GO30 -> 6 | GP24: =GP30 -> 8 | GY24: =GY30 -> 3 | GZ24: =GZ30 -> 3 | HI24: =HI30 -> 1 | HJ24: =HJ30 -> 1 | HS24: =HS30 -> 2 | HT24: =HT30 -> 3 | IC24: =IC30 -> 0 | ID24: =ID30 -> 0
A25: Número de indivíduos / Número de espécies - AVISTAMENTOS | B25: =CONCATENATE(SUMIF(H31:H1048576,"AV",P31:P1048576),"/",AL24) -> 0/0 | C25: =CONCATENATE(SUMIFS(P31:P1048576,E31:E1048576,C2,F31:F1048576,C1,H31:H1048576,"AV")+SUMIFS(P31:P1048576,E31:E1048576,D2,F31:F1048576,D1,H31:H1048576,"AV")+SUMIFS(P31:P1048576,E31:E1048576,E2,F31:F1048576,E1,H31:H1048576,"AV")+SUMIFS(P31:P1048576,E31:E1048576,F2,F31:F1048576,F1,H31:H1048576,"AV"),"/",BB21) -> 0/0 | AK25: RE e AT | AL25: =COUNTA(BK31:BK1048576) -> 20 | AM25: SPQ | AN25: =COUNTIF($AN$31:$AN$1048576,AM25) -> 1 | AV25: SPQ | AZ25: FILTRAR PARA O MÊS DE INTERESSE | BC25: FILTRAR PARA O MÊS DE INTERESSE | BF25: FILTRAR PARA O MÊS DE INTERESSE | BK25: FILTRAR PARA O MÊS DE INTERESSE | BO25: FILTRAR PARA O MÊS DE INTERESSE | BR25: FILTRAR PARA O MÊS DE INTERESSE
A26: Número de indivíduos resgatados / Número de espécies identificados | B26: =CONCATENATE(SUMIF(H31:H1048576,"AT",P31:P1048576),"/",ET30) -> 16/11 | C26: =CONCATENATE(SUMIFS(P31:P1048576,E31:E1048576,C2,F31:F1048576,C1,H31:H1048576,"AT")+SUMIFS(P31:P1048576,E31:E1048576,D2,F31:F1048576,D1,H31:H1048576,"AT")+SUMIFS(P31:P1048576,E31:E1048576,E2,F31:F1048576,E1,H31:H1048576,"AT")+SUMIFS(P31:P1048576,E31:E1048576,F2,F31:F1048576,F1,H31:H1048576,"AT"),"/",AU21) -> 3/2 | W26: Fórmula | AZ26: ANO | BA26: (Vários itens) | BC26: ANO | BD26: (Vários itens) | BF26: ANO | BG26: (Vários itens) | BK26: ANO | BL26: (Tudo) | BO26: ANO | BP26: (Tudo) | BR26: ANO | BS26: (Tudo) | DW26: RIQUEZA ACUMULADA - RE | EA26: RIQUEZA ACUMULADA - RE + AT | ED26: RIQUEZA ACUMULADA - AT | EG26: RIQUEZA ACUMULADA - AF
A27: Número de registros por km percorrido | B27: =SUMIF(H31:H1048576,"AT",P31:P1048576)/SUM(C5:BB5) -> 0.16 | C27: =(IF(C5=0,0,SUMIFS(P31:P1048576,F31:F1048576,C1,H31:H1048576,"AT")/C5)+(IF(D5=0,0,SUMIFS(P31:P1048576,F31:F1048576,D1,H31:H1048576,"AT")/D5)+(IF(E5=0,0,SUMIFS(P31:P1048576,F31:F1048576,E1,H31:H1048576,"AT")/E5)+(IF(F5=0,0,SUMIFS(P31:P1048576,F31:F1048576,F1,H31:H1048576,"AT")/F5))))) -> 0.03 | W27: =IF(H27="AV","Não",IF(H27="AT",IF(V27="Ferido","Sim",IF(V27="Morto","Não")))) -> FALSE | AA27: =COUNTIF(#REF!,"SIM") ->  | AT27: FILTRAR PARA O ANO DE INTERESSE | AZ27: Mês | BA27: (Vários itens) | BC27: Mês | BD27: (Vários itens) | BF27: Mês | BG27: (Vários itens) | BK27: Mês | BL27: (Vários itens) | BO27: Mês | BP27: (Vários itens) | BR27: Mês | BS27: (Vários itens) | DW27: =COUNTA(DW31:DW1048576) -> 13 | EA27: =COUNTA(EA31:EA1048576) -> 20 | ED27: =COUNTA(ED31:ED1048576) -> 11 | EG27: =COUNTA(EG31:EG1048576) -> 3 | EK27: TUDO | ET27: 1 -AT | FC27: 2 - RE | FL27: 3 - RE e AT | FU27: 4 - AF e AV | GE27: ANO | GF27: 2020 | GO27: ANO | GP27: 2020 | GY27: ANO | GZ27: 2020 | HI27: ANO | HJ27: 2020 | HS27: ANO | HT27: 2021 | IC27: ANO | ID27: 2021
AT28: ANO | AU28: (Vários itens) | AZ28: Tipo | BA28: (Vários itens) | BC28: Tipo | BD28: AF | BF28: Tipo | BG28: (Vários itens) | BK28: Tipo | BL28: (Vários itens) | BO28: Tipo | BP28: (Vários itens) | BR28: Tipo | BS28: (Vários itens) | BZ28: Tipo | CA28: AF | CD28: Tipo | CE28: AT | CH28: Tipo | CI28: RE | CK28: Tipo | CL28: (Vários itens) | CO28: Tipo | CP28: AF | CS28: Tipo | CT28: AT | CW28: Tipo | CX28: (Vários itens) | DA28: Tipo | DB28: AT | DF28: Tipo | DG28: (Vários itens) | DW28: Tipo | DX28: RE | EA28: Tipo | EB28: (Vários itens) | ED28: Tipo | EE28: AT | EG28: Tipo | EH28: AF | ET28: S - Riqueza | EU28: N - Número Total de Indivíduos | FC28: S - Riqueza | FD28: N - Número Total de Indivíduos | FL28: S - Riqueza | FM28: N - Número Total de Indivíduos | FU28: S - Riqueza | FV28: N - Número Total de Indivíduos | GE28: Mês | GF28: 8 | GO28: Mês | GP28: 9 | GY28: Mês | GZ28: 11 | HI28: Mês | HJ28: 12 | HS28: Mês | HT28: 1 | IC28: Mês | ID28: (vazio)
E29: DATA | G29: REGISTRO | I29: DETALHAMENTO DA ORIGEM/REGISTRO DE OCORRÊNCIA | Q29: IDENTIFICAÇÃO TAXONÔMICA | V29: DETALHAMENTO DO ATENDIMENTO/DESTINO | AF29: INFORMAÇÕES | AL29: ACUMULADO - Riqueza de cada Subprograma | AT29: FILTRAR PARA O MÊS DE INTERESSE - automático | AZ29: Riqueza de espécies RE e AT | BC29: Riqueza de espécies AF | BF29: Riqueza de espécies AV | BK29: ACUMULADO - Riqueza de espécies RE e AT | BO29: ACUMULADO - Riqueza de espécies RE | BR29: ACUMULADO - Riqueza de espécies AT | DP29: GRAF_2 | EK29: S - Riqueza | EL29: N - Número Total de Indivíduos | EP29: H' | EQ29: H máx | ER29: J | ET29: Tipo | EU29: AT | EY29: H' | EZ29: H máx | FA29: J | FC29: Tipo | FD29: RE | FH29: H' | FI29: H máx | FJ29: J | FL29: Tipo | FM29: (Vários itens) | FQ29: H' | FR29: H máx | FS29: J | FU29: Tipo | FV29: AF | FZ29: H' | GA29: H máx | GB29: J | GE29: Tipo | GF29: AT | GJ29: H' | GK29: H máx | GL29: J | GO29: Tipo | GP29: AT | GT29: H' | GU29: H máx | GV29: J | GY29: Tipo | GZ29: AT | HD29: H' | HE29: H máx | HF29: J | HI29: Tipo | HJ29: AT | HN29: H' | HO29: H máx | HP29: J | HS29: Tipo | HT29: AT | HX29: H' | HY29: H máx | HZ29: J | IC29: Tipo | ID29: (Tudo) | IH29: H' | II29: H máx | IJ29: J
E30: ANO | F30: Mês | G30: ID | H30: Tipo | I30: Data | J30: Hora do Registro | K30: Identificação do Local | L30: Coordenada Resgate X | M30: Coordenada Resgate Y | N30: Fitofisionomia/ Ambiente | O30: Condição Meteorológica | P30: NÚMERO DE INDIVÍDUOS | Q30: GRUPO | R30: ORDEM | S30: FAMÍLIA | T30: Nome científico | U30: Nome popular | V30: Cond. do Animal | W30: Base de Fauna | X30: Estágio de desenvolvimento (no resgate) | Y30: Sexo | Z30: Acidentada em decorrência da obra | AA30: Quarentena | AB30: Destino | AC30: Data de destinação | AD30: Coordenada Soltura X | AE30: Coordenada Soltura Y | AF30: Espécies categorizadas pelo Decreto 63.853/2018 | AG30: Informações adicionais | AH30: ANO destinação | AI30: Mês destinação | AJ30: 17:00:00 | AL30: Nome científico | AM30: Tipo | AN30: Destino | AO30: Cont.Núm - Nome científico* | AT30: Mês | AU30: Tipo | AV30: Nome científico | AW30: Contagem de Nome científico | AZ30: Nome científico | BA30: Contagem de Nome científico | BC30: Nome científico | BD30: Contagem de Nome científico | BF30: Nome científico | BG30: Contagem de Nome científico | BK30: Nome científico | BL30: Contagem de Nome científico | BO30: Nome científico | BP30: Contagem de Nome científico | BR30: Nome científico | BS30: Contagem de Nome científico | BV30: Tipo | BW30: GRUPO | BX30: Contagem de Nome científico | BZ30: GRUPO | CA30: Soma de NÚMERO DE INDIVÍDUOS | CD30: GRUPO | CE30: Soma de NÚMERO DE INDIVÍDUOS | CH30: GRUPO | CI30: Soma de NÚMERO DE INDIVÍDUOS | CK30: GRUPO | CL30: Soma de NÚMERO DE INDIVÍDUOS | CO30: GRUPO | CP30: Espécies categorizadas pelo Decreto 63.853/2018 | CQ30: Soma de NÚMERO DE INDIVÍDUOS | CS30: GRUPO | CT30: Espécies categorizadas pelo Decreto 63.853/2018 | CU30: Soma de NÚMERO DE INDIVÍDUOS | CW30: GRUPO | CX30: Espécies categorizadas pelo Decreto 63.853/2018 | CY30: Soma de NÚMERO DE INDIVÍDUOS | DA30: GRUPO | DB30: Espécies categorizadas pelo Decreto 63.853/2018 | DC30: Contagem de Espécies categorizadas pelo Decreto 63.853/2018 | DF30: GRUPO | DG30: Espécies categorizadas pelo Decreto 63.853/2018 | DH30: Contagem de Espécies categorizadas pelo Decreto 63.853/2018 | DP30: Tipo | DQ30: Nome científico | DR30: Contagem de Nome científico | DW30: Rótulos de Linha | EA30: Rótulos de Linha | ED30: Rótulos de Linha | EG30: Rótulos de Linha | EK30: =COUNTA(EK32:EK108) -> 22 | EL30: =SUM(EL32:EL108) -> 46 | EO30: =SUM(EO32:EO108) -> 1 | EP30: =SUM(EP32:EP108) ->  | EQ30: =LN(EK30) -> 3.091042453 | ER30: =EP30/EQ30 ->  | ET30: =COUNTA(ET32:ET108) -> 11 | EU30: =SUM(EU32:EU108) -> 16 | EX30: =SUM(EX32:EX108) -> 0.347826087 | EY30: =SUM(EY32:EY108) -> 1.169642226 | EZ30: =LN(ET30) -> 2.397895273 | FA30: =EY30/EZ30 -> 0.4877786946 | FC30: =COUNTA(FC32:FC108) -> 13 | FD30: =SUM(FD32:FD108) -> 27 | FG30: =SUM(FG32:FG108) -> 0.5869565217 | FH30: =SUM(FH32:FH108) -> 1.590117791 | FI30: =LN(FC30) -> 2.564949357 | FJ30: =FH30/FI30 -> 0.6199412031 | FL30: =COUNTA(FL32:FL108) -> 20 | FM30: =SUM(FM32:FM108) -> 43 | FP30: =SUM(FP32:FP108) -> 0.9347826087 | FQ30: =SUM(FQ32:FQ108) -> 2.559546616 | FR30: =LN(FL30) -> 2.995732274 | FS30: =FQ30/FR30 -> 0.8543976505 | FU30: =COUNTA(FU32:FU108) -> 3 | FV30: =SUM(FV32:FV108) -> 3 | FY30: =SUM(FY32:FY108) -> 0.0652173913 | FZ30: =SUM(FZ32:FZ108) ->  | GA30: =LN(FU30) -> 1.098612289 | GB30: =FZ30/GA30 ->  | GE30: =COUNTA(GE32:GE108) -> 1 | GF30: =SUM(GF32:GF108) -> 1 | GI30: =SUM(GI32:GI108) -> 0.02173913043 | GJ30: =SUM(GJ32:GJ108) ->  | GK30: =LN(GE30) -> 0 | GL30: =GJ30/GK30 ->  | GO30: =COUNTA(GO32:GO108) -> 6 | GP30: =SUM(GP32:GP108) -> 8 | GS30: =SUM(GS32:GS108) -> 0.1739130435 | GT30: =SUM(GT32:GT108) ->  | GU30: =LN(GO30) -> 1.791759469 | GV30: =GT30/GU30 ->  | GY30: =COUNTA(GY32:GY108) -> 3 | GZ30: =SUM(GZ32:GZ108) -> 3 | HC30: =SUM(HC32:HC108) -> 0.0652173913 | HD30: =SUM(HD32:HD108) ->  | HE30: =LN(GY30) -> 1.098612289 | HF30: =HD30/HE30 ->  | HI30: =COUNTA(HI32:HI108) -> 1 | HJ30: =SUM(HJ32:HJ108) -> 1 | HM30: =SUM(HM32:HM108) -> 0.02173913043 | HN30: =SUM(HN32:HN108) ->  | HO30: =LN(HI30) -> 0 | HP30: =HN30/HO30 ->  | HS30: =COUNTA(HS32:HS108) -> 2 | HT30: =SUM(HT32:HT108) -> 3 | HW30: =SUM(HW32:HW108) -> 0.0652173913 | HX30: =SUM(HX32:HX108) ->  | HY30: =LN(HS30) -> 0.6931471806 | HZ30: =HX30/HY30 ->  | IC30: =COUNTA(IC32:IC108) -> 0 | ID30: =SUM(ID32:ID108) -> 0 | IG30: =SUM(IG32:IG108) -> 0 | IH30: =SUM(IH32:IH108) ->  | II30: =LN(IC30) ->  | IJ30: =IH30/II30 -> 
E31: =IF(I31="","-",YEAR(I31)) -> 2020 | F31: =IF(I31="","-",MONTH(I31)) -> 8 | G31: 1 | H31: RE | I31: 2020-08-13 | J31: 13:10:00 | K31: Canteiro de Apoio | L31: 308210 | M31: 7490892 | N31: Campo Antrópico | O31: Ensolarado | P31: 1 | Q31: HERPETOFAUNA | R31: Squamata | S31: Dipsadidae | T31: Oxyrhopus guibei | U31: Falsa-coral | V31: Saudável | W31: Sim | X31: Adulto | Y31: Fêmea | Z31: Não | AA31: Não | AB31: Soltura | AC31: 2020-08-13 | AD31: 310715 | AE31: 7492902 | AF31: Não | AG31: - | AH31: =IF(AC31="-","-",YEAR(AC31)) -> 2020 | AI31: =IF(AC31="-","-",MONTH(AC31)) -> 8 | AL31: Calitrix pericilatta | AM31: AF | AN31: - | AO31: 1 | AT31: 8 | AU31: AF | AV31: Calitrix pericilatta | AW31: 1 | AZ31: Crotalus durissus | BA31: 5 | BK31: Amphisbaena alba | BL31: 2 | BO31: Apodemus sylvaticus | BP31: 1 | BR31: Crotalus durissus | BS31: 5 | BV31: AF | BW31: HERPETOFAUNA | BX31: 1 | BZ31: HERPETOFAUNA | CA31: 1 | CD31: HERPETOFAUNA | CE31: 12 | CH31: AVIFAUNA | CI31: 3 | CO31: HERPETOFAUNA | CP31: - | CQ31: 1 | CS31: HERPETOFAUNA | CT31: (vazio) | CU31: 12 | CW31: Total Geral | DA31: HERPETOFAUNA | DB31: (vazio) | DF31: AVIFAUNA | DG31: Não | DH31: 3 | DP31: AT | DQ31: Dasypus novemcinctus | DR31: 1 | DW31: Apodemus sylvaticus | DX31: =DW31=DW32 -> FALSE | EA31: Amphisbaena alba | EB31: =EA31=EA32 -> FALSE | ED31: Amphisbaena alba | EE31: =ED31=ED32 -> FALSE | EG31: Calitrix pericilatta | EH31: =EG31=EG32 -> FALSE | EK31: Nome científico | EL31: Contagem de Nome científico | EM31: =EK31 -> Nome científico | EN31: n - Número de Indivíduos por espécie | EO31: pi | EP31: (-1)*pi*ln(pi) | EQ31: ln(S) | ER31: H'/H máx | ET31: Nome científico | EU31: Contagem de Nome científico | EV31: =ET31 -> Nome científico | EW31: n - Número de Indivíduos por espécie | EX31: pi | EY31: (-1)*pi*ln(pi) | EZ31: ln(S) | FA31: H'/H máx | FC31: Nome científico | FD31: Contagem de Nome científico | FE31: =FC31 -> Nome científico | FF31: n - Número de Indivíduos por espécie | FG31: pi | FH31: (-1)*pi*ln(pi) | FI31: ln(S) | FJ31: H'/H máx | FL31: Nome científico | FM31: Contagem de Nome científico | FN31: =FL31 -> Nome científico | FO31: n - Número de Indivíduos por espécie | FP31: pi | FQ31: (-1)*pi*ln(pi) | FR31: ln(S) | FS31: H'/H máx | FU31: Nome científico | FV31: Contagem de Nome científico | FW31: =FU31 -> Nome científico | FX31: n - Número de Indivíduos por espécie | FY31: pi | FZ31: (-1)*pi*ln(pi) | GA31: ln(S) | GB31: H'/H máx | GE31: Nome científico | GF31: Contagem de Nome científico | GH31: n - Número de Indivíduos por espécie | GI31: pi | GJ31: (-1)*pi*ln(pi) | GK31: ln(S) | GL31: H'/H máx | GO31: Nome científico | GP31: Contagem de Nome científico | GR31: n - Número de Indivíduos por espécie | GS31: pi | GT31: (-1)*pi*ln(pi) | GU31: ln(S) | GV31: H'/H máx | GY31: Nome científico | GZ31: Contagem de Nome científico | HB31: n - Número de Indivíduos por espécie | HC31: pi | HD31: (-1)*pi*ln(pi) | HE31: ln(S) | HF31: H'/H máx | HI31: Nome científico | HJ31: Contagem de Nome científico | HL31: n - Número de Indivíduos por espécie | HM31: pi | HN31: (-1)*pi*ln(pi) | HO31: ln(S) | HP31: H'/H máx | HS31: Nome científico | HT31: Contagem de Nome científico | HV31: n - Número de Indivíduos por espécie | HW31: pi | HX31: (-1)*pi*ln(pi) | HY31: ln(S) | HZ31: H'/H máx | IC31: Nome científico | ID31: Contagem de Nome científico | IF31: n - Número de Indivíduos por espécie | IG31: pi | IH31: (-1)*pi*ln(pi) | II31: ln(S) | IJ31: H'/H máx
E32: 2020 | F32: 8 | G32: 2 | H32: RE | I32: 2020-08-14 | J32: 15:05:00 | K32: Canteiro de Apoio | L32: 308529 | M32: 7491337 | N32: Campo Antrópico | O32: Ensolarado | P32: 1 | Q32: HERPETOFAUNA | R32: Squamata | S32: Colubridae | T32: Philodryas olfersii | U32: Cobra-verde | V32: Saudável | W32: Sim | X32: Adulto | Y32: Macho | Z32: Não | AA32: Não | AB32: Soltura | AC32: 2020-08-14 | AD32: 310719 | AE32: 7492752 | AF32: Não | AG32: - | AH32: =IF(AC32="-","-",YEAR(AC32)) -> 2020 | AI32: =IF(AC32="-","-",MONTH(AC32)) -> 8 | AL32: Dasypus novemcinctus | AM32: AF | AN32: - | AO32: 1 | AT32: 8 | AU32: AF | AV32: Dasypus novemcinctus | AW32: 1 | AZ32: Bothrops jararaca | BA32: 4 | BK32: Apodemus sylvaticus | BL32: 1 | BO32: Copeoglossum nigropunctatum | BP32: 1 | BR32: Dasypus novemcinctus | BS32: 1 | BV32: AF | BW32: MASTOFAUNA | BX32: 2 | BZ32: MASTOFAUNA | CA32: 2 | CD32: MASTOFAUNA | CE32: 3 | CH32: HERPETOFAUNA | CI32: 21 | CO32: MASTOFAUNA | CP32: - | CQ32: 2 | CS32: MASTOFAUNA | CT32: (vazio) | CU32: 3 | DA32: MASTOFAUNA | DB32: (vazio) | DF32: HERPETOFAUNA | DG32: (vazio) | DP32: AT | DQ32: Didelphis albiventris | DR32: 1 | DW32: Bothrops jararaca | DX32: =DW32=DW33 -> FALSE | EA32: Apodemus sylvaticus | EB32: =EA32=EA33 -> FALSE | ED32: Callithrix jacchus | EE32: =ED32=ED33 -> FALSE | EG32: Dasypus novemcinctus | EH32: =EG32=EG33 -> FALSE | EK32: Apodemus sylvaticus | EL32: 1 | EM32: Apodemus sylvaticus | EN32: =EL32 -> 1 | EO32: =EN32/$EL$30 -> 0.02173913043 | EP32: =(-1)*EO32*LN(EO32) -> 0.08323133471 | ET32: Dasypus novemcinctus | EU32: 1 | EV32: Dasypus novemcinctus | EW32: =EU32 -> 1 | EX32: =EW32/$EL$30 -> 0.02173913043 | EY32: =(-1)*EX32*LN(EX32) -> 0.08323133471 | FC32: Apodemus sylvaticus | FD32: 1 | FE32: Apodemus sylvaticus | FF32: =FD32 -> 1 | FG32: =FF32/$EL$30 -> 0.02173913043 | FH32: =(-1)*FG32*LN(FG32) -> 0.08323133471 | FL32: Apodemus sylvaticus | FM32: 1 | FN32: Apodemus sylvaticus | FO32: =FM32 -> 1 | FP32: =FO32/$EL$30 -> 0.02173913043 | FQ32: =(-1)*FP32*LN(FP32) -> 0.08323133471 | FU32: Calitrix pericilatta | FV32: 1 | FW32: Calitrix pericilatta | FX32: =FV32 -> 1 | FY32: =FX32/$EL$30 -> 0.02173913043 | FZ32: =(-1)*FY32*LN(FY32) -> 0.08323133471 | GE32: Dipsas mikanii | GF32: 1 | GH32: =GF32 -> 1 | GI32: =GH32/$EL$30 -> 0.02173913043 | GJ32: =(-1)*GI32*LN(GI32) -> 0.08323133471 | GO32: Didelphis albiventris | GP32: 1 | GR32: =GP32 -> 1 | GS32: =GR32/$EL$30 -> 0.02173913043 | GT32: =(-1)*GS32*LN(GS32) -> 0.08323133471 | GY32: Dasypus novemcinctus | GZ32: 1 | HB32: =GZ32 -> 1 | HC32: =HB32/$EL$30 -> 0.02173913043 | HD32: =(-1)*HC32*LN(HC32) -> 0.08323133471 | HI32: Callithrix jacchus | HJ32: 1 | HL32: =HJ32 -> 1 | HM32: =HL32/$EL$30 -> 0.02173913043 | HN32: =(-1)*HM32*LN(HM32) -> 0.08323133471 | HS32: Philodryas olfersii | HT32: 1 | HV32: =HT32 -> 1 | HW32: =HV32/$EL$30 -> 0.02173913043 | HX32: =(-1)*HW32*LN(HW32) -> 0.08323133471 | IF32: =ID32 -> 0 | IG32: =IF32/$EL$30 -> 0 | IH32: =(-1)*IG32*LN(IG32) -> 
E33: 2020 | F33: 8 | G33: 3 | H33: RE | I33: 2020-08-24 | J33: 16:49:00 | K33: Canteiro de Apoio | L33: 307556 | M33: 7490619 | N33: Campo Antrópico | O33: Ensolarado | P33: 1 | Q33: HERPETOFAUNA | R33: Squamata | S33: Mabuydae | T33: Copeoglossum nigropunctatum | U33: Calango-cobra | V33: Ferido | W33: Sim | X33: Adulto | Y33: ND | Z33: Sim | AA33: Sim | AB33: SPQ | AC33: 2020-08-25 | AD33: 310917 | AE33: 7492652 | AF33: Não | AG33: - | AH33: 2020 | AI33: 8 | AL33: Dasypus novemcinctus | AM33: AT | AN33: UNIFAJ | AO33: 1 | AT33: 8 | AU33: AF | AV33: Salvator merianae | AW33: 1 | AZ33: Dipsas mikanii | BA33: 3 | BK33: Bothrops jararaca | BL33: 4 | BO33: Crotalus durissus | BP33: 8 | BR33: Dipsas mikanii | BS33: 3 | BV33: AT | BW33: HERPETOFAUNA | BX33: 12 | CD33: MASTOFAUNA | CE33: 1 | CH33: MASTOFAUNA | CI33: 3 | CO33: Total Geral | CQ33: 3 | CS33: MASTOFAUNA | CT33: (vazio) | CU33: 1 | DA33: MASTOFAUNA | DB33: (vazio) | DG33: - | DH33: 1 | DP33: AT | DQ33: Didelphis aurita | DR33: 1 | DW33: Cavia aparea | DX33: FALSE | EA33: Bothrops jararaca | EB33: FALSE | ED33: Dasypus novemcinctus | EE33: FALSE | EG33: Salvator merianae | EH33: =EG33=EG34 -> FALSE | EK33: Calitrix pericilatta | EL33: 1 | EM33: Calitrix pericilatta | EN33: 1 | EO33: 0.02173913043 | EP33: =(-1)*EO33*LN(EO33) -> 0.08323133471 | ET33: Didelphis albiventris | EU33: 1 | EV33: Didelphis albiventris | EW33: 1 | EX33: 0.02173913043 | EY33: =(-1)*EX33*LN(EX33) -> 0.08323133471 | FC33: Copeoglossum nigropunctatum | FD33: 1 | FE33: Copeoglossum nigropunctatum | FF33: 1 | FG33: 0.02173913043 | FH33: =(-1)*FG33*LN(FG33) -> 0.08323133471 | FL33: Copeoglossum nigropunctatum | FM33: 1 | FN33: Copeoglossum nigropunctatum | FO33: 1 | FP33: 0.02173913043 | FQ33: =(-1)*FP33*LN(FP33) -> 0.08323133471 | FU33: Dasypus novemcinctus | FV33: 1 | FW33: Dasypus novemcinctus | FX33: 1 | FY33: 0.02173913043 | FZ33: =(-1)*FY33*LN(FY33) -> 0.08323133471 | GH33: 0 | GI33: 0 | GJ33: =(-1)*GI33*LN(GI33) ->  | GO33: Didelphis aurita | GP33: 1 | GR33: 1 | GS33: 0.02173913043 | GT33: =(-1)*GS33*LN(GS33) -> 0.08323133471 | GY33: Erythrolamprus aesculapii | GZ33: 1 | HB33: 1 | HC33: 0.02173913043 | HD33: =(-1)*HC33*LN(HC33) -> 0.08323133471 | HL33: 0 | HM33: 0 | HN33: =(-1)*HM33*LN(HM33) ->  | HS33: Amphisbaena alba | HT33: 2 | HV33: 2 | HW33: 0.04347826087 | HX33: =(-1)*HW33*LN(HW33) -> 0.1363258355 | IF33: 0 | IG33: 0 | IH33: =(-1)*IG33*LN(IG33) -> 
E34: 2020 | F34: 8 | G34: - | H34: AF | I34: 2020-08-20 | J34: - | K34: Área 17 | L34: 307474 | M34: 7490683 | N34: Fragmento Florestal | O34: Ensolarado | P34: 1 | Q34: MASTOFAUNA | R34: Primata | S34: Cebidae | T34: Calitrix pericilatta | U34: Sagui Tufo Preto | V34: Saudável | W34: Não | X34: Adulto | Y34: ND | Z34: Não | AA34: Não | AB34: - | AC34: - | AD34: - | AE34: - | AF34: - | AG34: - | AH34: - | AI34: - | AL34: (vazio) | AM34: (vazio) | AN34: (vazio) | AT34: 8 | AU34: RE | AV34: Copeoglossum nigropunctatum | AW34: 1 | AZ34: Amphisbaena alba | BA34: 2 | BK34: Callithrix jacchus | BL34: 1 | BO34: Dasypus novemcinctus | BP34: 1 | BR34: Erythrolamprus aesculapii | BS34: 1 | BV34: AT | BW34: MASTOFAUNA | BX34: 3 | CS34: Total Geral | CU34: 16 | DA34: Total Geral | DG34: Não | DH34: 21 | DP34: AT | DQ34: Dipsas mikanii | DR34: 2 | DW34: Copeoglossum nigropunctatum | DX34: FALSE | EA34: Callithrix jacchus | EB34: FALSE | ED34: Didelphis albiventris | EE34: FALSE | EK34: Copeoglossum nigropunctatum | EL34: 1 | EM34: Copeoglossum nigropunctatum | EN34: 1 | EO34: 0.02173913043 | EP34: 0.08323133471 | ET34: Didelphis aurita | EU34: 1 | EV34: Didelphis aurita | EW34: 1 | EX34: 0.02173913043 | EY34: 0.08323133471 | FC34: Crotalus durissus | FD34: 8 | FE34: Crotalus durissus | FF34: 8 | FG34: 0.1739130435 | FH34: 0.3042086704 | FL34: Crotalus durissus | FM34: 8 | FN34: Crotalus durissus | FO34: 8 | FP34: 0.1739130435 | FQ34: 0.3042086704 | FU34: Salvator merianae | FV34: 1 | FW34: Salvator merianae | FX34: 1 | FY34: 0.02173913043 | FZ34: 0.08323133471 | GH34: 0 | GI34: 0 | GO34: Dipsas mikanii | GP34: 1 | GR34: 1 | GS34: 0.02173913043 | GT34: 0.08323133471 | GY34: Salvator meirianae | GZ34: 1 | HB34: 1 | HC34: 0.02173913043 | HD34: 0.08323133471 | HL34: 0 | HM34: 0 | HV34: 0 | HW34: 0 | IF34: 0 | IG34: 0
E35: 2020 | F35: 8 | G35: - | H35: AF | I35: 2020-08-24 | J35: - | K35: Área 07 | L35: 307564 | M35: 7490497 | N35: Fragmento Florestal | O35: Ensolarado | P35: 1 | Q35: HERPETOFAUNA | R35: Squamata | S35: Teiidae | T35: Salvator merianae | U35: Teiú | V35: Saudável | W35: Não | X35: Adulto | Y35: ND | Z35: Não | AA35: Não | AB35: - | AC35: - | AD35: - | AE35: - | AF35: - | AG35: - | AH35: - | AI35: - | AL35: Didelphis albiventris | AM35: RE | AN35: UNIFAJ | AO35: 1 | AT35: 8 | AU35: RE | AV35: Oxyrhopus guibei | AW35: 1 | AZ35: Callithrix jacchus | BA35: 1 | BK35: Cavia aparea | BL35: 1 | BO35: Didelphis albiventris | BP35: 2 | BR35: Philodryas olfersii | BS35: 1 | BV35: AT | BW35: MASTOFAUNA | BX35: 1 | DF35: MASTOFAUNA | DG35: (vazio) | DP35: AT | DQ35: Erythrolamprus aesculapii | DR35: 2 | DW35: Crotalus durissus | DX35: FALSE | EA35: Cavia aparea | EB35: FALSE | ED35: Didelphis aurita | EE35: FALSE | EK35: Crotalus durissus | EL35: 8 | EM35: Crotalus durissus | EN35: 8 | EO35: 0.1739130435 | EP35: 0.3042086704 | ET35: Dipsas mikanii | EU35: 2 | EV35: Dipsas mikanii | EW35: 2 | EX35: 0.04347826087 | EY35: 0.1363258355 | FC35: Didelphis albiventris | FD35: 1 | FE35: Didelphis albiventris | FF35: 1 | FG35: 0.02173913043 | FH35: 0.08323133471 | FL35: Dasypus novemcinctus | FM35: 1 | FN35: Dasypus novemcinctus | FO35: 1 | FP35: 0.02173913043 | FQ35: 0.08323133471 | FW35: 0 | FX35: 0 | FY35: 0 | GH35: 0 | GI35: 0 | GO35: Erythrolamprus aesculapii | GP35: 1 | GR35: 1 | GS35: 0.02173913043 | GT35: 0.08323133471 | HB35: 0 | HC35: 0 | HL35: 0 | HM35: 0 | HV35: 0 | HW35: 0 | IF35: 0 | IG35: 0
E36: 2020 | F36: 8 | G36: - | H36: AF | I36: 2020-08-31 | J36: - | K36: Área 35 | L36: 308849 | M36: 7490811 | N36: Fragmento Florestal | O36: Ensolarado | P36: 1 | Q36: MASTOFAUNA | R36: Cingulata | S36: Dasypodidae | T36: Dasypus novemcinctus | U36: Tatu Galinha | V36: Saudável | W36: Não | X36: Adulto | Y36: ND | Z36: Não | AA36: Não | AB36: - | AC36: - | AD36: - | AE36: - | AF36: - | AG36: - | AH36: - | AI36: - | AL36: Didelphis albiventris | AM36: AT | AN36: UNIFAJ | AO36: 1 | AT36: 8 | AU36: RE | AV36: Philodryas olfersii | AW36: 1 | AZ36: Salvator meirianae | BA36: 1 | BK36: Copeoglossum nigropunctatum | BL36: 1 | BO36: Didelphis aurita | BP36: 1 | BR36: Pygochelidon cyanoleuca | BS36: 1 | BV36: RE | BW36: AVIFAUNA | BX36: 3 | DG36: - | DH36: 2 | DP36: AT | DQ36: Micrurus sp. | DR36: 1 | DW36: Didelphis albiventris | DX36: FALSE | EA36: Copeoglossum nigropunctatum | EB36: FALSE | ED36: Dipsas mikanii | EE36: FALSE | EK36: Dasypus novemcinctus | EL36: 2 | EM36: Dasypus novemcinctus | EN36: 2 | EO36: 0.04347826087 | EP36: 0.1363258355 | ET36: Erythrolamprus aesculapii | EU36: 2 | EV36: Erythrolamprus aesculapii | EW36: 2 | EX36: 0.04347826087 | EY36: 0.1363258355 | FC36: Dipsas mikanii | FD36: 5 | FE36: Dipsas mikanii | FF36: 5 | FG36: 0.1086956522 | FH36: 0.24121777 | FL36: Didelphis albiventris | FM36: 2 | FN36: Didelphis albiventris | FO36: 2 | FP36: 0.04347826087 | FQ36: 0.1363258355 | FW36: 0 | FX36: 0 | FY36: 0 | GH36: 0 | GI36: 0 | GO36: Micrurus sp. | GP36: 1 | GR36: 1 | GS36: 0.02173913043 | GT36: 0.08323133471 | HB36: 0 | HC36: 0 | HL36: 0 | HM36: 0 | HV36: 0 | HW36: 0 | IF36: 0 | IG36: 0
E37: 2020 | F37: 9 | G37: 7 | H37: RE | I37: 2020-09-14 | J37: 09:48:00 | K37: Área 03 | L37: 309841 | M37: 7492242 | N37: Fragmento Florestal | O37: Ensolarado | P37: 1 | Q37: HERPETOFAUNA | R37: Squamata | S37: Dipsadidae | T37: Dipsas mikanii | U37: Jararaca-dormideira | V37: Saudável | W37: Sim | X37: Jovem | Y37: Fêmea | Z37: Não | AA37: Não | AB37: Soltura | AC37: 2020-09-14 | AD37: 310906 | AE37: 7492656 | AF37: Não | AG37: - | AH37: =IF(AC37="-","-",YEAR(AC37)) -> 2020 | AI37: 9 | AL37: Didelphis aurita | AM37: AT | AN37: UNIFAJ | AO37: 1 | AT37: 8 | AU37: AT | AV37: Dipsas mikanii | AW37: 1 | AZ37: Erythrolamprus aesculapii | BA37: 1 | BK37: Crotalus durissus | BL37: 8 | BO37: Dipsas mikanii | BP37: 7 | BR37: Ramphastos toco | BS37: 1 | BV37: RE | BW37: HERPETOFAUNA | BX37: 21 | DG37: Não | DH37: 3 | DP37: AT | DQ37: Oxyrhopus guibei | DR37: 3 | DW37: Dipsas mikanii | DX37: FALSE | EA37: Crotalus durissus | EB37: FALSE | ED37: Erythrolamprus aesculapii | EE37: FALSE | EK37: Didelphis albiventris | EL37: 2 | EM37: Didelphis albiventris | EN37: 2 | EO37: 0.04347826087 | EP37: 0.1363258355 | ET37: Micrurus sp. | EU37: 1 | EV37: Micrurus sp. | EW37: 1 | EX37: 0.02173913043 | EY37: 0.08323133471 | FC37: Oxyrhopus guibei | FD37: 1 | FE37: Oxyrhopus guibei | FF37: 1 | FG37: 0.02173913043 | FH37: 0.08323133471 | FL37: Didelphis aurita | FM37: 1 | FN37: Didelphis aurita | FO37: 1 | FP37: 0.02173913043 | FQ37: 0.08323133471 | FW37: 0 | FX37: 0 | FY37: 0 | GH37: 0 | GI37: 0 | GO37: Oxyrhopus guibei | GP37: 3 | GR37: 3 | GS37: 0.0652173913 | GT37: 0.1780453766 | HB37: 0 | HC37: 0 | HL37: 0 | HM37: 0 | HV37: 0 | HW37: 0 | IF37: 0 | IG37: 0
E38: 2020 | F38: 9 | G38: 8 | H38: RE | I38: 2020-09-14 | J38: 11:05:00 | K38: Área 03 | L38: 310192 | M38: 7492168 | N38: Fragmento Florestal | O38: Ensolarado | P38: 1 | Q38: MASTOFAUNA | R38: Rodentia | S38: Muridae | T38: Apodemus sylvaticus | U38: Rato-do-campo | V38: Saudável | W38: Sim | X38: Adulto | Y38: Macho | Z38: Não | AA38: Não | AB38: Soltura | AC38: 2020-09-14 | AD38: 310906 | AE38: 7492654 | AF38: Não | AG38: - | AH38: 2020 | AI38: 9 | AL38: Erythrolamprus aesculapii | AM38: AT | AN38: UNIFAJ | AO38: 2 | AT38: 9 | AU38: RE | AV38: Apodemus sylvaticus | AW38: 1 | AZ38: Zenaida auriculata | BA38: 1 | BK38: Dasypus novemcinctus | BL38: 1 | BO38: Erythrolamprus aesculapii | BP38: 2 | BR38: Callithrix jacchus | BS38: 1 | BV38: RE | BW38: MASTOFAUNA | BX38: 3 | DF38: MASTOFAUNA | DG38: (vazio) | DP38: AT | DQ38: Philodryas olfersii | DR38: 1 | DW38: Oxyrhopus guibei | DX38: FALSE | EA38: Dasypus novemcinctus | EB38: FALSE | ED38: Micrurus sp. | EE38: FALSE | EK38: Didelphis aurita | EL38: 1 | EM38: Didelphis aurita | EN38: 1 | EO38: 0.02173913043 | EP38: 0.08323133471 | ET38: Oxyrhopus guibei | EU38: 3 | EV38: Oxyrhopus guibei | EW38: 3 | EX38: 0.0652173913 | EY38: 0.1780453766 | FC38: Philodryas olfersii | FD38: 1 | FE38: Philodryas olfersii | FF38: 1 | FG38: 0.02173913043 | FH38: 0.08323133471 | FL38: Dipsas mikanii | FM38: 7 | FN38: Dipsas mikanii | FO38: 7 | FP38: 0.152173913 | FQ38: 0.2865025811 | FW38: 0 | FX38: 0 | FY38: 0 | GH38: 0 | GI38: 0 | GR38: 0 | GS38: 0 | HB38: 0 | HC38: 0 | HL38: 0 | HM38: 0 | HV38: 0 | HW38: 0 | IF38: 0 | IG38: 0
E39: 2020 | F39: 9 | G39: 11 | H39: RE | I39: 2020-09-17 | J39: 08:55:00 | K39: Canteiro de Apoio | L39: 308607 | M39: 7491454 | N39: Campo Antrópico | O39: Ensolarado | P39: 1 | Q39: HERPETOFAUNA | R39: Squamata | S39: Dipsadidae | T39: Dipsas mikanii | U39: Jararaca-dormideira | V39: Saudável | W39: Sim | X39: Adulto | Y39: Fêmea | Z39: Não | AA39: Não | AB39: Soltura | AC39: 2020-09-17 | AD39: 310850 | AE39: 7492616 | AF39: Não | AG39: - | AH39: 2020 | AI39: 9 | AL39: Micrurus sp. | AM39: AT | AN39: Base de Fauna | AO39: 1 | AT39: 9 | AU39: RE | AV39: Crotalus durissus | AW39: 3 | AZ39: Philodryas olfersii | BA39: 1 | BK39: Didelphis albiventris | BL39: 2 | BO39: Micrurus sp. | BP39: 1 | BR39: Amphisbaena alba | BS39: 2 | DF39: Total Geral | DH39: 30 | DP39: AT | DQ39: Callithrix jacchus | DR39: 1 | DW39: Philodryas olfersii | DX39: FALSE | EA39: Didelphis albiventris | EB39: FALSE | ED39: Oxyrhopus guibei | EE39: FALSE | EK39: Dipsas mikanii | EL39: 7 | EM39: Dipsas mikanii | EN39: 7 | EO39: 0.152173913 | EP39: 0.2865025811 | ET39: Philodryas olfersii | EU39: 1 | EV39: Philodryas olfersii | EW39: 1 | EX39: 0.02173913043 | EY39: 0.08323133471 | FC39: Pygochelidon cyanoleuca | FD39: 1 | FE39: Pygochelidon cyanoleuca | FF39: 1 | FG39: 0.02173913043 | FH39: 0.08323133471 | FL39: Erythrolamprus aesculapii | FM39: 2 | FN39: Erythrolamprus aesculapii | FO39: 2 | FP39: 0.04347826087 | FQ39: 0.1363258355 | FW39: 0 | FX39: 0 | FY39: 0 | GH39: 0 | GI39: 0 | GR39: 0 | GS39: 0 | HB39: 0 | HC39: 0 | HL39: 0 | HM39: 0 | HV39: 0 | HW39: 0 | IF39: 0 | IG39: 0
E40: 2020 | F40: 9 | G40: 14 | H40: RE | I40: 2020-09-21 | J40: 06:50:00 | K40: Canteiro de Apoio | L40: 308507 | M40: 7491370 | N40: Campo Antrópico | O40: Ensolarado | P40: 1 | Q40: MASTOFAUNA | R40: Didelphimorphia | S40: Didelphidae | T40: Didelphis albiventris | U40: Gambá-de-orelha-branca | V40: Morto | W40: Sim | X40: Jovem | Y40: Macho | Z40: Não | AA40: Não | AB40: UNIFAJ | AC40: 2020-12-01 | AD40: 292726 | AE40: 7486121 | AF40: Não | AG40: Aguardando encaminhamento para a Universidade | AH40: 2020 | AI40: 12 | AL40: Oxyrhopus guibei | AM40: RE | AN40: Soltura | AO40: 1 | AT40: 9 | AU40: RE | AV40: Didelphis albiventris | AW40: 1 | AZ40: Rhinella sp. | BA40: 1 | BK40: Didelphis aurita | BL40: 1 | BO40: Oxyrhopus guibei | BP40: 4 | BR40: Bothrops jararaca | BS40: 4 | DP40: AT | DQ40: Amphisbaena alba | DR40: 2 | DW40: Pygochelidon cyanoleuca | DX40: FALSE | EA40: Didelphis aurita | EB40: FALSE | ED40: Philodryas olfersii | EE40: FALSE | EK40: Erythrolamprus aesculapii | EL40: 2 | EM40: Erythrolamprus aesculapii | EN40: 2 | EO40: 0.04347826087 | EP40: 0.1363258355 | ET40: Callithrix jacchus | EU40: 1 | EV40: Callithrix jacchus | EW40: 1 | EX40: 0.02173913043 | EY40: 0.08323133471 | FC40: Ramphastos toco | FD40: 1 | FE40: Ramphastos toco | FF40: 1 | FG40: 0.02173913043 | FH40: 0.08323133471 | FL40: Micrurus sp. | FM40: 1 | FN40: Micrurus sp. | FO40: 1 | FP40: 0.02173913043 | FQ40: 0.08323133471 | FW40: 0 | FX40: 0 | FY40: 0 | GH40: 0 | GI40: 0 | GR40: 0 | GS40: 0 | HB40: 0 | HC40: 0 | HL40: 0 | HM40: 0 | HV40: 0 | HW40: 0 | IF40: 0 | IG40: 0
E41: 2020 | F41: 9 | G41: 16 | H41: RE | I41: 2020-09-26 | J41: 11:40:00 | K41: Área 22 | L41: 307295 | M41: 7490803 | N41: Fragmento Florestal | O41: Ensolarado | P41: 1 | Q41: HERPETOFAUNA | R41: Squamata | S41: Viperidae | T41: Crotalus durissus | U41: Cascavel | V41: Saudável | W41: Sim | X41: Adulto | Y41: Macho | Z41: Não | AA41: Não | AB41: Soltura | AC41: 2020-09-26 | AD41: 310846 | AE41: 7492650 | AF41: Não | AG41: - | AH41: 2020 | AI41: 9 | AL41: Oxyrhopus guibei | AM41: AT | AN41: UNIFAJ | AO41: 3 | AT41: 9 | AU41: RE | AV41: Dipsas mikanii | AW41: 2 | AZ41: Pygochelidon cyanoleuca | BA41: 1 | BK41: Dipsas mikanii | BL41: 7 | BO41: Philodryas olfersii | BP41: 2 | BR41: Zenaida auriculata | BS41: 1 | DP41: AT | DQ41: Salvator meirianae | DR41: 1 | DW41: Ramphastos toco | DX41: FALSE | EA41: Dipsas mikanii | EB41: FALSE | ED41: Salvator meirianae | EE41: FALSE | EK41: Micrurus sp. | EL41: 1 | EM41: Micrurus sp. | EN41: 1 | EO41: 0.02173913043 | EP41: 0.08323133471 | ET41: Amphisbaena alba | EU41: 2 | EV41: Amphisbaena alba | EW41: 2 | EX41: 0.04347826087 | EY41: 0.1363258355 | FC41: Bothrops jararaca | FD41: 4 | FE41: Bothrops jararaca | FF41: 4 | FG41: 0.08695652174 | FH41: 0.2123780031 | FL41: Oxyrhopus guibei | FM41: 4 | FN41: Oxyrhopus guibei | FO41: 4 | FP41: 0.08695652174 | FQ41: 0.2123780031 | FW41: 0 | FX41: 0 | FY41: 0 | GH41: 0 | GI41: 0 | GR41: 0 | GS41: 0 | HB41: 0 | HC41: 0 | HL41: 0 | HM41: 0 | HV41: 0 | HW41: 0 | IF41: 0 | IG41: 0
E42: 2020 | F42: 9 | G42: 17 | H42: RE | I42: 2020-09-26 | J42: 11:40:00 | K42: Área 22 | L42: 307295 | M42: 7490803 | N42: Fragmento Florestal | O42: Ensolarado | P42: 1 | Q42: HERPETOFAUNA | R42: Squamata | S42: Viperidae | T42: Crotalus durissus | U42: Cascavel | V42: Saudável | W42: Sim | X42: Adulto | Y42: Fêmea | Z42: Não | AA42: Não | AB42: Soltura | AC42: 2020-09-26 | AD42: 310846 | AE42: 7492650 | AF42: Não | AG42: - | AH42: 2020 | AI42: 9 | AL42: Philodryas olfersii | AM42: RE | AN42: Soltura | AO42: 1 | AT42: 9 | AU42: AT | AV42: Didelphis albiventris | AW42: 1 | AZ42: Dasypus novemcinctus | BA42: 1 | BK42: Erythrolamprus aesculapii | BL42: 2 | BO42: Pygochelidon cyanoleuca | BP42: 1 | BR42: Rhinella sp. | BS42: 1 | DP42: RE | DQ42: Apodemus sylvaticus | DR42: 1 | DW42: Rhinella sp. | DX42: FALSE | EA42: Erythrolamprus aesculapii | EB42: FALSE | EK42: Oxyrhopus guibei | EL42: 4 | EM42: Oxyrhopus guibei | EN42: 4 | EO42: 0.08695652174 | EP42: 0.2123780031 | ET42: Salvator meirianae | EU42: 1 | EV42: Salvator meirianae | EW42: 1 | EX42: 0.02173913043 | EY42: 0.08323133471 | FC42: Zenaida auriculata | FD42: 1 | FE42: Zenaida auriculata | FF42: 1 | FG42: 0.02173913043 | FH42: 0.08323133471 | FL42: Philodryas olfersii | FM42: 2 | FN42: Philodryas olfersii | FO42: 2 | FP42: 0.04347826087 | FQ42: 0.1363258355 | FW42: 0 | FX42: 0 | FY42: 0 | GH42: 0 | GI42: 0 | GR42: 0 | GS42: 0 | HB42: 0 | HC42: 0 | HL42: 0 | HM42: 0 | HV42: 0 | HW42: 0 | IF42: 0 | IG42: 0
E43: 2020 | F43: 9 | G43: 19 | H43: RE | I43: 2020-09-29 | J43: 14:40:00 | K43: Área 22 | L43: 307537 | M43: 7490816 | N43: Pastagem | O43: Ensolarado | P43: 1 | Q43: HERPETOFAUNA | R43: Squamata | S43: Viperidae | T43: Crotalus durissus | U43: Cascavel | V43: Saudável | W43: Sim | X43: Jovem | Y43: Fêmea | Z43: Não | AA43: Não | AB43: Soltura | AC43: 2020-09-29 | AD43: 310954 | AE43: 7492667 | AF43: Não | AG43: - | AH43: 2020 | AI43: 9 | AL43: Philodryas olfersii | AM43: AT | AN43: Base de Fauna | AO43: 1 | AT43: 9 | AU43: AT | AV43: Didelphis aurita | AW43: 1 | AZ43: Cavia aparea | BA43: 1 | BK43: Micrurus sp. | BL43: 1 | BO43: Ramphastos toco | BP43: 1 | BR43: Salvator meirianae | BS43: 1 | DP43: RE | DQ43: Copeoglossum nigropunctatum | DR43: 1 | DW43: Zenaida auriculata | DX43: FALSE | EA43: Micrurus sp. | EB43: FALSE | EK43: Philodryas olfersii | EL43: 2 | EM43: Philodryas olfersii | EN43: 2 | EO43: 0.04347826087 | EP43: 0.1363258355 | FC43: Rhinella sp. | FD43: 1 | FE43: Rhinella sp. | FF43: 1 | FG43: 0.02173913043 | FH43: 0.08323133471 | FL43: Pygochelidon cyanoleuca | FM43: 1 | FN43: Pygochelidon cyanoleuca | FO43: 1 | FP43: 0.02173913043 | FQ43: 0.08323133471 | FW43: 0 | FX43: 0 | FY43: 0 | GH43: 0 | GI43: 0 | GR43: 0 | GS43: 0 | HB43: 0 | HC43: 0 | HL43: 0 | HM43: 0 | HV43: 0 | HW43: 0 | IF43: 0 | IG43: 0
E44: =IF(I44="","-",YEAR(I44)) -> 2020 | F44: =IF(I44="","-",MONTH(I44)) -> 11 | G44: 21 | H44: RE | I44: 2020-11-23 | J44: 14:47:00 | K44: Canteiro de Apoio | L44: 308504 | M44: 7491421 | N44: Infraestrutura | O44: Ensolarado | P44: 1 | Q44: HERPETOFAUNA | R44: Squamata | S44: Dipsadidae | T44: Dipsas mikanii | U44: Jararaca-dormideira | V44: Saudável | W44: Sim | X44: Jovem | Y44: Fêmea | Z44: Não | AA44: Não | AB44: Soltura | AC44: 2020-11-23 | AD44: 310958 | AE44: 7492649 | AF44: Não | AG44: - | AH44: 2020 | AI44: 11 | AL44: Copeoglossum nigropunctatum | AM44: RE | AN44: SPQ | AO44: 1 | AT44: 9 | AU44: AT | AV44: Dipsas mikanii | AW44: 1 | AZ44: Ramphastos toco | BA44: 1 | BK44: Oxyrhopus guibei | BL44: 4 | BO44: Callithrix jacchus | BP44: 1 | BR44: Cavia aparea | BS44: 1 | DP44: RE | DQ44: Crotalus durissus | DR44: 8 | EA44: Oxyrhopus guibei | EB44: FALSE | EK44: Pygochelidon cyanoleuca | EL44: 1 | EM44: Pygochelidon cyanoleuca | EN44: 1 | EO44: 0.02173913043 | EP44: 0.08323133471 | FC44: Cavia aparea | FD44: 1 | FE44: Cavia aparea | FF44: 1 | FG44: 0.02173913043 | FH44: 0.08323133471 | FL44: Ramphastos toco | FM44: 1 | FN44: Ramphastos toco | FO44: 1 | FP44: 0.02173913043 | FQ44: =(-1)*FP44*LN(FP44) -> 0.08323133471 | FW44: 0 | FX44: 0 | FY44: 0 | FZ44: =(-1)*FY44*LN(FY44) ->  | GH44: 0 | GI44: 0 | GJ44: =(-1)*GI44*LN(GI44) ->  | GR44: 0 | GS44: 0 | GT44: =(-1)*GS44*LN(GS44) ->  | HB44: 0 | HC44: 0 | HD44: =(-1)*HC44*LN(HC44) ->  | HL44: 0 | HM44: 0 | HN44: =(-1)*HM44*LN(HM44) ->  | HV44: 0 | HW44: 0 | HX44: =(-1)*HW44*LN(HW44) ->  | IF44: 0 | IG44: 0 | IH44: =(-1)*IG44*LN(IG44) -> 
E45: 2020 | F45: 11 | G45: 24 | H45: RE | I45: 2020-11-28 | J45: 12:50:00 | K45: Canteiro de Apoio | L45: 308500 | M45: 7491338 | N45: Campo Antrópico | O45: Ensolarado | P45: 1 | Q45: AVIFAUNA | R45: Passeriformes | S45: Hirundinidae | T45: Pygochelidon cyanoleuca | U45: Andorinha-pequena-de-casa | V45: Ferido | W45: Sim | X45: Adulto | Y45: ND | Z45: Não | AA45: Não | AB45: CRAS - Mata Ciliar | AC45: 2020-11-28 | AD45: 305466 | AE45: 7484505 | AF45: Não | AG45: - | AH45: 2020 | AI45: 11 | AL45: Dipsas mikanii | AM45: RE | AN45: Soltura | AO45: 4 | AT45: 9 | AU45: AT | AV45: Erythrolamprus aesculapii | AW45: 1 | BK45: Philodryas olfersii | BL45: 2 | BO45: Amphisbaena alba | BP45: 2 | DP45: RE | DQ45: Didelphis albiventris | DR45: 1 | EA45: Philodryas olfersii | EB45: FALSE | EK45: Ramphastos toco | EL45: 1 | EM45: Ramphastos toco | EN45: 1 | EO45: 0.02173913043 | EP45: 0.08323133471 | FL45: Callithrix jacchus | FM45: 1 | FN45: Callithrix jacchus | FO45: 1 | FP45: 0.02173913043 | FQ45: =(-1)*FP45*LN(FP45) -> 0.08323133471 | FW45: =FU45 -> 0 | FX45: =FV45 -> 0 | FY45: 0 | FZ45: =(-1)*FY45*LN(FY45) ->  | GH45: =GF45 -> 0 | GI45: 0 | GJ45: =(-1)*GI45*LN(GI45) ->  | GR45: =GP45 -> 0 | GS45: 0 | GT45: =(-1)*GS45*LN(GS45) ->  | HB45: =GZ45 -> 0 | HC45: 0 | HD45: =(-1)*HC45*LN(HC45) ->  | HL45: =HJ45 -> 0 | HM45: 0 | HN45: =(-1)*HM45*LN(HM45) ->  | HV45: =HT45 -> 0 | HW45: 0 | HX45: =(-1)*HW45*LN(HW45) ->  | IF45: =ID45 -> 0 | IG45: 0 | IH45: =(-1)*IG45*LN(IG45) -> 
E46: 2020 | F46: 12 | G46: 25 | H46: RE | I46: 2020-12-01 | J46: 14:40:00 | K46: Canteiro de Apoio | L46: 308506 | M46: 7491385 | N46: Fragmento Florestal | O46: Ensolarado | P46: 1 | Q46: AVIFAUNA | R46: Piciformes | S46: Ramphastidae | T46: Ramphastos toco | U46: Tucano-toco | V46: Morto | W46: Sim | X46: Adulto | Y46: ND | Z46: Não | AA46: Não | AB46: Base de Fauna | AC46: - | AD46: 308508 | AE46: 7491376 | AF46: Não | AG46: Aguardando encaminhamento para a Universidade | AH46: - | AI46: - | AL46: Dipsas mikanii | AM46: RE | AN46: Base de Fauna | AO46: 1 | AT46: 9 | AU46: AT | AV46: Micrurus sp. | AW46: 1 | BK46: Pygochelidon cyanoleuca | BL46: 1 | BO46: Bothrops jararaca | BP46: 4 | DP46: RE | DQ46: Dipsas mikanii | DR46: 5 | EA46: Pygochelidon cyanoleuca | EB46: FALSE | EK46: Callithrix jacchus | EL46: 1 | EM46: Callithrix jacchus | EN46: 1 | EO46: 0.02173913043 | EP46: 0.08323133471 | FL46: Amphisbaena alba | FM46: 2 | FN46: Amphisbaena alba | FO46: 2 | FP46: 0.04347826087 | FQ46: 0.1363258355 | FW46: 0 | FX46: 0 | FY46: 0 | GH46: 0 | GI46: 0 | GR46: 0 | GS46: 0 | HB46: 0 | HC46: 0 | HL46: 0 | HM46: 0 | HV46: 0 | HW46: 0 | IF46: 0 | IG46: 0
E47: 2020 | F47: 12 | G47: 26 | H47: RE | I47: 2020-12-02 | J47: 16:40:00 | K47: Canteiro de Apoio | L47: 308506 | M47: 7491385 | N47: Infraestrutura | O47: Ensolarado | P47: 1 | Q47: AVIFAUNA | R47: Columbiformes | S47: Columbidae | T47: Zenaida auriculata | U47: Avoante | V47: Ferido | W47: Sim | X47: Adulto | Y47: ND | Z47: Não | AA47: Não | AB47: CRAS - Mata Ciliar | AC47: 2020-12-02 | AD47: 305466 | AE47: 7484505 | AF47: Não | AG47: - | AH47: 2020 | AI47: 12 | AL47: Dipsas mikanii | AM47: AT | AN47: UNIFAJ | AO47: 2 | AT47: 9 | AU47: AT | AV47: Oxyrhopus guibei | AW47: 3 | BK47: Ramphastos toco | BL47: 1 | BO47: Zenaida auriculata | BP47: 1 | DP47: RE | DQ47: Oxyrhopus guibei | DR47: 1 | EA47: Ramphastos toco | EB47: FALSE | EK47: Salvator merianae | EL47: 1 | EM47: Salvator merianae | EN47: 1 | EO47: 0.02173913043 | EP47: 0.08323133471 | FL47: Bothrops jararaca | FM47: 4 | FN47: Bothrops jararaca | FO47: 4 | FP47: 0.08695652174 | FQ47: 0.2123780031 | FW47: 0 | FX47: 0 | FY47: 0 | GH47: 0 | GI47: 0 | GR47: 0 | GS47: 0 | HB47: 0 | HC47: 0 | HL47: 0 | HM47: 0 | HV47: 0 | HW47: 0 | IF47: 0 | IG47: 0
E48: 2020 | F48: 12 | G48: 28 | H48: RE | I48: 2020-12-29 | J48: 15:20:00 | K48: Sblote de plantio 1.13 | L48: 308642 | M48: 7491438 | N48: Futura APP | O48: Ensolarado | P48: 1 | Q48: HERPETOFAUNA | R48: Squamata | S48: Dipsadidae | T48: Dipsas mikanii | U48: Jararaca-dormideira | V48: Morto | W48: Sim | X48: Adulto | Y48: Fêmea | Z48: Sim | AA48: Não | AB48: Base de Fauna | AC48: - | AD48: 308508 | AE48: 7491376 | AF48: Não | AG48: Aguardando encaminhamento para a Universidade | AH48: - | AI48: - | AL48: Apodemus sylvaticus | AM48: RE | AN48: Soltura | AO48: 1 | AT48: 1 | AU48: RE | AV48: Crotalus durissus | AW48: 5 | BK48: Rhinella sp. | BL48: 1 | BO48: Rhinella sp. | BP48: 1 | DP48: RE | DQ48: Philodryas olfersii | DR48: 1 | EA48: Rhinella sp. | EB48: FALSE | EK48: Amphisbaena alba | EL48: 2 | EM48: Amphisbaena alba | EN48: 2 | EO48: 0.04347826087 | EP48: 0.1363258355 | FL48: Zenaida auriculata | FM48: 1 | FN48: Zenaida auriculata | FO48: 1 | FP48: 0.02173913043 | FQ48: 0.08323133471 | FW48: 0 | FX48: 0 | FY48: 0 | GH48: 0 | GI48: 0 | GR48: 0 | GS48: 0 | HB48: 0 | HC48: 0 | HL48: 0 | HM48: 0 | HV48: 0 | HW48: 0 | IF48: 0 | IG48: 0
E49: 2021 | F49: 1 | G49: 30 | H49: RE | I49: 2021-01-07 | J49: 09:30:00 | K49: Sblote de plantio 1.13 | L49: 308790 | M49: 7491501 | N49: Futura APP | O49: Ensolarado | P49: 1 | Q49: HERPETOFAUNA | R49: Squamata | S49: Viperidae | T49: Crotalus durissus | U49: Cascavel | V49: Morto | W49: Sim | X49: Adulto | Y49: Fêmea | Z49: Sim | AA49: Não | AB49: Base de Fauna | AC49: - | AD49: 308508 | AE49: 7491376 | AF49: Não | AG49: - | AH49: - | AI49: - | AL49: Crotalus durissus | AM49: RE | AN49: Soltura | AO49: 6 | AT49: 1 | AU49: RE | AV49: Dipsas mikanii | AW49: 1 | BK49: Salvator meirianae | BL49: 1 | BO49: Salvator meirianae | BP49: 1 | DP49: RE | DQ49: Pygochelidon cyanoleuca | DR49: 1 | EA49: Salvator meirianae | EB49: FALSE | EK49: Bothrops jararaca | EL49: 4 | EM49: Bothrops jararaca | EN49: 4 | EO49: 0.08695652174 | EP49: 0.2123780031 | FL49: Rhinella sp. | FM49: 1 | FN49: Rhinella sp. | FO49: 1 | FP49: 0.02173913043 | FQ49: 0.08323133471 | FW49: 0 | FX49: 0 | FY49: 0 | GH49: 0 | GI49: 0 | GR49: 0 | GS49: 0 | HB49: 0 | HC49: 0 | HL49: 0 | HM49: 0 | HV49: 0 | HW49: 0 | IF49: 0 | IG49: 0
E50: 2021 | F50: 1 | G50: 31 | H50: RE | I50: 2021-01-08 | J50: 10:02:00 | K50: Sblote de plantio 1.14 | L50: 308798 | M50: 7491427 | N50: Futura APP | O50: Ensolarado | P50: 1 | Q50: HERPETOFAUNA | R50: Squamata | S50: Viperidae | T50: Crotalus durissus | U50: Cascavel | V50: Saudável | W50: Sim | X50: Adulto | Y50: ND | Z50: Não | AA50: Não | AB50: Soltura | AC50: =I50 -> 2021-01-08 | AD50: 310908 | AE50: 7492663 | AF50: Não | AG50: - | AH50: 2021 | AI50: 1 | AL50: Crotalus durissus | AM50: RE | AN50: Base de Fauna | AO50: 2 | AT50: 1 | AU50: RE | AV50: Bothrops jararaca | AW50: 4 | BK50: Zenaida auriculata | BL50: 1 | BO50: Cavia aparea | BP50: 1 | DP50: RE | DQ50: Ramphastos toco | DR50: 1 | EA50: Zenaida auriculata | EB50: FALSE | EK50: Zenaida auriculata | EL50: 1 | EM50: Zenaida auriculata | EN50: 1 | EO50: 0.02173913043 | EP50: 0.08323133471 | FL50: Salvator meirianae | FM50: 1 | FN50: Salvator meirianae | FO50: 1 | FP50: 0.02173913043 | FQ50: 0.08323133471 | FW50: 0 | FX50: 0 | FY50: 0 | GH50: 0 | GI50: 0 | GR50: 0 | GS50: 0 | HB50: 0 | HC50: 0 | HL50: 0 | HM50: 0 | HV50: 0 | HW50: 0 | IF50: 0 | IG50: 0
E51: 2021 | F51: 1 | G51: 32 | H51: RE | I51: 2021-01-13 | J51: 14:32:00 | K51: Canteiro de Apoio | L51: 308526 | M51: 7491330 | N51: - | O51: Ensolarado | P51: 1 | Q51: MASTOFAUNA | R51: Rodentia | S51: Cavidae | T51: Cavia aparea | U51: Preá | V51: Morto | W51: Sim | X51: Adulto | Y51: Fêmea | Z51: Sim | AA51: Não | AB51: Soltura | AC51: 2021-01-13 | AD51: 308506 | AE51: 7491375 | AF51: Não | AG51: - | AH51: 2021 | AI51: 1 | AL51: Pygochelidon cyanoleuca | AM51: RE | AN51: CRAS - Mata Ciliar | AO51: 1 | AT51: 1 | AU51: RE | AV51: Rhinella sp. | AW51: 1 | DP51: RE | DQ51: Bothrops jararaca | DR51: 4 | EK51: Rhinella sp. | EL51: 1 | EM51: Rhinella sp. | EN51: 1 | EO51: 0.02173913043 | EP51: 0.08323133471 | FL51: Cavia aparea | FM51: 1 | FN51: Cavia aparea | FO51: 1 | FP51: 0.02173913043 | FQ51: 0.08323133471 | FW51: 0 | FX51: 0 | FY51: 0 | GH51: 0 | GI51: 0 | GR51: 0 | GS51: 0 | HB51: 0 | HC51: 0 | HL51: 0 | HM51: 0 | HV51: 0 | HW51: 0 | IF51: 0 | IG51: 0
E52: 2021 | F52: 1 | G52: 33 | H52: RE | I52: 2021-01-13 | J52: 14:35:00 | K52: Sblote de plantio 1.14 | L52: 308797 | M52: 7491428 | N52: Futura APP | O52: Ensolarado | P52: 1 | Q52: HERPETOFAUNA | R52: Squamata | S52: Viperidae | T52: Crotalus durissus | U52: Cascavel | V52: Saudável | W52: Sim | X52: Jovem | Y52: ND | Z52: Não | AA52: Não | AB52: Soltura | AC52: 2021-01-13 | AD52: 310946 | AE52: 7492652 | AF52: Não | AG52: - | AH52: 2021 | AI52: 1 | AL52: Ramphastos toco | AM52: RE | AN52: Base de Fauna | AO52: 1 | AT52: 1 | AU52: RE | AV52: Cavia aparea | AW52: 1 | DP52: RE | DQ52: Zenaida auriculata | DR52: 1 | EK52: Salvator meirianae | EL52: 1 | EM52: Salvator meirianae | EN52: 1 | EO52: 0.02173913043 | EP52: 0.08323133471 | FW52: =FU52 -> 0 | FX52: =FV52 -> 0 | FY52: 0 | GH52: =GF52 -> 0 | GI52: 0 | GR52: =GP52 -> 0 | GS52: 0 | HB52: =GZ52 -> 0 | HC52: 0 | HL52: =HJ52 -> 0 | HM52: 0 | HV52: =HT52 -> 0 | HW52: 0 | IF52: =ID52 -> 0 | IG52: 0
E53: 2021 | F53: 1 | G53: 34 | H53: RE | I53: 2021-01-14 | J53: 10:42:00 | K53: Canteiro de Apoio | L53: 308507 | M53: 7491421 | N53: - | O53: Ensolarado | P53: 1 | Q53: HERPETOFAUNA | R53: Anura | S53: Bufonidae | T53: Rhinella sp. | U53: Sapo Cururu | V53: Saudável | W53: Sim | X53: Jovem | Y53: ND | Z53: Não | AA53: Não | AB53: Soltura | AC53: 2021-01-14 | AD53: 310950 | AE53: 7492645 | AF53: Não | AG53: - | AH53: 2021 | AI53: 1 | AL53: Callithrix jacchus | AM53: AT | AN53: Base de Fauna | AO53: 1 | AT53: 1 | AU53: AT | AV53: Philodryas olfersii | AW53: 1 | DP53: RE | DQ53: Rhinella sp. | DR53: 1 | EK53: Cavia aparea | EL53: 1 | EM53: Cavia aparea | EN53: 1 | EO53: 0.02173913043 | EP53: 0.08323133471 | FW53: 0 | FX53: 0 | FY53: 0 | GH53: 0 | GI53: 0 | GR53: 0 | GS53: 0 | HB53: 0 | HC53: 0 | HL53: 0 | HM53: 0 | HV53: 0 | HW53: 0 | IF53: 0 | IG53: 0
E54: 2021 | F54: 1 | G54: 36 | H54: RE | I54: 2021-01-18 | J54: 13:13:00 | K54: Sblote de plantio 1.14 | L54: 308717 | M54: 7491406 | N54: Futura APP | O54: Ensolarado | P54: 1 | Q54: HERPETOFAUNA | R54: Squamata | S54: Viperidae | T54: Bothrops jararaca | U54: Jararaca - da - mata | V54: Saudável | W54: Sim | X54: Adulto | Y54: ND | Z54: Não | AA54: Não | AB54: Soltura | AC54: 2021-01-18 | AD54: 310959 | AE54: 7493126 | AF54: Não | AG54: - | AH54: 2021 | AI54: 1 | AL54: Salvator merianae | AM54: AF | AN54: - | AO54: 1 | AT54: 1 | AU54: AT | AV54: Amphisbaena alba | AW54: 2 | DP54: RE | DQ54: Cavia aparea | DR54: 1 | EM54: 0 | EN54: 0 | EO54: 0 | FW54: 0 | FX54: 0 | FY54: 0 | GH54: 0 | GI54: 0 | GR54: 0 | GS54: 0 | HB54: 0 | HC54: 0 | HL54: 0 | HM54: 0 | HV54: 0 | HW54: 0 | IF54: 0 | IG54: 0
E55: 2021 | F55: 1 | G55: 37 | H55: RE | I55: 2021-01-18 | J55: 13:20:00 | K55: Sblote de plantio 1.14 | L55: 308715 | M55: 7491407 | N55: Futura APP | O55: Ensolarado | P55: 1 | Q55: HERPETOFAUNA | R55: Squamata | S55: Viperidae | T55: Bothrops jararaca | U55: Jararaca - da - mata | V55: Morto | W55: Sim | X55: Adulto | Y55: ND | Z55: Não | AA55: Sim | AB55: OPQ | AC55: 2021-01-18 | AD55: 308506 | AE55: 7491375 | AF55: Não | AG55: Aguardando encaminhamento para a UNIFAJ | AH55: 2021 | AI55: 1 | AL55: Amphisbaena alba | AM55: AT | AN55: CRAS - Mata Ciliar | AO55: 1 | AT55: 11 | AU55: RE | AV55: Dipsas mikanii | AW55: 1 | EM55: 0 | EN55: 0 | EO55: 0 | FW55: 0 | FX55: 0 | FY55: 0 | GH55: 0 | GI55: 0 | GR55: 0 | GS55: 0 | HB55: 0 | HC55: 0 | HL55: 0 | HM55: 0 | HV55: 0 | HW55: 0 | IF55: 0 | IG55: 0
E56: 2021 | F56: 1 | G56: 38 | H56: RE | I56: 2021-01-19 | J56: 14:40:00 | K56: Sblote de plantio 1.14 | L56: 308714 | M56: 7491406 | N56: Futura APP | O56: Ensolarado | P56: 1 | Q56: HERPETOFAUNA | R56: Squamata | S56: Viperidae | T56: Crotalus durissus | U56: Cascavel | V56: Morto | W56: Sim | X56: Adulto | Y56: Fêmea | Z56: Sim | AA56: Não | AB56: Base de Fauna | AC56: 2021-01-19 | AD56: 308508 | AE56: 7491376 | AF56: Não | AG56: Aguardando encaminhamento para a UNIFAJ | AH56: 2021 | AI56: 1 | AL56: Amphisbaena alba | AM56: AT | AN56: Base de Fauna | AO56: 1 | AT56: 11 | AU56: RE | AV56: Pygochelidon cyanoleuca | AW56: 1 | EM56: 0 | EN56: 0 | EO56: 0 | FW56: 0 | FX56: 0 | FY56: 0 | GH56: 0 | GI56: 0 | GR56: 0 | GS56: 0 | HB56: 0 | HC56: 0 | HL56: 0 | HM56: 0 | HV56: 0 | HW56: 0 | IF56: 0 | IG56: 0
E57: 2021 | F57: 1 | G57: 39 | H57: RE | I57: 2021-01-19 | J57: 14:43:00 | K57: Sblote de plantio 1.15 | L57: 308678 | M57: 7491377 | N57: Futura APP | O57: Ensolarado | P57: 1 | Q57: HERPETOFAUNA | R57: Squamata | S57: Viperidae | T57: Crotalus durissus | U57: Cascavel | V57: Saudável | W57: Sim | X57: Adulto | Y57: Macho | Z57: Não | AA57: Não | AB57: Soltura | AC57: 2021-01-19 | AD57: 310966 | AE57: 7492683 | AF57: Não | AG57: - | AH57: 2021 | AI57: 1 | AL57: Bothrops jararaca | AM57: RE | AN57: OPQ | AO57: 1 | AT57: 11 | AU57: AT | AV57: Dasypus novemcinctus | AW57: 1 | EM57: 0 | EN57: 0 | EO57: 0 | FW57: 0 | FX57: 0 | FY57: 0 | GH57: 0 | GI57: 0 | GR57: 0 | GS57: 0 | HB57: 0 | HC57: 0 | HL57: 0 | HM57: 0 | HV57: 0 | HW57: 0 | IF57: 0 | IG57: 0
E58: 2021 | F58: 1 | G58: 40 | H58: RE | I58: 2021-01-20 | J58: 11:17:00 | K58: Sblote de plantio 1.15 | L58: 308657 | M58: 7491382 | N58: Futura APP | O58: Ensolarado | P58: 1 | Q58: HERPETOFAUNA | R58: Squamata | S58: Viperidae | T58: Bothrops jararaca | U58: Jararaca - da - mata | V58: Morto | W58: Sim | X58: Jovem | Y58: ND | Z58: Sim | AA58: Não | AB58: Base de Fauna | AC58: 2021-01-20 | AD58: 308508 | AE58: 7491376 | AF58: Não | AG58: Aguardando encaminhamento para a UNIFAJ | AH58: 2021 | AI58: 1 | AL58: Bothrops jararaca | AM58: RE | AN58: Soltura | AO58: 2 | AT58: 11 | AU58: AT | AV58: Erythrolamprus aesculapii | AW58: 1 | EM58: 0 | EN58: 0 | EO58: 0 | FW58: 0 | FX58: 0 | FY58: 0 | GH58: 0 | GI58: 0 | GR58: 0 | GS58: 0 | HB58: 0 | HC58: 0 | HL58: 0 | HM58: 0 | HV58: 0 | HW58: 0 | IF58: 0 | IG58: 0
A59: Legenda: | E59: 2021 | F59: 1 | G59: 41 | H59: RE | I59: 2021-01-20 | J59: 13:10:00 | K59: Sblote de plantio 1.14 | L59: 308602 | M59: 7491415 | N59: Futura APP | O59: Ensolarado | P59: 1 | Q59: HERPETOFAUNA | R59: Squamata | S59: Dipsadidae | T59: Dipsas mikanii | U59: Jararaca - dormideira | V59: Saudável | W59: Sim | X59: Jovem | Y59: ND | Z59: Não | AA59: Não | AB59: Soltura | AC59: 2021-01-20 | AD59: 311039 | AE59: 7493178 | AF59: Não | AG59: - | AH59: 2021 | AI59: 1 | AL59: Bothrops jararaca | AM59: RE | AN59: Base de Fauna | AO59: 1 | AT59: 11 | AU59: AT | AV59: Salvator meirianae | AW59: 1 | EM59: 0 | EN59: 0 | EO59: 0 | FW59: 0 | FX59: 0 | FY59: 0 | GH59: 0 | GI59: 0 | GR59: 0 | GS59: 0 | HB59: 0 | HC59: 0 | HL59: 0 | HM59: 0 | HV59: 0 | HW59: 0 | IF59: 0 | IG59: 0
A60: Tipo de registro: AF = Afugentamento (incluindo espontâneo), RE = Resgate; | E60: 2021 | F60: 1 | G60: 42 | H60: RE | I60: 2021-01-27 | J60: 15:10:00 | K60: Sblote de plantio 1.15 | L60: 308843 | M60: 7491353 | N60: Futura APP | O60: Ensolarado | P60: 1 | Q60: HERPETOFAUNA | R60: Squamata | S60: Viperidae | T60: Bothrops jararaca | U60: Jararaca - da - mata | V60: Saudável | W60: Sim | X60: Jovem | Y60: ND | Z60: Não | AA60: Não | AB60: Soltura | AC60: 2021-01-27 | AD60: 310976 | AE60: 7493211 | AF60: Não | AG60: - | AH60: 2021 | AI60: 1 | AL60: Zenaida auriculata | AM60: RE | AN60: CRAS - Mata Ciliar | AO60: 1 | AT60: 12 | AU60: RE | AV60: Dipsas mikanii | AW60: 1 | EM60: 0 | EN60: 0 | EO60: 0 | FW60: 0 | FX60: 0 | FY60: 0 | GH60: 0 | GI60: 0 | GR60: 0 | GS60: 0 | HB60: 0 | HC60: 0 | HL60: 0 | HM60: 0 | HV60: 0 | HW60: 0 | IF60: 0 | IG60: 0
A61: Fitofisionomia/ambiente: AA = Antropizado, PA = PA, TR = trilha, CA = Canteiro de Obras; CUP = Cupinzeiro, FES = Floresta Estacional Semidecidual, AQ = Ambiente aquático; | E61: =IF(I61="","-",YEAR(I61)) -> 2020 | F61: =IF(I61="","-",MONTH(I61)) -> 8 | G61: 4 | H61: AT | I61: 2020-08-26 | J61: 15:56:00 | L61: 309035 | M61: 7490950 | N61: Fragento Florestal | P61: 1 | Q61: HERPETOFAUNA | T61: Dipsas mikanii | U61: Jararaquinha-dormideira | V61: Morto | AB61: UNIFAJ | AC61: 2020-12-01 | AD61: 292726 | AE61: 7486121 | AG61: UNIFAJ - 02/11/2020 | AH61: 2020 | AI61: 12 | AL61: Rhinella sp. | AM61: RE | AN61: Soltura | AO61: 1 | AT61: 12 | AU61: RE | AV61: Ramphastos toco | AW61: 1 | EM61: 0 | EN61: 0 | EO61: 0 | FW61: 0 | FX61: 0 | FY61: 0 | GH61: 0 | GI61: 0 | GR61: 0 | GS61: 0 | HB61: 0 | HC61: 0 | HL61: 0 | HM61: 0 | HV61: 0 | HW61: 0 | IF61: 0 | IG61: 0
A62: Condições meteorológicas: AB = Aberto, CH = Chuvoso, NU = Nublado; | E62: =IF(I62="","-",YEAR(I62)) -> 2020 | F62: =IF(I62="","-",MONTH(I62)) -> 9 | G62: 5 | H62: AT | I62: 2020-09-12 | J62: 07:00:00 | L62: 308165 | M62: 7487924 | N62: Fragento Florestal | P62: 1 | Q62: MASTOFAUNA | T62: Didelphis albiventris | U62: Gambá-de-orelha-branca | V62: Morto | AB62: UNIFAJ | AC62: 2020-12-01 | AD62: 292726 | AE62: 7486121 | AG62: UNIFAJ - 02/11/2020 | AH62: 2020 | AI62: 12 | AL62: Salvator meirianae | AM62: AT | AN62: UNIFAJ | AO62: 1 | AT62: 12 | AU62: RE | AV62: Zenaida auriculata | AW62: 1 | EM62: 0 | EN62: 0 | EO62: 0 | FW62: 0 | FX62: 0 | FY62: 0
A63: Condições do Animal: D = Debilitado, F = Ferido, M = M, S = Saudável; | E63: =IF(I63="","-",YEAR(I63)) -> 2020 | F63: =IF(I63="","-",MONTH(I63)) -> 9 | G63: 6 | H63: AT | I63: 2020-09-12 | J63: 08:25:00 | L63: 307809 | M63: 7490564 | N63: Outro | P63: 1 | Q63: HERPETOFAUNA | T63: Oxyrhopus guibei | U63: Falsa- coral | V63: Morto | AB63: UNIFAJ | AC63: 2020-12-01 | AD63: 292726 | AE63: 7486121 | AG63: UNIFAJ - 02/11/2020 | AH63: 2020 | AI63: 12 | AL63: Cavia aparea | AM63: RE | AN63: Soltura | AO63: 1 | AT63: 12 | AU63: AT | AV63: Callithrix jacchus | AW63: 1 | EM63: =EK63 -> 0 | EN63: 0 | EO63: 0 | FW63: 0 | FX63: 0 | FY63: 0
A64: Estágio de desenvolvimento: A = Adulto, J = Jovem, F = Filhote, L= Larva (girino), O = Ovo; | E64: 2020 | F64: 9 | G64: 9 | H64: AT | I64: 2020-09-14 | J64: 12:14:00 | L64: 310215 | M64: 7491800 | N64: Fragento Florestal | P64: 1 | Q64: HERPETOFAUNA | T64: Micrurus sp. | U64: Cobra-coral | V64: Morto | AB64: Base de Fauna | AC64: - | AD64: 308508 | AE64: 7491376 | AG64: Base de atendimento de animais silvestres | AH64: - | AI64: - | AT64: Total Geral | AW64: 46 | EM64: 0 | EN64: =EL64 -> 0 | EO64: =EN64/$EL$30 -> 0 | FW64: 0 | FX64: 0 | FY64: =FX64/$EL$30 -> 0
A65: Sexo: FE = Fêmea, MA = Macho, ND = Não determinado; | E65: 2020 | F65: 9 | G65: 10 | H65: AT | I65: 2020-09-16 | J65: 07:00:00 | L65: 309529 | M65: 7485913 | N65: Fragento Florestal | P65: 1 | Q65: MASTOFAUNA | T65: Didelphis aurita | U65: Gambá-de-orelha-preta | V65: Morto | AB65: UNIFAJ | AC65: 2020-12-01 | AD65: 292726 | AE65: 7486121 | AG65: UNIFAJ - 02/11/2020 | AH65: 2020 | AI65: 12 | EM65: 0 | EN65: 0 | EO65: 0 | FW65: 0 | FX65: 0 | FY65: 0
A66: Destino: S = Soltura, CRAS, U=Universidade, D = Descarte, SPQ=Soltura Pós Quarentena. | E66: 2020 | F66: 9 | G66: 12 | H66: AT | I66: 2020-09-19 | J66: 07:35:00 | L66: 308370 | M66: 7491131 | N66: Fragento Florestal | P66: 1 | Q66: HERPETOFAUNA | T66: Oxyrhopus guibei | U66: Falsa-coral | V66: Morto | AB66: UNIFAJ | AC66: 2020-12-01 | AD66: 292726 | AE66: 7486121 | AG66: UNIFAJ - 02/11/2020 | AH66: 2020 | AI66: 12 | EM66: 0 | EN66: 0 | EO66: 0 | FW66: 0 | FX66: 0 | FY66: 0
E67: 2020 | F67: 9 | G67: 13 | H67: AT | I67: 2020-09-19 | J67: 08:00:00 | L67: 308704 | M67: 7493228 | N67: Fragento Florestal | P67: 1 | Q67: HERPETOFAUNA | T67: Erythrolamprus aesculapii | U67: Falsa-coral | V67: Morto | AB67: UNIFAJ | AC67: 2020-12-01 | AD67: 292726 | AE67: 7486121 | AG67: UNIFAJ - 02/11/2020 | AH67: 2020 | AI67: 12 | EM67: 0 | EN67: 0 | EO67: 0 | FW67: 0 | FX67: 0 | FY67: 0
E68: 2020 | F68: 9 | G68: 15 | H68: AT | I68: 2020-09-22 | J68: 14:54:00 | L68: 308076 | M68: 7490915 | N68: Pastagem | P68: 1 | Q68: HERPETOFAUNA | T68: Dipsas mikanii | U68: Jararaquinha-dormideira | V68: Morto | AB68: UNIFAJ | AC68: 2020-12-01 | AD68: 292726 | AE68: 7486121 | AG68: UNIFAJ - 02/11/2020 | AH68: 2020 | AI68: 12 | EM68: 0 | EN68: 0 | EO68: 0 | FW68: 0 | FX68: 0 | FY68: 0
E69: 2020 | F69: 9 | G69: 18 | H69: AT | I69: 2020-09-29 | J69: 08:30:00 | L69: 308361 | M69: 7491136 | N69: Outro | P69: 1 | Q69: HERPETOFAUNA | T69: Oxyrhopus guibei | U69: Falsa-coral | V69: Morto | AB69: UNIFAJ | AC69: 2020-12-01 | AD69: 292726 | AE69: 7486121 | AG69: UNIFAJ - 02/11/2020 | AH69: 2020 | AI69: 12 | EM69: 0 | EN69: 0 | EO69: 0 | FW69: 0 | FX69: 0 | FY69: 0
E70: 2020 | F70: 11 | G70: 20 | H70: AT | I70: 2020-11-13 | J70: 09:49:00 | L70: 308372 | M70: 7491420 | N70: Campo Antrópico | P70: 1 | Q70: HERPETOFAUNA | T70: Salvator meirianae | U70: Teiú | V70: Morto | AB70: UNIFAJ | AC70: 2020-12-01 | AD70: 292726 | AE70: 7486121 | AG70: UNIFAJ - 02/11/2020 | AH70: 2020 | AI70: 12 | EM70: 0 | EN70: 0 | EO70: 0 | FW70: 0 | FX70: 0 | FY70: 0
E71: 2020 | F71: 11 | G71: 22 | H71: AT | I71: 2020-11-26 | J71: 17:06:00 | L71: 308361 | M71: 7491136 | N71: Fragento Florestal | P71: 1 | Q71: MASTOFAUNA | T71: Dasypus novemcinctus | U71: Tatu-galinha | V71: Morto | AB71: UNIFAJ | AC71: 2020-12-01 | AD71: 292726 | AE71: 7486121 | AG71: UNIFAJ - 02/11/2020 | AH71: 2020 | AI71: 12 | EM71: 0 | EN71: 0 | EO71: 0 | FW71: 0 | FX71: 0 | FY71: 0
E72: 2020 | F72: 11 | G72: 23 | H72: AT | I72: 2020-11-27 | J72: 09:42:00 | L72: 307269 | M72: 7491909 | N72: Cultivo agrícola | P72: 1 | Q72: HERPETOFAUNA | T72: Erythrolamprus aesculapii | U72: Falsa-coral | V72: Morto | AB72: UNIFAJ | AC72: 2020-12-01 | AD72: 292726 | AE72: 7486121 | AG72: UNIFAJ - 02/11/2020 | AH72: 2020 | AI72: 12 | EM72: 0 | EN72: 0 | EO72: 0 | FW72: 0 | FX72: 0 | FY72: 0
E73: 2020 | F73: 12 | G73: 27 | H73: AT | I73: 2020-12-10 | J73: 08:13:00 | L73: 308970 | M73: 7486862 | N73: Pastagem | P73: 1 | Q73: MASTOFAUNA | T73: Callithrix jacchus | U73: Sagui-de-tufo-branco | V73: Morto | AB73: Base de Fauna | AC73: - | AD73: 308508 | AE73: 7491376 | AG73: Base de Fauna | AH73: - | AI73: - | EM73: 0 | EN73: 0 | EO73: 0 | FW73: 0 | FX73: 0 | FY73: 0
E74: 2021 | F74: 1 | G74: 29 | H74: AT | I74: 2021-01-05 | J74: 13:45:00 | L74: 308528 | M74: 7491335 | N74: Fragento Florestal | P74: 1 | Q74: HERPETOFAUNA | T74: Philodryas olfersii | U74: Cobra - Verde | V74: Ferido | AB74: Base de Fauna | AC74: - | AD74: 308508 | AE74: 7491376 | AG74: Base de Fauna | AH74: - | AI74: - | EM74: 0 | EN74: 0 | EO74: 0 | FW74: 0 | FX74: 0 | FY74: 0
E75: 2021 | F75: 1 | G75: 35 | H75: AT | I75: 2021-01-16 | J75: 07:15:00 | L75: 306753 | M75: 7490910 | N75: Pastagem | P75: 1 | Q75: HERPETOFAUNA | T75: Amphisbaena alba | U75: Cobra - cega | V75: Ferido | AB75: Base de Fauna | AC75: - | AD75: 308508 | AE75: 7491376 | AG75: Base de Fauna | AH75: - | AI75: - | EM75: 0 | EN75: 0 | EO75: 0 | FW75: 0 | FX75: 0 | FY75: 0
E76: 2021 | F76: 1 | G76: 43 | H76: AT | I76: 2021-01-28 | J76: 10:38:00 | L76: 308226 | M76: 7491093 | N76: Canteiro de obras | P76: 1 | Q76: HERPETOFAUNA | T76: Amphisbaena alba | U76: Cobra-cega | V76: Ferido | AB76: CRAS - Mata Ciliar | AC76: 2021-01-28 | AD76: 305466 | AE76: 7484505 | AG76: Encainhado para o CRAS - Mata Ciliar | AH76: 2021 | AI76: 1 | EM76: 0 | EN76: 0 | EO76: 0 | FW76: 0 | FX76: 0 | FY76: 0
E77: - | F77: - | AH77: 1900 | AI77: 1 | EM77: 0 | EN77: 0 | EO77: 0 | FW77: 0 | FX77: 0 | FY77: 0
E78: - | F78: - | AH78: 1900 | AI78: 1 | EM78: 0 | EN78: 0 | EO78: 0 | FW78: 0 | FX78: 0 | FY78: 0
E79: =IF(I79="","-",YEAR(I79)) -> - | F79: =IF(I79="","-",MONTH(I79)) -> - | AH79: 1900 | AI79: 1 | EM79: 0 | EN79: 0 | EO79: 0 | FW79: 0 | FX79: 0 | FY79: 0
E80: - | F80: - | AH80: 1900 | AI80: 1 | EM80: 0 | EN80: 0 | EO80: 0 | FW80: 0 | FX80: 0 | FY80: 0
E81: - | F81: - | AH81: 1900 | AI81: 1 | EM81: 0 | EN81: 0 | EO81: 0 | FW81: 0 | FX81: 0 | FY81: 0
E82: - | F82: - | AH82: 1900 | AI82: 1 | EM82: 0 | EN82: 0 | EO82: 0 | FW82: 0 | FX82: 0 | FY82: 0
E83: - | F83: - | AH83: 1900 | AI83: 1 | EM83: 0 | EN83: 0 | EO83: 0 | FW83: 0 | FX83: 0 | FY83: 0
E84: - | F84: - | AH84: 1900 | AI84: 1 | EM84: 0 | EN84: 0 | EO84: 0 | FW84: 0 | FX84: 0 | FY84: 0
E85: - | F85: - | AH85: 1900 | AI85: 1 | EM85: 0 | EN85: 0 | EO85: 0 | FW85: 0 | FX85: 0 | FY85: 0
E86: - | F86: - | AH86: 1900 | AI86: 1 | EM86: 0 | EN86: 0 | EO86: 0 | FW86: 0 | FX86: 0 | FY86: 0
E87: - | F87: - | AH87: 1900 | AI87: 1 | EM87: 0 | EN87: 0 | EO87: 0 | FW87: =FU87 -> 0 | FX87: 0 | FY87: 0
E88: - | F88: - | AH88: 1900 | AI88: 1 | EM88: 0 | EN88: 0 | EO88: 0 | FW88: 0 | FX88: 0 | FY88: 0
E89: - | F89: - | AH89: 1900 | AI89: 1 | EM89: 0 | EN89: 0 | EO89: 0 | FW89: 0 | FX89: 0 | FY89: 0
E90: - | F90: - | AH90: 1900 | AI90: 1 | EM90: 0 | EN90: 0 | EO90: 0
E91: - | F91: - | AH91: 1900 | AI91: 1 | EM91: 0 | EN91: 0 | EO91: 0
E92: - | F92: - | AH92: 1900 | AI92: 1 | EM92: 0 | EN92: 0 | EO92: 0
E93: - | F93: - | AH93: 1900 | AI93: 1 | EM93: 0 | EN93: 0 | EO93: 0
E94: - | F94: - | AH94: 1900 | AI94: 1 | EM94: 0 | EN94: 0 | EO94: 0
E95: =IF(I95="","-",YEAR(I95)) -> - | F95: =IF(I95="","-",MONTH(I95)) -> - | AH95: 1900 | AI95: 1 | EM95: =EK95 -> 0 | EN95: 0 | EO95: 0
E96: - | F96: - | AH96: =IF(AC96="-","-",YEAR(AC96)) -> 1900 | AI96: =IF(AC96="-","-",MONTH(AC96)) -> 1 | EM96: 0 | EN96: =EL96 -> 0 | EO96: =EN96/$EL$30 -> 0
E97: - | F97: - | AH97: 1900 | AI97: 1 | EM97: 0 | EN97: 0 | EO97: 0 | EP97: =(-1)*EO97*LN(EO97) -> 
E98: - | F98: - | AH98: 1900 | AI98: 1 | EM98: 0 | EN98: 0 | EO98: 0
E99: - | F99: - | AH99: 1900 | AI99: 1 | EM99: 0 | EN99: 0 | EO99: 0
E100: - | F100: - | AH100: 1900 | AI100: 1 | EM100: 0 | EN100: 0 | EO100: 0
E101: - | F101: - | AH101: 1900 | AI101: 1 | EM101: 0 | EN101: 0 | EO101: 0
E102: - | F102: - | AH102: 1900 | AI102: 1 | EM102: 0 | EN102: 0 | EO102: 0
E103: - | F103: - | AH103: 1900 | AI103: 1 | EM103: 0 | EN103: 0 | EO103: 0
E104: - | F104: - | AH104: 1900 | AI104: 1 | EM104: 0 | EN104: 0 | EO104: 0
E105: - | F105: - | AH105: 1900 | AI105: 1 | EM105: 0 | EN105: 0 | EO105: 0
E106: - | F106: - | AH106: 1900 | AI106: 1
E107: - | F107: - | AH107: 1900 | AI107: 1
E108: - | F108: - | AH108: 1900 | AI108: 1
E109: - | F109: - | AH109: 1900 | AI109: 1
E110: - | F110: - | AH110: 1900 | AI110: 1
E111: - | F111: - | AH111: 1900 | AI111: 1
E112: - | F112: - | AH112: 1900 | AI112: 1
E113: - | F113: - | AH113: 1900 | AI113: 1
E114: - | F114: - | AH114: 1900 | AI114: 1
E115: - | F115: - | AH115: 1900 | AI115: 1
E116: - | F116: - | AH116: 1900 | AI116: 1
E117: - | F117: - | AH117: 1900 | AI117: 1
E118: - | F118: - | AH118: 1900 | AI118: 1
E119: - | F119: - | AH119: 1900 | AI119: 1
E120: - | F120: - | AH120: 1900 | AI120: 1
E121: - | F121: - | AH121: 1900 | AI121: 1
E122: - | F122: - | AH122: 1900 | AI122: 1
E123: - | F123: - | AH123: 1900 | AI123: 1
E124: - | F124: - | AH124: 1900 | AI124: 1
E125: - | F125: - | AH125: 1900 | AI125: 1
E126: - | F126: - | AH126: 1900 | AI126: 1
E127: =IF(I127="","-",YEAR(I127)) -> - | F127: =IF(I127="","-",MONTH(I127)) -> - | AH127: 1900 | AI127: 1
E128: - | F128: - | AH128: 1900 | AI128: 1
E129: - | F129: - | AH129: 1900 | AI129: 1
E130: - | F130: - | AH130: 1900 | AI130: 1
E131: - | F131: - | AH131: 1900 | AI131: 1
E132: - | F132: - | AH132: 1900 | AI132: 1
E133: - | F133: - | AH133: 1900 | AI133: 1
E134: - | F134: - | AH134: 1900 | AI134: 1
E135: - | F135: - | AH135: 1900 | AI135: 1
E136: - | F136: - | AH136: 1900 | AI136: 1
E137: - | F137: - | AH137: 1900 | AI137: 1
E138: - | F138: - | AH138: 1900 | AI138: 1
E139: - | F139: - | AH139: 1900 | AI139: 1
E140: - | F140: - | AH140: 1900 | AI140: 1
E141: - | F141: - | AH141: 1900 | AI141: 1
E142: - | F142: - | AH142: 1900 | AI142: 1
E143: =IF(I143="","-",YEAR(I143)) -> - | F143: =IF(I143="","-",MONTH(I143)) -> - | AH143: 1900 | AI143: 1
E144: - | F144: - | AH144: 1900 | AI144: 1
E145: - | F145: - | AH145: 1900 | AI145: 1
E146: - | F146: - | AH146: 1900 | AI146: 1
E147: - | F147: - | AH147: 1900 | AI147: 1
E148: - | F148: - | AH148: 1900 | AI148: 1
E149: - | F149: - | AH149: 1900 | AI149: 1
E150: - | F150: - | AH150: 1900 | AI150: 1
E151: - | F151: - | AH151: 1900 | AI151: 1
E152: - | F152: - | AH152: 1900 | AI152: 1
E153: - | F153: - | AH153: 1900 | AI153: 1
E154: - | F154: - | AH154: 1900 | AI154: 1
E155: - | F155: - | AH155: 1900 | AI155: 1
E156: - | F156: - | AH156: 1900 | AI156: 1
E157: - | F157: - | AH157: 1900 | AI157: 1
E158: - | F158: - | AH158: 1900 | AI158: 1
E159: - | F159: - | AH159: 1900 | AI159: 1
E160: - | F160: - | AH160: =IF(AC160="-","-",YEAR(AC160)) -> 1900 | AI160: =IF(AC160="-","-",MONTH(AC160)) -> 1
E161: - | F161: - | AH161: 1900 | AI161: 1
E162: - | F162: - | AH162: 1900 | AI162: 1
E163: - | F163: - | AH163: 1900 | AI163: 1
E164: - | F164: - | AH164: 1900 | AI164: 1
E165: - | F165: - | AH165: 1900 | AI165: 1
E166: - | F166: - | AH166: 1900 | AI166: 1
E167: - | F167: - | AH167: 1900 | AI167: 1
E168: - | F168: - | AH168: 1900 | AI168: 1
E169: - | F169: - | AH169: 1900 | AI169: 1
E170: - | F170: - | AH170: 1900 | AI170: 1
E171: - | F171: - | AH171: 1900 | AI171: 1
E172: - | F172: - | AH172: 1900 | AI172: 1
E173: - | F173: - | AH173: 1900 | AI173: 1
E174: - | F174: - | AH174: 1900 | AI174: 1
E175: - | F175: - | AH175: 1900 | AI175: 1
E176: - | F176: - | AH176: 1900 | AI176: 1
E177: - | F177: - | AH177: 1900 | AI177: 1
E178: - | F178: - | AH178: 1900 | AI178: 1
E179: - | F179: - | AH179: 1900 | AI179: 1
E180: - | F180: - | AH180: 1900 | AI180: 1
E181: - | F181: - | AH181: 1900 | AI181: 1
E182: - | F182: - | AH182: 1900 | AI182: 1
E183: - | F183: - | AH183: 1900 | AI183: 1
E184: - | F184: - | AH184: 1900 | AI184: 1
E185: - | F185: - | AH185: 1900 | AI185: 1
E186: - | F186: - | AH186: 1900 | AI186: 1
E187: - | F187: - | AH187: 1900 | AI187: 1
E188: - | F188: - | AH188: 1900 | AI188: 1
E189: - | F189: - | AH189: 1900 | AI189: 1
E190: - | F190: - | AH190: 1900 | AI190: 1
E191: - | F191: - | AH191: 1900 | AI191: 1
E192: - | F192: - | AH192: 1900 | AI192: 1
E193: - | F193: - | W193: =IF(H193="AV","Não",IF(H193="AT",IF(V193="Ferido","Sim",IF(V193="Morto","Não")))) -> FALSE | AH193: 1900 | AI193: 1
E194: - | F194: - | W194: FALSE | AH194: =IF(AC194="-","-",YEAR(AC194)) -> 1900 | AI194: =IF(AC194="-","-",MONTH(AC194)) -> 1
E195: - | F195: - | W195: FALSE | AH195: 1900 | AI195: 1
E196: - | F196: - | W196: FALSE | AH196: 1900 | AI196: 1
E197: - | F197: - | W197: FALSE | AH197: 1900 | AI197: 1
E198: - | F198: - | W198: FALSE | AH198: 1900 | AI198: 1
E199: - | F199: - | W199: FALSE | AH199: 1900 | AI199: 1
E200: - | F200: - | W200: FALSE | AH200: 1900 | AI200: 1
... 10 more rows

Sheet Graf_2
Q2: Tipo | R2: (Vários itens) | AC2: ARRASTAR PARA BAIXO!! | AG2: ARRASTAR PARA BAIXO!!
A3: Tipo | B3: Nome científico | C3: Contagem de Nome científico | E3: Tipo | F3: Nome científico | G3: Contagem de Nome científico | I3: Tipo | J3: Nome científico | K3: Contagem de Nome científico | M3: Tipo | N3: Nome científico | O3: Contagem de Nome científico | U3: =A3 -> Tipo | V3: =B3 -> Nome científico | W3: =C3 -> Contagem de Nome científico | Y3: =E3 -> Tipo | Z3: =F3 -> Nome científico | AA3: =G3 -> Contagem de Nome científico | AC3: =I3 -> Tipo | AD3: =J3 -> Nome científico | AE3: =K3 -> Contagem de Nome científico | AG3: =M3 -> Tipo | AH3: =N3 -> Nome científico | AI3: =O3 -> Contagem de Nome científico
A4: AF | B4: Calitrix pericilatta | C4: 1 | I4: AT | J4: Dasypus novemcinctus | K4: 1 | M4: RE | N4: Apodemus sylvaticus | O4: 1 | Q4: Nome científico | R4: Contagem de Nome científico | U4: AF | V4: Calitrix pericilatta | W4: 1 | Y4: 0 | Z4: 0 | AA4: 0 | AC4: AT | AD4: Dasypus novemcinctus | AE4: 1 | AG4: RE | AH4: Apodemus sylvaticus | AI4: 1
A5: AF | B5: Dasypus novemcinctus | C5: 1 | I5: AT | J5: Didelphis albiventris | K5: 1 | M5: RE | N5: Copeoglossum nigropunctatum | O5: 1 | Q5: Apodemus sylvaticus | R5: 1 | U5: AF | V5: Dasypus novemcinctus | W5: 1 | Y5: 0 | Z5: 0 | AA5: 0 | AC5: AT | AD5: Didelphis albiventris | AE5: 1 | AG5: RE | AH5: Copeoglossum nigropunctatum | AI5: 1
A6: AF | B6: Salvator merianae | C6: 1 | I6: AT | J6: Didelphis aurita | K6: 1 | M6: RE | N6: Crotalus durissus | O6: 8 | Q6: Copeoglossum nigropunctatum | R6: 1 | U6: AF | V6: Salvator merianae | W6: 1 | Y6: 0 | Z6: 0 | AA6: 0 | AC6: AT | AD6: Didelphis aurita | AE6: 1 | AG6: RE | AH6: Crotalus durissus | AI6: 8
I7: AT | J7: Dipsas mikanii | K7: 2 | M7: RE | N7: Didelphis albiventris | O7: 1 | Q7: Crotalus durissus | R7: 8 | U7: 0 | V7: 0 | W7: 0 | Y7: 0 | Z7: 0 | AA7: 0 | AC7: AT | AD7: Dipsas mikanii | AE7: 2 | AG7: RE | AH7: Didelphis albiventris | AI7: 1
I8: AT | J8: Erythrolamprus aesculapii | K8: 2 | M8: RE | N8: Dipsas mikanii | O8: 5 | Q8: Dasypus novemcinctus | R8: 1 | U8: 0 | V8: 0 | W8: 0 | Y8: 0 | Z8: 0 | AA8: 0 | AC8: AT | AD8: Erythrolamprus aesculapii | AE8: 2 | AG8: RE | AH8: Dipsas mikanii | AI8: 5
I9: AT | J9: Micrurus sp. | K9: 1 | M9: RE | N9: Oxyrhopus guibei | O9: 1 | Q9: Didelphis albiventris | R9: 2 | U9: 0 | V9: 0 | W9: 0 | Y9: 0 | Z9: 0 | AA9: 0 | AC9: AT | AD9: Micrurus sp. | AE9: 1 | AG9: RE | AH9: Oxyrhopus guibei | AI9: 1
I10: AT | J10: Oxyrhopus guibei | K10: 3 | M10: RE | N10: Philodryas olfersii | O10: 1 | Q10: Didelphis aurita | R10: 1 | U10: 0 | V10: 0 | W10: 0 | Y10: 0 | Z10: 0 | AA10: 0 | AC10: AT | AD10: Oxyrhopus guibei | AE10: 3 | AG10: RE | AH10: Philodryas olfersii | AI10: 1
I11: AT | J11: Philodryas olfersii | K11: 1 | M11: RE | N11: Pygochelidon cyanoleuca | O11: 1 | Q11: Dipsas mikanii | R11: 7 | U11: 0 | V11: 0 | W11: 0 | Y11: 0 | Z11: 0 | AA11: 0 | AC11: AT | AD11: Philodryas olfersii | AE11: 1 | AG11: RE | AH11: Pygochelidon cyanoleuca | AI11: 1
I12: AT | J12: Callithrix jacchus | K12: 1 | M12: RE | N12: Ramphastos toco | O12: 1 | Q12: Erythrolamprus aesculapii | R12: 2 | U12: 0 | V12: 0 | W12: 0 | Y12: 0 | Z12: 0 | AA12: 0 | AC12: AT | AD12: Callithrix jacchus | AE12: 1 | AG12: RE | AH12: Ramphastos toco | AI12: 1
I13: AT | J13: Amphisbaena alba | K13: 2 | M13: RE | N13: Bothrops jararaca | O13: 4 | Q13: Micrurus sp. | R13: 1 | U13: 0 | V13: 0 | W13: 0 | Y13: 0 | Z13: 0 | AA13: 0 | AC13: AT | AD13: Amphisbaena alba | AE13: 2 | AG13: RE | AH13: Bothrops jararaca | AI13: 4
I14: AT | J14: Salvator meirianae | K14: 1 | M14: RE | N14: Zenaida auriculata | O14: 1 | Q14: Oxyrhopus guibei | R14: 4 | U14: 0 | V14: 0 | W14: 0 | Y14: 0 | Z14: 0 | AA14: 0 | AC14: AT | AD14: Salvator meirianae | AE14: 1 | AG14: RE | AH14: Zenaida auriculata | AI14: 1
M15: RE | N15: Rhinella sp. | O15: 1 | Q15: Philodryas olfersii | R15: 2 | U15: 0 | V15: 0 | W15: 0 | Y15: 0 | Z15: 0 | AA15: 0 | AC15: 0 | AD15: 0 | AE15: 0 | AG15: RE | AH15: Rhinella sp. | AI15: 1
M16: RE | N16: Cavia aparea | O16: 1 | Q16: Pygochelidon cyanoleuca | R16: 1 | U16: 0 | V16: 0 | W16: 0 | Y16: 0 | Z16: 0 | AA16: 0 | AC16: 0 | AD16: 0 | AE16: 0 | AG16: RE | AH16: Cavia aparea | AI16: 1
Q17: Ramphastos toco | R17: 1 | U17: 0 | V17: 0 | W17: 0 | Y17: 0 | Z17: 0 | AA17: 0 | AC17: 0 | AD17: 0 | AE17: 0 | AG17: 0 | AH17: 0 | AI17: 0
Q18: Callithrix jacchus | R18: 1 | U18: 0 | V18: 0 | W18: 0 | Y18: 0 | Z18: 0 | AA18: 0 | AC18: 0 | AD18: 0 | AE18: 0 | AG18: 0 | AH18: 0 | AI18: 0
Q19: Amphisbaena alba | R19: 2 | U19: 0 | V19: 0 | W19: 0 | Y19: 0 | Z19: 0 | AA19: 0 | AC19: 0 | AD19: 0 | AE19: 0 | AG19: 0 | AH19: 0 | AI19: 0
Q20: Bothrops jararaca | R20: 4 | U20: 0 | V20: 0 | W20: 0 | Y20: 0 | Z20: 0 | AA20: 0 | AC20: 0 | AD20: 0 | AE20: 0 | AG20: 0 | AH20: 0 | AI20: 0
Q21: Zenaida auriculata | R21: 1 | U21: 0 | V21: 0 | W21: 0 | Y21: 0 | Z21: 0 | AA21: 0 | AC21: 0 | AD21: 0 | AE21: 0 | AG21: 0 | AH21: 0 | AI21: 0
Q22: Rhinella sp. | R22: 1 | U22: 0 | V22: 0 | W22: 0 | Y22: 0 | Z22: 0 | AA22: 0 | AG22: 0 | AH22: 0 | AI22: 0
Q23: Salvator meirianae | R23: 1 | U23: 0 | V23: 0 | W23: 0 | Y23: 0 | Z23: 0 | AA23: 0 | AG23: 0 | AH23: 0 | AI23: 0
Q24: Cavia aparea | R24: 1 | U24: 0 | V24: 0 | W24: 0 | Y24: 0 | Z24: 0 | AA24: 0
U25: 0 | V25: 0 | W25: 0 | Y25: 0 | Z25: 0 | AA25: 0
U26: 0 | V26: 0 | W26: 0 | Y26: 0 | Z26: 0 | AA26: 0
U27: 0 | V27: 0 | W27: 0 | Y27: 0 | Z27: 0 | AA27: 0
U28: 0 | V28: 0 | W28: 0 | Y28: 0 | Z28: 0 | AA28: 0
U29: 0 | V29: 0 | W29: 0 | Y29: 0 | Z29: 0 | AA29: 0
U30: 0 | V30: 0 | W30: 0 | Y30: 0 | Z30: 0 | AA30: 0
U31: 0 | V31: 0 | W31: 0 | Y31: 0 | Z31: 0 | AA31: 0
U32: 0 | V32: 0 | W32: 0 | Y32: 0 | Z32: 0 | AA32: 0
U33: 0 | V33: 0 | W33: 0 | Y33: 0 | Z33: 0 | AA33: 0
U34: 0 | V34: 0 | W34: 0 | Y34: 0 | Z34: 0 | AA34: 0
Y35: =E35 -> 0 | Z35: =F35 -> 0 | AA35: =G35 -> 0
Y36: 0 | Z36: 0 | AA36: 0
Y37: 0 | Z37: 0 | AA37: 0
Y38: 0 | Z38: 0 | AA38: 0
Y39: 0 | Z39: 0 | AA39: 0
Y40: 0 | Z40: 0 | AA40: 0
Y41: 0 | Z41: 0 | AA41: 0
Y42: 0 | Z42: 0 | AA42: 0
Y43: 0 | Z43: 0 | AA43: 0
Y44: 0 | Z44: 0 | AA44: 0
Y45: 0 | Z45: 0 | AA45: 0
Y46: 0 | Z46: 0 | AA46: 0
Y47: 0 | Z47: 0 | AA47: 0
Y48: 0 | Z48: 0 | AA48: 0
Y49: 0 | Z49: 0 | AA49: 0
Y50: 0 | Z50: 0 | AA50: 0
Y51: 0 | Z51: 0 | AA51: 0
Y52: 0 | Z52: 0 | AA52: 0
Y53: 0 | Z53: 0 | AA53: 0
Y54: 0 | Z54: 0 | AA54: 0
Y55: 0 | Z55: 0 | AA55: 0
Y56: 0 | Z56: 0 | AA56: 0
Y57: 0 | Z57: 0 | AA57: 0
Y58: 0 | Z58: 0 | AA58: 0
Y59: 0 | Z59: 0 | AA59: 0
Y60: 0 | Z60: 0 | AA60: 0
Y61: 0 | Z61: 0 | AA61: 0
Y62: 0 | Z62: 0 | AA62: 0
Y63: 0 | Z63: 0 | AA63: 0
Y64: 0 | Z64: 0 | AA64: 0
Y65: 0 | Z65: 0 | AA65: 0
Y66: 0 | Z66: 0 | AA66: 0
Y67: 0 | Z67: 0 | AA67: 0
Y68: 0 | Z68: 0 | AA68: 0
Y69: 0 | Z69: 0 | AA69: 0

Sheet Graf_2b
C1: Resgastes | D1: Atropelados
A2: =Graf_2!Q2 -> Tipo | B2: =Graf_2!R2 -> (Vários itens)
A3: =Graf_2!Q4 -> Nome científico | B3: =Graf_2!R4 -> Contagem de Nome científico | C3: RE | D3: AT
A4: =Graf_2!Q11 -> Dipsas mikanii | B4: =Graf_2!R11 -> 7 | C4: =IFERROR(VLOOKUP(A4,Graf_2!$AH$4:$AI$1048576,2,FALSE),0) -> 5 | D4: =IFERROR(VLOOKUP(A4,Graf_2!$AD$4:$AE$1048576,2,FALSE),0) -> 2
A5: =Graf_2!Q14 -> Oxyrhopus guibei | B5: =Graf_2!R14 -> 4 | C5: =IFERROR(VLOOKUP(A5,Graf_2!$AH$4:$AI$1048576,2,FALSE),0) -> 1 | D5: =IFERROR(VLOOKUP(A5,Graf_2!$AD$4:$AE$1048576,2,FALSE),0) -> 3
A6: =Graf_2!Q7 -> Crotalus durissus | B6: =Graf_2!R7 -> 8 | C6: =IFERROR(VLOOKUP(A6,Graf_2!$AH$4:$AI$1048576,2,FALSE),0) -> 8 | D6: =IFERROR(VLOOKUP(A6,Graf_2!$AD$4:$AE$1048576,2,FALSE),0) -> 0
A7: =Graf_2!Q9 -> Didelphis albiventris | B7: =Graf_2!R9 -> 2 | C7: =IFERROR(VLOOKUP(A7,Graf_2!$AH$4:$AI$1048576,2,FALSE),0) -> 1 | D7: =IFERROR(VLOOKUP(A7,Graf_2!$AD$4:$AE$1048576,2,FALSE),0) -> 1
A8: =Graf_2!Q12 -> Erythrolamprus aesculapii | B8: =Graf_2!R12 -> 2 | C8: =IFERROR(VLOOKUP(A8,Graf_2!$AH$4:$AI$1048576,2,FALSE),0) -> 0 | D8: =IFERROR(VLOOKUP(A8,Graf_2!$AD$4:$AE$1048576,2,FALSE),0) -> 2
A9: =Graf_2!Q20 -> Bothrops jararaca | B9: =Graf_2!R20 -> 4 | C9: =IFERROR(VLOOKUP(A9,Graf_2!$AH$4:$AI$1048576,2,FALSE),0) -> 4 | D9: =IFERROR(VLOOKUP(A9,Graf_2!$AD$4:$AE$1048576,2,FALSE),0) -> 0
A10: =Graf_2!Q10 -> Didelphis aurita | B10: =Graf_2!R10 -> 1 | C10: =IFERROR(VLOOKUP(A10,Graf_2!$AH$4:$AI$1048576,2,FALSE),0) -> 0 | D10: =IFERROR(VLOOKUP(A10,Graf_2!$AD$4:$AE$1048576,2,FALSE),0) -> 1
A11: =Graf_2!Q13 -> Micrurus sp. | B11: =Graf_2!R13 -> 1 | C11: =IFERROR(VLOOKUP(A11,Graf_2!$AH$4:$AI$1048576,2,FALSE),0) -> 0 | D11: =IFERROR(VLOOKUP(A11,Graf_2!$AD$4:$AE$1048576,2,FALSE),0) -> 1
A12: =Graf_2!Q15 -> Philodryas olfersii | B12: =Graf_2!R15 -> 2 | C12: =IFERROR(VLOOKUP(A12,Graf_2!$AH$4:$AI$1048576,2,FALSE),0) -> 1 | D12: =IFERROR(VLOOKUP(A12,Graf_2!$AD$4:$AE$1048576,2,FALSE),0) -> 1
A13: =Graf_2!Q19 -> Amphisbaena alba | B13: =Graf_2!R19 -> 2 | C13: =IFERROR(VLOOKUP(A13,Graf_2!$AH$4:$AI$1048576,2,FALSE),0) -> 0 | D13: =IFERROR(VLOOKUP(A13,Graf_2!$AD$4:$AE$1048576,2,FALSE),0) -> 2
A14: =Graf_2!Q5 -> Apodemus sylvaticus | B14: =Graf_2!R5 -> 1 | C14: =IFERROR(VLOOKUP(A14,Graf_2!$AH$4:$AI$1048576,2,FALSE),0) -> 1 | D14: =IFERROR(VLOOKUP(A14,Graf_2!$AD$4:$AE$1048576,2,FALSE),0) -> 0
A15: =Graf_2!Q6 -> Copeoglossum nigropunctatum | B15: =Graf_2!R6 -> 1 | C15: =IFERROR(VLOOKUP(A15,Graf_2!$AH$4:$AI$1048576,2,FALSE),0) -> 1 | D15: =IFERROR(VLOOKUP(A15,Graf_2!$AD$4:$AE$1048576,2,FALSE),0) -> 0
A16: =Graf_2!Q8 -> Dasypus novemcinctus | B16: =Graf_2!R8 -> 1 | C16: =IFERROR(VLOOKUP(A16,Graf_2!$AH$4:$AI$1048576,2,FALSE),0) -> 0 | D16: =IFERROR(VLOOKUP(A16,Graf_2!$AD$4:$AE$1048576,2,FALSE),0) -> 1
A17: =Graf_2!Q16 -> Pygochelidon cyanoleuca | B17: =Graf_2!R16 -> 1 | C17: =IFERROR(VLOOKUP(A17,Graf_2!$AH$4:$AI$1048576,2,FALSE),0) -> 1 | D17: =IFERROR(VLOOKUP(A17,Graf_2!$AD$4:$AE$1048576,2,FALSE),0) -> 0
A18: =Graf_2!Q17 -> Ramphastos toco | B18: =Graf_2!R17 -> 1 | C18: =IFERROR(VLOOKUP(A18,Graf_2!$AH$4:$AI$1048576,2,FALSE),0) -> 1 | D18: =IFERROR(VLOOKUP(A18,Graf_2!$AD$4:$AE$1048576,2,FALSE),0) -> 0
A19: =Graf_2!Q18 -> Callithrix jacchus | B19: =Graf_2!R18 -> 1 | C19: =IFERROR(VLOOKUP(A19,Graf_2!$AH$4:$AI$1048576,2,FALSE),0) -> 0 | D19: =IFERROR(VLOOKUP(A19,Graf_2!$AD$4:$AE$1048576,2,FALSE),0) -> 1
A20: =Graf_2!Q21 -> Zenaida auriculata | B20: =Graf_2!R21 -> 1 | C20: =IFERROR(VLOOKUP(A20,Graf_2!$AH$4:$AI$1048576,2,FALSE),0) -> 1 | D20: =IFERROR(VLOOKUP(A20,Graf_2!$AD$4:$AE$1048576,2,FALSE),0) -> 0
A21: =Graf_2!Q22 -> Rhinella sp. | B21: =Graf_2!R22 -> 1 | C21: =IFERROR(VLOOKUP(A21,Graf_2!$AH$4:$AI$1048576,2,FALSE),0) -> 1 | D21: =IFERROR(VLOOKUP(A21,Graf_2!$AD$4:$AE$1048576,2,FALSE),0) -> 0
A22: =Graf_2!Q23 -> Salvator meirianae | B22: =Graf_2!R23 -> 1 | C22: =IFERROR(VLOOKUP(A22,Graf_2!$AH$4:$AI$1048576,2,FALSE),0) -> 0 | D22: =IFERROR(VLOOKUP(A22,Graf_2!$AD$4:$AE$1048576,2,FALSE),0) -> 1
A23: =Graf_2!Q24 -> Cavia aparea | B23: =Graf_2!R24 -> 1 | C23: =IFERROR(VLOOKUP(A23,Graf_2!$AH$4:$AI$1048576,2,FALSE),0) -> 1 | D23: =IFERROR(VLOOKUP(A23,Graf_2!$AD$4:$AE$1048576,2,FALSE),0) -> 0
A24: =Graf_2!Q25 -> 0 | B24: =Graf_2!R25 -> 0 | C24: =IFERROR(VLOOKUP(A24,Graf_2!$AH$4:$AI$1048576,2,FALSE),0) -> 0 | D24: =IFERROR(VLOOKUP(A24,Graf_2!$AD$4:$AE$1048576,2,FALSE),0) -> 0
A25: =Graf_2!Q26 -> 0 | B25: =Graf_2!R26 -> 0 | C25: =IFERROR(VLOOKUP(A25,Graf_2!$AH$4:$AI$1048576,2,FALSE),0) -> 0 | D25: =IFERROR(VLOOKUP(A25,Graf_2!$AD$4:$AE$1048576,2,FALSE),0) -> 0
A26: =Graf_2!Q27 -> 0 | B26: =Graf_2!R27 -> 0 | C26: =IFERROR(VLOOKUP(A26,Graf_2!$AH$4:$AI$1048576,2,FALSE),0) -> 0 | D26: =IFERROR(VLOOKUP(A26,Graf_2!$AD$4:$AE$1048576,2,FALSE),0) -> 0
A27: =Graf_2!Q28 -> 0 | B27: =Graf_2!R28 -> 0 | C27: =IFERROR(VLOOKUP(A27,Graf_2!$AH$4:$AI$1048576,2,FALSE),0) -> 0 | D27: =IFERROR(VLOOKUP(A27,Graf_2!$AD$4:$AE$1048576,2,FALSE),0) -> 0
A28: ARRASTAR PARA BAIXO!!

Sheet Treinamento
B2: Tema | C2: Data | D2: Hora | E2: Público-alvo | F2: Local
B3: Acidentes com animais peçonhentos | C3: 2020-11-30 | D3: 1 Hora | F3: Consórcio BDP
B4: Atropelamento de animais silvestres | C4: 2020-11-30 | D4: 1 Hora | E4: Equipe administrativa | F4: Consórcio BDP
B5: Resgate e Atropelamento de animais silvestres | C5: 2020-12-09 | D5: 1 Hora | E5: Equipe administrativa | F5: Consórcio BDP
